Workbook

Sheet Sample Report (hidden)
A2: Date
A3: Hen
A4: Program
A5: Start at 999999
A6: Sequence component 1 | B6: Time 1 | C6: Seqeunce Component 2 | D6: Time 2 | E6: Seqeunce Component 3 | F6: Time 3 | G6: Correct 0 = No 1=Yes | J6: Seqeunce | K6: Time
A7: 12 | B7: 7 | C7: 12 | D7: 42 | E7: 13 | F7: 18 | G7: if 77 new line, if 31 or 41 = yes new line on 77, | J7: =string of Seqeunce compponent 1, 2 & 3 | K7: =time 3
A8: This continues until ther is a 1 on its own to indicate start of summary data
J9: 10-19 =1
A10: Summary Data | J10: 20-29 =2
A11: Correct | B11: Incorrect | C11: Rft | D11: total | E11: Av Correct | F11: Av Incorrect | G11: Percent correct | H11: Time | J11: in this example the seqeunce would be 111
A12: 40 | B12: 33 | C12: 40 | D12: 73 | E12: 23.95 | F12: 15 | G12: 54 | H12: 806

Sheet Summary
A2: Day | B2: Date | C2: Average Response Rate | D2: Target % | E2: RF for non correct sequence | F2: U Value | K2: Block 1 | L2: Block 2 | M2: Block 3 | N2: Block 4 | O2: Block 5 | P2: Block 6
A3: 1 | B3: ='!MC27950.Gus'!B2:C2 -> <date> | C3: =('!MC27950.Gus'!F194/60)/'!MC27950.Gus'!Q3 -> 2.12429078 | D3: ='!MC27950.Gus'!N20/'!MC27950.Gus'!Q3 -> 0.01063829787 | E3: =SUM('!MC27950.Gus'!L20:Q20)/'!MC27950.Gus'!Q3 -> 1.473404255 | F3: ='!MC27950.Gus'!Q16 -> 0.3142580902 | J3: Average Response Rate | K3: =AVERAGE(C3:C7) -> 1.971671472 | L3: =AVERAGE(C8:C12) -> 2.329015004 | M3: =AVERAGE(C13:C17) -> 2.058083638 | N3: =AVERAGE(C18:C22) -> 2.124905526 | O3: =AVERAGE(C23:C27) -> 2.111674003 | P3: =AVERAGE(C28:C32) -> 2.128189889
A4: 2 | B4: ='!MC28A10.Gus'!B2:C2 -> <date> | C4: =('!MC28A10.Gus'!F208/60)/'!MC28A10.Gus'!Q3 -> 1.962151067 | D4: ='!MC28A10.Gus'!N20/'!MC28A10.Gus'!Q3 -> 0.04433497537 | E4: =SUM('!MC28A10.Gus'!L20:Q20)/'!MC28A10.Gus'!Q3 -> 1.42364532 | F4: ='!MC28A10.Gus'!Q16 -> 0.3433884857 | J4: Target % | K4: =AVERAGE(D3:D7) -> 0.05845527824 | L4: =AVERAGE(D8:D12) -> 0.1045208133 | M4: =AVERAGE(D13:D17) -> 0.1582171628 | N4: =AVERAGE(D18:D22) -> 0.2072714809 | O4: =AVERAGE(D23:D27) -> 0.1989745387 | P4: =AVERAGE(D28:D32) -> 0.2944086759
A5: 3 | B5: ='!MC29A10.Gus'!B2:C2 -> <date> | C5: =('!MC29A10.Gus'!F210/60)/'!MC29A10.Gus'!Q3 -> 1.960702614 | D5: ='!MC29A10.Gus'!N20/'!MC29A10.Gus'!Q3 -> 0.1225490196 | E5: =SUM('!MC29A10.Gus'!L20:Q20)/'!MC29A10.Gus'!Q3 -> 1.544117647 | F5: ='!MC29A10.Gus'!Q16 -> 0.3342788598 | J5: CCRF | K5: =AVERAGE(E3:E7) -> 2.476725891 | L5: =AVERAGE(E8:E12) -> 1.363296705 | M5: =AVERAGE(E13:E17) -> 1.244363786 | N5: =AVERAGE(E18:E22) -> 1.520371886 | O5: =AVERAGE(E23:E27) -> 1.212901449 | P5: =AVERAGE(E28:E32) -> 1.704216741
A6: 4 | B6: ='!MC30940.Gus'!B2:C2 -> <date> | C6: =('!MC30940.Gus'!F189/60)/'!MC30940.Gus'!Q3 -> 2.17003643 | D6: ='!MC30940.Gus'!N20/'!MC30940.Gus'!Q3 -> 0.1147540984 | E6: =SUM('!MC30940.Gus'!L20:Q20)/'!MC30940.Gus'!Q3 -> 1.06010929 | F6: ='!MC30940.Gus'!Q16 -> 0.3402133848 | J6: U Value | K6: =AVERAGE(F3:F7) -> 0.291996651 | L6: =AVERAGE(F8:F12) -> 0.3750174301 | M6: =AVERAGE(F13:F17) -> 0.2989372233 | N6: =AVERAGE(F18:F22) -> 0.2999964439 | O6: =AVERAGE(F23:F27) -> 0.2389213149 | P6: =AVERAGE(F28:F32) -> 0.2978673351
A7: 5 | B7: ='!MC31A00.Gus'!B2:C2 -> <date> | C7: =('!MC31A00.Gus'!F23/60)/'!MC31A00.Gus'!Q3 -> 1.641176471 | D7: ='!MC31A00.Gus'!N20/'!MC31A00.Gus'!Q3 -> 0 | E7: =SUM('!MC31A00.Gus'!L20:Q20)/'!MC31A00.Gus'!Q3 -> 6.882352941 | F7: ='!MC31A00.Gus'!Q16 -> 0.1278444343
A8: 6 | B8: ='!N102930.Gus'!B2:C2 -> <date> | C8: =('!N102930.Gus'!F18/60)/'!N102930.Gus'!Q3 -> 2.316666667 | D8: ='!N102930.Gus'!N20/'!N102930.Gus'!Q3 -> 0.08333333333 | E8: =SUM('!N102930.Gus'!L20:Q20)/'!N102930.Gus'!Q3 -> 0.4166666667 | F8: ='!N102930.Gus'!Q16 -> 0.5441690936
A9: 7 | B9: ='!N103A10.Gus'!B2:C2 -> <date> | C9: =('!N103A10.Gus'!F158/60)/'!N103A10.Gus'!Q3 -> 2.548464912 | D9: ='!N103A10.Gus'!N20/'!N103A10.Gus'!Q3 -> 0.1118421053 | E9: =SUM('!N103A10.Gus'!L20:Q20)/'!N103A10.Gus'!Q3 -> 1.842105263 | F9: ='!N103A10.Gus'!Q16 -> 0.3395351932 | G9: =K3 -> 1.971671472 | H9: =L3 -> 2.329015004 | I9: 2.058083638 | J9: 2.124905526 | K9: 2.111674003 | L9: 2.128189889 | M9: =K4 -> 0.05845527824 | N9: =L4 -> 0.1045208133 | O9: 0.1582171628 | P9: 0.2072714809 | Q9: 0.1989745387 | R9: 0.2944086759 | S9: =K6 -> 0.291996651 | T9: =L6 -> 0.3750174301 | U9: 0.2989372233 | V9: 0.2999964439 | W9: 0.2389213149 | X9: 0.2978673351
A10: 8 | B10: ='!N104B00.Gus'!B2:C2 -> <date> | C10: =('!N104B00.Gus'!F169/60)/'!N104B00.Gus'!Q3 -> 2.392433538 | D10: ='!N104B00.Gus'!N20/'!N104B00.Gus'!Q3 -> 0.1349693252 | E10: =SUM('!N104B00.Gus'!L20:Q20)/'!N104B00.Gus'!Q3 -> 1.766871166 | F10: ='!N104B00.Gus'!Q16 -> 0.3196142586
A11: 9 | B11: ='!N105830.Gus'!B2:C2 -> <date> | C11: =('!N105830.Gus'!F205/60)/'!N105830.Gus'!Q3 -> 2.007370184 | D11: ='!N105830.Gus'!N20/'!N105830.Gus'!Q3 -> 0.1206030151 | E11: =SUM('!N105830.Gus'!L20:Q20)/'!N105830.Gus'!Q3 -> 1.060301508 | F11: ='!N105830.Gus'!Q16 -> 0.3175596562
A12: 10 | B12: ='!N106900.Gus'!B2:C2 -> <date> | C12: =('!N106900.Gus'!F173/60)/'!N106900.Gus'!Q3 -> 2.380139721 | D12: ='!N106900.Gus'!N20/'!N106900.Gus'!Q3 -> 0.07185628743 | E12: =SUM('!N106900.Gus'!L20:Q20)/'!N106900.Gus'!Q3 -> 1.730538922 | F12: ='!N106900.Gus'!Q16 -> 0.3542089489
A13: 11 | B13: ='!N107950.Gus'!B2:C2 -> <date> | C13: =('!N107950.Gus'!F200/60)/'!N107950.Gus'!Q3 -> 2.05532646 | D13: ='!N107950.Gus'!N20/'!N107950.Gus'!Q3 -> 0.118556701 | E13: =SUM('!N107950.Gus'!L20:Q20)/'!N107950.Gus'!Q3 -> 1.082474227 | F13: ='!N107950.Gus'!Q16 -> 0.2901213009
A14: 12 | B14: ='!N108940.Gus'!B2:C2 -> <date> | C14: =('!N108940.Gus'!F174/60)/'!N108940.Gus'!Q3 -> 2.06547619 | D14: ='!N108940.Gus'!N20/'!N108940.Gus'!Q3 -> 0.1904761905 | E14: =SUM('!N108940.Gus'!L20:Q20)/'!N108940.Gus'!Q3 -> 1.785714286 | F14: ='!N108940.Gus'!Q16 -> 0.3020724954
A15: 13 | B15: ='!N109950.Gus'!B2:C2 -> <date> | C15: =('!N109950.Gus'!F196/60)/'!N109950.Gus'!Q3 -> 2.099824561 | D15: ='!N109950.Gus'!N20/'!N109950.Gus'!Q3 -> 0.1631578947 | E15: =SUM('!N109950.Gus'!L20:Q20)/'!N109950.Gus'!Q3 -> 1.084210526 | F15: ='!N109950.Gus'!Q16 -> 0.2992214084
A16: 14 | B16: ='!N110A10.Gus'!B2:C2 -> <date> | C16: =('!N110A10.Gus'!F205/60)/'!N110A10.Gus'!Q3 -> 1.992166667 | D16: ='!N110A10.Gus'!N20/'!N110A10.Gus'!Q3 -> 0.12 | E16: =SUM('!N110A10.Gus'!L20:Q20)/'!N110A10.Gus'!Q3 -> 1.065 | F16: ='!N110A10.Gus'!Q16 -> 0.3054640641
A17: 15 | B17: ='!N111A20.Gus'!B2:C2 -> <date> | C17: =('!N111A20.Gus'!F187/60)/'!N111A20.Gus'!Q3 -> 2.077624309 | D17: ='!N111A20.Gus'!N20/'!N111A20.Gus'!Q3 -> 0.1988950276 | E17: =SUM('!N111A20.Gus'!L20:Q20)/'!N111A20.Gus'!Q3 -> 1.20441989 | F17: ='!N111A20.Gus'!Q16 -> 0.2978068477
A18: 16 | B18: ='!N112920.Gus'!B2:C2 -> <date> | C18: =('!N112920.Gus'!F170/60)/'!N112920.Gus'!Q3 -> 2.160060976 | D18: ='!N112920.Gus'!N20/'!N112920.Gus'!Q3 -> 0.2195121951 | E18: =SUM('!N112920.Gus'!L20:Q20)/'!N112920.Gus'!Q3 -> 1.908536585 | F18: ='!N112920.Gus'!Q16 -> 0.2979478248
A19: 17 | B19: ='!N113940.Gus'!B2:C2 -> <date> | C19: =('!N113940.Gus'!F152/60)/'!N113940.Gus'!Q3 -> 2.100570776 | D19: ='!N113940.Gus'!N20/'!N113940.Gus'!Q3 -> 0.2671232877 | E19: =SUM('!N113940.Gus'!L20:Q20)/'!N113940.Gus'!Q3 -> 2.123287671 | F19: ='!N113940.Gus'!Q16 -> 0.3190076224
A20: 18 | B20: ='!N114910.Gus'!B2:C2 -> <date> | C20: =('!N114910.Gus'!F195/60)/'!N114910.Gus'!Q3 -> 2.108730159 | D20: ='!N114910.Gus'!N20/'!N114910.Gus'!Q3 -> 0.164021164 | E20: =SUM('!N114910.Gus'!L20:Q20)/'!N114910.Gus'!Q3 -> 1.142857143 | F20: ='!N114910.Gus'!Q16 -> 0.3156833057
A21: 19 | B21: ='!N115950.Gus'!B2:C2 -> <date> | C21: =('!N115950.Gus'!F171/60)/'!N115950.Gus'!Q3 -> 2.183030303 | D21: ='!N115950.Gus'!N20/'!N115950.Gus'!Q3 -> 0.2242424242 | E21: =SUM('!N115950.Gus'!L20:Q20)/'!N115950.Gus'!Q3 -> 1.296969697 | F21: ='!N115950.Gus'!Q16 -> 0.2756549033
A22: 20 | B22: ='!N116930.Gus'!B2:C2 -> <date> | C22: =('!N116930.Gus'!F198/60)/'!N116930.Gus'!Q3 -> 2.072135417 | D22: ='!N116930.Gus'!N20/'!N116930.Gus'!Q3 -> 0.1614583333 | E22: =SUM('!N116930.Gus'!L20:Q20)/'!N116930.Gus'!Q3 -> 1.130208333 | F22: ='!N116930.Gus'!Q16 -> 0.2916885634
A23: 21 | B23: ='!N117A00.Gus'!B2:C2 -> <date> | C23: =('!N117A00.Gus'!F162/60)/'!N117A00.Gus'!Q3 -> 2.153311966 | D23: ='!N117A00.Gus'!N20/'!N117A00.Gus'!Q3 -> 0.2115384615 | E23: =SUM('!N117A00.Gus'!L20:Q20)/'!N117A00.Gus'!Q3 -> 1.326923077 | F23: ='!N117A00.Gus'!Q16 -> 0.3127406845
A24: 22 | B24: ='!N118A00.Gus'!B2:C2 -> <date> | C24: =('!N118A00.Gus'!F143/60)/'!N118A00.Gus'!Q3 -> 2.338199513 | D24: ='!N118A00.Gus'!N20/'!N118A00.Gus'!Q3 -> 0.2627737226 | E24: =SUM('!N118A00.Gus'!L20:Q20)/'!N118A00.Gus'!Q3 -> 1.489051095 | F24: ='!N118A00.Gus'!Q16 -> 0.2829892529
A25: 23 | B25: ='!N119930.Gus'!B2:C2 -> <date> | C25: =('!N119930.Gus'!F131/60)/'!N119930.Gus'!Q3 -> 2.220933333 | D25: ='!N119930.Gus'!N20/'!N119930.Gus'!Q3 -> 0.304 | E25: =SUM('!N119930.Gus'!L20:Q20)/'!N119930.Gus'!Q3 -> 1.616 | F25: ='!N119930.Gus'!Q16 -> 0.3054626892
A26: 24 | B26: ='!N120A20.Gus'!B2:C2 -> <date> | C26: =('!N120A20.Gus'!F163/60)/'!N120A20.Gus'!Q3 -> 2.119002123 | D26: ='!N120A20.Gus'!N20/'!N120A20.Gus'!Q3 -> 0.2165605096 | E26: =SUM('!N120A20.Gus'!L20:Q20)/'!N120A20.Gus'!Q3 -> 1.324840764 | F26: ='!N120A20.Gus'!Q16 -> 0.2934139478
A27: 25 | B27: ='!N121930.Gus'!B2:C2 -> <date> | C27: =('!N121930.Gus'!F19/60)/'!N121930.Gus'!Q3 -> 1.726923077 | D27: ='!N121930.Gus'!N20/'!N121930.Gus'!Q3 -> 0 | E27: =SUM('!N121930.Gus'!L20:Q20)/'!N121930.Gus'!Q3 -> 0.3076923077 | F27: ='!N121930.Gus'!Q16 -> 0
A28: 26 | B28: ='!N122A10.Gus'!B2:C2 -> <date> | C28: =('!N122A10.Gus'!F151/60)/'!N122A10.Gus'!Q3 -> 2.177356322 | D28: ='!N122A10.Gus'!N20/'!N122A10.Gus'!Q3 -> 0.2551724138 | E28: =SUM('!N122A10.Gus'!L20:Q20)/'!N122A10.Gus'!Q3 -> 2.117241379 | F28: ='!N122A10.Gus'!Q16 -> 0.3120529621
A29: 27 | B29: ='!N123A30.Gus'!B2:C2 -> <date> | C29: =('!N123A30.Gus'!F119/60)/'!N123A30.Gus'!Q3 -> 2.112684366 | D29: ='!N123A30.Gus'!N20/'!N123A30.Gus'!Q3 -> 0.3274336283 | E29: =SUM('!N123A30.Gus'!L20:Q20)/'!N123A30.Gus'!Q3 -> 1.743362832 | F29: ='!N123A30.Gus'!Q16 -> 0.3116645927
A30: 28 | B30: ='!N124950.Gus'!B2:C2 -> <date> | C30: =('!N124950.Gus'!F127/60)/'!N124950.Gus'!Q3 -> 2.135399449 | D30: ='!N124950.Gus'!N20/'!N124950.Gus'!Q3 -> 0.3223140496 | E30: =SUM('!N124950.Gus'!L20:Q20)/'!N124950.Gus'!Q3 -> 1.652892562 | F30: ='!N124950.Gus'!Q16 -> 0.3246774054
A31: 29 | B31: ='!N125A00.Gus'!B2:C2 -> <date> | C31: =('!N125A00.Gus'!F136/60)/'!N125A00.Gus'!Q3 -> 2.142564103 | D31: ='!N125A00.Gus'!N20/'!N125A00.Gus'!Q3 -> 0.3 | E31: =SUM('!N125A00.Gus'!L20:Q20)/'!N125A00.Gus'!Q3 -> 1.569230769 | F31: ='!N125A00.Gus'!Q16 -> 0.2828595872
A32: 30 | B32: ='!N126A00.Gus'!B2:C2 -> <date> | C32: =('!N126A00.Gus'!F152/60)/'!N126A00.Gus'!Q3 -> 2.072945205 | D32: ='!N126A00.Gus'!N20/'!N126A00.Gus'!Q3 -> 0.2671232877 | E32: =SUM('!N126A00.Gus'!L20:Q20)/'!N126A00.Gus'!Q3 -> 1.438356164 | F32: ='!N126A00.Gus'!Q16 -> 0.2580821278

Sheet Start
F1: Use Folder 51 | H1: Auto Clean Up | J1: Correct sequence
F2: FALSE | H2: TRUE | J2: 112
A4: Working with Folder | G4: Process All/Or Pick A number: ALL or an integer
A5: F:\Possum Chapter\Raw Data\Gus\New Phase LLR Var\ | G5: ALL
A6: Filenames:
A7: !N123A30.Gus | G7: Paint Cells
A8: !N124950.Gus | G8: FALSE
A9: !N125A00.Gus
A10: !N126A00.Gus
A11: !MC27950.Gus
A12: !MC28A10.Gus
A13: !MC29A10.Gus
A14: !MC30940.Gus
A15: !MC31A00.Gus
A16: !N102930.Gus
A17: !N103A10.Gus
A18: !N104B00.Gus
A19: !N105830.Gus
A20: !N106900.Gus
A21: !N107950.Gus
A22: !N108940.Gus
A23: !N109950.Gus
A24: !N110A10.Gus
A25: !N111A20.Gus
A26: !N112920.Gus
A27: !N113940.Gus
A28: !N114910.Gus
A29: !N115950.Gus
A30: !N116930.Gus
A31: !N117A00.Gus
A32: !N118A00.Gus
A33: !N119930.Gus
A34: !N120A20.Gus
A35: !N121930.Gus
A36: !N122A10.Gus

Sheet !MC27950.Gus
A1: Report for:!MC27950.Gus
A2: Date: | B2: <date>
A3: Hen: | B3: <hen> | F3: Correct Sequence | G3: =Start!J2 -> 112 | P3: Total Sequences in Data | Q3: =4994-COUNTBLANK(L7:L5000) -> 188 | V3: Total Sequences in Block Data | W3: =COUNTA(L7:L37) -> 31 | AA3: Total Sequences in Block Data | AB3: =COUNTA(L38:L69) -> 32 | AF3: Total Sequences in Block Data | AG3: =COUNTA(L70:L100) -> 31 | AK3: Total Sequences in Block Data | AL3: =COUNTA(L101:L131) -> 31 | AP3: Total Sequences in Block Data | AQ3: =COUNTA(L132:L163) -> 32 | AU3: Total Sequences in Block Data | AV3: =COUNTA(L164:L194) -> 31
P4: Total Sequences in Summary | Q4: =SUM(O7:O14) -> 188 | V4: Total Sequences in Block Summary | W4: =SUM(U7:U14) -> 31 | AA4: Total Sequences in Block Summary | AB4: =SUM(Z7:Z14) -> 32 | AF4: Total Sequences in Block Summary | AG4: =SUM(AE7:AE14) -> 31 | AK4: Total Sequences in Block Summary | AL4: =SUM(AJ7:AJ14) -> 31 | AP4: Total Sequences in Block Summary | AQ4: =SUM(AO7:AO14) -> 32 | AU4: Total Sequences in Block Summary | AV4: =SUM(AT7:AT14) -> 31
T5: Block 1 | Y5: Block 2 | AD5: Block 3 | AI5: Block 4 | AN5: Block 5 | AS5: Block 6
A6: Sequence Component 1 | B6: Time 1 | C6: Sequence Component 2 | D6: Time 2 | E6: Sequence Component 3 | F6: Time 3 | G6: Sequence Component 4 | H6: Time 4 | I6: Sequence Component 5 | J6: Time 5 | K6: Correct? 0=No 1=Yes | L6: Sequence | N6: Frequency | P6: Relative Frequency | Q6: Variability | T6: Frequency | V6: Relative Frequency | W6: Variability | Y6: Frequency | AA6: Relative Frequency | AB6: Variability | AD6: Frequency | AF6: Relative Frequency | AG6: Variability | AI6: Frequency | AK6: Relative Frequency | AL6: Variability | AN6: Frequency | AP6: Relative Frequency | AQ6: Variability | AS6: Frequency | AU6: Relative Frequency | AV6: Variability
A7: 22 | B7: 15 | C7: 24 | D7: 17 | E7: 14 | F7: 21 | K7: 0 | L7: 221 | N7: 111 | O7: =COUNTIF($L$7:$L$500,N7) -> 10 | P7: =O7/$Q$4 -> 0.05319148936 | Q7: =IF(P7=0,0,(P7*((LOG(P7))/LOG(2)))) -> -0.2251415296 | T7: =N7 -> 111 | U7: =COUNTIF(L7:L37,T7) -> 0 | V7: =U7/(W4-U8) -> 0 | W7: =IF(V7=0,0,(V7*((LOG(V7))/LOG(2)))) -> 0 | Y7: =N7 -> 111 | Z7: =COUNTIF(L38:L69,Y7) -> 0 | AA7: =Z7/(AB4-Z8) -> 0 | AB7: =IF(AA7=0,0,(AA7*((LOG(AA7))/LOG(2)))) -> 0 | AD7: =N7 -> 111 | AE7: =COUNTIF(L70:L100,AD7) -> 0 | AF7: =AE7/(AG4-AE8) -> 0 | AG7: =IF(AF7=0,0,(AF7*((LOG(AF7))/LOG(2)))) -> 0 | AI7: =N7 -> 111 | AJ7: =COUNTIF(L101:L131,AI7) -> 7 | AK7: =AJ7/(AL4-AJ8) -> 0.2333333333 | AL7: =IF(AK7=0,0,(AK7*((LOG(AK7))/LOG(2)))) -> -0.4898916572 | AN7: =N7 -> 111 | AO7: =COUNTIF(L132:L163,AN7) -> 1 | AP7: =AO7/(AQ4-AO8) -> 0.03225806452 | AQ7: =IF(AP7=0,0,(AP7*((LOG(AP7))/LOG(2)))) -> -0.1598127842 | AS7: =N7 -> 111 | AT7: =COUNTIF(L164:L194,AS7) -> 2 | AU7: =AT7/(AV4-AT8) -> 0.06451612903 | AV7: =IF(AU7=0,0,(AU7*((LOG(AU7))/LOG(2)))) -> -0.2551094394
A8: 22 | B8: 116 | C8: 13 | D8: 121 | E8: 23 | F8: 123 | K8: 0 | L8: 212 | N8: 112 | O8: 2 | P8: 0.01063829787 | Q8: -0.06972966863 | T8: 112 | U8: =COUNTIF(L7:L37,T8) -> 0 | Y8: 112 | Z8: =COUNTIF(L38:L69,Y8) -> 0 | AD8: 112 | AE8: =COUNTIF(L70:L100,AD8) -> 0 | AI8: 112 | AJ8: =COUNTIF(L101:L131,AI8) -> 1 | AN8: 112 | AO8: =COUNTIF(L132:L163,AN8) -> 1 | AS8: 112 | AT8: =COUNTIF(L164:L194,AS8) -> 0
A9: 22 | B9: 222 | C9: 13 | D9: 228 | E9: 23 | F9: 233 | K9: 0 | L9: 212 | N9: 121 | O9: 11 | P9: 0.0585106383 | Q9: -0.2396102636 | T9: 121 | U9: =COUNTIF(L7:L37,T9) -> 1 | V9: =U9/(W4-U8) -> 0.03225806452 | W9: =IF(V9=0,0,(V9*((LOG(V9))/LOG(2)))) -> -0.1598127842 | Y9: 121 | Z9: =COUNTIF(L38:L69,Y9) -> 0 | AA9: =Z9/(AB4-Z8) -> 0 | AB9: =IF(AA9=0,0,(AA9*((LOG(AA9))/LOG(2)))) -> 0 | AD9: 121 | AE9: =COUNTIF(L70:L100,AD9) -> 2 | AF9: =AE9/(AG4-AE8) -> 0.06451612903 | AG9: =IF(AF9=0,0,(AF9*((LOG(AF9))/LOG(2)))) -> -0.2551094394 | AI9: 121 | AJ9: =COUNTIF(L101:L131,AI9) -> 4 | AK9: =AJ9/(AL4-AJ8) -> 0.1333333333 | AL9: =IF(AK9=0,0,(AK9*((LOG(AK9))/LOG(2)))) -> -0.3875854127 | AN9: 121 | AO9: =COUNTIF(L132:L163,AN9) -> 2 | AP9: =AO9/(AQ4-AO8) -> 0.06451612903 | AQ9: =IF(AP9=0,0,(AP9*((LOG(AP9))/LOG(2)))) -> -0.2551094394 | AS9: 121 | AT9: =COUNTIF(L164:L194,AS9) -> 2 | AU9: =AT9/(AV4-AT8) -> 0.06451612903 | AV9: =IF(AU9=0,0,(AU9*((LOG(AU9))/LOG(2)))) -> -0.2551094394
A10: 22 | B10: 332 | C10: 24 | D10: 335 | E10: 23 | F10: 349 | K10: 0 | L10: 222 | N10: 122 | O10: 15 | P10: 0.07978723404 | Q10: -0.2910397545 | T10: 122 | U10: =COUNTIF(L7:L37,T10) -> 3 | V10: =U10/(W4-U8) -> 0.09677419355 | W10: -0.3260548848 | Y10: 122 | Z10: =COUNTIF(L38:L69,Y10) -> 1 | AA10: =Z10/(AB4-Z8) -> 0.03125 | AB10: -0.15625 | AD10: 122 | AE10: =COUNTIF(L70:L100,AD10) -> 1 | AF10: =AE10/(AG4-AE8) -> 0.03225806452 | AG10: -0.1598127842 | AI10: 122 | AJ10: =COUNTIF(L101:L131,AI10) -> 1 | AK10: =AJ10/(AL4-AJ8) -> 0.03333333333 | AL10: -0.1635630199 | AN10: 122 | AO10: =COUNTIF(L132:L163,AN10) -> 5 | AP10: =AO10/(AQ4-AO8) -> 0.1612903226 | AQ10: -0.4245593896 | AS10: 122 | AT10: =COUNTIF(L164:L194,AS10) -> 4 | AU10: =AT10/(AV4-AT8) -> 0.1290322581 | AV10: -0.3811866207
A11: 22 | B11: 446 | C11: 13 | D11: 450 | E11: 23 | F11: 457 | K11: 0 | L11: 212 | N11: 211 | O11: 4 | P11: 0.02127659574 | Q11: -0.1181827415 | T11: 211 | U11: =COUNTIF(L7:L37,T11) -> 0 | V11: =U11/(W4-U8) -> 0 | W11: 0 | Y11: 211 | Z11: =COUNTIF(L38:L69,Y11) -> 1 | AA11: =Z11/(AB4-Z8) -> 0.03125 | AB11: -0.15625 | AD11: 211 | AE11: =COUNTIF(L70:L100,AD11) -> 1 | AF11: =AE11/(AG4-AE8) -> 0.03225806452 | AG11: -0.1598127842 | AI11: 211 | AJ11: =COUNTIF(L101:L131,AI11) -> 0 | AK11: =AJ11/(AL4-AJ8) -> 0 | AL11: 0 | AN11: 211 | AO11: =COUNTIF(L132:L163,AN11) -> 1 | AP11: =AO11/(AQ4-AO8) -> 0.03225806452 | AQ11: -0.1598127842 | AS11: 211 | AT11: =COUNTIF(L164:L194,AS11) -> 1 | AU11: =AT11/(AV4-AT8) -> 0.03225806452 | AV11: -0.1598127842
A12: 22 | B12: 553 | C12: 24 | D12: 557 | E12: 23 | F12: 564 | K12: 0 | L12: 222 | N12: 212 | O12: 76 | P12: 0.4042553191 | Q12: -0.5282247963 | T12: 212 | U12: =COUNTIF(L7:L37,T12) -> 12 | V12: =U12/(W4-U8) -> 0.3870967742 | W12: -0.5300259908 | Y12: 212 | Z12: =COUNTIF(L38:L69,Y12) -> 17 | AA12: =Z12/(AB4-Z8) -> 0.53125 | AB12: -0.4847853656 | AD12: 212 | AE12: =COUNTIF(L70:L100,AD12) -> 9 | AF12: =AE12/(AG4-AE8) -> 0.2903225806 | AG12: -0.518014251 | AI12: 212 | AJ12: =COUNTIF(L101:L131,AI12) -> 12 | AK12: =AJ12/(AL4-AJ8) -> 0.4 | AL12: -0.528771238 | AN12: 212 | AO12: =COUNTIF(L132:L163,AN12) -> 13 | AP12: =AO12/(AQ4-AO8) -> 0.4193548387 | AQ12: -0.5257688935 | AS12: 212 | AT12: =COUNTIF(L164:L194,AS12) -> 13 | AU12: =AT12/(AV4-AT8) -> 0.4193548387 | AV12: -0.5257688935
A13: 22 | B13: 659 | C13: 24 | D13: 663 | E13: 14 | F13: 668 | K13: 0 | L13: 221 | N13: 221 | O13: 33 | P13: 0.1755319149 | Q13: -0.4406192881 | T13: 221 | U13: =COUNTIF(L7:L37,T13) -> 10 | V13: =U13/(W4-U8) -> 0.3225806452 | W13: -0.526538134 | Y13: 221 | Z13: =COUNTIF(L38:L69,Y13) -> 3 | AA13: =Z13/(AB4-Z8) -> 0.09375 | AB13: -0.3201597656 | AD13: 221 | AE13: =COUNTIF(L70:L100,AD13) -> 7 | AF13: =AE13/(AG4-AE8) -> 0.2258064516 | AG13: -0.4847706361 | AI13: 221 | AJ13: =COUNTIF(L101:L131,AI13) -> 4 | AK13: =AJ13/(AL4-AJ8) -> 0.1333333333 | AL13: -0.3875854127 | AN13: 221 | AO13: =COUNTIF(L132:L163,AN13) -> 5 | AP13: =AO13/(AQ4-AO8) -> 0.1612903226 | AQ13: -0.4245593896 | AS13: 221 | AT13: =COUNTIF(L164:L194,AS13) -> 4 | AU13: =AT13/(AV4-AT8) -> 0.1290322581 | AV13: -0.3811866207
A14: 11 | B14: 763 | C14: 22 | D14: 767 | E14: 23 | F14: 774 | K14: 0 | L14: 122 | N14: 222 | O14: 37 | P14: 0.1968085106 | Q14: -0.4615426223 | T14: 222 | U14: =COUNTIF(L7:L37,T14) -> 5 | V14: =U14/(W4-U8) -> 0.1612903226 | W14: -0.4245593896 | Y14: 222 | Z14: =COUNTIF(L38:L69,Y14) -> 10 | AA14: =Z14/(AB4-Z8) -> 0.3125 | AB14: -0.5243974703 | AD14: 222 | AE14: =COUNTIF(L70:L100,AD14) -> 11 | AF14: =AE14/(AG4-AE8) -> 0.3548387097 | AG14: -0.5304003745 | AI14: 222 | AJ14: =COUNTIF(L101:L131,AI14) -> 2 | AK14: =AJ14/(AL4-AJ8) -> 0.06666666667 | AL14: -0.260459373 | AN14: 222 | AO14: =COUNTIF(L132:L163,AN14) -> 4 | AP14: =AO14/(AQ4-AO8) -> 0.1290322581 | AQ14: -0.3811866207 | AS14: 222 | AT14: =COUNTIF(L164:L194,AS14) -> 5 | AU14: =AT14/(AV4-AT8) -> 0.1612903226 | AV14: -0.4245593896
A15: 22 | B15: 872 | C15: 24 | D15: 876 | E15: 14 | F15: 878 | K15: 0 | L15: 221 | P15: =SUM(P7:P14) -> 1 | Q15: =-SUM(Q7:Q14) -> 2.374090665 | V15: =SUM(V7:V14) -> 1 | W15: =-SUM(W7:W14) -> 1.966991183 | AA15: =SUM(AA7:AA14) -> 1 | AB15: =-SUM(AB7:AB14) -> 1.641842601 | AF15: =SUM(AF7:AF14) -> 1 | AG15: =-SUM(AG7:AG14) -> 2.107920269 | AK15: =SUM(AK7:AK14) -> 1 | AL15: =-SUM(AL7:AL14) -> 2.217856114 | AP15: =SUM(AP7:AP14) -> 1 | AQ15: =-SUM(AQ7:AQ14) -> 2.330809301 | AU15: =SUM(AU7:AU14) -> 1 | AV15: =-SUM(AV7:AV14) -> 2.382733187
A16: 22 | B16: 974 | C16: 13 | D16: 978 | E16: 23 | F16: 982 | K16: 0 | L16: 212 | P16: U= | Q16: =Q15/(LOG(Q4)/LOG(2)) -> 0.3142580902 | V16: U1= | W16: =W15/(LOG(W4)/LOG(2)) -> 0.3970353737 | AA16: U2= | AB16: =AB15/(LOG(AB4)/LOG(2)) -> 0.3283685203 | AF16: U3= | AG16: =AG15/(LOG(AG4)/LOG(2)) -> 0.425481781 | AK16: U4= | AL16: =AL15/(LOG(AL4)/LOG(2)) -> 0.4476722307 | AP16: U5= | AQ16: =AQ15/(LOG(AQ4)/LOG(2)) -> 0.4661618602 | AU16: U6= | AV16: =AV15/(LOG(AV4)/LOG(2)) -> 0.4809525175
A17: 22 | B17: 1081 | C17: 13 | D17: 1089 | E17: 23 | F17: 1091 | K17: 0 | L17: 212
A18: 22 | B18: 1184 | C18: 24 | D18: 1185 | E18: 14 | F18: 1192 | K18: 0 | L18: 221
A19: 11 | B19: 1285 | C19: 22 | D19: 1288 | E19: 14 | F19: 1294 | K19: 0 | L19: 121 | N19: Total Target Seq
A20: 22 | B20: 1390 | C20: 13 | D20: 1399 | E20: 23 | F20: 1407 | K20: 0 | L20: 212 | N20: =COUNTIF(L7:L194,G3) -> 2 | P20: 31 | Q20: 32 | R20: 31 | S20: 31 | T20: 32 | U20: 31
A21: 22 | B21: 1505 | C21: 13 | D21: 1511 | E21: 23 | F21: 1516 | K21: 0 | L21: 212 | P21: % of reinforcement given in 6 equal intervals based on number of trials
A22: 22 | B22: 1614 | C22: 24 | D22: 1616 | E22: 14 | F22: 1618 | K22: 0 | L22: 221 | P22: %_1 | Q22: %_2 | R22: %_3 | S22: %_4 | T22: %_5 | U22: %_6
A23: 22 | B23: 1715 | C23: 24 | D23: 1719 | E23: 14 | F23: 1723 | K23: 0 | L23: 221 | O23: target sequence | P23: =$G$3 -> 112 | Q23: 112 | R23: 112 | S23: 112 | T23: 112 | U23: 112
A24: 22 | B24: 1818 | C24: 24 | D24: 1825 | E24: 23 | F24: 1834 | K24: 0 | L24: 222 | O24: total reinforcement | P24: =U8 -> 0 | Q24: =Z8 -> 0 | R24: =AE8 -> 0 | S24: =AJ8 -> 1 | T24: =AO8 -> 1 | U24: =AT8 -> 0
A25: 22 | B25: 1932 | C25: 24 | D25: 1934 | E25: 14 | F25: 1936 | K25: 0 | L25: 221 | O25: % target
A26: 11 | B26: 2029 | C26: 22 | D26: 2036 | E26: 23 | F26: 2041 | K26: 0 | L26: 122 | O26: CCRF
A27: 22 | B27: 2141 | C27: 24 | D27: 2150 | E27: 23 | F27: 2158 | K27: 0 | L27: 222 | O27: % CCRf
A28: 22 | B28: 2256 | C28: 13 | D28: 2262 | E28: 23 | F28: 2265 | K28: 0 | L28: 212 | O28: average response rate | P28: =F37/P20 -> 106.8709677 | Q28: =(F69-F37)/Q20 -> 109.875 | R28: =(F100-F69)/R20 -> 156.2903226 | S28: =(F131-F100)/S20 -> 140.4516129 | T28: =(F163-F131)/T20 -> 130.9375 | U28: =(F194-F163)/U20 -> 120.7741935
A29: 22 | B29: 2364 | C29: 24 | D29: 2371 | E29: 14 | F29: 2374 | K29: 0 | L29: 221
A30: 22 | B30: 2480 | C30: 13 | D30: 2483 | E30: 23 | F30: 2486 | K30: 0 | L30: 212
A31: 22 | B31: 2624 | C31: 24 | D31: 2630 | E31: 14 | F31: 2652 | K31: 0 | L31: 221
A32: 22 | B32: 2748 | C32: 13 | D32: 2754 | E32: 23 | F32: 2759 | K32: 0 | L32: 212
A33: 22 | B33: 2860 | C33: 24 | D33: 2866 | E33: 14 | F33: 2874 | K33: 0 | L33: 221
A34: 22 | B34: 2972 | C34: 13 | D34: 2976 | E34: 23 | F34: 2978 | K34: 0 | L34: 212
A35: 22 | B35: 3075 | C35: 24 | D35: 3078 | E35: 23 | F35: 3084 | K35: 0 | L35: 222
A36: 11 | B36: 3183 | C36: 22 | D36: 3196 | E36: 23 | F36: 3205 | K36: 0 | L36: 122
A37: 22 | B37: 3304 | C37: 13 | D37: 3308 | E37: 23 | F37: 3313 | K37: 0 | L37: 212
A38: 22 | B38: 3408 | C38: 13 | D38: 3416 | E38: 23 | F38: 3419 | K38: 0 | L38: 212
A39: 22 | B39: 3519 | C39: 13 | D39: 3524 | E39: 23 | F39: 3528 | K39: 0 | L39: 212
A40: 22 | B40: 3624 | C40: 13 | D40: 3628 | E40: 23 | F40: 3632 | K40: 0 | L40: 212
A41: 22 | B41: 3736 | C41: 13 | D41: 3739 | E41: 23 | F41: 3744 | K41: 0 | L41: 212
A42: 11 | B42: 3850 | C42: 22 | D42: 3855 | E42: 23 | F42: 3861 | K42: 0 | L42: 122
A43: 22 | B43: 3959 | C43: 13 | D43: 3964 | E43: 23 | F43: 3966 | K43: 0 | L43: 212
A44: 22 | B44: 4067 | C44: 13 | D44: 4069 | E44: 23 | F44: 4084 | K44: 0 | L44: 212
A45: 22 | B45: 4214 | C45: 24 | D45: 4221 | E45: 23 | F45: 4228 | K45: 0 | L45: 222
A46: 22 | B46: 4322 | C46: 13 | D46: 4330 | E46: 23 | F46: 4331 | K46: 0 | L46: 212
A47: 22 | B47: 4432 | C47: 13 | D47: 4438 | E47: 23 | F47: 4444 | K47: 0 | L47: 212
A48: 22 | B48: 4537 | C48: 24 | D48: 4540 | E48: 23 | F48: 4546 | K48: 0 | L48: 222
A49: 22 | B49: 4644 | C49: 24 | D49: 4652 | E49: 23 | F49: 4666 | K49: 0 | L49: 222
A50: 22 | B50: 4758 | C50: 13 | D50: 4760 | E50: 23 | F50: 4765 | K50: 0 | L50: 212
A51: 22 | B51: 4864 | C51: 24 | D51: 4869 | E51: 14 | F51: 4871 | K51: 0 | L51: 221
A52: 22 | B52: 4968 | C52: 13 | D52: 4973 | E52: 23 | F52: 4982 | K52: 0 | L52: 212
A53: 22 | B53: 5078 | C53: 24 | D53: 5081 | E53: 23 | F53: 5087 | K53: 0 | L53: 222
A54: 22 | B54: 5184 | C54: 13 | D54: 5187 | E54: 23 | F54: 5194 | K54: 0 | L54: 212
A55: 22 | B55: 5291 | C55: 24 | D55: 5294 | E55: 23 | F55: 5299 | K55: 0 | L55: 222
A56: 22 | B56: 5396 | C56: 24 | D56: 5400 | E56: 23 | F56: 5403 | K56: 0 | L56: 222
A57: 22 | B57: 5497 | C57: 24 | D57: 5507 | E57: 23 | F57: 5513 | K57: 0 | L57: 222
A58: 22 | B58: 5605 | C58: 24 | D58: 5607 | E58: 23 | F58: 5614 | K58: 0 | L58: 222
A59: 22 | B59: 5713 | C59: 24 | D59: 5718 | E59: 14 | F59: 5726 | K59: 0 | L59: 221
A60: 22 | B60: 5822 | C60: 13 | D60: 5826 | E60: 23 | F60: 5830 | K60: 0 | L60: 212
A61: 22 | B61: 5930 | C61: 13 | D61: 5933 | E61: 23 | F61: 5944 | K61: 0 | L61: 212
A62: 22 | B62: 6043 | C62: 13 | D62: 6046 | E62: 23 | F62: 6051 | K62: 0 | L62: 212
A63: 22 | B63: 6146 | C63: 13 | D63: 6154 | E63: 14 | F63: 6156 | K63: 0 | L63: 211
A64: 22 | B64: 6253 | C64: 24 | D64: 6258 | E64: 23 | F64: 6262 | K64: 0 | L64: 222
A65: 22 | B65: 6373 | C65: 13 | D65: 6377 | E65: 23 | F65: 6383 | K65: 0 | L65: 212
A66: 22 | B66: 6484 | C66: 24 | D66: 6497 | E66: 23 | F66: 6504 | K66: 0 | L66: 222
A67: 22 | B67: 6603 | C67: 24 | D67: 6605 | E67: 14 | F67: 6609 | K67: 0 | L67: 221
A68: 22 | B68: 6705 | C68: 13 | D68: 6716 | E68: 23 | F68: 6722 | K68: 0 | L68: 212
A69: 22 | B69: 6819 | C69: 13 | D69: 6823 | E69: 23 | F69: 6829 | K69: 0 | L69: 212
A70: 22 | B70: 6930 | C70: 13 | D70: 6933 | E70: 23 | F70: 6938 | K70: 0 | L70: 212
A71: 22 | B71: 7034 | C71: 13 | D71: 7038 | E71: 23 | F71: 7048 | K71: 0 | L71: 212
A72: 22 | B72: 7145 | C72: 13 | D72: 7147 | E72: 14 | F72: 7157 | K72: 0 | L72: 211
A73: 22 | B73: 7255 | C73: 13 | D73: 7257 | E73: 23 | F73: 7261 | K73: 0 | L73: 212
A74: 11 | B74: 7356 | C74: 22 | D74: 7361 | E74: 14 | F74: 7367 | K74: 0 | L74: 121
A75: 22 | B75: 7468 | C75: 24 | D75: 7476 | E75: 23 | F75: 7482 | K75: 0 | L75: 222
A76: 22 | B76: 7584 | C76: 24 | D76: 7592 | E76: 14 | F76: 7594 | K76: 0 | L76: 221
A77: 22 | B77: 7692 | C77: 24 | D77: 7694 | E77: 14 | F77: 7697 | K77: 0 | L77: 221
A78: 22 | B78: 7798 | C78: 24 | D78: 7801 | E78: 14 | F78: 7804 | K78: 0 | L78: 221
A79: 22 | B79: 7901 | C79: 24 | D79: 7917 | E79: 14 | F79: 7919 | K79: 0 | L79: 221
A80: 22 | B80: 8011 | C80: 13 | D80: 8017 | E80: 23 | F80: 8021 | K80: 0 | L80: 212
A81: 11 | B81: 8114 | C81: 22 | D81: 8126 | E81: 23 | F81: 8132 | K81: 0 | L81: 122
A82: 11 | B82: 8225 | C82: 22 | D82: 8233 | E82: 14 | F82: 8237 | K82: 0 | L82: 121
A83: 22 | B83: 8333 | C83: 24 | D83: 8338 | E83: 23 | F83: 8341 | K83: 0 | L83: 222
A84: 22 | B84: 8437 | C84: 24 | D84: 8440 | E84: 23 | F84: 8450 | K84: 0 | L84: 222
A85: 22 | B85: 8548 | C85: 24 | D85: 8550 | E85: 23 | F85: 8556 | K85: 0 | L85: 222
A86: 22 | B86: 8673 | C86: 24 | D86: 8679 | E86: 23 | F86: 8686 | K86: 0 | L86: 222
A87: 22 | B87: 8782 | C87: 24 | D87: 8785 | E87: 14 | F87: 8787 | K87: 0 | L87: 221
A88: 22 | B88: 8885 | C88: 13 | D88: 8888 | E88: 23 | F88: 8890 | K88: 0 | L88: 212
A89: 22 | B89: 8989 | C89: 24 | D89: 8993 | E89: 23 | F89: 9037 | K89: 0 | L89: 222
A90: 22 | B90: 10531 | C90: 24 | D90: 10546 | E90: 23 | F90: 10552 | K90: 0 | L90: 222
A91: 22 | B91: 10650 | C91: 24 | D91: 10661 | E91: 23 | F91: 10675 | K91: 0 | L91: 222
A92: 22 | B92: 10772 | C92: 24 | D92: 10778 | E92: 14 | F92: 10780 | K92: 0 | L92: 221
A93: 22 | B93: 10886 | C93: 24 | D93: 10899 | E93: 23 | F93: 10905 | K93: 0 | L93: 222
A94: 22 | B94: 11005 | C94: 13 | D94: 11008 | E94: 23 | F94: 11014 | K94: 0 | L94: 212
A95: 22 | B95: 11113 | C95: 13 | D95: 11117 | E95: 23 | F95: 11119 | K95: 0 | L95: 212
A96: 22 | B96: 11222 | C96: 24 | D96: 11226 | E96: 14 | F96: 11228 | K96: 0 | L96: 221
A97: 22 | B97: 11327 | C97: 24 | D97: 11333 | E97: 23 | F97: 11339 | K97: 0 | L97: 222
A98: 22 | B98: 11440 | C98: 24 | D98: 11447 | E98: 23 | F98: 11453 | K98: 0 | L98: 222
A99: 22 | B99: 11557 | C99: 13 | D99: 11561 | E99: 23 | F99: 11567 | K99: 0 | L99: 212
A100: 22 | B100: 11665 | C100: 13 | D100: 11667 | E100: 23 | F100: 11674 | K100: 0 | L100: 212
A101: 22 | B101: 11773 | C101: 24 | D101: 11775 | E101: 23 | F101: 11783 | K101: 0 | L101: 222
A102: 22 | B102: 11880 | C102: 13 | D102: 11886 | E102: 23 | F102: 11890 | K102: 0 | L102: 212
A103: 22 | B103: 11986 | C103: 13 | D103: 11993 | E103: 23 | F103: 11999 | K103: 0 | L103: 212
A104: 22 | B104: 12098 | C104: 24 | D104: 12104 | E104: 23 | F104: 12112 | K104: 0 | L104: 222
A105: 22 | B105: 12213 | C105: 13 | D105: 12217 | E105: 23 | F105: 12228 | K105: 0 | L105: 212
A106: 22 | B106: 12327 | C106: 13 | D106: 12336 | E106: 23 | F106: 12350 | K106: 0 | L106: 212
A107: 22 | B107: 12447 | C107: 13 | D107: 12451 | E107: 23 | F107: 12455 | K107: 0 | L107: 212
A108: 22 | B108: 12551 | C108: 24 | D108: 12558 | E108: 14 | F108: 12563 | K108: 0 | L108: 221
A109: 11 | B109: 12699 | C109: 22 | D109: 12706 | E109: 23 | F109: 12712 | K109: 0 | L109: 122
A110: 22 | B110: 12804 | C110: 24 | D110: 12811 | E110: 14 | F110: 12817 | K110: 0 | L110: 221
A111: 11 | B111: 13000 | C111: 11 | D111: 13004 | E111: 12 | F111: 13014 | K111: 0 | L111: 111
A112: 11 | B112: 13451 | C112: 11 | D112: 13466 | E112: 12 | F112: 13471 | K112: 0 | L112: 111
A113: 11 | B113: 13572 | C113: 11 | D113: 13577 | E113: 12 | F113: 13583 | K113: 0 | L113: 111
A114: 22 | B114: 13803 | C114: 13 | D114: 13813 | E114: 23 | F114: 13822 | K114: 0 | L114: 212
A115: 11 | B115: 13913 | C115: 11 | D115: 13917 | E115: 12 | F115: 13924 | K115: 0 | L115: 111
A116: 11 | B116: 14029 | C116: 11 | D116: 14033 | E116: 12 | F116: 14035 | K116: 0 | L116: 111
A117: 22 | B117: 14137 | C117: 24 | D117: 14142 | E117: 14 | F117: 14143 | K117: 0 | L117: 221
A118: 22 | B118: 14435 | C118: 13 | D118: 14442 | E118: 23 | F118: 14449 | K118: 0 | L118: 212
A119: 22 | B119: 14546 | C119: 13 | D119: 14551 | E119: 23 | F119: 14554 | K119: 0 | L119: 212
A120: 11 | B120: 14651 | C120: 11 | D120: 14659 | E120: 21 | F120: 14671 | K120: 0 | L120: 112
A121: 22 | B121: 14851 | C121: 13 | D121: 14860 | E121: 23 | F121: 14875 | K121: 0 | L121: 212
A122: 22 | B122: 14973 | C122: 24 | D122: 14979 | E122: 14 | F122: 14984 | K122: 0 | L122: 221
A123: 22 | B123: 15084 | C123: 13 | D123: 15086 | E123: 23 | F123: 15089 | K123: 0 | L123: 212
A124: 22 | B124: 15189 | C124: 13 | D124: 15194 | E124: 23 | F124: 15199 | K124: 0 | L124: 212
A125: 11 | B125: 15293 | C125: 22 | D125: 15300 | E125: 14 | F125: 15301 | K125: 0 | L125: 121
A126: 11 | B126: 15395 | C126: 11 | D126: 15413 | E126: 12 | F126: 15422 | K126: 0 | L126: 111
A127: 11 | B127: 15515 | C127: 22 | D127: 15527 | E127: 14 | F127: 15530 | K127: 0 | L127: 121
A128: 11 | B128: 15642 | C128: 22 | D128: 15649 | E128: 14 | F128: 15652 | K128: 0 | L128: 121
A129: 11 | B129: 15751 | C129: 22 | D129: 15774 | E129: 14 | F129: 15776 | K129: 0 | L129: 121
A130: 22 | B130: 15879 | C130: 13 | D130: 15882 | E130: 23 | F130: 15887 | K130: 0 | L130: 212
A131: 11 | B131: 16005 | C131: 11 | D131: 16022 | E131: 12 | F131: 16028 | K131: 0 | L131: 111
A132: 22 | B132: 16152 | C132: 13 | D132: 16156 | E132: 23 | F132: 16158 | K132: 0 | L132: 212
A133: 22 | B133: 16253 | C133: 13 | D133: 16259 | E133: 14 | F133: 16262 | K133: 0 | L133: 211
A134: 11 | B134: 16385 | C134: 11 | D134: 16393 | E134: 21 | F134: 16411 | K134: 0 | L134: 112
A135: 22 | B135: 16688 | C135: 13 | D135: 16693 | E135: 23 | F135: 16704 | K135: 0 | L135: 212
A136: 22 | B136: 16797 | C136: 24 | D136: 16805 | E136: 14 | F136: 16809 | K136: 0 | L136: 221
A137: 22 | B137: 16906 | C137: 13 | D137: 16911 | E137: 23 | F137: 16913 | K137: 0 | L137: 212
A138: 22 | B138: 17013 | C138: 13 | D138: 17017 | E138: 23 | F138: 17023 | K138: 0 | L138: 212
A139: 22 | B139: 17127 | C139: 13 | D139: 17133 | E139: 23 | F139: 17141 | K139: 0 | L139: 212
A140: 22 | B140: 17240 | C140: 13 | D140: 17244 | E140: 23 | F140: 17248 | K140: 0 | L140: 212
A141: 22 | B141: 17351 | C141: 24 | D141: 17355 | E141: 23 | F141: 17360 | K141: 0 | L141: 222
A142: 11 | B142: 17454 | C142: 22 | D142: 17460 | E142: 14 | F142: 17465 | K142: 0 | L142: 121
A143: 22 | B143: 17589 | C143: 24 | D143: 17599 | E143: 23 | F143: 17606 | K143: 0 | L143: 222
A144: 22 | B144: 17892 | C144: 24 | D144: 17896 | E144: 14 | F144: 17899 | K144: 0 | L144: 221
A145: 11 | B145: 18009 | C145: 22 | D145: 18015 | E145: 14 | F145: 18025 | K145: 0 | L145: 121
A146: 22 | B146: 18214 | C146: 24 | D146: 18226 | E146: 14 | F146: 18234 | K146: 0 | L146: 221
A147: 22 | B147: 18330 | C147: 13 | D147: 18343 | E147: 23 | F147: 18345 | K147: 0 | L147: 212
A148: 22 | B148: 18461 | C148: 24 | D148: 18473 | E148: 23 | F148: 18480 | K148: 0 | L148: 222
A149: 11 | B149: 18587 | C149: 22 | D149: 18590 | E149: 23 | F149: 18594 | K149: 0 | L149: 122
A150: 22 | B150: 18696 | C150: 13 | D150: 18698 | E150: 23 | F150: 18705 | K150: 0 | L150: 212
A151: 11 | B151: 18828 | C151: 22 | D151: 18835 | E151: 23 | F151: 18840 | K151: 0 | L151: 122
A152: 22 | B152: 18940 | C152: 24 | D152: 18946 | E152: 14 | F152: 18949 | K152: 0 | L152: 221
A153: 22 | B153: 19051 | C153: 13 | D153: 19057 | E153: 23 | F153: 19062 | K153: 0 | L153: 212
A154: 11 | B154: 19165 | C154: 22 | D154: 19168 | E154: 23 | F154: 19174 | K154: 0 | L154: 122
A155: 22 | B155: 19292 | C155: 13 | D155: 19299 | E155: 23 | F155: 19303 | K155: 0 | L155: 212
A156: 22 | B156: 19395 | C156: 24 | D156: 19402 | E156: 23 | F156: 19414 | K156: 0 | L156: 222
A157: 22 | B157: 19511 | C157: 13 | D157: 19518 | E157: 23 | F157: 19524 | K157: 0 | L157: 212
A158: 22 | B158: 19642 | C158: 13 | D158: 19647 | E158: 23 | F158: 19654 | K158: 0 | L158: 212
A159: 11 | B159: 19753 | C159: 22 | D159: 19755 | E159: 23 | F159: 19760 | K159: 0 | L159: 122
A160: 22 | B160: 19858 | C160: 24 | D160: 19860 | E160: 14 | F160: 19865 | K160: 0 | L160: 221
A161: 11 | B161: 19964 | C161: 22 | D161: 19981 | E161: 23 | F161: 19984 | K161: 0 | L161: 122
A162: 22 | B162: 20084 | C162: 13 | D162: 20090 | E162: 23 | F162: 20095 | K162: 0 | L162: 212
A163: 11 | B163: 20206 | C163: 11 | D163: 20211 | E163: 12 | F163: 20218 | K163: 0 | L163: 111
A164: 22 | B164: 20380 | C164: 24 | D164: 20393 | E164: 23 | F164: 20400 | K164: 0 | L164: 222
A165: 22 | B165: 20557 | C165: 24 | D165: 20562 | E165: 14 | F165: 20568 | K165: 0 | L165: 221
A166: 22 | B166: 20669 | C166: 13 | D166: 20673 | E166: 23 | F166: 20682 | K166: 0 | L166: 212
A167: 11 | B167: 20775 | C167: 11 | D167: 20790 | E167: 12 | F167: 20801 | K167: 0 | L167: 111
A168: 11 | B168: 20901 | C168: 22 | D168: 20922 | E168: 14 | F168: 20924 | K168: 0 | L168: 121
A169: 22 | B169: 21020 | C169: 13 | D169: 21026 | E169: 23 | F169: 21033 | K169: 0 | L169: 212
A170: 11 | B170: 21126 | C170: 22 | D170: 21132 | E170: 23 | F170: 21138 | K170: 0 | L170: 122
A171: 22 | B171: 21234 | C171: 24 | D171: 21239 | E171: 14 | F171: 21240 | K171: 0 | L171: 221
A172: 22 | B172: 21363 | C172: 13 | D172: 21377 | E172: 23 | F172: 21387 | K172: 0 | L172: 212
A173: 22 | B173: 21484 | C173: 24 | D173: 21493 | E173: 23 | F173: 21501 | K173: 0 | L173: 222
A174: 22 | B174: 21612 | C174: 24 | D174: 21616 | E174: 14 | F174: 21619 | K174: 0 | L174: 221
A175: 22 | B175: 21716 | C175: 13 | D175: 21723 | E175: 23 | F175: 21726 | K175: 0 | L175: 212
A176: 22 | B176: 21825 | C176: 24 | D176: 21833 | E176: 14 | F176: 21834 | K176: 0 | L176: 221
A177: 22 | B177: 21944 | C177: 24 | D177: 21950 | E177: 23 | F177: 21957 | K177: 0 | L177: 222
A178: 22 | B178: 22069 | C178: 13 | D178: 22073 | E178: 23 | F178: 22079 | K178: 0 | L178: 212
A179: 11 | B179: 22173 | C179: 22 | D179: 22176 | E179: 23 | F179: 22180 | K179: 0 | L179: 122
A180: 11 | B180: 22280 | C180: 22 | D180: 22291 | E180: 23 | F180: 22297 | K180: 0 | L180: 122
A181: 11 | B181: 22389 | C181: 22 | D181: 22399 | E181: 14 | F181: 22403 | K181: 0 | L181: 121
A182: 11 | B182: 22500 | C182: 11 | D182: 22522 | E182: 12 | F182: 22529 | K182: 0 | L182: 111
A183: 22 | B183: 22648 | C183: 13 | D183: 22656 | E183: 23 | F183: 22664 | K183: 0 | L183: 212
A184: 22 | B184: 22762 | C184: 13 | D184: 22767 | E184: 23 | F184: 22769 | K184: 0 | L184: 212
A185: 22 | B185: 22879 | C185: 24 | D185: 22887 | E185: 23 | F185: 22893 | K185: 0 | L185: 222
A186: 22 | B186: 23009 | C186: 13 | D186: 23011 | E186: 23 | F186: 23016 | K186: 0 | L186: 212
A187: 22 | B187: 23115 | C187: 13 | D187: 23122 | E187: 23 | F187: 23128 | K187: 0 | L187: 212
A188: 22 | B188: 23225 | C188: 13 | D188: 23227 | E188: 23 | F188: 23231 | K188: 0 | L188: 212
A189: 22 | B189: 23348 | C189: 13 | D189: 23351 | E189: 23 | F189: 23356 | K189: 0 | L189: 212
A190: 22 | B190: 23457 | C190: 13 | D190: 23463 | E190: 23 | F190: 23465 | K190: 0 | L190: 212
A191: 22 | B191: 23564 | C191: 13 | D191: 23570 | E191: 23 | F191: 23577 | K191: 0 | L191: 212
A192: 11 | B192: 23707 | C192: 22 | D192: 23733 | E192: 23 | F192: 23740 | K192: 0 | L192: 122
A193: 22 | B193: 23832 | C193: 24 | D193: 23852 | E193: 23 | F193: 23854 | K193: 0 | L193: 222
A194: 22 | B194: 23953 | C194: 13 | D194: 23959 | E194: 14 | F194: 23962 | L194: 211

Sheet !MC28A10.Gus
A1: Report for:!MC28A10.Gus
A2: Date: | B2: <date>
A3: Hen: | B3: <hen> | F3: Correct Sequence | G3: =Start!J2 -> 112 | P3: Total Sequences in Data | Q3: =4994-COUNTBLANK(L7:L5000) -> 203 | V3: Total Sequences in Block Data | W3: =COUNTA(L7:L40) -> 34 | AA3: Total Sequences in Block Data | AB3: =COUNTA(L41:L74) -> 34 | AF3: Total Sequences in Block Data | AG3: =COUNTA(L75:L107) -> 33 | AK3: Total Sequences in Block Data | AL3: =COUNTA(L108:L141) -> 34 | AP3: Total Sequences in Block Data | AQ3: =COUNTA(L142:L175) -> 34 | AU3: Total Sequences in Block Data | AV3: =COUNTA(L176:L209) -> 34
P4: Total Sequences in Summary | Q4: =SUM(O7:O14) -> 202 | V4: Total Sequences in Block Summary | W4: =SUM(U7:U14) -> 34 | AA4: Total Sequences in Block Summary | AB4: =SUM(Z7:Z14) -> 34 | AF4: Total Sequences in Block Summary | AG4: =SUM(AE7:AE14) -> 33 | AK4: Total Sequences in Block Summary | AL4: =SUM(AJ7:AJ14) -> 34 | AP4: Total Sequences in Block Summary | AQ4: =SUM(AO7:AO14) -> 34 | AU4: Total Sequences in Block Summary | AV4: =SUM(AT7:AT14) -> 33
T5: Block 1 | Y5: Block 2 | AD5: Block 3 | AI5: Block 4 | AN5: Block 5 | AS5: Block 6
A6: Sequence Component 1 | B6: Time 1 | C6: Sequence Component 2 | D6: Time 2 | E6: Sequence Component 3 | F6: Time 3 | G6: Sequence Component 4 | H6: Time 4 | I6: Sequence Component 5 | J6: Time 5 | K6: Correct? 0=No 1=Yes | L6: Sequence | N6: Frequency | P6: Relative Frequency | Q6: Variability | T6: Frequency | V6: Relative Frequency | W6: Variability | Y6: Frequency | AA6: Relative Frequency | AB6: Variability | AD6: Frequency | AF6: Relative Frequency | AG6: Variability | AI6: Frequency | AK6: Relative Frequency | AL6: Variability | AN6: Frequency | AP6: Relative Frequency | AQ6: Variability | AS6: Frequency | AU6: Relative Frequency | AV6: Variability
A7: 11 | B7: 8 | C7: 22 | D7: 43 | E7: 14 | F7: 64 | K7: 0 | L7: 121 | N7: 111 | O7: =COUNTIF($L$7:$L$500,N7) -> 21 | P7: =O7/$Q$4 -> 0.103960396 | Q7: =IF(P7=0,0,(P7*((LOG(P7))/LOG(2)))) -> -0.3395236399 | T7: =N7 -> 111 | U7: =COUNTIF(L7:L40,T7) -> 1 | V7: =U7/(W4-U8) -> 0.02941176471 | W7: =IF(V7=0,0,(V7*((LOG(V7))/LOG(2)))) -> -0.14963126 | Y7: =N7 -> 111 | Z7: =COUNTIF(L41:L74,Y7) -> 4 | AA7: =Z7/(AB4-Z8) -> 0.1176470588 | AB7: =IF(AA7=0,0,(AA7*((LOG(AA7))/LOG(2)))) -> -0.3632309225 | AD7: =N7 -> 111 | AE7: =COUNTIF(L75:L107,AD7) -> 3 | AF7: =AE7/(AG4-AE8) -> 0.09375 | AG7: =IF(AF7=0,0,(AF7*((LOG(AF7))/LOG(2)))) -> -0.3201597656 | AI7: =N7 -> 111 | AJ7: =COUNTIF(L108:L141,AI7) -> 7 | AK7: =AJ7/(AL4-AJ8) -> 0.2121212121 | AL7: =IF(AK7=0,0,(AK7*((LOG(AK7))/LOG(2)))) -> -0.4745234661 | AN7: =N7 -> 111 | AO7: =COUNTIF(L142:L175,AN7) -> 6 | AP7: =AO7/(AQ4-AO8) -> 0.1818181818 | AQ7: =IF(AP7=0,0,(AP7*((LOG(AP7))/LOG(2)))) -> -0.4471693852 | AS7: =N7 -> 111 | AT7: =COUNTIF(L176:L209,AS7) -> 0 | AU7: =AT7/(AV4-AT8) -> 0 | AV7: =IF(AU7=0,0,(AU7*((LOG(AU7))/LOG(2)))) -> 0
A8: 11 | B8: 174 | C8: 11 | D8: 179 | E8: 12 | F8: 185 | K8: 0 | L8: 111 | N8: 112 | O8: 9 | P8: 0.04455445545 | Q8: -0.1999731601 | T8: 112 | U8: =COUNTIF(L7:L40,T8) -> 0 | Y8: 112 | Z8: =COUNTIF(L41:L74,Y8) -> 0 | AD8: 112 | AE8: =COUNTIF(L75:L107,AD8) -> 1 | AI8: 112 | AJ8: =COUNTIF(L108:L141,AI8) -> 1 | AN8: 112 | AO8: =COUNTIF(L142:L175,AN8) -> 1 | AS8: 112 | AT8: =COUNTIF(L176:L209,AS8) -> 6
A9: 22 | B9: 277 | C9: 24 | D9: 283 | E9: 14 | F9: 289 | K9: 0 | L9: 221 | N9: 121 | O9: 11 | P9: 0.05445544554 | Q9: -0.2286464282 | T9: 121 | U9: =COUNTIF(L7:L40,T9) -> 2 | V9: =U9/(W4-U8) -> 0.05882352941 | W9: =IF(V9=0,0,(V9*((LOG(V9))/LOG(2)))) -> -0.2404389907 | Y9: 121 | Z9: =COUNTIF(L41:L74,Y9) -> 4 | AA9: =Z9/(AB4-Z8) -> 0.1176470588 | AB9: =IF(AA9=0,0,(AA9*((LOG(AA9))/LOG(2)))) -> -0.3632309225 | AD9: 121 | AE9: =COUNTIF(L75:L107,AD9) -> 2 | AF9: =AE9/(AG4-AE8) -> 0.0625 | AG9: =IF(AF9=0,0,(AF9*((LOG(AF9))/LOG(2)))) -> -0.25 | AI9: 121 | AJ9: =COUNTIF(L108:L141,AI9) -> 1 | AK9: =AJ9/(AL4-AJ8) -> 0.0303030303 | AL9: =IF(AK9=0,0,(AK9*((LOG(AK9))/LOG(2)))) -> -0.1528604279 | AN9: 121 | AO9: =COUNTIF(L142:L175,AN9) -> 0 | AP9: =AO9/(AQ4-AO8) -> 0 | AQ9: =IF(AP9=0,0,(AP9*((LOG(AP9))/LOG(2)))) -> 0 | AS9: 121 | AT9: =COUNTIF(L176:L209,AS9) -> 2 | AU9: =AT9/(AV4-AT8) -> 0.07407407407 | AV9: =IF(AU9=0,0,(AU9*((LOG(AU9))/LOG(2)))) -> -0.278139815
A10: 11 | B10: 382 | C10: 22 | D10: 388 | E10: 23 | F10: 396 | K10: 0 | L10: 122 | N10: 122 | O10: 30 | P10: 0.1485148515 | Q10: -0.4086120129 | T10: 122 | U10: =COUNTIF(L7:L40,T10) -> 6 | V10: =U10/(W4-U8) -> 0.1764705882 | W10: -0.4416177072 | Y10: 122 | Z10: =COUNTIF(L41:L74,Y10) -> 3 | AA10: =Z10/(AB4-Z8) -> 0.08823529412 | AB10: -0.3090441477 | AD10: 122 | AE10: =COUNTIF(L75:L107,AD10) -> 6 | AF10: =AE10/(AG4-AE8) -> 0.1875 | AG10: -0.4528195311 | AI10: 122 | AJ10: =COUNTIF(L108:L141,AI10) -> 4 | AK10: =AJ10/(AL4-AJ8) -> 0.1212121212 | AL10: -0.369017469 | AN10: 122 | AO10: =COUNTIF(L142:L175,AN10) -> 5 | AP10: =AO10/(AQ4-AO8) -> 0.1515151515 | AQ10: -0.4124948522 | AS10: 122 | AT10: =COUNTIF(L176:L209,AS10) -> 6 | AU10: =AT10/(AV4-AT8) -> 0.2222222222 | AV10: -0.4822055559
A11: 11 | B11: 493 | C11: 22 | D11: 502 | E11: 23 | F11: 508 | K11: 0 | L11: 122 | N11: 211 | O11: 2 | P11: 0.009900990099 | Q11: -0.06592288597 | T11: 211 | U11: =COUNTIF(L7:L40,T11) -> 0 | V11: =U11/(W4-U8) -> 0 | W11: 0 | Y11: 211 | Z11: =COUNTIF(L41:L74,Y11) -> 1 | AA11: =Z11/(AB4-Z8) -> 0.02941176471 | AB11: -0.14963126 | AD11: 211 | AE11: =COUNTIF(L75:L107,AD11) -> 1 | AF11: =AE11/(AG4-AE8) -> 0.03125 | AG11: -0.15625 | AI11: 211 | AJ11: =COUNTIF(L108:L141,AI11) -> 0 | AK11: =AJ11/(AL4-AJ8) -> 0 | AL11: 0 | AN11: 211 | AO11: =COUNTIF(L142:L175,AN11) -> 0 | AP11: =AO11/(AQ4-AO8) -> 0 | AQ11: 0 | AS11: 211 | AT11: =COUNTIF(L176:L209,AS11) -> 0 | AU11: =AT11/(AV4-AT8) -> 0 | AV11: 0
A12: 11 | B12: 605 | C12: 22 | D12: 612 | E12: 23 | F12: 617 | K12: 0 | L12: 122 | N12: 212 | O12: 61 | P12: 0.301980198 | Q12: -0.5216629844 | T12: 212 | U12: =COUNTIF(L7:L40,T12) -> 8 | V12: =U12/(W4-U8) -> 0.2352941176 | W12: -0.4911677274 | Y12: 212 | Z12: =COUNTIF(L41:L74,Y12) -> 8 | AA12: =Z12/(AB4-Z8) -> 0.2352941176 | AB12: -0.4911677274 | AD12: 212 | AE12: =COUNTIF(L75:L107,AD12) -> 12 | AF12: =AE12/(AG4-AE8) -> 0.375 | AG12: -0.5306390622 | AI12: 212 | AJ12: =COUNTIF(L108:L141,AI12) -> 9 | AK12: =AJ12/(AL4-AJ8) -> 0.2727272727 | AL12: -0.5112188503 | AN12: 212 | AO12: =COUNTIF(L142:L175,AN12) -> 10 | AP12: =AO12/(AQ4-AO8) -> 0.303030303 | AQ12: -0.5219594014 | AS12: 212 | AT12: =COUNTIF(L176:L209,AS12) -> 14 | AU12: =AT12/(AV4-AT8) -> 0.5185185185 | AV12: -0.4913131897
A13: 22 | B13: 716 | C13: 13 | D13: 719 | E13: 23 | F13: 724 | K13: 0 | L13: 212 | N13: 221 | O13: 34 | P13: 0.1683168317 | Q13: -0.4327002664 | T13: 221 | U13: =COUNTIF(L7:L40,T13) -> 8 | V13: =U13/(W4-U8) -> 0.2352941176 | W13: -0.4911677274 | Y13: 221 | Z13: =COUNTIF(L41:L74,Y13) -> 6 | AA13: =Z13/(AB4-Z8) -> 0.1764705882 | AB13: -0.4416177072 | AD13: 221 | AE13: =COUNTIF(L75:L107,AD13) -> 4 | AF13: =AE13/(AG4-AE8) -> 0.125 | AG13: -0.375 | AI13: 221 | AJ13: =COUNTIF(L108:L141,AI13) -> 6 | AK13: =AJ13/(AL4-AJ8) -> 0.1818181818 | AL13: -0.4471693852 | AN13: 221 | AO13: =COUNTIF(L142:L175,AN13) -> 8 | AP13: =AO13/(AQ4-AO8) -> 0.2424242424 | AQ13: -0.4956106956 | AS13: 221 | AT13: =COUNTIF(L176:L209,AS13) -> 2 | AU13: =AT13/(AV4-AT8) -> 0.07407407407 | AV13: -0.278139815
A14: 11 | B14: 819 | C14: 22 | D14: 824 | E14: 23 | F14: 834 | K14: 0 | L14: 122 | N14: 222 | O14: 34 | P14: 0.1683168317 | Q14: -0.4327002664 | T14: 222 | U14: =COUNTIF(L7:L40,T14) -> 9 | V14: =U14/(W4-U8) -> 0.2647058824 | W14: -0.5075835458 | Y14: 222 | Z14: =COUNTIF(L41:L74,Y14) -> 8 | AA14: =Z14/(AB4-Z8) -> 0.2352941176 | AB14: -0.4911677274 | AD14: 222 | AE14: =COUNTIF(L75:L107,AD14) -> 4 | AF14: =AE14/(AG4-AE8) -> 0.125 | AG14: -0.375 | AI14: 222 | AJ14: =COUNTIF(L108:L141,AI14) -> 6 | AK14: =AJ14/(AL4-AJ8) -> 0.1818181818 | AL14: -0.4471693852 | AN14: 222 | AO14: =COUNTIF(L142:L175,AN14) -> 4 | AP14: =AO14/(AQ4-AO8) -> 0.1212121212 | AQ14: -0.369017469 | AS14: 222 | AT14: =COUNTIF(L176:L209,AS14) -> 3 | AU14: =AT14/(AV4-AT8) -> 0.1111111111 | AV14: -0.352213889
A15: 22 | B15: 931 | C15: 13 | D15: 937 | E15: 23 | F15: 939 | K15: 0 | L15: 212 | P15: =SUM(P7:P14) -> 1 | Q15: =-SUM(Q7:Q14) -> 2.629741644 | V15: =SUM(V7:V14) -> 1 | W15: =-SUM(W7:W14) -> 2.321606958 | AA15: =SUM(AA7:AA14) -> 1 | AB15: =-SUM(AB7:AB14) -> 2.609090415 | AF15: =SUM(AF7:AF14) -> 1 | AG15: =-SUM(AG7:AG14) -> 2.459868359 | AK15: =SUM(AK7:AK14) -> 1 | AL15: =-SUM(AL7:AL14) -> 2.401958984 | AP15: =SUM(AP7:AP14) -> 1 | AQ15: =-SUM(AQ7:AQ14) -> 2.246251803 | AU15: =SUM(AU7:AU14) -> 1 | AV15: =-SUM(AV7:AV14) -> 1.882012265
A16: 22 | B16: 1044 | C16: 24 | D16: 1048 | E16: 23 | F16: 1056 | K16: 0 | L16: 222 | P16: U= | Q16: =Q15/(LOG(Q4)/LOG(2)) -> 0.3433884857 | V16: U1= | W16: =W15/(LOG(W4)/LOG(2)) -> 0.4563388531 | AA16: U2= | AB16: =AB15/(LOG(AB4)/LOG(2)) -> 0.5128470705 | AF16: U3= | AG16: =AG15/(LOG(AG4)/LOG(2)) -> 0.4876439669 | AK16: U4= | AL16: =AL15/(LOG(AL4)/LOG(2)) -> 0.4721329784 | AP16: U5= | AQ16: =AQ15/(LOG(AQ4)/LOG(2)) -> 0.4415269209 | AU16: U6= | AV16: =AV15/(LOG(AV4)/LOG(2)) -> 0.3730898538
A17: 22 | B17: 1258 | C17: 24 | D17: 1262 | E17: 14 | F17: 1270 | K17: 0 | L17: 221
A18: 22 | B18: 1364 | C18: 24 | D18: 1372 | E18: 23 | F18: 1376 | K18: 0 | L18: 222
A19: 22 | B19: 1477 | C19: 13 | D19: 1479 | E19: 23 | F19: 1488 | K19: 0 | L19: 212 | N19: Total Target Seq
A20: 22 | B20: 1592 | C20: 13 | D20: 1594 | E20: 23 | F20: 1596 | K20: 0 | L20: 212 | N20: =COUNTIF(L7:L209,G3) -> 9 | P20: 34 | Q20: 34 | R20: 33 | S20: 34 | T20: 34 | U20: 34
A21: 22 | B21: 1692 | C21: 24 | D21: 1698 | E21: 23 | F21: 1702 | K21: 0 | L21: 222 | P21: % of reinforcement given in 6 equal intervals based on number of trials
A22: 22 | B22: 1798 | C22: 24 | D22: 1801 | E22: 23 | F22: 1804 | K22: 0 | L22: 222 | P22: %_1 | Q22: %_2 | R22: %_3 | S22: %_4 | T22: %_5 | U22: %_6
A23: 22 | B23: 1906 | C23: 24 | D23: 1917 | E23: 14 | F23: 1924 | K23: 0 | L23: 221 | O23: target sequence | P23: =$G$3 -> 112 | Q23: 112 | R23: 112 | S23: 112 | T23: 112 | U23: 112
A24: 22 | B24: 2024 | C24: 24 | D24: 2028 | E24: 14 | F24: 2035 | K24: 0 | L24: 221 | O24: total reinforcement | P24: =U8 -> 0 | Q24: =Z8 -> 0 | R24: =AE8 -> 1 | S24: =AJ8 -> 1 | T24: =AO8 -> 1 | U24: =AT8 -> 6
A25: 11 | B25: 2131 | C25: 22 | D25: 2134 | E25: 14 | F25: 2143 | K25: 0 | L25: 121 | O25: % target
A26: 22 | B26: 2262 | C26: 24 | D26: 2276 | E26: 23 | F26: 2299 | K26: 0 | L26: 222 | O26: CCRF
A27: 22 | B27: 2403 | C27: 24 | D27: 2408 | E27: 23 | F27: 2415 | K27: 0 | L27: 222 | O27: % CCRf
A28: 22 | B28: 2511 | C28: 24 | D28: 2513 | E28: 23 | F28: 2520 | K28: 0 | L28: 222 | O28: average response rate | P28: =F40/P20 -> 112.5588235 | Q28: =(F74-F40)/Q20 -> 114.7352941 | R28: =(F107-F74)/R20 -> 113.2424242 | S28: =(F141-F107)/S20 -> 119.9117647 | T28: =(F175-F141)/T20 -> 126.7941176 | U28: =(F209-F175)/U20 -> -583.9117647
A29: 22 | B29: 2616 | C29: 13 | D29: 2619 | E29: 23 | F29: 2622 | K29: 0 | L29: 212
A30: 11 | B30: 2719 | C30: 22 | D30: 2723 | E30: 23 | F30: 2730 | K30: 0 | L30: 122
A31: 11 | B31: 2829 | C31: 22 | D31: 2837 | E31: 23 | F31: 2846 | K31: 0 | L31: 122
A32: 22 | B32: 2946 | C32: 24 | D32: 2949 | E32: 14 | F32: 2953 | K32: 0 | L32: 221
A33: 22 | B33: 3047 | C33: 24 | D33: 3060 | E33: 14 | F33: 3069 | K33: 0 | L33: 221
A34: 22 | B34: 3161 | C34: 24 | D34: 3167 | E34: 14 | F34: 3172 | K34: 0 | L34: 221
A35: 22 | B35: 3269 | C35: 24 | D35: 3271 | E35: 23 | F35: 3273 | K35: 0 | L35: 222
A36: 22 | B36: 3368 | C36: 13 | D36: 3374 | E36: 23 | F36: 3376 | K36: 0 | L36: 212
A37: 22 | B37: 3472 | C37: 24 | D37: 3476 | E37: 14 | F37: 3480 | K37: 0 | L37: 221
A38: 22 | B38: 3579 | C38: 13 | D38: 3583 | E38: 23 | F38: 3585 | K38: 0 | L38: 212
A39: 22 | B39: 3682 | C39: 13 | D39: 3688 | E39: 23 | F39: 3695 | K39: 0 | L39: 212
A40: 22 | B40: 3814 | C40: 24 | D40: 3820 | E40: 23 | F40: 3827 | K40: 0 | L40: 222
A41: 22 | B41: 3927 | C41: 24 | D41: 3933 | E41: 23 | F41: 3942 | K41: 0 | L41: 222
A42: 11 | B42: 4036 | C42: 22 | D42: 4041 | E42: 23 | F42: 4043 | K42: 0 | L42: 122
A43: 11 | B43: 4139 | C43: 22 | D43: 4144 | E43: 14 | F43: 4148 | K43: 0 | L43: 121
A44: 22 | B44: 4240 | C44: 24 | D44: 4244 | E44: 14 | F44: 4246 | K44: 0 | L44: 221
A45: 22 | B45: 4342 | C45: 24 | D45: 4344 | E45: 23 | F45: 4349 | K45: 0 | L45: 222
A46: 11 | B46: 4469 | C46: 11 | D46: 4472 | E46: 12 | F46: 4478 | K46: 0 | L46: 111
A47: 11 | B47: 4573 | C47: 11 | D47: 4578 | E47: 12 | F47: 4581 | K47: 0 | L47: 111
A48: 11 | B48: 4691 | C48: 22 | D48: 4700 | E48: 23 | F48: 4708 | K48: 0 | L48: 122
A49: 22 | B49: 4830 | C49: 24 | D49: 4838 | E49: 23 | F49: 4844 | K49: 0 | L49: 222
A50: 11 | B50: 4949 | C50: 22 | D50: 4957 | E50: 14 | F50: 4961 | K50: 0 | L50: 121
A51: 22 | B51: 5090 | C51: 13 | D51: 5096 | E51: 23 | F51: 5104 | K51: 0 | L51: 212
A52: 22 | B52: 5205 | C52: 13 | D52: 5207 | E52: 23 | F52: 5220 | K52: 0 | L52: 212
A53: 22 | B53: 5325 | C53: 24 | D53: 5329 | E53: 23 | F53: 5335 | K53: 0 | L53: 222
A54: 11 | B54: 5449 | C54: 11 | D54: 5454 | E54: 12 | F54: 5460 | K54: 0 | L54: 111
A55: 22 | B55: 5558 | C55: 24 | D55: 5564 | E55: 14 | F55: 5567 | K55: 0 | L55: 221
A56: 22 | B56: 5666 | C56: 13 | D56: 5671 | E56: 23 | F56: 5676 | K56: 0 | L56: 212
A57: 22 | B57: 5781 | C57: 24 | D57: 5789 | E57: 23 | F57: 5796 | K57: 0 | L57: 222
A58: 22 | B58: 5896 | C58: 24 | D58: 5899 | E58: 14 | F58: 5902 | K58: 0 | L58: 221
A59: 22 | B59: 6001 | C59: 13 | D59: 6005 | E59: 23 | F59: 6007 | K59: 0 | L59: 212
A60: 22 | B60: 6120 | C60: 13 | D60: 6124 | E60: 23 | F60: 6127 | K60: 0 | L60: 212
A61: 11 | B61: 6221 | C61: 22 | D61: 6226 | E61: 14 | F61: 6230 | K61: 0 | L61: 121
A62: 22 | B62: 6332 | C62: 13 | D62: 6335 | E62: 14 | F62: 6337 | K62: 0 | L62: 211
A63: 11 | B63: 6441 | C63: 22 | D63: 6448 | E63: 23 | F63: 6450 | K63: 0 | L63: 122
A64: 22 | B64: 6544 | C64: 24 | D64: 6567 | E64: 23 | F64: 6581 | K64: 0 | L64: 222
A65: 22 | B65: 6680 | C65: 13 | D65: 6682 | E65: 23 | F65: 6695 | K65: 0 | L65: 212
A66: 22 | B66: 6816 | C66: 24 | D66: 6820 | E66: 23 | F66: 6830 | K66: 0 | L66: 222
A67: 22 | B67: 6928 | C67: 24 | D67: 6930 | E67: 14 | F67: 6937 | K67: 0 | L67: 221
A68: 11 | B68: 7053 | C68: 11 | D68: 7063 | E68: 12 | F68: 7073 | K68: 0 | L68: 111
A69: 22 | B69: 7179 | C69: 24 | D69: 7183 | E69: 23 | F69: 7195 | K69: 0 | L69: 222
A70: 22 | B70: 7293 | C70: 13 | D70: 7301 | E70: 23 | F70: 7305 | K70: 0 | L70: 212
A71: 22 | B71: 7401 | C71: 24 | D71: 7406 | E71: 14 | F71: 7411 | K71: 0 | L71: 221
A72: 11 | B72: 7506 | C72: 22 | D72: 7509 | E72: 14 | F72: 7513 | K72: 0 | L72: 121
A73: 22 | B73: 7610 | C73: 24 | D73: 7620 | E73: 14 | F73: 7623 | K73: 0 | L73: 221
A74: 22 | B74: 7718 | C74: 13 | D74: 7722 | E74: 23 | F74: 7728 | K74: 0 | L74: 212
A75: 22 | B75: 7823 | C75: 24 | D75: 7833 | E75: 23 | F75: 7842 | K75: 0 | L75: 222
A76: 22 | B76: 7956 | C76: 24 | D76: 7959 | E76: 14 | F76: 7962 | K76: 0 | L76: 221
A77: 11 | B77: 8054 | C77: 22 | D77: 8062 | E77: 23 | F77: 8066 | K77: 0 | L77: 122
A78: 22 | B78: 8163 | C78: 13 | D78: 8166 | E78: 23 | F78: 8171 | K78: 0 | L78: 212
A79: 22 | B79: 8269 | C79: 13 | D79: 8276 | E79: 23 | F79: 8282 | K79: 0 | L79: 212
A80: 22 | B80: 8381 | C80: 13 | D80: 8384 | E80: 23 | F80: 8387 | K80: 0 | L80: 212
A81: 11 | B81: 8483 | C81: 11 | D81: 8504 | E81: 21 | F81: 8509 | K81: 0 | L81: 112
A82: 11 | B82: 8616 | C82: 22 | D82: 8619 | E82: 23 | F82: 8626 | K82: 0 | L82: 122
A83: 22 | B83: 8725 | C83: 24 | D83: 8737 | E83: 23 | F83: 8745 | K83: 0 | L83: 222
A84: 22 | B84: 8840 | C84: 13 | D84: 8845 | E84: 23 | F84: 8848 | K84: 0 | L84: 212
A85: 22 | B85: 8954 | C85: 13 | D85: 8957 | E85: 23 | F85: 8964 | K85: 0 | L85: 212
A86: 11 | B86: 9056 | C86: 22 | D86: 9062 | E86: 23 | F86: 9069 | K86: 0 | L86: 122
A87: 22 | B87: 9167 | C87: 24 | D87: 9170 | E87: 23 | F87: 9173 | K87: 0 | L87: 222
A88: 22 | B88: 9272 | C88: 13 | D88: 9277 | E88: 23 | F88: 9278 | K88: 0 | L88: 212
A89: 11 | B89: 9371 | C89: 22 | D89: 9375 | E89: 23 | F89: 9379 | K89: 0 | L89: 122
A90: 11 | B90: 9471 | C90: 22 | D90: 9477 | E90: 14 | F90: 9482 | K90: 0 | L90: 121
A91: 11 | B91: 9584 | C91: 11 | D91: 9590 | E91: 12 | F91: 9610 | K91: 0 | L91: 111
A92: 22 | B92: 9722 | C92: 13 | D92: 9728 | E92: 23 | F92: 9743 | K92: 0 | L92: 212
A93: 11 | B93: 9841 | C93: 22 | D93: 9843 | E93: 23 | F93: 9848 | K93: 0 | L93: 122
A94: 22 | B94: 9944 | C94: 13 | D94: 9953 | E94: 23 | F94: 9964 | K94: 0 | L94: 212
A95: 11 | B95: 10064 | C95: 22 | D95: 10066 | E95: 23 | F95: 10070 | K95: 0 | L95: 122
A96: 22 | B96: 10170 | C96: 13 | D96: 10173 | E96: 23 | F96: 10176 | K96: 0 | L96: 212
A97: 22 | B97: 10274 | C97: 13 | D97: 10281 | E97: 23 | F97: 10285 | K97: 0 | L97: 212
A98: 22 | B98: 10383 | C98: 24 | D98: 10389 | E98: 14 | F98: 10393 | K98: 0 | L98: 221
A99: 22 | B99: 10490 | C99: 24 | D99: 10496 | E99: 14 | F99: 10497 | K99: 0 | L99: 221
A100: 22 | B100: 10590 | C100: 24 | D100: 10594 | E100: 23 | F100: 10603 | K100: 0 | L100: 222
A101: 22 | B101: 10709 | C101: 24 | D101: 10713 | E101: 14 | F101: 10717 | K101: 0 | L101: 221
A102: 11 | B102: 10814 | C102: 22 | D102: 10834 | E102: 14 | F102: 10839 | K102: 0 | L102: 121
A103: 22 | B103: 10939 | C103: 13 | D103: 10942 | E103: 23 | F103: 10947 | K103: 0 | L103: 212
A104: 11 | B104: 11050 | C104: 11 | D104: 11080 | E104: 12 | F104: 11085 | K104: 0 | L104: 111
A105: 11 | B105: 11187 | C105: 11 | D105: 11201 | E105: 12 | F105: 11203 | K105: 0 | L105: 111
A106: 22 | B106: 11329 | C106: 13 | D106: 11336 | E106: 14 | F106: 11344 | K106: 0 | L106: 211
A107: 22 | B107: 11458 | C107: 13 | D107: 11462 | E107: 23 | F107: 11465 | K107: 0 | L107: 212
A108: 11 | B108: 11572 | C108: 22 | D108: 11579 | E108: 23 | F108: 11585 | K108: 0 | L108: 122
A109: 22 | B109: 11682 | C109: 24 | D109: 11688 | E109: 14 | F109: 11690 | K109: 0 | L109: 221
A110: 11 | B110: 11806 | C110: 11 | D110: 11812 | E110: 12 | F110: 11822 | K110: 0 | L110: 111
A111: 11 | B111: 11924 | C111: 11 | D111: 11933 | E111: 12 | F111: 11942 | K111: 0 | L111: 111
A112: 11 | B112: 12039 | C112: 22 | D112: 12042 | E112: 14 | F112: 12045 | K112: 0 | L112: 121
A113: 22 | B113: 12143 | C113: 24 | D113: 12150 | E113: 23 | F113: 12157 | K113: 0 | L113: 222
A114: 11 | B114: 12255 | C114: 11 | D114: 12267 | E114: 12 | F114: 12269 | K114: 0 | L114: 111
A115: 11 | B115: 12375 | C115: 22 | D115: 12378 | E115: 23 | F115: 12381 | K115: 0 | L115: 122
A116: 22 | B116: 12510 | C116: 13 | D116: 12516 | E116: 23 | F116: 12533 | K116: 0 | L116: 212
A117: 22 | B117: 12628 | C117: 13 | D117: 12636 | E117: 23 | F117: 12643 | K117: 0 | L117: 212
A118: 22 | B118: 12742 | C118: 13 | D118: 12747 | E118: 23 | F118: 12752 | K118: 0 | L118: 212
A119: 22 | B119: 12846 | C119: 24 | D119: 12851 | E119: 23 | F119: 12855 | K119: 0 | L119: 222
A120: 22 | B120: 12953 | C120: 24 | D120: 12957 | E120: 14 | F120: 12960 | K120: 0 | L120: 221
A121: 22 | B121: 13051 | C121: 24 | D121: 13058 | E121: 23 | F121: 13069 | K121: 0 | L121: 222
A122: 11 | B122: 13165 | C122: 11 | D122: 13169 | E122: 12 | F122: 13178 | K122: 0 | L122: 111
A123: 11 | B123: 13279 | C123: 22 | D123: 13298 | E123: 23 | F123: 13303 | K123: 0 | L123: 122
A124: 11 | B124: 13442 | C124: 11 | D124: 13466 | E124: 12 | F124: 13475 | K124: 0 | L124: 111
A125: 22 | B125: 13573 | C125: 24 | D125: 13577 | E125: 14 | F125: 13581 | K125: 0 | L125: 221
A126: 22 | B126: 13720 | C126: 24 | D126: 13723 | E126: 23 | F126: 13727 | K126: 0 | L126: 222
A127: 22 | B127: 13848 | C127: 13 | D127: 13854 | E127: 23 | F127: 13863 | K127: 0 | L127: 212
A128: 22 | B128: 13976 | C128: 13 | D128: 13979 | E128: 23 | F128: 13984 | K128: 0 | L128: 212
A129: 11 | B129: 14101 | C129: 11 | D129: 14105 | E129: 12 | F129: 14113 | K129: 0 | L129: 111
A130: 22 | B130: 14241 | C130: 13 | D130: 14244 | E130: 23 | F130: 14255 | K130: 0 | L130: 212
A131: 11 | B131: 14348 | C131: 11 | D131: 14375 | E131: 21 | F131: 14382 | K131: 0 | L131: 112
A132: 22 | B132: 14477 | C132: 13 | D132: 14483 | E132: 23 | F132: 14487 | K132: 0 | L132: 212
A133: 22 | B133: 14603 | C133: 13 | D133: 14606 | E133: 23 | F133: 14614 | K133: 0 | L133: 212
A134: 11 | B134: 14752 | C134: 22 | D134: 14760 | E134: 23 | F134: 14765 | K134: 0 | L134: 122
A135: 22 | B135: 14862 | C135: 13 | D135: 14864 | E135: 23 | F135: 14867 | K135: 0 | L135: 212
A136: 22 | B136: 14965 | C136: 24 | D136: 14970 | E136: 14 | F136: 14974 | K136: 0 | L136: 221
A137: 22 | B137: 15076 | C137: 24 | D137: 15082 | E137: 14 | F137: 15084 | K137: 0 | L137: 221
A138: 22 | B138: 15183 | C138: 24 | D138: 15187 | E138: 23 | F138: 15196 | K138: 0 | L138: 222
A139: 22 | B139: 15304 | C139: 24 | D139: 15306 | E139: 14 | F139: 15308 | K139: 0 | L139: 221
A140: 22 | B140: 15408 | C140: 24 | D140: 15412 | E140: 23 | F140: 15416 | K140: 0 | L140: 222
A141: 11 | B141: 15522 | C141: 11 | D141: 15528 | E141: 12 | F141: 15542 | K141: 0 | L141: 111
A142: 22 | B142: 15635 | C142: 24 | D142: 15638 | E142: 14 | F142: 15644 | K142: 0 | L142: 221
A143: 22 | B143: 15742 | C143: 13 | D143: 15745 | E143: 23 | F143: 15751 | K143: 0 | L143: 212
A144: 22 | B144: 15865 | C144: 13 | D144: 15866 | E144: 23 | F144: 15870 | K144: 0 | L144: 212
A145: 11 | B145: 15990 | C145: 11 | D145: 15997 | E145: 12 | F145: 16002 | K145: 0 | L145: 111
A146: 11 | B146: 16135 | C146: 22 | D146: 16168 | E146: 23 | F146: 16172 | K146: 0 | L146: 122
A147: 11 | B147: 16267 | C147: 22 | D147: 16278 | E147: 23 | F147: 16282 | K147: 0 | L147: 122
A148: 11 | B148: 16434 | C148: 11 | D148: 16442 | E148: 21 | F148: 16463 | K148: 0 | L148: 112
A149: 22 | B149: 16567 | C149: 24 | D149: 16583 | E149: 23 | F149: 16591 | K149: 0 | L149: 222
A150: 22 | B150: 16713 | C150: 24 | D150: 16718 | E150: 23 | F150: 16723 | K150: 0 | L150: 222
A151: 22 | B151: 16828 | C151: 24 | D151: 16832 | E151: 14 | F151: 16836 | K151: 0 | L151: 221
A152: 11 | B152: 16929 | C152: 22 | D152: 16935 | E152: 23 | F152: 16939 | K152: 0 | L152: 122
A153: 22 | B153: 17037 | C153: 13 | D153: 17041 | E153: 23 | F153: 17046 | K153: 0 | L153: 212
A154: 22 | B154: 17143 | C154: 13 | D154: 17149 | E154: 23 | F154: 17154 | K154: 0 | L154: 212
A155: 22 | B155: 17251 | C155: 13 | D155: 17254 | E155: 23 | F155: 17261 | K155: 0 | L155: 212
A156: 11 | B156: 17356 | C156: 11 | D156: 17375 | E156: 12 | F156: 17385 | K156: 0 | L156: 111
A157: 22 | B157: 17484 | C157: 24 | D157: 17492 | E157: 14 | F157: 17497 | K157: 0 | L157: 221
A158: 22 | B158: 17595 | C158: 24 | D158: 17600 | E158: 14 | F158: 17603 | K158: 0 | L158: 221
A159: 22 | B159: 17711 | C159: 24 | D159: 17718 | E159: 14 | F159: 17719 | K159: 0 | L159: 221
A160: 11 | B160: 17847 | C160: 11 | D160: 17853 | E160: 12 | F160: 17866 | K160: 0 | L160: 111
A161: 22 | B161: 17965 | C161: 24 | D161: 17977 | E161: 14 | F161: 17980 | K161: 0 | L161: 221
A162: 22 | B162: 18078 | C162: 13 | D162: 18081 | E162: 23 | F162: 18088 | K162: 0 | L162: 212
A163: 11 | B163: 18184 | C163: 11 | D163: 18193 | E163: 12 | F163: 18201 | K163: 0 | L163: 111
A164: 22 | B164: 18300 | C164: 24 | D164: 18307 | E164: 14 | F164: 18309 | K164: 0 | L164: 221
A165: 11 | B165: 18414 | C165: 22 | D165: 18452 | E165: 23 | F165: 18457 | K165: 0 | L165: 122
A166: 11 | B166: 18666 | C166: 11 | D166: 18685 | E166: 12 | F166: 18705 | K166: 0 | L166: 111
A167: 22 | B167: 18803 | C167: 13 | D167: 18813 | E167: 23 | F167: 18815 | K167: 0 | L167: 212
A168: 22 | B168: 18912 | C168: 13 | D168: 18914 | E168: 23 | F168: 18921 | K168: 0 | L168: 212
A169: 22 | B169: 19024 | C169: 13 | D169: 19025 | E169: 23 | F169: 19030 | K169: 0 | L169: 212
A170: 11 | B170: 19137 | C170: 22 | D170: 19146 | E170: 23 | F170: 19149 | K170: 0 | L170: 122
A171: 22 | B171: 19248 | C171: 13 | D171: 19253 | E171: 23 | F171: 19256 | K171: 0 | L171: 212
A172: 22 | B172: 19438 | C172: 24 | D172: 19474 | E172: 23 | F172: 19479 | K172: 0 | L172: 222
A173: 22 | B173: 19580 | C173: 24 | D173: 19586 | E173: 23 | F173: 19592 | K173: 0 | L173: 222
A174: 11 | B174: 19707 | C174: 11 | D174: 19718 | E174: 12 | F174: 19734 | K174: 0 | L174: 111
A175: 22 | B175: 19847 | C175: 24 | D175: 19850 | E175: 14 | F175: 19853 | K175: 0 | L175: 221
A176: 22 | B176: 19950 | C176: 13 | D176: 19954 | E176: 23 | F176: 19958 | K176: 0 | L176: 212
A177: 11 | B177: 20051 | C177: 22 | D177: 20057 | E177: 14 | F177: 20061 | K177: 0 | L177: 121
A178: 11 | B178: 20230 | C178: 22 | D178: 20239 | E178: 23 | F178: 20252 | K178: 0 | L178: 122
A179: 22 | B179: 20352 | C179: 13 | D179: 20357 | E179: 23 | F179: 20360 | K179: 0 | L179: 212
A180: 22 | B180: 20458 | C180: 13 | D180: 20460 | E180: 23 | F180: 20465 | K180: 0 | L180: 212
A181: 11 | B181: 20584 | C181: 11 | D181: 20596 | E181: 21 | F181: 20603 | K181: 0 | L181: 112
A182: 22 | B182: 20718 | C182: 13 | D182: 20722 | E182: 23 | F182: 20727 | K182: 0 | L182: 212
A183: 22 | B183: 20825 | C183: 13 | D183: 20827 | E183: 23 | F183: 20829 | K183: 0 | L183: 212
A184: 22 | B184: 20927 | C184: 24 | D184: 20929 | E184: 23 | F184: 20935 | K184: 0 | L184: 222
A185: 22 | B185: 21040 | C185: 13 | D185: 21045 | E185: 23 | F185: 21054 | K185: 0 | L185: 212
A186: 11 | B186: 21170 | C186: 11 | D186: 21178 | E186: 21 | F186: 21185 | K186: 0 | L186: 112
A187: 22 | B187: 21300 | C187: 13 | D187: 21308 | E187: 23 | F187: 21320 | K187: 0 | L187: 212
A188: 11 | B188: 21414 | C188: 22 | D188: 21416 | E188: 23 | F188: 21427 | K188: 0 | L188: 122
A189: 11 | B189: 21521 | C189: 22 | D189: 21525 | E189: 23 | F189: 21530 | K189: 0 | L189: 122
A190: 11 | B190: 21621 | C190: 22 | D190: 21630 | E190: 14 | F190: 21634 | K190: 0 | L190: 121
A191: 22 | B191: 21732 | C191: 13 | D191: 21738 | E191: 23 | F191: 21744 | K191: 0 | L191: 212
A192: 11 | B192: 21858 | C192: 22 | D192: 21863 | E192: 23 | F192: 21872 | K192: 0 | L192: 122
A193: 22 | B193: 21976 | C193: 13 | D193: 21981 | E193: 23 | F193: 21984 | K193: 0 | L193: 212
A194: 11 | B194: 22076 | C194: 22 | D194: 22081 | E194: 23 | F194: 22088 | K194: 0 | L194: 122
A195: 22 | B195: 22184 | C195: 13 | D195: 22187 | E195: 23 | F195: 22193 | K195: 0 | L195: 212
A196: 11 | B196: 22294 | C196: 11 | D196: 22315 | E196: 21 | F196: 22320 | K196: 0 | L196: 112
A197: 22 | B197: 22456 | C197: 13 | D197: 22464 | E197: 23 | F197: 22477 | K197: 0 | L197: 212
A198: 22 | B198: 22616 | C198: 24 | D198: 22621 | E198: 14 | F198: 22625 | K198: 0 | L198: 221
A199: 22 | B199: 22724 | C199: 13 | D199: 22726 | E199: 23 | F199: 22732 | K199: 0 | L199: 212
A200: 11 | B200: 22847 | C200: 11 | D200: 22855 | E200: 21 | F200: 22876 | K200: 0 | L200: 112
... 9 more rows

Sheet !MC29A10.Gus
A1: Report for:!MC29A10.Gus
A2: Date: | B2: <date>
A3: Hen: | B3: <hen> | F3: Correct Sequence | G3: =Start!J2 -> 112 | P3: Total Sequences in Data | Q3: =4994-COUNTBLANK(L7:L5000) -> 204 | V3: Total Sequences in Block Data | W3: =COUNTA(L7:L40) -> 34 | AA3: Total Sequences in Block Data | AB3: =COUNTA(L41:L74) -> 34 | AF3: Total Sequences in Block Data | AG3: =COUNTA(L75:L108) -> 34 | AK3: Total Sequences in Block Data | AL3: =COUNTA(L109:L142) -> 34 | AP3: Total Sequences in Block Data | AQ3: =COUNTA(L143:L176) -> 34 | AU3: Total Sequences in Block Data | AV3: =COUNTA(L177:L210) -> 34
P4: Total Sequences in Summary | Q4: =SUM(O7:O14) -> 204 | V4: Total Sequences in Block Summary | W4: =SUM(U7:U14) -> 34 | AA4: Total Sequences in Block Summary | AB4: =SUM(Z7:Z14) -> 34 | AF4: Total Sequences in Block Summary | AG4: =SUM(AE7:AE14) -> 34 | AK4: Total Sequences in Block Summary | AL4: =SUM(AJ7:AJ14) -> 34 | AP4: Total Sequences in Block Summary | AQ4: =SUM(AO7:AO14) -> 34 | AU4: Total Sequences in Block Summary | AV4: =SUM(AT7:AT14) -> 34
T5: Block 1 | Y5: Block 2 | AD5: Block 3 | AI5: Block 4 | AN5: Block 5 | AS5: Block 6
A6: Sequence Component 1 | B6: Time 1 | C6: Sequence Component 2 | D6: Time 2 | E6: Sequence Component 3 | F6: Time 3 | G6: Sequence Component 4 | H6: Time 4 | I6: Sequence Component 5 | J6: Time 5 | K6: Correct? 0=No 1=Yes | L6: Sequence | N6: Frequency | P6: Relative Frequency | Q6: Variability | T6: Frequency | V6: Relative Frequency | W6: Variability | Y6: Frequency | AA6: Relative Frequency | AB6: Variability | AD6: Frequency | AF6: Relative Frequency | AG6: Variability | AI6: Frequency | AK6: Relative Frequency | AL6: Variability | AN6: Frequency | AP6: Relative Frequency | AQ6: Variability | AS6: Frequency | AU6: Relative Frequency | AV6: Variability
A7: 11 | B7: 15 | C7: 22 | D7: 34 | E7: 23 | F7: 38 | K7: 0 | L7: 122 | N7: 111 | O7: =COUNTIF($L$7:$L$500,N7) -> 10 | P7: =O7/$Q$4 -> 0.04901960784 | Q7: =IF(P7=0,0,(P7*((LOG(P7))/LOG(2)))) -> -0.213259669 | T7: =N7 -> 111 | U7: =COUNTIF(L7:L40,T7) -> 5 | V7: =U7/(W4-U8) -> 0.1724137931 | W7: =IF(V7=0,0,(V7*((LOG(V7))/LOG(2)))) -> -0.4372505 | Y7: =N7 -> 111 | Z7: =COUNTIF(L41:L74,Y7) -> 1 | AA7: =Z7/(AB4-Z8) -> 0.03125 | AB7: =IF(AA7=0,0,(AA7*((LOG(AA7))/LOG(2)))) -> -0.15625 | AD7: =N7 -> 111 | AE7: =COUNTIF(L75:L108,AD7) -> 0 | AF7: =AE7/(AG4-AE8) -> 0 | AG7: =IF(AF7=0,0,(AF7*((LOG(AF7))/LOG(2)))) -> 0 | AI7: =N7 -> 111 | AJ7: =COUNTIF(L109:L142,AI7) -> 1 | AK7: =AJ7/(AL4-AJ8) -> 0.03448275862 | AL7: =IF(AK7=0,0,(AK7*((LOG(AK7))/LOG(2)))) -> -0.167516586 | AN7: =N7 -> 111 | AO7: =COUNTIF(L143:L176,AN7) -> 3 | AP7: =AO7/(AQ4-AO8) -> 0.1 | AQ7: =IF(AP7=0,0,(AP7*((LOG(AP7))/LOG(2)))) -> -0.3321928095 | AS7: =N7 -> 111 | AT7: =COUNTIF(L177:L210,AS7) -> 0 | AU7: =AT7/(AV4-AT8) -> 0 | AV7: =IF(AU7=0,0,(AU7*((LOG(AU7))/LOG(2)))) -> 0
A8: 22 | B8: 137 | C8: 24 | D8: 139 | E8: 14 | F8: 141 | K8: 0 | L8: 221 | N8: 112 | O8: 25 | P8: 0.1225490196 | Q8: -0.3711481804 | T8: 112 | U8: =COUNTIF(L7:L40,T8) -> 5 | Y8: 112 | Z8: =COUNTIF(L41:L74,Y8) -> 2 | AD8: 112 | AE8: =COUNTIF(L75:L108,AD8) -> 4 | AI8: 112 | AJ8: =COUNTIF(L109:L142,AI8) -> 5 | AN8: 112 | AO8: =COUNTIF(L143:L176,AN8) -> 4 | AS8: 112 | AT8: =COUNTIF(L177:L210,AS8) -> 5
A9: 22 | B9: 235 | C9: 13 | D9: 241 | E9: 23 | F9: 249 | K9: 0 | L9: 212 | N9: 121 | O9: 13 | P9: 0.0637254902 | Q9: -0.2531167309 | T9: 121 | U9: =COUNTIF(L7:L40,T9) -> 1 | V9: =U9/(W4-U8) -> 0.03448275862 | W9: =IF(V9=0,0,(V9*((LOG(V9))/LOG(2)))) -> -0.167516586 | Y9: 121 | Z9: =COUNTIF(L41:L74,Y9) -> 4 | AA9: =Z9/(AB4-Z8) -> 0.125 | AB9: =IF(AA9=0,0,(AA9*((LOG(AA9))/LOG(2)))) -> -0.375 | AD9: 121 | AE9: =COUNTIF(L75:L108,AD9) -> 3 | AF9: =AE9/(AG4-AE8) -> 0.1 | AG9: =IF(AF9=0,0,(AF9*((LOG(AF9))/LOG(2)))) -> -0.3321928095 | AI9: 121 | AJ9: =COUNTIF(L109:L142,AI9) -> 1 | AK9: =AJ9/(AL4-AJ8) -> 0.03448275862 | AL9: =IF(AK9=0,0,(AK9*((LOG(AK9))/LOG(2)))) -> -0.167516586 | AN9: 121 | AO9: =COUNTIF(L143:L176,AN9) -> 2 | AP9: =AO9/(AQ4-AO8) -> 0.06666666667 | AQ9: =IF(AP9=0,0,(AP9*((LOG(AP9))/LOG(2)))) -> -0.260459373 | AS9: 121 | AT9: =COUNTIF(L177:L210,AS9) -> 2 | AU9: =AT9/(AV4-AT8) -> 0.06896551724 | AV9: =IF(AU9=0,0,(AU9*((LOG(AU9))/LOG(2)))) -> -0.2660676548
A10: 11 | B10: 354 | C10: 22 | D10: 362 | E10: 23 | F10: 367 | K10: 0 | L10: 122 | N10: 122 | O10: 45 | P10: 0.2205882353 | Q10: -0.4810085836 | T10: 122 | U10: =COUNTIF(L7:L40,T10) -> 5 | V10: =U10/(W4-U8) -> 0.1724137931 | W10: -0.4372505 | Y10: 122 | Z10: =COUNTIF(L41:L74,Y10) -> 3 | AA10: =Z10/(AB4-Z8) -> 0.09375 | AB10: -0.3201597656 | AD10: 122 | AE10: =COUNTIF(L75:L108,AD10) -> 5 | AF10: =AE10/(AG4-AE8) -> 0.1666666667 | AG10: -0.4308270835 | AI10: 122 | AJ10: =COUNTIF(L109:L142,AI10) -> 8 | AK10: =AJ10/(AL4-AJ8) -> 0.275862069 | AL10: -0.5125464814 | AN10: 122 | AO10: =COUNTIF(L143:L176,AN10) -> 11 | AP10: =AO10/(AQ4-AO8) -> 0.3666666667 | AQ10: -0.5307349582 | AS10: 122 | AT10: =COUNTIF(L177:L210,AS10) -> 13 | AU10: =AT10/(AV4-AT8) -> 0.4482758621 | AV10: -0.5188978138
A11: 22 | B11: 466 | C11: 13 | D11: 468 | E11: 23 | F11: 474 | K11: 0 | L11: 212 | N11: 211 | O11: 2 | P11: 0.009803921569 | Q11: -0.06541593473 | T11: 211 | U11: =COUNTIF(L7:L40,T11) -> 1 | V11: =U11/(W4-U8) -> 0.03448275862 | W11: -0.167516586 | Y11: 211 | Z11: =COUNTIF(L41:L74,Y11) -> 1 | AA11: =Z11/(AB4-Z8) -> 0.03125 | AB11: -0.15625 | AD11: 211 | AE11: =COUNTIF(L75:L108,AD11) -> 0 | AF11: =AE11/(AG4-AE8) -> 0 | AG11: 0 | AI11: 211 | AJ11: =COUNTIF(L109:L142,AI11) -> 0 | AK11: =AJ11/(AL4-AJ8) -> 0 | AL11: 0 | AN11: 211 | AO11: =COUNTIF(L143:L176,AN11) -> 0 | AP11: =AO11/(AQ4-AO8) -> 0 | AQ11: 0 | AS11: 211 | AT11: =COUNTIF(L177:L210,AS11) -> 0 | AU11: =AT11/(AV4-AT8) -> 0 | AV11: 0
A12: 22 | B12: 606 | C12: 24 | D12: 610 | E12: 23 | F12: 616 | K12: 0 | L12: 222 | N12: 212 | O12: 67 | P12: 0.3284313725 | Q12: -0.527571187 | T12: 212 | U12: =COUNTIF(L7:L40,T12) -> 8 | V12: =U12/(W4-U8) -> 0.275862069 | W12: -0.5125464814 | Y12: 212 | Z12: =COUNTIF(L41:L74,Y12) -> 16 | AA12: =Z12/(AB4-Z8) -> 0.5 | AB12: -0.5 | AD12: 212 | AE12: =COUNTIF(L75:L108,AD12) -> 13 | AF12: =AE12/(AG4-AE8) -> 0.4333333333 | AG12: -0.5227953802 | AI12: 212 | AJ12: =COUNTIF(L109:L142,AI12) -> 11 | AK12: =AJ12/(AL4-AJ8) -> 0.3793103448 | AL12: -0.5304842463 | AN12: 212 | AO12: =COUNTIF(L143:L176,AN12) -> 10 | AP12: =AO12/(AQ4-AO8) -> 0.3333333333 | AQ12: -0.5283208336 | AS12: 212 | AT12: =COUNTIF(L177:L210,AS12) -> 9 | AU12: =AT12/(AV4-AT8) -> 0.3103448276 | AV12: -0.5238794463
A13: 22 | B13: 724 | C13: 24 | D13: 728 | E13: 23 | F13: 733 | K13: 0 | L13: 222 | N13: 221 | O13: 13 | P13: 0.0637254902 | Q13: -0.2531167309 | T13: 221 | U13: =COUNTIF(L7:L40,T13) -> 1 | V13: =U13/(W4-U8) -> 0.03448275862 | W13: -0.167516586 | Y13: 221 | Z13: =COUNTIF(L41:L74,Y13) -> 6 | AA13: =Z13/(AB4-Z8) -> 0.1875 | AB13: -0.4528195311 | AD13: 221 | AE13: =COUNTIF(L75:L108,AD13) -> 2 | AF13: =AE13/(AG4-AE8) -> 0.06666666667 | AG13: -0.260459373 | AI13: 221 | AJ13: =COUNTIF(L109:L142,AI13) -> 1 | AK13: =AJ13/(AL4-AJ8) -> 0.03448275862 | AL13: -0.167516586 | AN13: 221 | AO13: =COUNTIF(L143:L176,AN13) -> 2 | AP13: =AO13/(AQ4-AO8) -> 0.06666666667 | AQ13: -0.260459373 | AS13: 221 | AT13: =COUNTIF(L177:L210,AS13) -> 1 | AU13: =AT13/(AV4-AT8) -> 0.03448275862 | AV13: -0.167516586
A14: 11 | B14: 839 | C14: 22 | D14: 855 | E14: 23 | F14: 861 | K14: 0 | L14: 122 | N14: 222 | O14: 29 | P14: 0.1421568627 | Q14: -0.4000925787 | T14: 222 | U14: =COUNTIF(L7:L40,T14) -> 8 | V14: =U14/(W4-U8) -> 0.275862069 | W14: -0.5125464814 | Y14: 222 | Z14: =COUNTIF(L41:L74,Y14) -> 1 | AA14: =Z14/(AB4-Z8) -> 0.03125 | AB14: -0.15625 | AD14: 222 | AE14: =COUNTIF(L75:L108,AD14) -> 7 | AF14: =AE14/(AG4-AE8) -> 0.2333333333 | AG14: -0.4898916572 | AI14: 222 | AJ14: =COUNTIF(L109:L142,AI14) -> 7 | AK14: =AJ14/(AL4-AJ8) -> 0.2413793103 | AL14: -0.4949787073 | AN14: 222 | AO14: =COUNTIF(L143:L176,AN14) -> 2 | AP14: =AO14/(AQ4-AO8) -> 0.06666666667 | AQ14: -0.260459373 | AS14: 222 | AT14: =COUNTIF(L177:L210,AS14) -> 4 | AU14: =AT14/(AV4-AT8) -> 0.1379310345 | AV14: -0.3942042752
A15: 11 | B15: 964 | C15: 11 | D15: 984 | E15: 12 | F15: 995 | K15: 0 | L15: 111 | P15: =SUM(P7:P14) -> 1 | Q15: =-SUM(Q7:Q14) -> 2.564729595 | V15: =SUM(V7:V14) -> 1 | W15: =-SUM(W7:W14) -> 2.402143721 | AA15: =SUM(AA7:AA14) -> 1 | AB15: =-SUM(AB7:AB14) -> 2.116729297 | AF15: =SUM(AF7:AF14) -> 1 | AG15: =-SUM(AG7:AG14) -> 2.036166303 | AK15: =SUM(AK7:AK14) -> 1 | AL15: =-SUM(AL7:AL14) -> 2.040559193 | AP15: =SUM(AP7:AP14) -> 1 | AQ15: =-SUM(AQ7:AQ14) -> 2.17262672 | AU15: =SUM(AU7:AU14) -> 1 | AV15: =-SUM(AV7:AV14) -> 1.870565776
A16: 11 | B16: 1090 | C16: 11 | D16: 1094 | E16: 12 | F16: 1097 | K16: 0 | L16: 111 | P16: U= | Q16: =Q15/(LOG(Q4)/LOG(2)) -> 0.3342788598 | V16: U1= | W16: =W15/(LOG(W4)/LOG(2)) -> 0.4721692907 | AA16: U2= | AB16: =AB15/(LOG(AB4)/LOG(2)) -> 0.4160677655 | AF16: U3= | AG16: =AG15/(LOG(AG4)/LOG(2)) -> 0.4002321721 | AK16: U4= | AL16: =AL15/(LOG(AL4)/LOG(2)) -> 0.4010956457 | AP16: U5= | AQ16: =AQ15/(LOG(AQ4)/LOG(2)) -> 0.4270550544 | AU16: U6= | AV16: =AV15/(LOG(AV4)/LOG(2)) -> 0.3676814622
A17: 11 | B17: 1201 | C17: 22 | D17: 1216 | E17: 23 | F17: 1223 | K17: 0 | L17: 122
A18: 11 | B18: 1316 | C18: 22 | D18: 1326 | E18: 14 | F18: 1328 | K18: 0 | L18: 121
A19: 11 | B19: 1439 | C19: 11 | D19: 1449 | E19: 21 | F19: 1451 | K19: 0 | L19: 112 | N19: Total Target Seq
A20: 22 | B20: 1546 | C20: 24 | D20: 1550 | E20: 23 | F20: 1556 | K20: 0 | L20: 222 | N20: =COUNTIF(L7:L210,G3) -> 25 | P20: 34 | Q20: 34 | R20: 34 | S20: 34 | T20: 34 | U20: 34
A21: 22 | B21: 1656 | C21: 13 | D21: 1667 | E21: 14 | F21: 1672 | K21: 0 | L21: 211 | P21: % of reinforcement given in 6 equal intervals based on number of trials
A22: 11 | B22: 1776 | C22: 11 | D22: 1784 | E22: 12 | F22: 1796 | K22: 0 | L22: 111 | P22: %_1 | Q22: %_2 | R22: %_3 | S22: %_4 | T22: %_5 | U22: %_6
A23: 11 | B23: 1902 | C23: 11 | D23: 1913 | E23: 12 | F23: 1916 | K23: 0 | L23: 111 | O23: target sequence | P23: =$G$3 -> 112 | Q23: 112 | R23: 112 | S23: 112 | T23: 112 | U23: 112
A24: 11 | B24: 2031 | C24: 11 | D24: 2051 | E24: 21 | F24: 2060 | K24: 0 | L24: 112 | O24: total reinforcement | P24: =U8 -> 5 | Q24: =Z8 -> 2 | R24: =AE8 -> 4 | S24: =AJ8 -> 5 | T24: =AO8 -> 4 | U24: =AT8 -> 5
A25: 22 | B25: 2154 | C25: 24 | D25: 2166 | E25: 23 | F25: 2178 | K25: 0 | L25: 222 | O25: % target
A26: 22 | B26: 2281 | C26: 24 | D26: 2295 | E26: 23 | F26: 2301 | K26: 0 | L26: 222 | O26: CCRF
A27: 22 | B27: 2398 | C27: 13 | D27: 2401 | E27: 23 | F27: 2403 | K27: 0 | L27: 212 | O27: % CCRf
A28: 22 | B28: 2501 | C28: 24 | D28: 2503 | E28: 23 | F28: 2506 | K28: 0 | L28: 222 | O28: average response rate | P28: =F40/P20 -> 114.2058824 | Q28: =(F74-F40)/Q20 -> 111.8235294 | R28: =(F108-F74)/R20 -> 111.8235294 | S28: =(F142-F108)/S20 -> 124.6176471 | T28: =(F176-F142)/T20 -> 118.5588235 | U28: =(F210-F176)/U20 -> 124.8235294
A29: 11 | B29: 2600 | C29: 11 | D29: 2612 | E29: 12 | F29: 2626 | K29: 0 | L29: 111
A30: 22 | B30: 2746 | C30: 13 | D30: 2750 | E30: 23 | F30: 2754 | K30: 0 | L30: 212
A31: 22 | B31: 2852 | C31: 13 | D31: 2855 | E31: 23 | F31: 2859 | K31: 0 | L31: 212
A32: 11 | B32: 2972 | C32: 11 | D32: 2977 | E32: 21 | F32: 2979 | K32: 0 | L32: 112
A33: 22 | B33: 3074 | C33: 13 | D33: 3079 | E33: 23 | F33: 3086 | K33: 0 | L33: 212
A34: 22 | B34: 3183 | C34: 24 | D34: 3186 | E34: 23 | F34: 3191 | K34: 0 | L34: 222
A35: 11 | B35: 3300 | C35: 11 | D35: 3306 | E35: 21 | F35: 3311 | K35: 0 | L35: 112
A36: 22 | B36: 3405 | C36: 13 | D36: 3410 | E36: 23 | F36: 3422 | K36: 0 | L36: 212
A37: 22 | B37: 3520 | C37: 13 | D37: 3525 | E37: 23 | F37: 3527 | K37: 0 | L37: 212
A38: 11 | B38: 3631 | C38: 11 | D38: 3639 | E38: 21 | F38: 3647 | K38: 0 | L38: 112
A39: 22 | B39: 3743 | C39: 24 | D39: 3748 | E39: 23 | F39: 3760 | K39: 0 | L39: 222
A40: 11 | B40: 3866 | C40: 22 | D40: 3876 | E40: 23 | F40: 3883 | K40: 0 | L40: 122
A41: 11 | B41: 3976 | C41: 22 | D41: 3980 | E41: 14 | F41: 3983 | K41: 0 | L41: 121
A42: 22 | B42: 4087 | C42: 13 | D42: 4091 | E42: 23 | F42: 4106 | K42: 0 | L42: 212
A43: 22 | B43: 4210 | C43: 13 | D43: 4217 | E43: 23 | F43: 4222 | K43: 0 | L43: 212
A44: 22 | B44: 4326 | C44: 24 | D44: 4331 | E44: 14 | F44: 4335 | K44: 0 | L44: 221
A45: 11 | B45: 4437 | C45: 11 | D45: 4440 | E45: 12 | F45: 4451 | K45: 0 | L45: 111
A46: 22 | B46: 4545 | C46: 13 | D46: 4555 | E46: 14 | F46: 4558 | K46: 0 | L46: 211
A47: 22 | B47: 4663 | C47: 13 | D47: 4667 | E47: 23 | F47: 4669 | K47: 0 | L47: 212
A48: 22 | B48: 4773 | C48: 13 | D48: 4777 | E48: 23 | F48: 4783 | K48: 0 | L48: 212
A49: 22 | B49: 4879 | C49: 13 | D49: 4883 | E49: 23 | F49: 4893 | K49: 0 | L49: 212
A50: 22 | B50: 4996 | C50: 13 | D50: 4998 | E50: 23 | F50: 5002 | K50: 0 | L50: 212
A51: 22 | B51: 5100 | C51: 13 | D51: 5103 | E51: 23 | F51: 5111 | K51: 0 | L51: 212
A52: 22 | B52: 5204 | C52: 24 | D52: 5206 | E52: 23 | F52: 5215 | K52: 0 | L52: 222
A53: 22 | B53: 5308 | C53: 24 | D53: 5315 | E53: 14 | F53: 5317 | K53: 0 | L53: 221
A54: 22 | B54: 5414 | C54: 13 | D54: 5418 | E54: 23 | F54: 5421 | K54: 0 | L54: 212
A55: 22 | B55: 5533 | C55: 13 | D55: 5545 | E55: 23 | F55: 5554 | K55: 0 | L55: 212
A56: 22 | B56: 5652 | C56: 13 | D56: 5654 | E56: 23 | F56: 5656 | K56: 0 | L56: 212
A57: 22 | B57: 5751 | C57: 24 | D57: 5765 | E57: 14 | F57: 5766 | K57: 0 | L57: 221
A58: 22 | B58: 5870 | C58: 13 | D58: 5874 | E58: 23 | F58: 5879 | K58: 0 | L58: 212
A59: 11 | B59: 5973 | C59: 22 | D59: 5984 | E59: 23 | F59: 5986 | K59: 0 | L59: 122
A60: 11 | B60: 6083 | C60: 22 | D60: 6086 | E60: 14 | F60: 6091 | K60: 0 | L60: 121
A61: 11 | B61: 6187 | C61: 22 | D61: 6194 | E61: 14 | F61: 6198 | K61: 0 | L61: 121
A62: 22 | B62: 6293 | C62: 24 | D62: 6301 | E62: 14 | F62: 6304 | K62: 0 | L62: 221
A63: 22 | B63: 6402 | C63: 24 | D63: 6408 | E63: 14 | F63: 6410 | K63: 0 | L63: 221
A64: 22 | B64: 6502 | C64: 24 | D64: 6508 | E64: 14 | F64: 6511 | K64: 0 | L64: 221
A65: 11 | B65: 6616 | C65: 11 | D65: 6624 | E65: 21 | F65: 6638 | K65: 0 | L65: 112
A66: 22 | B66: 6730 | C66: 13 | D66: 6738 | E66: 23 | F66: 6746 | K66: 0 | L66: 212
A67: 22 | B67: 6857 | C67: 13 | D67: 6859 | E67: 23 | F67: 6869 | K67: 0 | L67: 212
A68: 11 | B68: 6974 | C68: 22 | D68: 6979 | E68: 23 | F68: 6985 | K68: 0 | L68: 122
A69: 22 | B69: 7086 | C69: 13 | D69: 7092 | E69: 23 | F69: 7099 | K69: 0 | L69: 212
A70: 11 | B70: 7202 | C70: 22 | D70: 7205 | E70: 14 | F70: 7211 | K70: 0 | L70: 121
A71: 11 | B71: 7304 | C71: 22 | D71: 7347 | E71: 23 | F71: 7352 | K71: 0 | L71: 122
A72: 11 | B72: 7449 | C72: 11 | D72: 7463 | E72: 21 | F72: 7471 | K72: 0 | L72: 112
A73: 22 | B73: 7564 | C73: 13 | D73: 7569 | E73: 23 | F73: 7577 | K73: 0 | L73: 212
A74: 22 | B74: 7675 | C74: 13 | D74: 7679 | E74: 23 | F74: 7685 | K74: 0 | L74: 212
A75: 11 | B75: 7781 | C75: 22 | D75: 7790 | E75: 23 | F75: 7801 | K75: 0 | L75: 122
A76: 22 | B76: 7903 | C76: 24 | D76: 7908 | E76: 23 | F76: 7914 | K76: 0 | L76: 222
A77: 11 | B77: 8008 | C77: 22 | D77: 8011 | E77: 14 | F77: 8014 | K77: 0 | L77: 121
A78: 22 | B78: 8109 | C78: 24 | D78: 8121 | E78: 14 | F78: 8123 | K78: 0 | L78: 221
A79: 22 | B79: 8221 | C79: 13 | D79: 8226 | E79: 23 | F79: 8238 | K79: 0 | L79: 212
A80: 11 | B80: 8333 | C80: 22 | D80: 8335 | E80: 23 | F80: 8337 | K80: 0 | L80: 122
A81: 11 | B81: 8431 | C81: 22 | D81: 8435 | E81: 14 | F81: 8438 | K81: 0 | L81: 121
A82: 11 | B82: 8539 | C82: 11 | D82: 8545 | E82: 21 | F82: 8554 | K82: 0 | L82: 112
A83: 22 | B83: 8641 | C83: 24 | D83: 8648 | E83: 23 | F83: 8654 | K83: 0 | L83: 222
A84: 22 | B84: 8765 | C84: 24 | D84: 8771 | E84: 23 | F84: 8777 | K84: 0 | L84: 222
A85: 22 | B85: 8876 | C85: 24 | D85: 8880 | E85: 14 | F85: 8890 | K85: 0 | L85: 221
A86: 22 | B86: 8986 | C86: 13 | D86: 8993 | E86: 23 | F86: 9000 | K86: 0 | L86: 212
A87: 22 | B87: 9098 | C87: 13 | D87: 9101 | E87: 23 | F87: 9110 | K87: 0 | L87: 212
A88: 22 | B88: 9218 | C88: 24 | D88: 9220 | E88: 23 | F88: 9224 | K88: 0 | L88: 222
A89: 11 | B89: 9316 | C89: 22 | D89: 9328 | E89: 14 | F89: 9331 | K89: 0 | L89: 121
A90: 11 | B90: 9425 | C90: 22 | D90: 9431 | E90: 23 | F90: 9434 | K90: 0 | L90: 122
A91: 22 | B91: 9532 | C91: 24 | D91: 9535 | E91: 23 | F91: 9545 | K91: 0 | L91: 222
A92: 11 | B92: 9652 | C92: 22 | D92: 9662 | E92: 23 | F92: 9668 | K92: 0 | L92: 122
A93: 11 | B93: 9762 | C93: 11 | D93: 9772 | E93: 21 | F93: 9778 | K93: 0 | L93: 112
A94: 22 | B94: 9879 | C94: 13 | D94: 9882 | E94: 23 | F94: 9892 | K94: 0 | L94: 212
A95: 11 | B95: 9985 | C95: 11 | D95: 9999 | E95: 21 | F95: 10014 | K95: 0 | L95: 112
A96: 22 | B96: 10101 | C96: 13 | D96: 10108 | E96: 23 | F96: 10114 | K96: 0 | L96: 212
A97: 11 | B97: 10224 | C97: 22 | D97: 10236 | E97: 23 | F97: 10249 | K97: 0 | L97: 122
A98: 22 | B98: 10361 | C98: 13 | D98: 10364 | E98: 23 | F98: 10366 | K98: 0 | L98: 212
A99: 22 | B99: 10471 | C99: 13 | D99: 10474 | E99: 23 | F99: 10477 | K99: 0 | L99: 212
A100: 22 | B100: 10576 | C100: 13 | D100: 10580 | E100: 23 | F100: 10589 | K100: 0 | L100: 212
A101: 22 | B101: 10686 | C101: 13 | D101: 10690 | E101: 23 | F101: 10695 | K101: 0 | L101: 212
A102: 22 | B102: 10792 | C102: 13 | D102: 10797 | E102: 23 | F102: 10802 | K102: 0 | L102: 212
A103: 22 | B103: 10899 | C103: 13 | D103: 10901 | E103: 23 | F103: 10905 | K103: 0 | L103: 212
A104: 11 | B104: 11011 | C104: 11 | D104: 11034 | E104: 21 | F104: 11043 | K104: 0 | L104: 112
A105: 22 | B105: 11131 | C105: 13 | D105: 11137 | E105: 23 | F105: 11141 | K105: 0 | L105: 212
A106: 22 | B106: 11239 | C106: 13 | D106: 11242 | E106: 23 | F106: 11252 | K106: 0 | L106: 212
A107: 22 | B107: 11362 | C107: 24 | D107: 11366 | E107: 23 | F107: 11379 | K107: 0 | L107: 222
A108: 22 | B108: 11477 | C108: 24 | D108: 11482 | E108: 23 | F108: 11487 | K108: 0 | L108: 222
A109: 22 | B109: 11591 | C109: 13 | D109: 11594 | E109: 23 | F109: 11599 | K109: 0 | L109: 212
A110: 11 | B110: 11702 | C110: 22 | D110: 11711 | E110: 23 | F110: 11716 | K110: 0 | L110: 122
A111: 11 | B111: 11820 | C111: 22 | D111: 11826 | E111: 23 | F111: 11832 | K111: 0 | L111: 122
A112: 11 | B112: 11934 | C112: 11 | D112: 11940 | E112: 21 | F112: 11947 | K112: 0 | L112: 112
A113: 22 | B113: 12035 | C113: 13 | D113: 12039 | E113: 23 | F113: 12047 | K113: 0 | L113: 212
A114: 22 | B114: 12145 | C114: 13 | D114: 12151 | E114: 23 | F114: 12158 | K114: 0 | L114: 212
A115: 11 | B115: 12260 | C115: 22 | D115: 12266 | E115: 23 | F115: 12272 | K115: 0 | L115: 122
A116: 11 | B116: 12367 | C116: 22 | D116: 12375 | E116: 23 | F116: 12381 | K116: 0 | L116: 122
A117: 11 | B117: 12484 | C117: 22 | D117: 12486 | E117: 23 | F117: 12496 | K117: 0 | L117: 122
A118: 11 | B118: 12590 | C118: 11 | D118: 12599 | E118: 21 | F118: 12604 | K118: 0 | L118: 112
A119: 22 | B119: 12723 | C119: 13 | D119: 12731 | E119: 23 | F119: 12738 | K119: 0 | L119: 212
A120: 22 | B120: 12838 | C120: 13 | D120: 12843 | E120: 23 | F120: 12851 | K120: 0 | L120: 212
A121: 22 | B121: 12948 | C121: 13 | D121: 12952 | E121: 23 | F121: 12955 | K121: 0 | L121: 212
A122: 11 | B122: 13058 | C122: 22 | D122: 13062 | E122: 23 | F122: 13067 | K122: 0 | L122: 122
A123: 22 | B123: 13165 | C123: 24 | D123: 13170 | E123: 23 | F123: 13175 | K123: 0 | L123: 222
A124: 22 | B124: 13274 | C124: 24 | D124: 13279 | E124: 23 | F124: 13286 | K124: 0 | L124: 222
A125: 22 | B125: 13384 | C125: 24 | D125: 13389 | E125: 14 | F125: 13391 | K125: 0 | L125: 221
A126: 22 | B126: 13626 | C126: 24 | D126: 13630 | E126: 23 | F126: 13634 | K126: 0 | L126: 222
A127: 11 | B127: 13728 | C127: 22 | D127: 13734 | E127: 14 | F127: 13737 | K127: 0 | L127: 121
A128: 22 | B128: 13838 | C128: 13 | D128: 13844 | E128: 23 | F128: 13846 | K128: 0 | L128: 212
A129: 22 | B129: 13947 | C129: 13 | D129: 13952 | E129: 23 | F129: 13954 | K129: 0 | L129: 212
A130: 22 | B130: 14060 | C130: 24 | D130: 14064 | E130: 23 | F130: 14074 | K130: 0 | L130: 222
A131: 22 | B131: 14189 | C131: 24 | D131: 14196 | E131: 23 | F131: 14205 | K131: 0 | L131: 222
A132: 22 | B132: 14356 | C132: 24 | D132: 14364 | E132: 23 | F132: 14370 | K132: 0 | L132: 222
A133: 11 | B133: 14523 | C133: 11 | D133: 14531 | E133: 21 | F133: 14549 | K133: 0 | L133: 112
A134: 22 | B134: 14640 | C134: 24 | D134: 14645 | E134: 23 | F134: 14696 | K134: 0 | L134: 222
A135: 22 | B135: 14794 | C135: 13 | D135: 14797 | E135: 23 | F135: 14801 | K135: 0 | L135: 212
A136: 11 | B136: 14893 | C136: 11 | D136: 14898 | E136: 12 | F136: 14908 | K136: 0 | L136: 111
A137: 11 | B137: 15011 | C137: 22 | D137: 15017 | E137: 23 | F137: 15023 | K137: 0 | L137: 122
A138: 11 | B138: 15125 | C138: 11 | D138: 15129 | E138: 21 | F138: 15145 | K138: 0 | L138: 112
A139: 22 | B139: 15376 | C139: 13 | D139: 15382 | E139: 23 | F139: 15392 | K139: 0 | L139: 212
A140: 11 | B140: 15487 | C140: 22 | D140: 15490 | E140: 23 | F140: 15496 | K140: 0 | L140: 122
A141: 11 | B141: 15595 | C141: 11 | D141: 15600 | E141: 21 | F141: 15605 | K141: 0 | L141: 112
A142: 22 | B142: 15709 | C142: 13 | D142: 15718 | E142: 23 | F142: 15724 | K142: 0 | L142: 212
A143: 11 | B143: 15827 | C143: 22 | D143: 15835 | E143: 23 | F143: 15842 | K143: 0 | L143: 122
A144: 22 | B144: 15937 | C144: 24 | D144: 15941 | E144: 14 | F144: 15944 | K144: 0 | L144: 221
A145: 22 | B145: 16045 | C145: 13 | D145: 16051 | E145: 23 | F145: 16057 | K145: 0 | L145: 212
A146: 11 | B146: 16158 | C146: 22 | D146: 16161 | E146: 23 | F146: 16176 | K146: 0 | L146: 122
A147: 11 | B147: 16277 | C147: 22 | D147: 16294 | E147: 23 | F147: 16299 | K147: 0 | L147: 122
A148: 11 | B148: 16402 | C148: 22 | D148: 16415 | E148: 23 | F148: 16420 | K148: 0 | L148: 122
A149: 22 | B149: 16526 | C149: 24 | D149: 16531 | E149: 23 | F149: 16537 | K149: 0 | L149: 222
A150: 11 | B150: 16654 | C150: 11 | D150: 16658 | E150: 21 | F150: 16672 | K150: 0 | L150: 112
A151: 22 | B151: 16780 | C151: 24 | D151: 16785 | E151: 23 | F151: 16788 | K151: 0 | L151: 222
A152: 22 | B152: 16894 | C152: 13 | D152: 16898 | E152: 23 | F152: 16909 | K152: 0 | L152: 212
A153: 11 | B153: 17007 | C153: 22 | D153: 17029 | E153: 23 | F153: 17035 | K153: 0 | L153: 122
A154: 11 | B154: 17138 | C154: 22 | D154: 17146 | E154: 23 | F154: 17156 | K154: 0 | L154: 122
A155: 11 | B155: 17270 | C155: 11 | D155: 17273 | E155: 12 | F155: 17276 | K155: 0 | L155: 111
A156: 22 | B156: 17366 | C156: 13 | D156: 17368 | E156: 23 | F156: 17370 | K156: 0 | L156: 212
A157: 11 | B157: 17469 | C157: 22 | D157: 17481 | E157: 23 | F157: 17487 | K157: 0 | L157: 122
A158: 22 | B158: 17586 | C158: 13 | D158: 17589 | E158: 23 | F158: 17595 | K158: 0 | L158: 212
A159: 22 | B159: 17687 | C159: 13 | D159: 17702 | E159: 23 | F159: 17707 | K159: 0 | L159: 212
A160: 11 | B160: 17814 | C160: 22 | D160: 17824 | E160: 23 | F160: 17830 | K160: 0 | L160: 122
A161: 22 | B161: 17931 | C161: 13 | D161: 17936 | E161: 23 | F161: 17941 | K161: 0 | L161: 212
A162: 11 | B162: 18047 | C162: 22 | D162: 18052 | E162: 23 | F162: 18057 | K162: 0 | L162: 122
A163: 11 | B163: 18167 | C163: 11 | D163: 18172 | E163: 21 | F163: 18178 | K163: 0 | L163: 112
A164: 22 | B164: 18287 | C164: 13 | D164: 18296 | E164: 23 | F164: 18303 | K164: 0 | L164: 212
A165: 11 | B165: 18401 | C165: 22 | D165: 18409 | E165: 14 | F165: 18422 | K165: 0 | L165: 121
A166: 11 | B166: 18525 | C166: 11 | D166: 18536 | E166: 21 | F166: 18541 | K166: 0 | L166: 112
A167: 22 | B167: 18637 | C167: 13 | D167: 18643 | E167: 23 | F167: 18650 | K167: 0 | L167: 212
A168: 11 | B168: 18744 | C168: 11 | D168: 18752 | E168: 21 | F168: 18755 | K168: 0 | L168: 112
A169: 22 | B169: 18923 | C169: 13 | D169: 18932 | E169: 23 | F169: 18939 | K169: 0 | L169: 212
A170: 11 | B170: 19050 | C170: 22 | D170: 19058 | E170: 23 | F170: 19067 | K170: 0 | L170: 122
A171: 11 | B171: 19164 | C171: 11 | D171: 19167 | E171: 12 | F171: 19172 | K171: 0 | L171: 111
A172: 11 | B172: 19282 | C172: 22 | D172: 19291 | E172: 14 | F172: 19304 | K172: 0 | L172: 121
A173: 22 | B173: 19403 | C173: 13 | D173: 19409 | E173: 23 | F173: 19414 | K173: 0 | L173: 212
A174: 11 | B174: 19525 | C174: 22 | D174: 19527 | E174: 23 | F174: 19534 | K174: 0 | L174: 122
A175: 22 | B175: 19631 | C175: 24 | D175: 19637 | E175: 14 | F175: 19641 | K175: 0 | L175: 221
A176: 11 | B176: 19732 | C176: 11 | D176: 19748 | E176: 12 | F176: 19755 | K176: 0 | L176: 111
A177: 22 | B177: 19857 | C177: 13 | D177: 19861 | E177: 23 | F177: 19868 | K177: 0 | L177: 212
A178: 11 | B178: 19970 | C178: 22 | D178: 19990 | E178: 23 | F178: 19996 | K178: 0 | L178: 122
A179: 11 | B179: 20091 | C179: 22 | D179: 20096 | E179: 23 | F179: 20101 | K179: 0 | L179: 122
A180: 11 | B180: 20199 | C180: 22 | D180: 20214 | E180: 23 | F180: 20220 | K180: 0 | L180: 122
A181: 22 | B181: 20320 | C181: 13 | D181: 20326 | E181: 23 | F181: 20331 | K181: 0 | L181: 212
A182: 11 | B182: 20424 | C182: 22 | D182: 20432 | E182: 14 | F182: 20435 | K182: 0 | L182: 121
A183: 22 | B183: 20577 | C183: 13 | D183: 20584 | E183: 23 | F183: 20592 | K183: 0 | L183: 212
A184: 11 | B184: 20708 | C184: 22 | D184: 20715 | E184: 23 | F184: 20721 | K184: 0 | L184: 122
A185: 11 | B185: 20820 | C185: 22 | D185: 20824 | E185: 14 | F185: 20832 | K185: 0 | L185: 121
A186: 11 | B186: 20937 | C186: 22 | D186: 20948 | E186: 23 | F186: 20954 | K186: 0 | L186: 122
A187: 11 | B187: 21056 | C187: 22 | D187: 21065 | E187: 23 | F187: 21074 | K187: 0 | L187: 122
A188: 11 | B188: 21173 | C188: 11 | D188: 21187 | E188: 21 | F188: 21195 | K188: 0 | L188: 112
A189: 22 | B189: 21394 | C189: 13 | D189: 21403 | E189: 23 | F189: 21409 | K189: 0 | L189: 212
A190: 22 | B190: 21513 | C190: 24 | D190: 21521 | E190: 23 | F190: 21531 | K190: 0 | L190: 222
A191: 11 | B191: 21629 | C191: 22 | D191: 21639 | E191: 23 | F191: 21644 | K191: 0 | L191: 122
A192: 11 | B192: 21746 | C192: 11 | D192: 21751 | E192: 21 | F192: 21758 | K192: 0 | L192: 112
A193: 22 | B193: 21850 | C193: 13 | D193: 21856 | E193: 23 | F193: 21862 | K193: 0 | L193: 212
A194: 11 | B194: 21967 | C194: 11 | D194: 21977 | E194: 21 | F194: 21983 | K194: 0 | L194: 112
A195: 22 | B195: 22206 | C195: 13 | D195: 22215 | E195: 23 | F195: 22231 | K195: 0 | L195: 212
A196: 22 | B196: 22333 | C196: 13 | D196: 22338 | E196: 23 | F196: 22345 | K196: 0 | L196: 212
A197: 11 | B197: 22440 | C197: 11 | D197: 22446 | E197: 21 | F197: 22456 | K197: 0 | L197: 112
A198: 22 | B198: 22617 | C198: 13 | D198: 22622 | E198: 23 | F198: 22628 | K198: 0 | L198: 212
A199: 11 | B199: 22724 | C199: 22 | D199: 22729 | E199: 23 | F199: 22736 | K199: 0 | L199: 122
A200: 11 | B200: 22830 | C200: 22 | D200: 22834 | E200: 23 | F200: 22839 | K200: 0 | L200: 122
... 10 more rows

Sheet !MC30940.Gus
A1: Report for:!MC30940.Gus
A2: Date: | B2: <date>
A3: Hen: | B3: <hen> | F3: Correct Sequence | G3: =Start!J2 -> 112 | P3: Total Sequences in Data | Q3: =4994-COUNTBLANK(L7:L5000) -> 183 | V3: Total Sequences in Block Data | W3: =COUNTA(L7:L37) -> 31 | AA3: Total Sequences in Block Data | AB3: =COUNTA(L38:L67) -> 30 | AF3: Total Sequences in Block Data | AG3: =COUNTA(L68:L98) -> 31 | AK3: Total Sequences in Block Data | AL3: =COUNTA(L99:L128) -> 30 | AP3: Total Sequences in Block Data | AQ3: =COUNTA(L129:L159) -> 31 | AU3: Total Sequences in Block Data | AV3: =COUNTA(L160:L189) -> 30
P4: Total Sequences in Summary | Q4: =SUM(O7:O14) -> 183 | V4: Total Sequences in Block Summary | W4: =SUM(U7:U14) -> 31 | AA4: Total Sequences in Block Summary | AB4: =SUM(Z7:Z14) -> 30 | AF4: Total Sequences in Block Summary | AG4: =SUM(AE7:AE14) -> 31 | AK4: Total Sequences in Block Summary | AL4: =SUM(AJ7:AJ14) -> 30 | AP4: Total Sequences in Block Summary | AQ4: =SUM(AO7:AO14) -> 31 | AU4: Total Sequences in Block Summary | AV4: =SUM(AT7:AT14) -> 30
T5: Block 1 | Y5: Block 2 | AD5: Block 3 | AI5: Block 4 | AN5: Block 5 | AS5: Block 6
A6: Sequence Component 1 | B6: Time 1 | C6: Sequence Component 2 | D6: Time 2 | E6: Sequence Component 3 | F6: Time 3 | G6: Sequence Component 4 | H6: Time 4 | I6: Sequence Component 5 | J6: Time 5 | K6: Correct? 0=No 1=Yes | L6: Sequence | N6: Frequency | P6: Relative Frequency | Q6: Variability | T6: Frequency | V6: Relative Frequency | W6: Variability | Y6: Frequency | AA6: Relative Frequency | AB6: Variability | AD6: Frequency | AF6: Relative Frequency | AG6: Variability | AI6: Frequency | AK6: Relative Frequency | AL6: Variability | AN6: Frequency | AP6: Relative Frequency | AQ6: Variability | AS6: Frequency | AU6: Relative Frequency | AV6: Variability
A7: 22 | B7: 24 | C7: 24 | D7: 30 | E7: 23 | F7: 38 | K7: 0 | L7: 222 | N7: 111 | O7: =COUNTIF($L$7:$L$500,N7) -> 18 | P7: =O7/$Q$4 -> 0.09836065574 | Q7: =IF(P7=0,0,(P7*((LOG(P7))/LOG(2)))) -> -0.3290926069 | T7: =N7 -> 111 | U7: =COUNTIF(L7:L37,T7) -> 0 | V7: =U7/(W4-U8) -> 0 | W7: =IF(V7=0,0,(V7*((LOG(V7))/LOG(2)))) -> 0 | Y7: =N7 -> 111 | Z7: =COUNTIF(L38:L67,Y7) -> 0 | AA7: =Z7/(AB4-Z8) -> 0 | AB7: =IF(AA7=0,0,(AA7*((LOG(AA7))/LOG(2)))) -> 0 | AD7: =N7 -> 111 | AE7: =COUNTIF(L68:L98,AD7) -> 3 | AF7: =AE7/(AG4-AE8) -> 0.1034482759 | AG7: =IF(AF7=0,0,(AF7*((LOG(AF7))/LOG(2)))) -> -0.3385881201 | AI7: =N7 -> 111 | AJ7: =COUNTIF(L99:L128,AI7) -> 0 | AK7: =AJ7/(AL4-AJ8) -> 0 | AL7: =IF(AK7=0,0,(AK7*((LOG(AK7))/LOG(2)))) -> 0 | AN7: =N7 -> 111 | AO7: =COUNTIF(L129:L159,AN7) -> 4 | AP7: =AO7/(AQ4-AO8) -> 0.16 | AQ7: =IF(AP7=0,0,(AP7*((LOG(AP7))/LOG(2)))) -> -0.4230169904 | AS7: =N7 -> 111 | AT7: =COUNTIF(L160:L189,AS7) -> 11 | AU7: =AT7/(AV4-AT8) -> 0.4230769231 | AV7: =IF(AU7=0,0,(AU7*((LOG(AU7))/LOG(2)))) -> -0.5250418883
A8: 11 | B8: 141 | C8: 22 | D8: 155 | E8: 23 | F8: 167 | K8: 0 | L8: 122 | N8: 112 | O8: 21 | P8: 0.1147540984 | Q8: -0.3584209329 | T8: 112 | U8: =COUNTIF(L7:L37,T8) -> 2 | Y8: 112 | Z8: =COUNTIF(L38:L67,Y8) -> 4 | AD8: 112 | AE8: =COUNTIF(L68:L98,AD8) -> 2 | AI8: 112 | AJ8: =COUNTIF(L99:L128,AI8) -> 3 | AN8: 112 | AO8: =COUNTIF(L129:L159,AN8) -> 6 | AS8: 112 | AT8: =COUNTIF(L160:L189,AS8) -> 4
A9: 11 | B9: 262 | C9: 22 | D9: 269 | E9: 14 | F9: 271 | K9: 0 | L9: 121 | N9: 121 | O9: 18 | P9: 0.09836065574 | Q9: -0.3290926069 | T9: 121 | U9: =COUNTIF(L7:L37,T9) -> 6 | V9: =U9/(W4-U8) -> 0.2068965517 | W9: =IF(V9=0,0,(V9*((LOG(V9))/LOG(2)))) -> -0.4702796885 | Y9: 121 | Z9: =COUNTIF(L38:L67,Y9) -> 2 | AA9: =Z9/(AB4-Z8) -> 0.07692307692 | AB9: =IF(AA9=0,0,(AA9*((LOG(AA9))/LOG(2)))) -> -0.2846492091 | AD9: 121 | AE9: =COUNTIF(L68:L98,AD9) -> 3 | AF9: =AE9/(AG4-AE8) -> 0.1034482759 | AG9: =IF(AF9=0,0,(AF9*((LOG(AF9))/LOG(2)))) -> -0.3385881201 | AI9: 121 | AJ9: =COUNTIF(L99:L128,AI9) -> 5 | AK9: =AJ9/(AL4-AJ8) -> 0.1851851852 | AL9: =IF(AK9=0,0,(AK9*((LOG(AK9))/LOG(2)))) -> -0.4505480384 | AN9: 121 | AO9: =COUNTIF(L129:L159,AN9) -> 1 | AP9: =AO9/(AQ4-AO8) -> 0.04 | AQ9: =IF(AP9=0,0,(AP9*((LOG(AP9))/LOG(2)))) -> -0.1857542476 | AS9: 121 | AT9: =COUNTIF(L160:L189,AS9) -> 1 | AU9: =AT9/(AV4-AT8) -> 0.03846153846 | AV9: =IF(AU9=0,0,(AU9*((LOG(AU9))/LOG(2)))) -> -0.180786143
A10: 22 | B10: 372 | C10: 13 | D10: 376 | E10: 23 | F10: 382 | K10: 0 | L10: 212 | N10: 122 | O10: 59 | P10: 0.3224043716 | Q10: -0.5265046478 | T10: 122 | U10: =COUNTIF(L7:L37,T10) -> 11 | V10: =U10/(W4-U8) -> 0.3793103448 | W10: -0.5304842463 | Y10: 122 | Z10: =COUNTIF(L38:L67,Y10) -> 9 | AA10: =Z10/(AB4-Z8) -> 0.3461538462 | AB10: -0.5297935558 | AD10: 122 | AE10: =COUNTIF(L68:L98,AD10) -> 10 | AF10: =AE10/(AG4-AE8) -> 0.3448275862 | AG10: -0.5296734139 | AI10: 122 | AJ10: =COUNTIF(L99:L128,AI10) -> 7 | AK10: =AJ10/(AL4-AJ8) -> 0.2592592593 | AL10: -0.5049158541 | AN10: 122 | AO10: =COUNTIF(L129:L159,AN10) -> 11 | AP10: =AO10/(AQ4-AO8) -> 0.44 | AQ10: -0.5211468113 | AS10: 122 | AT10: =COUNTIF(L160:L189,AS10) -> 11 | AU10: =AT10/(AV4-AT8) -> 0.4230769231 | AV10: -0.5250418883
A11: 11 | B11: 491 | C11: 22 | D11: 493 | E11: 23 | F11: 497 | K11: 0 | L11: 122 | N11: 211 | O11: 0 | P11: 0 | Q11: 0 | T11: 211 | U11: =COUNTIF(L7:L37,T11) -> 0 | V11: =U11/(W4-U8) -> 0 | W11: 0 | Y11: 211 | Z11: =COUNTIF(L38:L67,Y11) -> 0 | AA11: =Z11/(AB4-Z8) -> 0 | AB11: 0 | AD11: 211 | AE11: =COUNTIF(L68:L98,AD11) -> 0 | AF11: =AE11/(AG4-AE8) -> 0 | AG11: 0 | AI11: 211 | AJ11: =COUNTIF(L99:L128,AI11) -> 0 | AK11: =AJ11/(AL4-AJ8) -> 0 | AL11: 0 | AN11: 211 | AO11: =COUNTIF(L129:L159,AN11) -> 0 | AP11: =AO11/(AQ4-AO8) -> 0 | AQ11: 0 | AS11: 211 | AT11: =COUNTIF(L160:L189,AS11) -> 0 | AU11: =AT11/(AV4-AT8) -> 0 | AV11: 0
A12: 22 | B12: 601 | C12: 13 | D12: 603 | E12: 23 | F12: 607 | K12: 0 | L12: 212 | N12: 212 | O12: 39 | P12: 0.2131147541 | Q12: -0.4753093287 | T12: 212 | U12: =COUNTIF(L7:L37,T12) -> 6 | V12: =U12/(W4-U8) -> 0.2068965517 | W12: -0.4702796885 | Y12: 212 | Z12: =COUNTIF(L38:L67,Y12) -> 9 | AA12: =Z12/(AB4-Z8) -> 0.3461538462 | AB12: -0.5297935558 | AD12: 212 | AE12: =COUNTIF(L68:L98,AD12) -> 9 | AF12: =AE12/(AG4-AE8) -> 0.3103448276 | AG12: -0.5238794463 | AI12: 212 | AJ12: =COUNTIF(L99:L128,AI12) -> 9 | AK12: =AJ12/(AL4-AJ8) -> 0.3333333333 | AL12: -0.5283208336 | AN12: 212 | AO12: =COUNTIF(L129:L159,AN12) -> 6 | AP12: =AO12/(AQ4-AO8) -> 0.24 | AQ12: -0.4941344854 | AS12: 212 | AT12: =COUNTIF(L160:L189,AS12) -> 0 | AU12: =AT12/(AV4-AT8) -> 0 | AV12: 0
A13: 22 | B13: 706 | C13: 13 | D13: 708 | E13: 23 | F13: 722 | K13: 0 | L13: 212 | N13: 221 | O13: 7 | P13: 0.03825136612 | Q13: -0.1801006252 | T13: 221 | U13: =COUNTIF(L7:L37,T13) -> 1 | V13: =U13/(W4-U8) -> 0.03448275862 | W13: -0.167516586 | Y13: 221 | Z13: =COUNTIF(L38:L67,Y13) -> 0 | AA13: =Z13/(AB4-Z8) -> 0 | AB13: 0 | AD13: 221 | AE13: =COUNTIF(L68:L98,AD13) -> 1 | AF13: =AE13/(AG4-AE8) -> 0.03448275862 | AG13: -0.167516586 | AI13: 221 | AJ13: =COUNTIF(L99:L128,AI13) -> 2 | AK13: =AJ13/(AL4-AJ8) -> 0.07407407407 | AL13: -0.278139815 | AN13: 221 | AO13: =COUNTIF(L129:L159,AN13) -> 1 | AP13: =AO13/(AQ4-AO8) -> 0.04 | AQ13: -0.1857542476 | AS13: 221 | AT13: =COUNTIF(L160:L189,AS13) -> 2 | AU13: =AT13/(AV4-AT8) -> 0.07692307692 | AV13: -0.2846492091
A14: 22 | B14: 821 | C14: 24 | D14: 826 | E14: 23 | F14: 838 | K14: 0 | L14: 222 | N14: 222 | O14: 21 | P14: 0.1147540984 | Q14: -0.3584209329 | T14: 222 | U14: =COUNTIF(L7:L37,T14) -> 5 | V14: =U14/(W4-U8) -> 0.1724137931 | W14: -0.4372505 | Y14: 222 | Z14: =COUNTIF(L38:L67,Y14) -> 6 | AA14: =Z14/(AB4-Z8) -> 0.2307692308 | AB14: -0.4881870502 | AD14: 222 | AE14: =COUNTIF(L68:L98,AD14) -> 3 | AF14: =AE14/(AG4-AE8) -> 0.1034482759 | AG14: -0.3385881201 | AI14: 222 | AJ14: =COUNTIF(L99:L128,AI14) -> 4 | AK14: =AJ14/(AL4-AJ8) -> 0.1481481481 | AL14: -0.4081314818 | AN14: 222 | AO14: =COUNTIF(L129:L159,AN14) -> 2 | AP14: =AO14/(AQ4-AO8) -> 0.08 | AQ14: -0.2915084952 | AS14: 222 | AT14: =COUNTIF(L160:L189,AS14) -> 1 | AU14: =AT14/(AV4-AT8) -> 0.03846153846 | AV14: -0.180786143
A15: 11 | B15: 931 | C15: 11 | D15: 942 | E15: 21 | F15: 944 | K15: 0 | L15: 112 | P15: =SUM(P7:P14) -> 1 | Q15: =-SUM(Q7:Q14) -> 2.556941681 | V15: =SUM(V7:V14) -> 1 | W15: =-SUM(W7:W14) -> 2.075810709 | AA15: =SUM(AA7:AA14) -> 1 | AB15: =-SUM(AB7:AB14) -> 1.832423371 | AF15: =SUM(AF7:AF14) -> 1 | AG15: =-SUM(AG7:AG14) -> 2.236833807 | AK15: =SUM(AK7:AK14) -> 1 | AL15: =-SUM(AL7:AL14) -> 2.170056023 | AP15: =SUM(AP7:AP14) -> 1 | AQ15: =-SUM(AQ7:AQ14) -> 2.101315277 | AU15: =SUM(AU7:AU14) -> 1 | AV15: =-SUM(AV7:AV14) -> 1.696305272
A16: 22 | B16: 1033 | C16: 24 | D16: 1039 | E16: 23 | F16: 1047 | K16: 0 | L16: 222 | P16: U= | Q16: =Q15/(LOG(Q4)/LOG(2)) -> 0.3402133848 | V16: U1= | W16: =W15/(LOG(W4)/LOG(2)) -> 0.4190004956 | AA16: U2= | AB16: =AB15/(LOG(AB4)/LOG(2)) -> 0.3734388071 | AF16: U3= | AG16: =AG15/(LOG(AG4)/LOG(2)) -> 0.4515028607 | AK16: U4= | AL16: =AL15/(LOG(AL4)/LOG(2)) -> 0.4422466694 | AP16: U5= | AQ16: =AQ15/(LOG(AQ4)/LOG(2)) -> 0.4241485694 | AU16: U6= | AV16: =AV15/(LOG(AV4)/LOG(2)) -> 0.3456986127
A17: 22 | B17: 1146 | C17: 13 | D17: 1151 | E17: 23 | F17: 1164 | K17: 0 | L17: 212
A18: 11 | B18: 1275 | C18: 22 | D18: 1280 | E18: 23 | F18: 1286 | K18: 0 | L18: 122
A19: 22 | B19: 1386 | C19: 13 | D19: 1390 | E19: 23 | F19: 1395 | K19: 0 | L19: 212 | N19: Total Target Seq
A20: 11 | B20: 1495 | C20: 11 | D20: 1499 | E20: 21 | F20: 1507 | K20: 0 | L20: 112 | N20: =COUNTIF(L7:L189,G3) -> 21 | P20: 31 | Q20: 30 | R20: 31 | S20: 30 | T20: 31 | U20: 30
A21: 11 | B21: 1605 | C21: 22 | D21: 1607 | E21: 23 | F21: 1614 | K21: 0 | L21: 122 | P21: % of reinforcement given in 6 equal intervals based on number of trials
A22: 11 | B22: 1720 | C22: 22 | D22: 1726 | E22: 23 | F22: 1731 | K22: 0 | L22: 122 | P22: %_1 | Q22: %_2 | R22: %_3 | S22: %_4 | T22: %_5 | U22: %_6
A23: 22 | B23: 1920 | C23: 24 | D23: 1927 | E23: 23 | F23: 1962 | K23: 0 | L23: 222 | O23: target sequence | P23: =$G$3 -> 112 | Q23: 112 | R23: 112 | S23: 112 | T23: 112 | U23: 112
A24: 11 | B24: 2063 | C24: 22 | D24: 2073 | E24: 14 | F24: 2079 | K24: 0 | L24: 121 | O24: total reinforcement | P24: =U8 -> 2 | Q24: =Z8 -> 4 | R24: =AE8 -> 2 | S24: =AJ8 -> 3 | T24: =AO8 -> 6 | U24: =AT8 -> 4
A25: 11 | B25: 2186 | C25: 22 | D25: 2190 | E25: 23 | F25: 2197 | K25: 0 | L25: 122 | O25: % target
A26: 11 | B26: 2297 | C26: 22 | D26: 2307 | E26: 23 | F26: 2313 | K26: 0 | L26: 122 | O26: CCRF
A27: 11 | B27: 2416 | C27: 22 | D27: 2421 | E27: 14 | F27: 2427 | K27: 0 | L27: 121 | O27: % CCRf
A28: 11 | B28: 2546 | C28: 22 | D28: 2559 | E28: 23 | F28: 2565 | K28: 0 | L28: 122 | O28: average response rate | P28: =F37/P20 -> 116.1290323 | Q28: =(F67-F37)/Q20 -> 113.1333333 | R28: =(F98-F67)/R20 -> 114.3870968 | S28: =(F128-F98)/S20 -> 115.3666667 | T28: =(F159-F128)/T20 -> 122.6451613 | U28: =(F189-F159)/U20 -> 200.8
A29: 22 | B29: 2662 | C29: 13 | D29: 2666 | E29: 23 | F29: 2681 | K29: 0 | L29: 212
A30: 11 | B30: 2776 | C30: 22 | D30: 2787 | E30: 14 | F30: 2794 | K30: 0 | L30: 121
A31: 11 | B31: 2905 | C31: 22 | D31: 2916 | E31: 23 | F31: 2924 | K31: 0 | L31: 122
A32: 11 | B32: 3026 | C32: 22 | D32: 3028 | E32: 23 | F32: 3036 | K32: 0 | L32: 122
A33: 11 | B33: 3141 | C33: 22 | D33: 3149 | E33: 14 | F33: 3153 | K33: 0 | L33: 121
A34: 22 | B34: 3247 | C34: 24 | D34: 3258 | E34: 14 | F34: 3262 | K34: 0 | L34: 221
A35: 11 | B35: 3356 | C35: 22 | D35: 3360 | E35: 14 | F35: 3365 | K35: 0 | L35: 121
A36: 11 | B36: 3466 | C36: 22 | D36: 3479 | E36: 23 | F36: 3485 | K36: 0 | L36: 122
A37: 22 | B37: 3589 | C37: 24 | D37: 3593 | E37: 23 | F37: 3600 | K37: 0 | L37: 222
A38: 22 | B38: 3710 | C38: 24 | D38: 3714 | E38: 23 | F38: 3718 | K38: 0 | L38: 222
A39: 11 | B39: 3812 | C39: 22 | D39: 3817 | E39: 23 | F39: 3827 | K39: 0 | L39: 122
A40: 22 | B40: 3926 | C40: 13 | D40: 3931 | E40: 23 | F40: 3933 | K40: 0 | L40: 212
A41: 11 | B41: 4030 | C41: 22 | D41: 4033 | E41: 14 | F41: 4037 | K41: 0 | L41: 121
A42: 22 | B42: 4129 | C42: 24 | D42: 4136 | E42: 23 | F42: 4141 | K42: 0 | L42: 222
A43: 11 | B43: 4234 | C43: 22 | D43: 4240 | E43: 23 | F43: 4249 | K43: 0 | L43: 122
A44: 11 | B44: 4346 | C44: 11 | D44: 4354 | E44: 21 | F44: 4361 | K44: 0 | L44: 112
A45: 22 | B45: 4449 | C45: 13 | D45: 4453 | E45: 23 | F45: 4459 | K45: 0 | L45: 212
A46: 22 | B46: 4557 | C46: 13 | D46: 4560 | E46: 23 | F46: 4566 | K46: 0 | L46: 212
A47: 11 | B47: 4668 | C47: 11 | D47: 4678 | E47: 21 | F47: 4682 | K47: 0 | L47: 112
A48: 22 | B48: 4787 | C48: 24 | D48: 4790 | E48: 23 | F48: 4798 | K48: 0 | L48: 222
A49: 22 | B49: 4893 | C49: 24 | D49: 4902 | E49: 23 | F49: 4908 | K49: 0 | L49: 222
A50: 11 | B50: 5015 | C50: 22 | D50: 5025 | E50: 23 | F50: 5037 | K50: 0 | L50: 122
A51: 11 | B51: 5141 | C51: 11 | D51: 5147 | E51: 21 | F51: 5159 | K51: 0 | L51: 112
A52: 22 | B52: 5305 | C52: 13 | D52: 5309 | E52: 23 | F52: 5316 | K52: 0 | L52: 212
A53: 22 | B53: 5422 | C53: 24 | D53: 5427 | E53: 23 | F53: 5439 | K53: 0 | L53: 222
A54: 22 | B54: 5543 | C54: 13 | D54: 5546 | E54: 23 | F54: 5549 | K54: 0 | L54: 212
A55: 22 | B55: 5651 | C55: 24 | D55: 5653 | E55: 23 | F55: 5663 | K55: 0 | L55: 222
A56: 11 | B56: 5766 | C56: 22 | D56: 5768 | E56: 23 | F56: 5777 | K56: 0 | L56: 122
A57: 11 | B57: 5874 | C57: 22 | D57: 5880 | E57: 23 | F57: 5885 | K57: 0 | L57: 122
A58: 11 | B58: 5991 | C58: 22 | D58: 6003 | E58: 23 | F58: 6009 | K58: 0 | L58: 122
A59: 11 | B59: 6104 | C59: 22 | D59: 6108 | E59: 14 | F59: 6113 | K59: 0 | L59: 121
A60: 22 | B60: 6211 | C60: 13 | D60: 6215 | E60: 23 | F60: 6227 | K60: 0 | L60: 212
A61: 11 | B61: 6321 | C61: 11 | D61: 6333 | E61: 21 | F61: 6336 | K61: 0 | L61: 112
A62: 11 | B62: 6428 | C62: 22 | D62: 6433 | E62: 23 | F62: 6444 | K62: 0 | L62: 122
A63: 22 | B63: 6545 | C63: 13 | D63: 6556 | E63: 23 | F63: 6561 | K63: 0 | L63: 212
A64: 11 | B64: 6665 | C64: 22 | D64: 6672 | E64: 23 | F64: 6679 | K64: 0 | L64: 122
A65: 11 | B65: 6774 | C65: 22 | D65: 6783 | E65: 23 | F65: 6786 | K65: 0 | L65: 122
A66: 22 | B66: 6883 | C66: 13 | D66: 6885 | E66: 23 | F66: 6891 | K66: 0 | L66: 212
A67: 22 | B67: 6987 | C67: 13 | D67: 6990 | E67: 23 | F67: 6994 | K67: 0 | L67: 212
A68: 22 | B68: 7093 | C68: 13 | D68: 7096 | E68: 23 | F68: 7098 | K68: 0 | L68: 212
A69: 11 | B69: 7192 | C69: 22 | D69: 7195 | E69: 23 | F69: 7199 | K69: 0 | L69: 122
A70: 22 | B70: 7299 | C70: 24 | D70: 7305 | E70: 23 | F70: 7315 | K70: 0 | L70: 222
A71: 11 | B71: 7431 | C71: 22 | D71: 7437 | E71: 23 | F71: 7444 | K71: 0 | L71: 122
A72: 11 | B72: 7538 | C72: 22 | D72: 7552 | E72: 23 | F72: 7559 | K72: 0 | L72: 122
A73: 11 | B73: 7660 | C73: 11 | D73: 7666 | E73: 12 | F73: 7668 | K73: 0 | L73: 111
A74: 11 | B74: 7764 | C74: 11 | D74: 7767 | E74: 12 | F74: 7772 | K74: 0 | L74: 111
A75: 11 | B75: 7882 | C75: 22 | D75: 7892 | E75: 23 | F75: 7904 | K75: 0 | L75: 122
A76: 22 | B76: 8005 | C76: 13 | D76: 8008 | E76: 23 | F76: 8011 | K76: 0 | L76: 212
A77: 22 | B77: 8114 | C77: 13 | D77: 8117 | E77: 23 | F77: 8121 | K77: 0 | L77: 212
A78: 22 | B78: 8239 | C78: 24 | D78: 8244 | E78: 23 | F78: 8251 | K78: 0 | L78: 222
A79: 22 | B79: 8350 | C79: 24 | D79: 8356 | E79: 14 | F79: 8362 | K79: 0 | L79: 221
A80: 11 | B80: 8465 | C80: 22 | D80: 8472 | E80: 23 | F80: 8478 | K80: 0 | L80: 122
A81: 11 | B81: 8570 | C81: 11 | D81: 8581 | E81: 21 | F81: 8585 | K81: 0 | L81: 112
A82: 22 | B82: 8678 | C82: 13 | D82: 8685 | E82: 23 | F82: 8692 | K82: 0 | L82: 212
A83: 11 | B83: 8804 | C83: 22 | D83: 8808 | E83: 23 | F83: 8814 | K83: 0 | L83: 122
A84: 11 | B84: 8916 | C84: 22 | D84: 8921 | E84: 23 | F84: 8930 | K84: 0 | L84: 122
A85: 11 | B85: 9022 | C85: 22 | D85: 9032 | E85: 14 | F85: 9035 | K85: 0 | L85: 121
A86: 11 | B86: 9130 | C86: 22 | D86: 9135 | E86: 23 | F86: 9145 | K86: 0 | L86: 122
A87: 22 | B87: 9244 | C87: 13 | D87: 9248 | E87: 23 | F87: 9250 | K87: 0 | L87: 212
A88: 11 | B88: 9344 | C88: 22 | D88: 9349 | E88: 23 | F88: 9355 | K88: 0 | L88: 122
A89: 11 | B89: 9455 | C89: 11 | D89: 9465 | E89: 21 | F89: 9469 | K89: 0 | L89: 112
A90: 22 | B90: 9620 | C90: 13 | D90: 9627 | E90: 23 | F90: 9635 | K90: 0 | L90: 212
A91: 22 | B91: 9741 | C91: 13 | D91: 9745 | E91: 23 | F91: 9747 | K91: 0 | L91: 212
A92: 11 | B92: 9842 | C92: 22 | D92: 9859 | E92: 14 | F92: 9862 | K92: 0 | L92: 121
A93: 11 | B93: 9954 | C93: 22 | D93: 9969 | E93: 14 | F93: 9974 | K93: 0 | L93: 121
A94: 11 | B94: 10075 | C94: 22 | D94: 10083 | E94: 23 | F94: 10088 | K94: 0 | L94: 122
A95: 22 | B95: 10182 | C95: 24 | D95: 10191 | E95: 23 | F95: 10197 | K95: 0 | L95: 222
A96: 11 | B96: 10289 | C96: 11 | D96: 10297 | E96: 12 | F96: 10312 | K96: 0 | L96: 111
A97: 22 | B97: 10420 | C97: 13 | D97: 10423 | E97: 23 | F97: 10433 | K97: 0 | L97: 212
A98: 22 | B98: 10532 | C98: 13 | D98: 10535 | E98: 23 | F98: 10540 | K98: 0 | L98: 212
A99: 11 | B99: 10636 | C99: 22 | D99: 10642 | E99: 23 | F99: 10647 | K99: 0 | L99: 122
A100: 22 | B100: 10739 | C100: 24 | D100: 10750 | E100: 14 | F100: 10755 | K100: 0 | L100: 221
A101: 22 | B101: 10863 | C101: 13 | D101: 10869 | E101: 23 | F101: 10883 | K101: 0 | L101: 212
A102: 11 | B102: 10983 | C102: 11 | D102: 10988 | E102: 21 | F102: 11004 | K102: 0 | L102: 112
A103: 22 | B103: 11126 | C103: 24 | D103: 11141 | E103: 23 | F103: 11152 | K103: 0 | L103: 222
A104: 11 | B104: 11245 | C104: 22 | D104: 11252 | E104: 14 | F104: 11258 | K104: 0 | L104: 121
A105: 11 | B105: 11351 | C105: 22 | D105: 11356 | E105: 23 | F105: 11361 | K105: 0 | L105: 122
A106: 22 | B106: 11461 | C106: 24 | D106: 11466 | E106: 23 | F106: 11472 | K106: 0 | L106: 222
A107: 11 | B107: 11571 | C107: 22 | D107: 11585 | E107: 23 | F107: 11590 | K107: 0 | L107: 122
A108: 11 | B108: 11689 | C108: 11 | D108: 11691 | E108: 21 | F108: 11699 | K108: 0 | L108: 112
A109: 22 | B109: 11797 | C109: 13 | D109: 11805 | E109: 23 | F109: 11813 | K109: 0 | L109: 212
A110: 11 | B110: 11916 | C110: 22 | D110: 11922 | E110: 14 | F110: 11925 | K110: 0 | L110: 121
A111: 22 | B111: 12023 | C111: 13 | D111: 12025 | E111: 23 | F111: 12032 | K111: 0 | L111: 212
A112: 22 | B112: 12132 | C112: 13 | D112: 12137 | E112: 23 | F112: 12141 | K112: 0 | L112: 212
A113: 11 | B113: 12251 | C113: 22 | D113: 12254 | E113: 23 | F113: 12258 | K113: 0 | L113: 122
A114: 11 | B114: 12357 | C114: 11 | D114: 12368 | E114: 21 | F114: 12374 | K114: 0 | L114: 112
A115: 22 | B115: 12477 | C115: 13 | D115: 12491 | E115: 23 | F115: 12498 | K115: 0 | L115: 212
A116: 22 | B116: 12608 | C116: 24 | D116: 12616 | E116: 23 | F116: 12624 | K116: 0 | L116: 222
A117: 22 | B117: 12731 | C117: 13 | D117: 12733 | E117: 23 | F117: 12740 | K117: 0 | L117: 212
A118: 11 | B118: 12845 | C118: 22 | D118: 12859 | E118: 23 | F118: 12865 | K118: 0 | L118: 122
A119: 22 | B119: 12967 | C119: 13 | D119: 12970 | E119: 23 | F119: 12976 | K119: 0 | L119: 212
A120: 22 | B120: 13074 | C120: 24 | D120: 13079 | E120: 14 | F120: 13081 | K120: 0 | L120: 221
A121: 22 | B121: 13205 | C121: 13 | D121: 13214 | E121: 23 | F121: 13220 | K121: 0 | L121: 212
A122: 11 | B122: 13314 | C122: 22 | D122: 13318 | E122: 14 | F122: 13328 | K122: 0 | L122: 121
A123: 11 | B123: 13427 | C123: 22 | D123: 13432 | E123: 14 | F123: 13434 | K123: 0 | L123: 121
A124: 11 | B124: 13526 | C124: 22 | D124: 13534 | E124: 14 | F124: 13539 | K124: 0 | L124: 121
A125: 22 | B125: 13647 | C125: 13 | D125: 13650 | E125: 23 | F125: 13653 | K125: 0 | L125: 212
A126: 11 | B126: 13752 | C126: 22 | D126: 13766 | E126: 23 | F126: 13774 | K126: 0 | L126: 122
A127: 11 | B127: 13872 | C127: 22 | D127: 13881 | E127: 23 | F127: 13885 | K127: 0 | L127: 122
A128: 22 | B128: 13987 | C128: 24 | D128: 13991 | E128: 23 | F128: 14001 | K128: 0 | L128: 222
A129: 22 | B129: 14098 | C129: 13 | D129: 14101 | E129: 23 | F129: 14106 | K129: 0 | L129: 212
A130: 22 | B130: 14210 | C130: 24 | D130: 14214 | E130: 23 | F130: 14220 | K130: 0 | L130: 222
A131: 22 | B131: 14325 | C131: 13 | D131: 14329 | E131: 23 | F131: 14331 | K131: 0 | L131: 212
A132: 11 | B132: 14443 | C132: 11 | D132: 14446 | E132: 12 | F132: 14453 | K132: 0 | L132: 111
A133: 22 | B133: 14565 | C133: 24 | D133: 14572 | E133: 14 | F133: 14577 | K133: 0 | L133: 221
A134: 22 | B134: 14709 | C134: 24 | D134: 14716 | E134: 23 | F134: 14724 | K134: 0 | L134: 222
A135: 22 | B135: 14823 | C135: 13 | D135: 14826 | E135: 23 | F135: 14836 | K135: 0 | L135: 212
A136: 11 | B136: 14929 | C136: 22 | D136: 14936 | E136: 23 | F136: 14941 | K136: 0 | L136: 122
A137: 11 | B137: 15045 | C137: 22 | D137: 15050 | E137: 23 | F137: 15060 | K137: 0 | L137: 122
A138: 11 | B138: 15163 | C138: 22 | D138: 15170 | E138: 23 | F138: 15172 | K138: 0 | L138: 122
A139: 11 | B139: 15264 | C139: 22 | D139: 15280 | E139: 23 | F139: 15289 | K139: 0 | L139: 122
A140: 11 | B140: 15392 | C140: 11 | D140: 15400 | E140: 21 | F140: 15403 | K140: 0 | L140: 112
A141: 22 | B141: 15514 | C141: 13 | D141: 15521 | E141: 23 | F141: 15535 | K141: 0 | L141: 212
A142: 11 | B142: 15630 | C142: 22 | D142: 15634 | E142: 23 | F142: 15644 | K142: 0 | L142: 122
A143: 11 | B143: 15737 | C143: 22 | D143: 15741 | E143: 14 | F143: 15746 | K143: 0 | L143: 121
A144: 11 | B144: 15852 | C144: 22 | D144: 15855 | E144: 23 | F144: 15862 | K144: 0 | L144: 122
A145: 11 | B145: 15962 | C145: 22 | D145: 15970 | E145: 23 | F145: 15975 | K145: 0 | L145: 122
A146: 11 | B146: 16080 | C146: 11 | D146: 16088 | E146: 21 | F146: 16094 | K146: 0 | L146: 112
A147: 11 | B147: 16189 | C147: 22 | D147: 16195 | E147: 23 | F147: 16208 | K147: 0 | L147: 122
A148: 11 | B148: 16303 | C148: 22 | D148: 16314 | E148: 23 | F148: 16317 | K148: 0 | L148: 122
A149: 22 | B149: 16432 | C149: 13 | D149: 16435 | E149: 23 | F149: 16439 | K149: 0 | L149: 212
A150: 11 | B150: 16586 | C150: 11 | D150: 16604 | E150: 21 | F150: 16606 | K150: 0 | L150: 112
A151: 22 | B151: 16731 | C151: 13 | D151: 16737 | E151: 23 | F151: 16744 | K151: 0 | L151: 212
A152: 11 | B152: 16851 | C152: 11 | D152: 16855 | E152: 21 | F152: 16862 | K152: 0 | L152: 112
A153: 11 | B153: 17031 | C153: 11 | D153: 17047 | E153: 21 | F153: 17073 | K153: 0 | L153: 112
A154: 11 | B154: 17178 | C154: 11 | D154: 17183 | E154: 12 | F154: 17187 | K154: 0 | L154: 111
A155: 11 | B155: 17289 | C155: 11 | D155: 17291 | E155: 12 | F155: 17297 | K155: 0 | L155: 111
A156: 11 | B156: 17397 | C156: 22 | D156: 17409 | E156: 23 | F156: 17414 | K156: 0 | L156: 122
A157: 11 | B157: 17510 | C157: 11 | D157: 17513 | E157: 12 | F157: 17516 | K157: 0 | L157: 111
A158: 11 | B158: 17645 | C158: 11 | D158: 17667 | E158: 21 | F158: 17686 | K158: 0 | L158: 112
A159: 11 | B159: 17785 | C159: 22 | D159: 17801 | E159: 23 | F159: 17803 | K159: 0 | L159: 122
A160: 11 | B160: 17913 | C160: 11 | D160: 17917 | E160: 12 | F160: 17927 | K160: 0 | L160: 111
A161: 11 | B161: 18029 | C161: 22 | D161: 18032 | E161: 23 | F161: 18043 | K161: 0 | L161: 122
A162: 11 | B162: 18148 | C162: 22 | D162: 18153 | E162: 23 | F162: 18158 | K162: 0 | L162: 122
A163: 11 | B163: 18302 | C163: 22 | D163: 18304 | E163: 23 | F163: 18312 | K163: 0 | L163: 122
A164: 11 | B164: 18435 | C164: 11 | D164: 18439 | E164: 12 | F164: 18442 | K164: 0 | L164: 111
A165: 11 | B165: 18670 | C165: 11 | D165: 18678 | E165: 12 | F165: 18684 | K165: 0 | L165: 111
A166: 11 | B166: 18912 | C166: 22 | D166: 18926 | E166: 23 | F166: 18931 | K166: 0 | L166: 122
A167: 22 | B167: 19035 | C167: 24 | D167: 19039 | E167: 14 | F167: 19043 | K167: 0 | L167: 221
A168: 11 | B168: 19138 | C168: 22 | D168: 19144 | E168: 23 | F168: 19158 | K168: 0 | L168: 122
A169: 11 | B169: 19301 | C169: 11 | D169: 19307 | E169: 21 | F169: 19320 | K169: 0 | L169: 112
A170: 11 | B170: 19412 | C170: 11 | D170: 19424 | E170: 12 | F170: 19431 | K170: 0 | L170: 111
A171: 11 | B171: 19551 | C171: 22 | D171: 19557 | E171: 23 | F171: 19564 | K171: 0 | L171: 122
A172: 11 | B172: 19753 | C172: 11 | D172: 19766 | E172: 21 | F172: 19771 | K172: 0 | L172: 112
A173: 11 | B173: 19865 | C173: 11 | D173: 19889 | E173: 21 | F173: 19894 | K173: 0 | L173: 112
A174: 22 | B174: 20014 | C174: 24 | D174: 20020 | E174: 14 | F174: 20026 | K174: 0 | L174: 221
A175: 11 | B175: 20192 | C175: 11 | D175: 20198 | E175: 12 | F175: 20209 | K175: 0 | L175: 111
A176: 11 | B176: 20355 | C176: 11 | D176: 20361 | E176: 12 | F176: 20368 | K176: 0 | L176: 111
A177: 11 | B177: 20740 | C177: 11 | D177: 20746 | E177: 12 | F177: 20752 | K177: 0 | L177: 111
A178: 22 | B178: 22087 | C178: 24 | D178: 22094 | E178: 23 | F178: 22100 | K178: 0 | L178: 222
A179: 11 | B179: 22196 | C179: 22 | D179: 22212 | E179: 14 | F179: 22216 | K179: 0 | L179: 121
A180: 11 | B180: 22323 | C180: 22 | D180: 22333 | E180: 23 | F180: 22340 | K180: 0 | L180: 122
A181: 11 | B181: 22440 | C181: 11 | D181: 22447 | E181: 12 | F181: 22469 | K181: 0 | L181: 111
A182: 11 | B182: 22629 | C182: 11 | D182: 22639 | E182: 21 | F182: 22649 | K182: 0 | L182: 112
A183: 11 | B183: 22742 | C183: 22 | D183: 22749 | E183: 23 | F183: 22758 | K183: 0 | L183: 122
A184: 11 | B184: 22863 | C184: 22 | D184: 22871 | E184: 23 | F184: 22885 | K184: 0 | L184: 122
A185: 11 | B185: 22991 | C185: 22 | D185: 23010 | E185: 23 | F185: 23013 | K185: 0 | L185: 122
A186: 11 | B186: 23255 | C186: 22 | D186: 23264 | E186: 23 | F186: 23271 | K186: 0 | L186: 122
A187: 11 | B187: 23390 | C187: 11 | D187: 23393 | E187: 12 | F187: 23398 | K187: 0 | L187: 111
A188: 11 | B188: 23572 | C188: 11 | D188: 23578 | E188: 12 | F188: 23586 | K188: 0 | L188: 111
A189: 11 | B189: 23817 | C189: 11 | D189: 23820 | E189: 12 | F189: 23827 | K189: 0 | L189: 111

Sheet !MC31A00.Gus
A1: Report for:!MC31A00.Gus
A2: Date: | B2: <date>
A3: Hen: | B3: <hen> | F3: Correct Sequence | G3: =Start!J2 -> 112 | P3: Total Sequences in Data | Q3: =4994-COUNTBLANK(L7:L5000) -> 17 | V3: Total Sequences in Block Data | W3: =COUNTA(L7:L9) -> 3 | AA3: Total Sequences in Block Data | AB3: =COUNTA(L10:L12) -> 3 | AF3: Total Sequences in Block Data | AG3: =COUNTA(L13:L14) -> 2 | AK3: Total Sequences in Block Data | AL3: =COUNTA(L15:L17) -> 3 | AP3: Total Sequences in Block Data | AQ3: =COUNTA(L18:L20) -> 3 | AU3: Total Sequences in Block Data | AV3: =COUNTA(L21:L23) -> 3
P4: Total Sequences in Summary | Q4: =SUM(O7:O14) -> 17 | V4: Total Sequences in Block Summary | W4: =SUM(U7:U14) -> 3 | AA4: Total Sequences in Block Summary | AB4: =SUM(Z7:Z14) -> 3 | AF4: Total Sequences in Block Summary | AG4: =SUM(AE7:AE14) -> 2 | AK4: Total Sequences in Block Summary | AL4: =SUM(AJ7:AJ14) -> 3 | AP4: Total Sequences in Block Summary | AQ4: =SUM(AO7:AO14) -> 3 | AU4: Total Sequences in Block Summary | AV4: =SUM(AT7:AT14) -> 3
T5: Block 1 | Y5: Block 2 | AD5: Block 3 | AI5: Block 4 | AN5: Block 5 | AS5: Block 6
A6: Sequence Component 1 | B6: Time 1 | C6: Sequence Component 2 | D6: Time 2 | E6: Sequence Component 3 | F6: Time 3 | G6: Sequence Component 4 | H6: Time 4 | I6: Sequence Component 5 | J6: Time 5 | K6: Correct? 0=No 1=Yes | L6: Sequence | N6: Frequency | P6: Relative Frequency | Q6: Variability | T6: Frequency | V6: Relative Frequency | W6: Variability | Y6: Frequency | AA6: Relative Frequency | AB6: Variability | AD6: Frequency | AF6: Relative Frequency | AG6: Variability | AI6: Frequency | AK6: Relative Frequency | AL6: Variability | AN6: Frequency | AP6: Relative Frequency | AQ6: Variability | AS6: Frequency | AU6: Relative Frequency | AV6: Variability
A7: 11 | B7: 3 | C7: 11 | D7: 4 | E7: 12 | F7: 7 | K7: 0 | L7: 111 | N7: 111 | O7: =COUNTIF($L$7:$L$500,N7) -> 15 | P7: =O7/$Q$4 -> 0.8823529412 | Q7: =IF(P7=0,0,(P7*((LOG(P7))/LOG(2)))) -> -0.159328452 | T7: =N7 -> 111 | U7: =COUNTIF(L7:L9,T7) -> 1 | V7: =U7/(W4-U8) -> 0.3333333333 | W7: =IF(V7=0,0,(V7*((LOG(V7))/LOG(2)))) -> -0.5283208336 | Y7: =N7 -> 111 | Z7: =COUNTIF(L10:L12,Y7) -> 3 | AA7: =Z7/(AB4-Z8) -> 1 | AB7: =IF(AA7=0,0,(AA7*((LOG(AA7))/LOG(2)))) -> 0 | AD7: =N7 -> 111 | AE7: =COUNTIF(L13:L14,AD7) -> 2 | AF7: =AE7/(AG4-AE8) -> 1 | AG7: =IF(AF7=0,0,(AF7*((LOG(AF7))/LOG(2)))) -> 0 | AI7: =N7 -> 111 | AJ7: =COUNTIF(L15:L17,AI7) -> 3 | AK7: =AJ7/(AL4-AJ8) -> 1 | AL7: =IF(AK7=0,0,(AK7*((LOG(AK7))/LOG(2)))) -> 0 | AN7: =N7 -> 111 | AO7: =COUNTIF(L18:L20,AN7) -> 3 | AP7: =AO7/(AQ4-AO8) -> 1 | AQ7: =IF(AP7=0,0,(AP7*((LOG(AP7))/LOG(2)))) -> 0 | AS7: =N7 -> 111 | AT7: =COUNTIF(L21:L23,AS7) -> 3 | AU7: =AT7/(AV4-AT8) -> 1 | AV7: =IF(AU7=0,0,(AU7*((LOG(AU7))/LOG(2)))) -> 0
A8: 11 | B8: 108 | C8: 22 | D8: 116 | E8: 23 | F8: 126 | K8: 0 | L8: 122 | N8: 112 | O8: 0 | P8: 0 | Q8: 0 | T8: 112 | U8: =COUNTIF(L7:L9,T8) -> 0 | Y8: 112 | Z8: =COUNTIF(L10:L12,Y8) -> 0 | AD8: 112 | AE8: =COUNTIF(L13:L14,AD8) -> 0 | AI8: 112 | AJ8: =COUNTIF(L15:L17,AI8) -> 0 | AN8: 112 | AO8: =COUNTIF(L18:L20,AN8) -> 0 | AS8: 112 | AT8: =COUNTIF(L21:L23,AS8) -> 0
A9: 11 | B9: 223 | C9: 22 | D9: 234 | E9: 23 | F9: 241 | K9: 0 | L9: 122 | N9: 121 | O9: 0 | P9: 0 | Q9: 0 | T9: 121 | U9: =COUNTIF(L7:L9,T9) -> 0 | V9: =U9/(W4-U8) -> 0 | W9: =IF(V9=0,0,(V9*((LOG(V9))/LOG(2)))) -> 0 | Y9: 121 | Z9: =COUNTIF(L10:L12,Y9) -> 0 | AA9: =Z9/(AB4-Z8) -> 0 | AB9: =IF(AA9=0,0,(AA9*((LOG(AA9))/LOG(2)))) -> 0 | AD9: 121 | AE9: =COUNTIF(L13:L14,AD9) -> 0 | AF9: =AE9/(AG4-AE8) -> 0 | AG9: =IF(AF9=0,0,(AF9*((LOG(AF9))/LOG(2)))) -> 0 | AI9: 121 | AJ9: =COUNTIF(L15:L17,AI9) -> 0 | AK9: =AJ9/(AL4-AJ8) -> 0 | AL9: =IF(AK9=0,0,(AK9*((LOG(AK9))/LOG(2)))) -> 0 | AN9: 121 | AO9: =COUNTIF(L18:L20,AN9) -> 0 | AP9: =AO9/(AQ4-AO8) -> 0 | AQ9: =IF(AP9=0,0,(AP9*((LOG(AP9))/LOG(2)))) -> 0 | AS9: 121 | AT9: =COUNTIF(L21:L23,AS9) -> 0 | AU9: =AT9/(AV4-AT8) -> 0 | AV9: =IF(AU9=0,0,(AU9*((LOG(AU9))/LOG(2)))) -> 0
A10: 11 | B10: 348 | C10: 11 | D10: 350 | E10: 12 | F10: 351 | K10: 0 | L10: 111 | N10: 122 | O10: 2 | P10: 0.1176470588 | Q10: -0.3632309225 | T10: 122 | U10: =COUNTIF(L7:L9,T10) -> 2 | V10: =U10/(W4-U8) -> 0.6666666667 | W10: -0.3899750005 | Y10: 122 | Z10: =COUNTIF(L10:L12,Y10) -> 0 | AA10: =Z10/(AB4-Z8) -> 0 | AB10: 0 | AD10: 122 | AE10: =COUNTIF(L13:L14,AD10) -> 0 | AF10: =AE10/(AG4-AE8) -> 0 | AG10: 0 | AI10: 122 | AJ10: =COUNTIF(L15:L17,AI10) -> 0 | AK10: =AJ10/(AL4-AJ8) -> 0 | AL10: 0 | AN10: 122 | AO10: =COUNTIF(L18:L20,AN10) -> 0 | AP10: =AO10/(AQ4-AO8) -> 0 | AQ10: 0 | AS10: 122 | AT10: =COUNTIF(L21:L23,AS10) -> 0 | AU10: =AT10/(AV4-AT8) -> 0 | AV10: 0
A11: 11 | B11: 445 | C11: 11 | D11: 446 | E11: 12 | F11: 448 | K11: 0 | L11: 111 | N11: 211 | O11: 0 | P11: 0 | Q11: 0 | T11: 211 | U11: =COUNTIF(L7:L9,T11) -> 0 | V11: =U11/(W4-U8) -> 0 | W11: 0 | Y11: 211 | Z11: =COUNTIF(L10:L12,Y11) -> 0 | AA11: =Z11/(AB4-Z8) -> 0 | AB11: 0 | AD11: 211 | AE11: =COUNTIF(L13:L14,AD11) -> 0 | AF11: =AE11/(AG4-AE8) -> 0 | AG11: 0 | AI11: 211 | AJ11: =COUNTIF(L15:L17,AI11) -> 0 | AK11: =AJ11/(AL4-AJ8) -> 0 | AL11: 0 | AN11: 211 | AO11: =COUNTIF(L18:L20,AN11) -> 0 | AP11: =AO11/(AQ4-AO8) -> 0 | AQ11: 0 | AS11: 211 | AT11: =COUNTIF(L21:L23,AS11) -> 0 | AU11: =AT11/(AV4-AT8) -> 0 | AV11: 0
A12: 11 | B12: 555 | C12: 11 | D12: 560 | E12: 12 | F12: 564 | K12: 0 | L12: 111 | N12: 212 | O12: 0 | P12: 0 | Q12: 0 | T12: 212 | U12: =COUNTIF(L7:L9,T12) -> 0 | V12: =U12/(W4-U8) -> 0 | W12: 0 | Y12: 212 | Z12: =COUNTIF(L10:L12,Y12) -> 0 | AA12: =Z12/(AB4-Z8) -> 0 | AB12: 0 | AD12: 212 | AE12: =COUNTIF(L13:L14,AD12) -> 0 | AF12: =AE12/(AG4-AE8) -> 0 | AG12: 0 | AI12: 212 | AJ12: =COUNTIF(L15:L17,AI12) -> 0 | AK12: =AJ12/(AL4-AJ8) -> 0 | AL12: 0 | AN12: 212 | AO12: =COUNTIF(L18:L20,AN12) -> 0 | AP12: =AO12/(AQ4-AO8) -> 0 | AQ12: 0 | AS12: 212 | AT12: =COUNTIF(L21:L23,AS12) -> 0 | AU12: =AT12/(AV4-AT8) -> 0 | AV12: 0
A13: 11 | B13: 658 | C13: 11 | D13: 659 | E13: 12 | F13: 661 | K13: 0 | L13: 111 | N13: 221 | O13: 0 | P13: 0 | Q13: 0 | T13: 221 | U13: =COUNTIF(L7:L9,T13) -> 0 | V13: =U13/(W4-U8) -> 0 | W13: 0 | Y13: 221 | Z13: =COUNTIF(L10:L12,Y13) -> 0 | AA13: =Z13/(AB4-Z8) -> 0 | AB13: 0 | AD13: 221 | AE13: =COUNTIF(L13:L14,AD13) -> 0 | AF13: =AE13/(AG4-AE8) -> 0 | AG13: 0 | AI13: 221 | AJ13: =COUNTIF(L15:L17,AI13) -> 0 | AK13: =AJ13/(AL4-AJ8) -> 0 | AL13: 0 | AN13: 221 | AO13: =COUNTIF(L18:L20,AN13) -> 0 | AP13: =AO13/(AQ4-AO8) -> 0 | AQ13: 0 | AS13: 221 | AT13: =COUNTIF(L21:L23,AS13) -> 0 | AU13: =AT13/(AV4-AT8) -> 0 | AV13: 0
A14: 11 | B14: 754 | C14: 11 | D14: 756 | E14: 12 | F14: 758 | K14: 0 | L14: 111 | N14: 222 | O14: 0 | P14: 0 | Q14: 0 | T14: 222 | U14: =COUNTIF(L7:L9,T14) -> 0 | V14: =U14/(W4-U8) -> 0 | W14: 0 | Y14: 222 | Z14: =COUNTIF(L10:L12,Y14) -> 0 | AA14: =Z14/(AB4-Z8) -> 0 | AB14: 0 | AD14: 222 | AE14: =COUNTIF(L13:L14,AD14) -> 0 | AF14: =AE14/(AG4-AE8) -> 0 | AG14: 0 | AI14: 222 | AJ14: =COUNTIF(L15:L17,AI14) -> 0 | AK14: =AJ14/(AL4-AJ8) -> 0 | AL14: 0 | AN14: 222 | AO14: =COUNTIF(L18:L20,AN14) -> 0 | AP14: =AO14/(AQ4-AO8) -> 0 | AQ14: 0 | AS14: 222 | AT14: =COUNTIF(L21:L23,AS14) -> 0 | AU14: =AT14/(AV4-AT8) -> 0 | AV14: 0
A15: 11 | B15: 855 | C15: 11 | D15: 856 | E15: 12 | F15: 858 | K15: 0 | L15: 111 | P15: =SUM(P7:P14) -> 1 | Q15: =-SUM(Q7:Q14) -> 0.5225593745 | V15: =SUM(V7:V14) -> 1 | W15: =-SUM(W7:W14) -> 0.9182958341 | AA15: =SUM(AA7:AA14) -> 1 | AB15: =-SUM(AB7:AB14) -> 0 | AF15: =SUM(AF7:AF14) -> 1 | AG15: =-SUM(AG7:AG14) -> 0 | AK15: =SUM(AK7:AK14) -> 1 | AL15: =-SUM(AL7:AL14) -> 0 | AP15: =SUM(AP7:AP14) -> 1 | AQ15: =-SUM(AQ7:AQ14) -> 0 | AU15: =SUM(AU7:AU14) -> 1 | AV15: =-SUM(AV7:AV14) -> 0
A16: 11 | B16: 953 | C16: 11 | D16: 954 | E16: 12 | F16: 956 | K16: 0 | L16: 111 | P16: U= | Q16: =Q15/(LOG(Q4)/LOG(2)) -> 0.1278444343 | V16: U1= | W16: =W15/(LOG(W4)/LOG(2)) -> 0.5793801643 | AA16: U2= | AB16: =AB15/(LOG(AB4)/LOG(2)) -> 0 | AF16: U3= | AG16: =AG15/(LOG(AG4)/LOG(2)) -> 0 | AK16: U4= | AL16: =AL15/(LOG(AL4)/LOG(2)) -> 0 | AP16: U5= | AQ16: =AQ15/(LOG(AQ4)/LOG(2)) -> 0 | AU16: U6= | AV16: =AV15/(LOG(AV4)/LOG(2)) -> 0
A17: 11 | B17: 1063 | C17: 11 | D17: 1064 | E17: 12 | F17: 1066 | K17: 0 | L17: 111
A18: 11 | B18: 1159 | C18: 11 | D18: 1161 | E18: 12 | F18: 1163 | K18: 0 | L18: 111
A19: 11 | B19: 1272 | C19: 11 | D19: 1273 | E19: 12 | F19: 1275 | K19: 0 | L19: 111 | N19: Total Target Seq
A20: 11 | B20: 1371 | C20: 11 | D20: 1373 | E20: 12 | F20: 1374 | K20: 0 | L20: 111 | N20: =COUNTIF(L7:L23,G3) -> 0 | P20: 3 | Q20: 3 | R20: 2 | S20: 3 | T20: 3 | U20: 3
A21: 11 | B21: 1469 | C21: 11 | D21: 1471 | E21: 12 | F21: 1472 | K21: 0 | L21: 111 | P21: % of reinforcement given in 6 equal intervals based on number of trials
A22: 11 | B22: 1567 | C22: 11 | D22: 1569 | E22: 12 | F22: 1571 | K22: 0 | L22: 111 | P22: %_1 | Q22: %_2 | R22: %_3 | S22: %_4 | T22: %_5 | U22: %_6
A23: 11 | B23: 1670 | C23: 11 | D23: 1672 | E23: 12 | F23: 1674 | L23: 111 | O23: target sequence | P23: =$G$3 -> 112 | Q23: 112 | R23: 112 | S23: 112 | T23: 112 | U23: 112
O24: total reinforcement | P24: =U8 -> 0 | Q24: =Z8 -> 0 | R24: =AE8 -> 0 | S24: =AJ8 -> 0 | T24: =AO8 -> 0 | U24: =AT8 -> 0
O25: % target
O26: CCRF
O27: % CCRf
O28: average response rate | P28: =F9/P20 -> 80.33333333 | Q28: =(F12-F9)/Q20 -> 107.6666667 | R28: =(F14-F12)/R20 -> 97 | S28: =(F17-F14)/S20 -> 102.6666667 | T28: =(F20-F17)/T20 -> 102.6666667 | U28: =(F23-F20)/U20 -> 100

Sheet !N102930.Gus
A1: Report for:!N102930.Gus
A2: Date: | B2: <date>
A3: Hen: | B3: <hen> | F3: Correct Sequence | G3: =Start!J2 -> 112 | P3: Total Sequences in Data | Q3: =4994-COUNTBLANK(L7:L5000) -> 12 | V3: Total Sequences in Block Data | W3: =COUNTA(L7:L8) -> 2 | AA3: Total Sequences in Block Data | AB3: =COUNTA(L9:L10) -> 2 | AF3: Total Sequences in Block Data | AG3: =COUNTA(L11:L12) -> 2 | AK3: Total Sequences in Block Data | AL3: =COUNTA(L13:L14) -> 2 | AP3: Total Sequences in Block Data | AQ3: =COUNTA(L15:L16) -> 2 | AU3: Total Sequences in Block Data | AV3: =COUNTA(L17:L18) -> 2
P4: Total Sequences in Summary | Q4: =SUM(O7:O14) -> 12 | V4: Total Sequences in Block Summary | W4: =SUM(U7:U14) -> 2 | AA4: Total Sequences in Block Summary | AB4: =SUM(Z7:Z14) -> 2 | AF4: Total Sequences in Block Summary | AG4: =SUM(AE7:AE14) -> 2 | AK4: Total Sequences in Block Summary | AL4: =SUM(AJ7:AJ14) -> 2 | AP4: Total Sequences in Block Summary | AQ4: =SUM(AO7:AO14) -> 2 | AU4: Total Sequences in Block Summary | AV4: =SUM(AT7:AT14) -> 2
T5: Block 1 | Y5: Block 2 | AD5: Block 3 | AI5: Block 4 | AN5: Block 5 | AS5: Block 6
A6: Sequence Component 1 | B6: Time 1 | C6: Sequence Component 2 | D6: Time 2 | E6: Sequence Component 3 | F6: Time 3 | G6: Sequence Component 4 | H6: Time 4 | I6: Sequence Component 5 | J6: Time 5 | K6: Correct? 0=No 1=Yes | L6: Sequence | N6: Frequency | P6: Relative Frequency | Q6: Variability | T6: Frequency | V6: Relative Frequency | W6: Variability | Y6: Frequency | AA6: Relative Frequency | AB6: Variability | AD6: Frequency | AF6: Relative Frequency | AG6: Variability | AI6: Frequency | AK6: Relative Frequency | AL6: Variability | AN6: Frequency | AP6: Relative Frequency | AQ6: Variability | AS6: Frequency | AU6: Relative Frequency | AV6: Variability
A7: 11 | B7: 39 | C7: 22 | D7: 45 | E7: 23 | F7: 56 | K7: 0 | L7: 122 | N7: 111 | O7: =COUNTIF($L$7:$L$500,N7) -> 5 | P7: =O7/$Q$4 -> 0.4166666667 | Q7: =IF(P7=0,0,(P7*((LOG(P7))/LOG(2)))) -> -0.5262643358 | T7: =N7 -> 111 | U7: =COUNTIF(L7:L8,T7) -> 0 | V7: =U7/(W4-U8) -> 0 | W7: =IF(V7=0,0,(V7*((LOG(V7))/LOG(2)))) -> 0 | Y7: =N7 -> 111 | Z7: =COUNTIF(L9:L10,Y7) -> 0 | AA7: =Z7/(AB4-Z8) -> 0 | AB7: =IF(AA7=0,0,(AA7*((LOG(AA7))/LOG(2)))) -> 0 | AD7: =N7 -> 111 | AE7: =COUNTIF(L11:L12,AD7) -> 2 | AF7: =AE7/(AG4-AE8) -> 1 | AG7: =IF(AF7=0,0,(AF7*((LOG(AF7))/LOG(2)))) -> 0 | AI7: =N7 -> 111 | AJ7: =COUNTIF(L13:L14,AI7) -> 1 | AK7: =AJ7/(AL4-AJ8) -> 0.5 | AL7: =IF(AK7=0,0,(AK7*((LOG(AK7))/LOG(2)))) -> -0.5 | AN7: =N7 -> 111 | AO7: =COUNTIF(L15:L16,AN7) -> 0 | AP7: =AO7/(AQ4-AO8) -> 0 | AQ7: =IF(AP7=0,0,(AP7*((LOG(AP7))/LOG(2)))) -> 0 | AS7: =N7 -> 111 | AT7: =COUNTIF(L17:L18,AS7) -> 2 | AU7: =AT7/(AV4-AT8) -> 1 | AV7: =IF(AU7=0,0,(AU7*((LOG(AU7))/LOG(2)))) -> 0
A8: 11 | B8: 171 | C8: 22 | D8: 199 | E8: 23 | F8: 207 | K8: 0 | L8: 122 | N8: 112 | O8: 1 | P8: 0.08333333333 | Q8: -0.2987468751 | T8: 112 | U8: =COUNTIF(L7:L8,T8) -> 0 | Y8: 112 | Z8: =COUNTIF(L9:L10,Y8) -> 1 | AD8: 112 | AE8: =COUNTIF(L11:L12,AD8) -> 0 | AI8: 112 | AJ8: =COUNTIF(L13:L14,AI8) -> 0 | AN8: 112 | AO8: =COUNTIF(L15:L16,AN8) -> 0 | AS8: 112 | AT8: =COUNTIF(L17:L18,AS8) -> 0
A9: 11 | B9: 313 | C9: 11 | D9: 319 | E9: 21 | F9: 328 | K9: 0 | L9: 112 | N9: 121 | O9: 1 | P9: 0.08333333333 | Q9: -0.2987468751 | T9: 121 | U9: =COUNTIF(L7:L8,T9) -> 0 | V9: =U9/(W4-U8) -> 0 | W9: =IF(V9=0,0,(V9*((LOG(V9))/LOG(2)))) -> 0 | Y9: 121 | Z9: =COUNTIF(L9:L10,Y9) -> 0 | AA9: =Z9/(AB4-Z8) -> 0 | AB9: =IF(AA9=0,0,(AA9*((LOG(AA9))/LOG(2)))) -> 0 | AD9: 121 | AE9: =COUNTIF(L11:L12,AD9) -> 0 | AF9: =AE9/(AG4-AE8) -> 0 | AG9: =IF(AF9=0,0,(AF9*((LOG(AF9))/LOG(2)))) -> 0 | AI9: 121 | AJ9: =COUNTIF(L13:L14,AI9) -> 0 | AK9: =AJ9/(AL4-AJ8) -> 0 | AL9: =IF(AK9=0,0,(AK9*((LOG(AK9))/LOG(2)))) -> 0 | AN9: 121 | AO9: =COUNTIF(L15:L16,AN9) -> 1 | AP9: =AO9/(AQ4-AO8) -> 0.5 | AQ9: =IF(AP9=0,0,(AP9*((LOG(AP9))/LOG(2)))) -> -0.5 | AS9: 121 | AT9: =COUNTIF(L17:L18,AS9) -> 0 | AU9: =AT9/(AV4-AT8) -> 0 | AV9: =IF(AU9=0,0,(AU9*((LOG(AU9))/LOG(2)))) -> 0
A10: 22 | B10: 538 | C10: 13 | D10: 556 | E10: 23 | F10: 569 | K10: 0 | L10: 212 | N10: 122 | O10: 4 | P10: 0.3333333333 | Q10: -0.5283208336 | T10: 122 | U10: =COUNTIF(L7:L8,T10) -> 2 | V10: =U10/(W4-U8) -> 1 | W10: 0 | Y10: 122 | Z10: =COUNTIF(L9:L10,Y10) -> 0 | AA10: =Z10/(AB4-Z8) -> 0 | AB10: 0 | AD10: 122 | AE10: =COUNTIF(L11:L12,AD10) -> 0 | AF10: =AE10/(AG4-AE8) -> 0 | AG10: 0 | AI10: 122 | AJ10: =COUNTIF(L13:L14,AI10) -> 1 | AK10: =AJ10/(AL4-AJ8) -> 0.5 | AL10: -0.5 | AN10: 122 | AO10: =COUNTIF(L15:L16,AN10) -> 1 | AP10: =AO10/(AQ4-AO8) -> 0.5 | AQ10: -0.5 | AS10: 122 | AT10: =COUNTIF(L17:L18,AS10) -> 0 | AU10: =AT10/(AV4-AT8) -> 0 | AV10: 0
A11: 11 | B11: 724 | C11: 11 | D11: 732 | E11: 12 | F11: 736 | K11: 0 | L11: 111 | N11: 211 | O11: 0 | P11: 0 | Q11: 0 | T11: 211 | U11: =COUNTIF(L7:L8,T11) -> 0 | V11: =U11/(W4-U8) -> 0 | W11: 0 | Y11: 211 | Z11: =COUNTIF(L9:L10,Y11) -> 0 | AA11: =Z11/(AB4-Z8) -> 0 | AB11: 0 | AD11: 211 | AE11: =COUNTIF(L11:L12,AD11) -> 0 | AF11: =AE11/(AG4-AE8) -> 0 | AG11: 0 | AI11: 211 | AJ11: =COUNTIF(L13:L14,AI11) -> 0 | AK11: =AJ11/(AL4-AJ8) -> 0 | AL11: 0 | AN11: 211 | AO11: =COUNTIF(L15:L16,AN11) -> 0 | AP11: =AO11/(AQ4-AO8) -> 0 | AQ11: 0 | AS11: 211 | AT11: =COUNTIF(L17:L18,AS11) -> 0 | AU11: =AT11/(AV4-AT8) -> 0 | AV11: 0
A12: 11 | B12: 869 | C12: 11 | D12: 873 | E12: 12 | F12: 884 | K12: 0 | L12: 111 | N12: 212 | O12: 1 | P12: 0.08333333333 | Q12: -0.2987468751 | T12: 212 | U12: =COUNTIF(L7:L8,T12) -> 0 | V12: =U12/(W4-U8) -> 0 | W12: 0 | Y12: 212 | Z12: =COUNTIF(L9:L10,Y12) -> 1 | AA12: =Z12/(AB4-Z8) -> 1 | AB12: 0 | AD12: 212 | AE12: =COUNTIF(L11:L12,AD12) -> 0 | AF12: =AE12/(AG4-AE8) -> 0 | AG12: 0 | AI12: 212 | AJ12: =COUNTIF(L13:L14,AI12) -> 0 | AK12: =AJ12/(AL4-AJ8) -> 0 | AL12: 0 | AN12: 212 | AO12: =COUNTIF(L15:L16,AN12) -> 0 | AP12: =AO12/(AQ4-AO8) -> 0 | AQ12: 0 | AS12: 212 | AT12: =COUNTIF(L17:L18,AS12) -> 0 | AU12: =AT12/(AV4-AT8) -> 0 | AV12: 0
A13: 11 | B13: 1001 | C13: 22 | D13: 1009 | E13: 23 | F13: 1020 | K13: 0 | L13: 122 | N13: 221 | O13: 0 | P13: 0 | Q13: 0 | T13: 221 | U13: =COUNTIF(L7:L8,T13) -> 0 | V13: =U13/(W4-U8) -> 0 | W13: 0 | Y13: 221 | Z13: =COUNTIF(L9:L10,Y13) -> 0 | AA13: =Z13/(AB4-Z8) -> 0 | AB13: 0 | AD13: 221 | AE13: =COUNTIF(L11:L12,AD13) -> 0 | AF13: =AE13/(AG4-AE8) -> 0 | AG13: 0 | AI13: 221 | AJ13: =COUNTIF(L13:L14,AI13) -> 0 | AK13: =AJ13/(AL4-AJ8) -> 0 | AL13: 0 | AN13: 221 | AO13: =COUNTIF(L15:L16,AN13) -> 0 | AP13: =AO13/(AQ4-AO8) -> 0 | AQ13: 0 | AS13: 221 | AT13: =COUNTIF(L17:L18,AS13) -> 0 | AU13: =AT13/(AV4-AT8) -> 0 | AV13: 0
A14: 11 | B14: 1143 | C14: 11 | D14: 1147 | E14: 12 | F14: 1152 | K14: 0 | L14: 111 | N14: 222 | O14: 0 | P14: 0 | Q14: 0 | T14: 222 | U14: =COUNTIF(L7:L8,T14) -> 0 | V14: =U14/(W4-U8) -> 0 | W14: 0 | Y14: 222 | Z14: =COUNTIF(L9:L10,Y14) -> 0 | AA14: =Z14/(AB4-Z8) -> 0 | AB14: 0 | AD14: 222 | AE14: =COUNTIF(L11:L12,AD14) -> 0 | AF14: =AE14/(AG4-AE8) -> 0 | AG14: 0 | AI14: 222 | AJ14: =COUNTIF(L13:L14,AI14) -> 0 | AK14: =AJ14/(AL4-AJ8) -> 0 | AL14: 0 | AN14: 222 | AO14: =COUNTIF(L15:L16,AN14) -> 0 | AP14: =AO14/(AQ4-AO8) -> 0 | AQ14: 0 | AS14: 222 | AT14: =COUNTIF(L17:L18,AS14) -> 0 | AU14: =AT14/(AV4-AT8) -> 0 | AV14: 0
A15: 11 | B15: 1253 | C15: 22 | D15: 1290 | E15: 23 | F15: 1296 | K15: 0 | L15: 122 | P15: =SUM(P7:P14) -> 1 | Q15: =-SUM(Q7:Q14) -> 1.950825795 | V15: =SUM(V7:V14) -> 1 | W15: =-SUM(W7:W14) -> 0 | AA15: =SUM(AA7:AA14) -> 1 | AB15: =-SUM(AB7:AB14) -> 0 | AF15: =SUM(AF7:AF14) -> 1 | AG15: =-SUM(AG7:AG14) -> 0 | AK15: =SUM(AK7:AK14) -> 1 | AL15: =-SUM(AL7:AL14) -> 1 | AP15: =SUM(AP7:AP14) -> 1 | AQ15: =-SUM(AQ7:AQ14) -> 1 | AU15: =SUM(AU7:AU14) -> 1 | AV15: =-SUM(AV7:AV14) -> 0
A16: 11 | B16: 1398 | C16: 22 | D16: 1418 | E16: 14 | F16: 1424 | K16: 0 | L16: 121 | P16: U= | Q16: =Q15/(LOG(Q4)/LOG(2)) -> 0.5441690936 | V16: U1= | W16: =W15/(LOG(W4)/LOG(2)) -> 0 | AA16: U2= | AB16: =AB15/(LOG(AB4)/LOG(2)) -> 0 | AF16: U3= | AG16: =AG15/(LOG(AG4)/LOG(2)) -> 0 | AK16: U4= | AL16: =AL15/(LOG(AL4)/LOG(2)) -> 1 | AP16: U5= | AQ16: =AQ15/(LOG(AQ4)/LOG(2)) -> 1 | AU16: U6= | AV16: =AV15/(LOG(AV4)/LOG(2)) -> 0
A17: 11 | B17: 1521 | C17: 11 | D17: 1533 | E17: 12 | F17: 1573 | K17: 0 | L17: 111
A18: 11 | B18: 1665 | C18: 11 | D18: 1666 | E18: 12 | F18: 1668 | L18: 111
N19: Total Target Seq
N20: =COUNTIF(L7:L18,G3) -> 1 | P20: 2 | Q20: 2 | R20: 2 | S20: 2 | T20: 2 | U20: 2
P21: % of reinforcement given in 6 equal intervals based on number of trials
P22: %_1 | Q22: %_2 | R22: %_3 | S22: %_4 | T22: %_5 | U22: %_6
O23: target sequence | P23: =$G$3 -> 112 | Q23: 112 | R23: 112 | S23: 112 | T23: 112 | U23: 112
O24: total reinforcement | P24: =U8 -> 0 | Q24: =Z8 -> 1 | R24: =AE8 -> 0 | S24: =AJ8 -> 0 | T24: =AO8 -> 0 | U24: =AT8 -> 0
O25: % target
O26: CCRF
O27: % CCRf
O28: average response rate | P28: =F8/P20 -> 103.5 | Q28: =(F10-F8)/Q20 -> 181 | R28: =(F12-F10)/R20 -> 157.5 | S28: =(F14-F12)/S20 -> 134 | T28: =(F16-F14)/T20 -> 136 | U28: =(F18-F16)/U20 -> 122

Sheet !N103A10.Gus
A1: Report for:!N103A10.Gus
A2: Date: | B2: <date>
A3: Hen: | B3: <hen> | F3: Correct Sequence | G3: =Start!J2 -> 112 | P3: Total Sequences in Data | Q3: =4994-COUNTBLANK(L7:L5000) -> 152 | V3: Total Sequences in Block Data | W3: =COUNTA(L7:L31) -> 25 | AA3: Total Sequences in Block Data | AB3: =COUNTA(L32:L57) -> 26 | AF3: Total Sequences in Block Data | AG3: =COUNTA(L58:L82) -> 25 | AK3: Total Sequences in Block Data | AL3: =COUNTA(L83:L107) -> 25 | AP3: Total Sequences in Block Data | AQ3: =COUNTA(L108:L133) -> 26 | AU3: Total Sequences in Block Data | AV3: =COUNTA(L134:L158) -> 25
P4: Total Sequences in Summary | Q4: =SUM(O7:O14) -> 152 | V4: Total Sequences in Block Summary | W4: =SUM(U7:U14) -> 25 | AA4: Total Sequences in Block Summary | AB4: =SUM(Z7:Z14) -> 26 | AF4: Total Sequences in Block Summary | AG4: =SUM(AE7:AE14) -> 25 | AK4: Total Sequences in Block Summary | AL4: =SUM(AJ7:AJ14) -> 25 | AP4: Total Sequences in Block Summary | AQ4: =SUM(AO7:AO14) -> 26 | AU4: Total Sequences in Block Summary | AV4: =SUM(AT7:AT14) -> 25
T5: Block 1 | Y5: Block 2 | AD5: Block 3 | AI5: Block 4 | AN5: Block 5 | AS5: Block 6
A6: Sequence Component 1 | B6: Time 1 | C6: Sequence Component 2 | D6: Time 2 | E6: Sequence Component 3 | F6: Time 3 | G6: Sequence Component 4 | H6: Time 4 | I6: Sequence Component 5 | J6: Time 5 | K6: Correct? 0=No 1=Yes | L6: Sequence | N6: Frequency | P6: Relative Frequency | Q6: Variability | T6: Frequency | V6: Relative Frequency | W6: Variability | Y6: Frequency | AA6: Relative Frequency | AB6: Variability | AD6: Frequency | AF6: Relative Frequency | AG6: Variability | AI6: Frequency | AK6: Relative Frequency | AL6: Variability | AN6: Frequency | AP6: Relative Frequency | AQ6: Variability | AS6: Frequency | AU6: Relative Frequency | AV6: Variability
A7: 11 | B7: 35 | C7: 22 | D7: 45 | E7: 23 | F7: 48 | K7: 0 | L7: 122 | N7: 111 | O7: =COUNTIF($L$7:$L$500,N7) -> 6 | P7: =O7/$Q$4 -> 0.03947368421 | Q7: =IF(P7=0,0,(P7*((LOG(P7))/LOG(2)))) -> -0.1840644084 | T7: =N7 -> 111 | U7: =COUNTIF(L7:L31,T7) -> 3 | V7: =U7/(W4-U8) -> 0.1578947368 | W7: =IF(V7=0,0,(V7*((LOG(V7))/LOG(2)))) -> -0.4204681599 | Y7: =N7 -> 111 | Z7: =COUNTIF(L32:L57,Y7) -> 0 | AA7: =Z7/(AB4-Z8) -> 0 | AB7: =IF(AA7=0,0,(AA7*((LOG(AA7))/LOG(2)))) -> 0 | AD7: =N7 -> 111 | AE7: =COUNTIF(L58:L82,AD7) -> 2 | AF7: =AE7/(AG4-AE8) -> 0.08695652174 | AG7: =IF(AF7=0,0,(AF7*((LOG(AF7))/LOG(2)))) -> -0.3063966918 | AI7: =N7 -> 111 | AJ7: =COUNTIF(L83:L107,AI7) -> 1 | AK7: =AJ7/(AL4-AJ8) -> 0.04347826087 | AL7: =IF(AK7=0,0,(AK7*((LOG(AK7))/LOG(2)))) -> -0.1966766068 | AN7: =N7 -> 111 | AO7: =COUNTIF(L108:L133,AN7) -> 0 | AP7: =AO7/(AQ4-AO8) -> 0 | AQ7: =IF(AP7=0,0,(AP7*((LOG(AP7))/LOG(2)))) -> 0 | AS7: =N7 -> 111 | AT7: =COUNTIF(L134:L158,AS7) -> 0 | AU7: =AT7/(AV4-AT8) -> 0 | AV7: =IF(AU7=0,0,(AU7*((LOG(AU7))/LOG(2)))) -> 0
A8: 22 | B8: 145 | C8: 24 | D8: 150 | E8: 14 | F8: 152 | K8: 0 | L8: 221 | N8: 112 | O8: 17 | P8: 0.1118421053 | Q8: -0.3534730225 | T8: 112 | U8: =COUNTIF(L7:L31,T8) -> 6 | Y8: 112 | Z8: =COUNTIF(L32:L57,Y8) -> 1 | AD8: 112 | AE8: =COUNTIF(L58:L82,AD8) -> 2 | AI8: 112 | AJ8: =COUNTIF(L83:L107,AI8) -> 2 | AN8: 112 | AO8: =COUNTIF(L108:L133,AN8) -> 5 | AS8: 112 | AT8: =COUNTIF(L134:L158,AS8) -> 1
A9: 11 | B9: 245 | C9: 11 | D9: 256 | E9: 21 | F9: 267 | K9: 0 | L9: 112 | N9: 121 | O9: 7 | P9: 0.04605263158 | Q9: -0.2045000536 | T9: 121 | U9: =COUNTIF(L7:L31,T9) -> 1 | V9: =U9/(W4-U8) -> 0.05263157895 | W9: =IF(V9=0,0,(V9*((LOG(V9))/LOG(2)))) -> -0.2235751323 | Y9: 121 | Z9: =COUNTIF(L32:L57,Y9) -> 2 | AA9: =Z9/(AB4-Z8) -> 0.08 | AB9: =IF(AA9=0,0,(AA9*((LOG(AA9))/LOG(2)))) -> -0.2915084952 | AD9: 121 | AE9: =COUNTIF(L58:L82,AD9) -> 2 | AF9: =AE9/(AG4-AE8) -> 0.08695652174 | AG9: =IF(AF9=0,0,(AF9*((LOG(AF9))/LOG(2)))) -> -0.3063966918 | AI9: 121 | AJ9: =COUNTIF(L83:L107,AI9) -> 1 | AK9: =AJ9/(AL4-AJ8) -> 0.04347826087 | AL9: =IF(AK9=0,0,(AK9*((LOG(AK9))/LOG(2)))) -> -0.1966766068 | AN9: 121 | AO9: =COUNTIF(L108:L133,AN9) -> 1 | AP9: =AO9/(AQ4-AO8) -> 0.04761904762 | AQ9: =IF(AP9=0,0,(AP9*((LOG(AP9))/LOG(2)))) -> -0.2091579725 | AS9: 121 | AT9: =COUNTIF(L134:L158,AS9) -> 0 | AU9: =AT9/(AV4-AT8) -> 0 | AV9: =IF(AU9=0,0,(AU9*((LOG(AU9))/LOG(2)))) -> 0
A10: 11 | B10: 363 | C10: 22 | D10: 380 | E10: 23 | F10: 393 | K10: 0 | L10: 122 | N10: 122 | O10: 50 | P10: 0.3289473684 | Q10: -0.5276550407 | T10: 122 | U10: =COUNTIF(L7:L31,T10) -> 6 | V10: =U10/(W4-U8) -> 0.3157894737 | W10: -0.5251468461 | Y10: 122 | Z10: =COUNTIF(L32:L57,Y10) -> 6 | AA10: =Z10/(AB4-Z8) -> 0.24 | AB10: -0.4941344854 | AD10: 122 | AE10: =COUNTIF(L58:L82,AD10) -> 6 | AF10: =AE10/(AG4-AE8) -> 0.2608695652 | AG10: -0.505721597 | AI10: 122 | AJ10: =COUNTIF(L83:L107,AI10) -> 11 | AK10: =AJ10/(AL4-AJ8) -> 0.4782608696 | AL10: -0.5089319005 | AN10: 122 | AO10: =COUNTIF(L108:L133,AN10) -> 10 | AP10: =AO10/(AQ4-AO8) -> 0.4761904762 | AQ10: -0.5097092038 | AS10: 122 | AT10: =COUNTIF(L134:L158,AS10) -> 11 | AU10: =AT10/(AV4-AT8) -> 0.4583333333 | AV10: -0.515868321
A11: 11 | B11: 498 | C11: 11 | D11: 512 | E11: 21 | F11: 514 | K11: 0 | L11: 112 | N11: 211 | O11: 1 | P11: 0.006578947368 | Q11: -0.04768373364 | T11: 211 | U11: =COUNTIF(L7:L31,T11) -> 0 | V11: =U11/(W4-U8) -> 0 | W11: 0 | Y11: 211 | Z11: =COUNTIF(L32:L57,Y11) -> 0 | AA11: =Z11/(AB4-Z8) -> 0 | AB11: 0 | AD11: 211 | AE11: =COUNTIF(L58:L82,AD11) -> 0 | AF11: =AE11/(AG4-AE8) -> 0 | AG11: 0 | AI11: 211 | AJ11: =COUNTIF(L83:L107,AI11) -> 0 | AK11: =AJ11/(AL4-AJ8) -> 0 | AL11: 0 | AN11: 211 | AO11: =COUNTIF(L108:L133,AN11) -> 0 | AP11: =AO11/(AQ4-AO8) -> 0 | AQ11: 0 | AS11: 211 | AT11: =COUNTIF(L134:L158,AS11) -> 1 | AU11: =AT11/(AV4-AT8) -> 0.04166666667 | AV11: -0.1910401042
A12: 11 | B12: 602 | C12: 11 | D12: 608 | E12: 12 | F12: 621 | K12: 0 | L12: 111 | N12: 212 | O12: 37 | P12: 0.2434210526 | Q12: -0.4962075228 | T12: 212 | U12: =COUNTIF(L7:L31,T12) -> 4 | V12: =U12/(W4-U8) -> 0.2105263158 | W12: -0.4732478976 | Y12: 212 | Z12: =COUNTIF(L32:L57,Y12) -> 12 | AA12: =Z12/(AB4-Z8) -> 0.48 | AB12: -0.5082689707 | AD12: 212 | AE12: =COUNTIF(L58:L82,AD12) -> 6 | AF12: =AE12/(AG4-AE8) -> 0.2608695652 | AG12: -0.505721597 | AI12: 212 | AJ12: =COUNTIF(L83:L107,AI12) -> 6 | AK12: =AJ12/(AL4-AJ8) -> 0.2608695652 | AL12: -0.505721597 | AN12: 212 | AO12: =COUNTIF(L108:L133,AN12) -> 6 | AP12: =AO12/(AQ4-AO8) -> 0.2857142857 | AQ12: -0.5163871206 | AS12: 212 | AT12: =COUNTIF(L134:L158,AS12) -> 3 | AU12: =AT12/(AV4-AT8) -> 0.125 | AV12: -0.375
A13: 11 | B13: 722 | C13: 11 | D13: 726 | E13: 21 | F13: 746 | K13: 0 | L13: 112 | N13: 221 | O13: 7 | P13: 0.04605263158 | Q13: -0.2045000536 | T13: 221 | U13: =COUNTIF(L7:L31,T13) -> 2 | V13: =U13/(W4-U8) -> 0.1052631579 | W13: -0.3418871067 | Y13: 221 | Z13: =COUNTIF(L32:L57,Y13) -> 2 | AA13: =Z13/(AB4-Z8) -> 0.08 | AB13: -0.2915084952 | AD13: 221 | AE13: =COUNTIF(L58:L82,AD13) -> 0 | AF13: =AE13/(AG4-AE8) -> 0 | AG13: 0 | AI13: 221 | AJ13: =COUNTIF(L83:L107,AI13) -> 0 | AK13: =AJ13/(AL4-AJ8) -> 0 | AL13: 0 | AN13: 221 | AO13: =COUNTIF(L108:L133,AN13) -> 2 | AP13: =AO13/(AQ4-AO8) -> 0.09523809524 | AQ13: -0.3230778498 | AS13: 221 | AT13: =COUNTIF(L134:L158,AS13) -> 1 | AU13: =AT13/(AV4-AT8) -> 0.04166666667 | AV13: -0.1910401042
A14: 11 | B14: 920 | C14: 11 | D14: 924 | E14: 12 | F14: 926 | K14: 0 | L14: 111 | N14: 222 | O14: 27 | P14: 0.1776315789 | Q14: -0.4428426336 | T14: 222 | U14: =COUNTIF(L7:L31,T14) -> 3 | V14: =U14/(W4-U8) -> 0.1578947368 | W14: -0.4204681599 | Y14: 222 | Z14: =COUNTIF(L32:L57,Y14) -> 3 | AA14: =Z14/(AB4-Z8) -> 0.12 | AB14: -0.3670672427 | AD14: 222 | AE14: =COUNTIF(L58:L82,AD14) -> 7 | AF14: =AE14/(AG4-AE8) -> 0.3043478261 | AG14: -0.5223238799 | AI14: 222 | AJ14: =COUNTIF(L83:L107,AI14) -> 4 | AK14: =AJ14/(AL4-AJ8) -> 0.1739130435 | AL14: -0.4388803402 | AN14: 222 | AO14: =COUNTIF(L108:L133,AN14) -> 2 | AP14: =AO14/(AQ4-AO8) -> 0.09523809524 | AQ14: -0.3230778498 | AS14: 222 | AT14: =COUNTIF(L134:L158,AS14) -> 8 | AU14: =AT14/(AV4-AT8) -> 0.3333333333 | AV14: -0.5283208336
A15: 11 | B15: 1032 | C15: 22 | D15: 1051 | E15: 23 | F15: 1059 | K15: 0 | L15: 122 | P15: =SUM(P7:P14) -> 1 | Q15: =-SUM(Q7:Q14) -> 2.460926469 | V15: =SUM(V7:V14) -> 1 | W15: =-SUM(W7:W14) -> 2.404793302 | AA15: =SUM(AA7:AA14) -> 1 | AB15: =-SUM(AB7:AB14) -> 1.952487689 | AF15: =SUM(AF7:AF14) -> 1 | AG15: =-SUM(AG7:AG14) -> 2.146560458 | AK15: =SUM(AK7:AK14) -> 1 | AL15: =-SUM(AL7:AL14) -> 1.846887051 | AP15: =SUM(AP7:AP14) -> 1 | AQ15: =-SUM(AQ7:AQ14) -> 1.881409996 | AU15: =SUM(AU7:AU14) -> 1 | AV15: =-SUM(AV7:AV14) -> 1.801269363
A16: 11 | B16: 1160 | C16: 11 | D16: 1170 | E16: 21 | F16: 1174 | K16: 0 | L16: 112 | P16: U= | Q16: =Q15/(LOG(Q4)/LOG(2)) -> 0.3395351932 | V16: U1= | W16: =W15/(LOG(W4)/LOG(2)) -> 0.5178440512 | AA16: U2= | AB16: =AB15/(LOG(AB4)/LOG(2)) -> 0.4153840505 | AF16: U3= | AG16: =AG15/(LOG(AG4)/LOG(2)) -> 0.4622366348 | AK16: U4= | AL16: =AL15/(LOG(AL4)/LOG(2)) -> 0.3977054792 | AP16: U5= | AQ16: =AQ15/(LOG(AQ4)/LOG(2)) -> 0.4002625519 | AU16: U6= | AV16: =AV15/(LOG(AV4)/LOG(2)) -> 0.3878822447
A17: 11 | B17: 1463 | C17: 11 | D17: 1472 | E17: 21 | F17: 1488 | K17: 0 | L17: 112
A18: 11 | B18: 1757 | C18: 22 | D18: 1770 | E18: 23 | F18: 1782 | K18: 0 | L18: 122
A19: 11 | B19: 1880 | C19: 22 | D19: 1890 | E19: 23 | F19: 1898 | K19: 0 | L19: 122 | N19: Total Target Seq
A20: 22 | B20: 1996 | C20: 13 | D20: 1999 | E20: 23 | F20: 2002 | K20: 0 | L20: 212 | N20: =COUNTIF(L7:L158,G3) -> 17 | P20: 25 | Q20: 26 | R20: 25 | S20: 25 | T20: 26 | U20: 25
A21: 22 | B21: 2102 | C21: 24 | D21: 2113 | E21: 14 | F21: 2117 | K21: 0 | L21: 221 | P21: % of reinforcement given in 6 equal intervals based on number of trials
A22: 11 | B22: 2217 | C22: 22 | D22: 2228 | E22: 14 | F22: 2236 | K22: 0 | L22: 121 | P22: %_1 | Q22: %_2 | R22: %_3 | S22: %_4 | T22: %_5 | U22: %_6
A23: 22 | B23: 2461 | C23: 13 | D23: 2468 | E23: 23 | F23: 2482 | K23: 0 | L23: 212 | O23: target sequence | P23: =$G$3 -> 112 | Q23: 112 | R23: 112 | S23: 112 | T23: 112 | U23: 112
A24: 11 | B24: 2585 | C24: 11 | D24: 2588 | E24: 12 | F24: 2595 | K24: 0 | L24: 111 | O24: total reinforcement | P24: =U8 -> 6 | Q24: =Z8 -> 1 | R24: =AE8 -> 2 | S24: =AJ8 -> 2 | T24: =AO8 -> 5 | U24: =AT8 -> 1
A25: 11 | B25: 2698 | C25: 22 | D25: 2705 | E25: 23 | F25: 2713 | K25: 0 | L25: 122 | O25: % target
A26: 11 | B26: 2812 | C26: 11 | D26: 2816 | E26: 21 | F26: 2823 | K26: 0 | L26: 112 | O26: CCRF
A27: 22 | B27: 3009 | C27: 13 | D27: 3017 | E27: 23 | F27: 3025 | K27: 0 | L27: 212 | O27: % CCRf
A28: 22 | B28: 3127 | C28: 24 | D28: 3135 | E28: 23 | F28: 3141 | K28: 0 | L28: 222 | O28: average response rate | P28: =F31/P20 -> 148.56 | Q28: =(F57-F31)/Q20 -> 120.6538462 | R28: =(F82-F57)/R20 -> 115.72 | S28: =(F107-F82)/S20 -> 114.56 | T28: =(F133-F107)/T20 -> 163.4615385 | U28: =(F158-F133)/U20 -> 255.36
A29: 22 | B29: 3245 | C29: 24 | D29: 3256 | E29: 23 | F29: 3263 | K29: 0 | L29: 222
A30: 22 | B30: 3568 | C30: 24 | D30: 3577 | E30: 23 | F30: 3584 | K30: 0 | L30: 222
A31: 22 | B31: 3702 | C31: 13 | D31: 3707 | E31: 23 | F31: 3714 | K31: 0 | L31: 212
A32: 22 | B32: 3814 | C32: 13 | D32: 3821 | E32: 23 | F32: 3828 | K32: 0 | L32: 212
A33: 11 | B33: 3925 | C33: 22 | D33: 3928 | E33: 14 | F33: 3934 | K33: 0 | L33: 121
A34: 22 | B34: 4035 | C34: 13 | D34: 4038 | E34: 23 | F34: 4042 | K34: 0 | L34: 212
A35: 22 | B35: 4143 | C35: 24 | D35: 4147 | E35: 23 | F35: 4153 | K35: 0 | L35: 222
A36: 11 | B36: 4262 | C36: 22 | D36: 4264 | E36: 23 | F36: 4270 | K36: 0 | L36: 122
A37: 22 | B37: 4422 | C37: 13 | D37: 4428 | E37: 23 | F37: 4433 | K37: 0 | L37: 212
A38: 11 | B38: 4542 | C38: 22 | D38: 4561 | E38: 23 | F38: 4568 | K38: 0 | L38: 122
A39: 22 | B39: 4669 | C39: 24 | D39: 4676 | E39: 14 | F39: 4679 | K39: 0 | L39: 221
A40: 22 | B40: 4898 | C40: 13 | D40: 4901 | E40: 23 | F40: 4909 | K40: 0 | L40: 212
A41: 11 | B41: 5021 | C41: 22 | D41: 5022 | E41: 23 | F41: 5029 | K41: 0 | L41: 122
A42: 22 | B42: 5141 | C42: 24 | D42: 5147 | E42: 23 | F42: 5153 | K42: 0 | L42: 222
A43: 22 | B43: 5247 | C43: 24 | D43: 5249 | E43: 23 | F43: 5255 | K43: 0 | L43: 222
A44: 11 | B44: 5360 | C44: 22 | D44: 5371 | E44: 23 | F44: 5378 | K44: 0 | L44: 122
A45: 11 | B45: 5485 | C45: 22 | D45: 5489 | E45: 23 | F45: 5495 | K45: 0 | L45: 122
A46: 11 | B46: 5589 | C46: 22 | D46: 5591 | E46: 14 | F46: 5595 | K46: 0 | L46: 121
A47: 22 | B47: 5697 | C47: 13 | D47: 5699 | E47: 23 | F47: 5702 | K47: 0 | L47: 212
A48: 22 | B48: 5798 | C48: 13 | D48: 5804 | E48: 23 | F48: 5814 | K48: 0 | L48: 212
A49: 22 | B49: 5915 | C49: 13 | D49: 5919 | E49: 23 | F49: 5922 | K49: 0 | L49: 212
A50: 11 | B50: 6014 | C50: 11 | D50: 6020 | E50: 21 | F50: 6029 | K50: 0 | L50: 112
A51: 22 | B51: 6142 | C51: 13 | D51: 6148 | E51: 23 | F51: 6154 | K51: 0 | L51: 212
A52: 22 | B52: 6258 | C52: 13 | D52: 6263 | E52: 23 | F52: 6270 | K52: 0 | L52: 212
A53: 11 | B53: 6379 | C53: 22 | D53: 6380 | E53: 23 | F53: 6387 | K53: 0 | L53: 122
A54: 22 | B54: 6493 | C54: 13 | D54: 6496 | E54: 23 | F54: 6504 | K54: 0 | L54: 212
A55: 22 | B55: 6611 | C55: 13 | D55: 6616 | E55: 23 | F55: 6627 | K55: 0 | L55: 212
A56: 22 | B56: 6725 | C56: 13 | D56: 6732 | E56: 23 | F56: 6744 | K56: 0 | L56: 212
A57: 22 | B57: 6839 | C57: 24 | D57: 6847 | E57: 14 | F57: 6851 | K57: 0 | L57: 221
A58: 22 | B58: 6991 | C58: 24 | D58: 7002 | E58: 23 | F58: 7008 | K58: 0 | L58: 222
A59: 22 | B59: 7149 | C59: 24 | D59: 7164 | E59: 23 | F59: 7174 | K59: 0 | L59: 222
A60: 22 | B60: 7273 | C60: 13 | D60: 7280 | E60: 23 | F60: 7285 | K60: 0 | L60: 212
A61: 11 | B61: 7379 | C61: 22 | D61: 7384 | E61: 14 | F61: 7388 | K61: 0 | L61: 121
A62: 22 | B62: 7486 | C62: 24 | D62: 7496 | E62: 23 | F62: 7504 | K62: 0 | L62: 222
A63: 11 | B63: 7596 | C63: 22 | D63: 7599 | E63: 23 | F63: 7603 | K63: 0 | L63: 122
A64: 11 | B64: 7708 | C64: 22 | D64: 7710 | E64: 23 | F64: 7717 | K64: 0 | L64: 122
A65: 11 | B65: 7819 | C65: 22 | D65: 7827 | E65: 14 | F65: 7835 | K65: 0 | L65: 121
A66: 22 | B66: 7933 | C66: 24 | D66: 7938 | E66: 23 | F66: 7941 | K66: 0 | L66: 222
A67: 11 | B67: 8037 | C67: 22 | D67: 8046 | E67: 23 | F67: 8048 | K67: 0 | L67: 122
A68: 22 | B68: 8155 | C68: 13 | D68: 8158 | E68: 23 | F68: 8168 | K68: 0 | L68: 212
A69: 11 | B69: 8265 | C69: 22 | D69: 8271 | E69: 23 | F69: 8281 | K69: 0 | L69: 122
A70: 11 | B70: 8383 | C70: 11 | D70: 8386 | E70: 12 | F70: 8393 | K70: 0 | L70: 111
A71: 11 | B71: 8483 | C71: 11 | D71: 8488 | E71: 12 | F71: 8493 | K71: 0 | L71: 111
A72: 11 | B72: 8588 | C72: 11 | D72: 8592 | E72: 21 | F72: 8609 | K72: 0 | L72: 112
A73: 22 | B73: 8732 | C73: 13 | D73: 8738 | E73: 23 | F73: 8743 | K73: 0 | L73: 212
A74: 22 | B74: 8837 | C74: 13 | D74: 8838 | E74: 23 | F74: 8843 | K74: 0 | L74: 212
A75: 11 | B75: 8943 | C75: 22 | D75: 8954 | E75: 23 | F75: 8960 | K75: 0 | L75: 122
A76: 11 | B76: 9055 | C76: 22 | D76: 9058 | E76: 23 | F76: 9062 | K76: 0 | L76: 122
A77: 22 | B77: 9163 | C77: 13 | D77: 9166 | E77: 23 | F77: 9175 | K77: 0 | L77: 212
A78: 22 | B78: 9280 | C78: 13 | D78: 9283 | E78: 23 | F78: 9287 | K78: 0 | L78: 212
A79: 11 | B79: 9386 | C79: 11 | D79: 9395 | E79: 21 | F79: 9400 | K79: 0 | L79: 112
A80: 22 | B80: 9488 | C80: 24 | D80: 9496 | E80: 23 | F80: 9502 | K80: 0 | L80: 222
A81: 22 | B81: 9611 | C81: 24 | D81: 9620 | E81: 23 | F81: 9625 | K81: 0 | L81: 222
A82: 22 | B82: 9734 | C82: 24 | D82: 9739 | E82: 23 | F82: 9744 | K82: 0 | L82: 222
A83: 22 | B83: 9857 | C83: 24 | D83: 9862 | E83: 23 | F83: 9867 | K83: 0 | L83: 222
A84: 22 | B84: 9966 | C84: 13 | D84: 9969 | E84: 23 | F84: 9971 | K84: 0 | L84: 212
A85: 22 | B85: 10069 | C85: 13 | D85: 10074 | E85: 23 | F85: 10077 | K85: 0 | L85: 212
A86: 11 | B86: 10182 | C86: 22 | D86: 10185 | E86: 23 | F86: 10191 | K86: 0 | L86: 122
A87: 11 | B87: 10299 | C87: 11 | D87: 10307 | E87: 21 | F87: 10316 | K87: 0 | L87: 112
A88: 11 | B88: 10407 | C88: 22 | D88: 10414 | E88: 23 | F88: 10420 | K88: 0 | L88: 122
A89: 11 | B89: 10525 | C89: 22 | D89: 10534 | E89: 23 | F89: 10539 | K89: 0 | L89: 122
A90: 22 | B90: 10644 | C90: 13 | D90: 10648 | E90: 23 | F90: 10654 | K90: 0 | L90: 212
A91: 22 | B91: 10754 | C91: 13 | D91: 10758 | E91: 23 | F91: 10760 | K91: 0 | L91: 212
A92: 11 | B92: 10856 | C92: 22 | D92: 10858 | E92: 23 | F92: 10863 | K92: 0 | L92: 122
A93: 22 | B93: 10960 | C93: 13 | D93: 10966 | E93: 23 | F93: 10969 | K93: 0 | L93: 212
A94: 11 | B94: 11080 | C94: 22 | D94: 11087 | E94: 23 | F94: 11093 | K94: 0 | L94: 122
A95: 11 | B95: 11198 | C95: 22 | D95: 11203 | E95: 23 | F95: 11208 | K95: 0 | L95: 122
A96: 11 | B96: 11340 | C96: 11 | D96: 11344 | E96: 12 | F96: 11349 | K96: 0 | L96: 111
A97: 11 | B97: 11442 | C97: 11 | D97: 11452 | E97: 21 | F97: 11464 | K97: 0 | L97: 112
A98: 11 | B98: 11560 | C98: 22 | D98: 11573 | E98: 23 | F98: 11581 | K98: 0 | L98: 122
A99: 11 | B99: 11696 | C99: 22 | D99: 11703 | E99: 23 | F99: 11710 | K99: 0 | L99: 122
A100: 22 | B100: 11827 | C100: 24 | D100: 11833 | E100: 23 | F100: 11840 | K100: 0 | L100: 222
A101: 22 | B101: 11936 | C101: 24 | D101: 11942 | E101: 23 | F101: 11947 | K101: 0 | L101: 222
A102: 11 | B102: 12054 | C102: 22 | D102: 12059 | E102: 23 | F102: 12066 | K102: 0 | L102: 122
A103: 11 | B103: 12167 | C103: 22 | D103: 12177 | E103: 14 | F103: 12181 | K103: 0 | L103: 121
A104: 11 | B104: 12271 | C104: 22 | D104: 12273 | E104: 23 | F104: 12279 | K104: 0 | L104: 122
A105: 11 | B105: 12373 | C105: 22 | D105: 12378 | E105: 23 | F105: 12383 | K105: 0 | L105: 122
A106: 22 | B106: 12492 | C106: 24 | D106: 12497 | E106: 23 | F106: 12503 | K106: 0 | L106: 222
A107: 22 | B107: 12601 | C107: 13 | D107: 12605 | E107: 23 | F107: 12608 | K107: 0 | L107: 212
A108: 11 | B108: 12709 | C108: 22 | D108: 12724 | E108: 23 | F108: 12729 | K108: 0 | L108: 122
A109: 22 | B109: 12834 | C109: 24 | D109: 12838 | E109: 23 | F109: 12844 | K109: 0 | L109: 222
A110: 11 | B110: 12940 | C110: 22 | D110: 12942 | E110: 23 | F110: 12946 | K110: 0 | L110: 122
A111: 11 | B111: 13045 | C111: 22 | D111: 13058 | E111: 23 | F111: 13063 | K111: 0 | L111: 122
A112: 11 | B112: 13170 | C112: 22 | D112: 13185 | E112: 14 | F112: 13190 | K112: 0 | L112: 121
A113: 11 | B113: 13291 | C113: 11 | D113: 13299 | E113: 21 | F113: 13304 | K113: 0 | L113: 112
A114: 11 | B114: 13605 | C114: 22 | D114: 13619 | E114: 23 | F114: 13634 | K114: 0 | L114: 122
A115: 11 | B115: 13735 | C115: 22 | D115: 13747 | E115: 23 | F115: 13752 | K115: 0 | L115: 122
A116: 22 | B116: 13875 | C116: 13 | D116: 13879 | E116: 23 | F116: 13886 | K116: 0 | L116: 212
A117: 22 | B117: 13988 | C117: 13 | D117: 13992 | E117: 23 | F117: 13997 | K117: 0 | L117: 212
A118: 11 | B118: 14107 | C118: 22 | D118: 14124 | E118: 23 | F118: 14128 | K118: 0 | L118: 122
A119: 11 | B119: 14220 | C119: 11 | D119: 14233 | E119: 21 | F119: 14244 | K119: 0 | L119: 112
A120: 22 | B120: 14351 | C120: 13 | D120: 14359 | E120: 23 | F120: 14362 | K120: 0 | L120: 212
A121: 22 | B121: 14466 | C121: 24 | D121: 14476 | E121: 14 | F121: 14478 | K121: 0 | L121: 221
A122: 22 | B122: 14603 | C122: 13 | D122: 14608 | E122: 23 | F122: 14614 | K122: 0 | L122: 212
A123: 11 | B123: 14711 | C123: 22 | D123: 14721 | E123: 23 | F123: 14723 | K123: 0 | L123: 122
A124: 11 | B124: 14870 | C124: 11 | D124: 14874 | E124: 21 | F124: 14889 | K124: 0 | L124: 112
A125: 22 | B125: 15035 | C125: 13 | D125: 15042 | E125: 23 | F125: 15062 | K125: 0 | L125: 212
A126: 11 | B126: 15172 | C126: 22 | D126: 15180 | E126: 23 | F126: 15182 | K126: 0 | L126: 122
A127: 11 | B127: 15282 | C127: 11 | D127: 15293 | E127: 21 | F127: 15299 | K127: 0 | L127: 112
A128: 22 | B128: 15533 | C128: 13 | D128: 15538 | E128: 23 | F128: 15546 | K128: 0 | L128: 212
A129: 11 | B129: 15705 | C129: 22 | D129: 15715 | E129: 23 | F129: 15725 | K129: 0 | L129: 122
A130: 22 | B130: 16064 | C130: 24 | D130: 16074 | E130: 23 | F130: 16080 | K130: 0 | L130: 222
A131: 11 | B131: 16268 | C131: 11 | D131: 16279 | E131: 21 | F131: 16285 | K131: 0 | L131: 112
A132: 22 | B132: 16648 | C132: 24 | D132: 16662 | E132: 14 | F132: 16665 | K132: 0 | L132: 221
A133: 11 | B133: 16848 | C133: 22 | D133: 16852 | E133: 23 | F133: 16858 | K133: 0 | L133: 122
A134: 22 | B134: 17003 | C134: 24 | D134: 17009 | E134: 23 | F134: 17015 | K134: 0 | L134: 222
A135: 22 | B135: 17139 | C135: 24 | D135: 17141 | E135: 14 | F135: 17145 | K135: 0 | L135: 221
A136: 22 | B136: 17648 | C136: 24 | D136: 17652 | E136: 23 | F136: 17655 | K136: 0 | L136: 222
A137: 22 | B137: 17873 | C137: 24 | D137: 17878 | E137: 23 | F137: 17884 | K137: 0 | L137: 222
A138: 11 | B138: 18163 | C138: 22 | D138: 18176 | E138: 23 | F138: 18180 | K138: 0 | L138: 122
A139: 22 | B139: 18344 | C139: 24 | D139: 18348 | E139: 23 | F139: 18355 | K139: 0 | L139: 222
A140: 22 | B140: 18460 | C140: 24 | D140: 18466 | E140: 23 | F140: 18472 | K140: 0 | L140: 222
A141: 11 | B141: 18664 | C141: 22 | D141: 18672 | E141: 23 | F141: 18680 | K141: 0 | L141: 122
A142: 11 | B142: 18782 | C142: 22 | D142: 18786 | E142: 23 | F142: 18797 | K142: 0 | L142: 122
A143: 22 | B143: 18900 | C143: 13 | D143: 18902 | E143: 23 | F143: 18914 | K143: 0 | L143: 212
A144: 22 | B144: 19023 | C144: 24 | D144: 19031 | E144: 23 | F144: 19037 | K144: 0 | L144: 222
A145: 11 | B145: 19159 | C145: 22 | D145: 19164 | E145: 23 | F145: 19169 | K145: 0 | L145: 122
A146: 22 | B146: 19333 | C146: 13 | D146: 19336 | E146: 23 | F146: 19353 | K146: 0 | L146: 212
A147: 22 | B147: 19556 | C147: 13 | D147: 19578 | E147: 23 | F147: 19580 | K147: 0 | L147: 212
A148: 22 | B148: 19784 | C148: 13 | D148: 19786 | E148: 14 | F148: 19797 | K148: 0 | L148: 211
A149: 22 | B149: 19895 | C149: 24 | D149: 19900 | E149: 23 | F149: 19906 | K149: 0 | L149: 222
A150: 11 | B150: 20016 | C150: 11 | D150: 20025 | E150: 21 | F150: 20027 | K150: 0 | L150: 112
A151: 11 | B151: 20130 | C151: 22 | D151: 20136 | E151: 23 | F151: 20138 | K151: 0 | L151: 122
A152: 11 | B152: 20306 | C152: 22 | D152: 20323 | E152: 23 | F152: 20329 | K152: 0 | L152: 122
A153: 11 | B153: 20423 | C153: 22 | D153: 20436 | E153: 23 | F153: 20445 | K153: 0 | L153: 122
A154: 22 | B154: 20554 | C154: 24 | D154: 20569 | E154: 23 | F154: 20574 | K154: 0 | L154: 222
A155: 11 | B155: 20671 | C155: 22 | D155: 20676 | E155: 23 | F155: 20681 | K155: 0 | L155: 122
A156: 11 | B156: 21736 | C156: 22 | D156: 21747 | E156: 23 | F156: 21753 | K156: 0 | L156: 122
A157: 11 | B157: 22325 | C157: 22 | D157: 22341 | E157: 23 | F157: 22346 | K157: 0 | L157: 122
A158: 11 | B158: 23224 | C158: 22 | D158: 23236 | E158: 23 | F158: 23242 | K158: 0 | L158: 122

Sheet !N104B00.Gus
A1: Report for:!N104B00.Gus
A2: Date: | B2: <date>
A3: Hen: | B3: <hen> | F3: Correct Sequence | G3: =Start!J2 -> 112 | P3: Total Sequences in Data | Q3: =4994-COUNTBLANK(L7:L5000) -> 163 | V3: Total Sequences in Block Data | W3: =COUNTA(L7:L33) -> 27 | AA3: Total Sequences in Block Data | AB3: =COUNTA(L34:L60) -> 27 | AF3: Total Sequences in Block Data | AG3: =COUNTA(L61:L88) -> 28 | AK3: Total Sequences in Block Data | AL3: =COUNTA(L89:L115) -> 27 | AP3: Total Sequences in Block Data | AQ3: =COUNTA(L116:L142) -> 27 | AU3: Total Sequences in Block Data | AV3: =COUNTA(L143:L169) -> 27
P4: Total Sequences in Summary | Q4: =SUM(O7:O14) -> 163 | V4: Total Sequences in Block Summary | W4: =SUM(U7:U14) -> 27 | AA4: Total Sequences in Block Summary | AB4: =SUM(Z7:Z14) -> 27 | AF4: Total Sequences in Block Summary | AG4: =SUM(AE7:AE14) -> 28 | AK4: Total Sequences in Block Summary | AL4: =SUM(AJ7:AJ14) -> 27 | AP4: Total Sequences in Block Summary | AQ4: =SUM(AO7:AO14) -> 27 | AU4: Total Sequences in Block Summary | AV4: =SUM(AT7:AT14) -> 27
T5: Block 1 | Y5: Block 2 | AD5: Block 3 | AI5: Block 4 | AN5: Block 5 | AS5: Block 6
A6: Sequence Component 1 | B6: Time 1 | C6: Sequence Component 2 | D6: Time 2 | E6: Sequence Component 3 | F6: Time 3 | G6: Sequence Component 4 | H6: Time 4 | I6: Sequence Component 5 | J6: Time 5 | K6: Correct? 0=No 1=Yes | L6: Sequence | N6: Frequency | P6: Relative Frequency | Q6: Variability | T6: Frequency | V6: Relative Frequency | W6: Variability | Y6: Frequency | AA6: Relative Frequency | AB6: Variability | AD6: Frequency | AF6: Relative Frequency | AG6: Variability | AI6: Frequency | AK6: Relative Frequency | AL6: Variability | AN6: Frequency | AP6: Relative Frequency | AQ6: Variability | AS6: Frequency | AU6: Relative Frequency | AV6: Variability
A7: 11 | B7: 99 | C7: 11 | D7: 109 | E7: 21 | F7: 116 | K7: 0 | L7: 112 | N7: 111 | O7: =COUNTIF($L$7:$L$500,N7) -> 7 | P7: =O7/$Q$4 -> 0.04294478528 | Q7: =IF(P7=0,0,(P7*((LOG(P7))/LOG(2)))) -> -0.1950282983 | T7: =N7 -> 111 | U7: =COUNTIF(L7:L33,T7) -> 0 | V7: =U7/(W4-U8) -> 0 | W7: =IF(V7=0,0,(V7*((LOG(V7))/LOG(2)))) -> 0 | Y7: =N7 -> 111 | Z7: =COUNTIF(L34:L60,Y7) -> 1 | AA7: =Z7/(AB4-Z8) -> 0.04347826087 | AB7: =IF(AA7=0,0,(AA7*((LOG(AA7))/LOG(2)))) -> -0.1966766068 | AD7: =N7 -> 111 | AE7: =COUNTIF(L61:L88,AD7) -> 0 | AF7: =AE7/(AG4-AE8) -> 0 | AG7: =IF(AF7=0,0,(AF7*((LOG(AF7))/LOG(2)))) -> 0 | AI7: =N7 -> 111 | AJ7: =COUNTIF(L89:L115,AI7) -> 2 | AK7: =AJ7/(AL4-AJ8) -> 0.08695652174 | AL7: =IF(AK7=0,0,(AK7*((LOG(AK7))/LOG(2)))) -> -0.3063966918 | AN7: =N7 -> 111 | AO7: =COUNTIF(L116:L142,AN7) -> 4 | AP7: =AO7/(AQ4-AO8) -> 0.1666666667 | AQ7: =IF(AP7=0,0,(AP7*((LOG(AP7))/LOG(2)))) -> -0.4308270835 | AS7: =N7 -> 111 | AT7: =COUNTIF(L143:L169,AS7) -> 0 | AU7: =AT7/(AV4-AT8) -> 0 | AV7: =IF(AU7=0,0,(AU7*((LOG(AU7))/LOG(2)))) -> 0
A8: 11 | B8: 212 | C8: 22 | D8: 221 | E8: 23 | F8: 226 | K8: 0 | L8: 122 | N8: 112 | O8: 22 | P8: 0.1349693252 | Q8: -0.3899664036 | T8: 112 | U8: =COUNTIF(L7:L33,T8) -> 5 | Y8: 112 | Z8: =COUNTIF(L34:L60,Y8) -> 4 | AD8: 112 | AE8: =COUNTIF(L61:L88,AD8) -> 4 | AI8: 112 | AJ8: =COUNTIF(L89:L115,AI8) -> 4 | AN8: 112 | AO8: =COUNTIF(L116:L142,AN8) -> 3 | AS8: 112 | AT8: =COUNTIF(L143:L169,AS8) -> 2
A9: 11 | B9: 324 | C9: 22 | D9: 348 | E9: 14 | F9: 375 | K9: 0 | L9: 121 | N9: 121 | O9: 12 | P9: 0.0736196319 | Q9: -0.277087042 | T9: 121 | U9: =COUNTIF(L7:L33,T9) -> 2 | V9: =U9/(W4-U8) -> 0.09090909091 | W9: =IF(V9=0,0,(V9*((LOG(V9))/LOG(2)))) -> -0.3144937835 | Y9: 121 | Z9: =COUNTIF(L34:L60,Y9) -> 1 | AA9: =Z9/(AB4-Z8) -> 0.04347826087 | AB9: =IF(AA9=0,0,(AA9*((LOG(AA9))/LOG(2)))) -> -0.1966766068 | AD9: 121 | AE9: =COUNTIF(L61:L88,AD9) -> 2 | AF9: =AE9/(AG4-AE8) -> 0.08333333333 | AG9: =IF(AF9=0,0,(AF9*((LOG(AF9))/LOG(2)))) -> -0.2987468751 | AI9: 121 | AJ9: =COUNTIF(L89:L115,AI9) -> 2 | AK9: =AJ9/(AL4-AJ8) -> 0.08695652174 | AL9: =IF(AK9=0,0,(AK9*((LOG(AK9))/LOG(2)))) -> -0.3063966918 | AN9: 121 | AO9: =COUNTIF(L116:L142,AN9) -> 4 | AP9: =AO9/(AQ4-AO8) -> 0.1666666667 | AQ9: =IF(AP9=0,0,(AP9*((LOG(AP9))/LOG(2)))) -> -0.4308270835 | AS9: 121 | AT9: =COUNTIF(L143:L169,AS9) -> 1 | AU9: =AT9/(AV4-AT8) -> 0.04 | AV9: =IF(AU9=0,0,(AU9*((LOG(AU9))/LOG(2)))) -> -0.1857542476
A10: 11 | B10: 484 | C10: 22 | D10: 490 | E10: 23 | F10: 497 | K10: 0 | L10: 122 | N10: 122 | O10: 73 | P10: 0.4478527607 | Q10: -0.5190181746 | T10: 122 | U10: =COUNTIF(L7:L33,T10) -> 14 | V10: =U10/(W4-U8) -> 0.6363636364 | W10: -0.4149578978 | Y10: 122 | Z10: =COUNTIF(L34:L60,Y10) -> 14 | AA10: =Z10/(AB4-Z8) -> 0.6086956522 | AB10: -0.4359521077 | AD10: 122 | AE10: =COUNTIF(L61:L88,AD10) -> 10 | AF10: =AE10/(AG4-AE8) -> 0.4166666667 | AG10: -0.5262643358 | AI10: 122 | AJ10: =COUNTIF(L89:L115,AI10) -> 9 | AK10: =AJ10/(AL4-AJ8) -> 0.3913043478 | AL10: -0.5296840257 | AN10: 122 | AO10: =COUNTIF(L116:L142,AN10) -> 12 | AP10: =AO10/(AQ4-AO8) -> 0.5 | AQ10: -0.5 | AS10: 122 | AT10: =COUNTIF(L143:L169,AS10) -> 14 | AU10: =AT10/(AV4-AT8) -> 0.56 | AV10: -0.4684407099
A11: 11 | B11: 590 | C11: 22 | D11: 598 | E11: 23 | F11: 603 | K11: 0 | L11: 122 | N11: 211 | O11: 1 | P11: 0.006134969325 | Q11: -0.04508422181 | T11: 211 | U11: =COUNTIF(L7:L33,T11) -> 0 | V11: =U11/(W4-U8) -> 0 | W11: 0 | Y11: 211 | Z11: =COUNTIF(L34:L60,Y11) -> 0 | AA11: =Z11/(AB4-Z8) -> 0 | AB11: 0 | AD11: 211 | AE11: =COUNTIF(L61:L88,AD11) -> 0 | AF11: =AE11/(AG4-AE8) -> 0 | AG11: 0 | AI11: 211 | AJ11: =COUNTIF(L89:L115,AI11) -> 0 | AK11: =AJ11/(AL4-AJ8) -> 0 | AL11: 0 | AN11: 211 | AO11: =COUNTIF(L116:L142,AN11) -> 1 | AP11: =AO11/(AQ4-AO8) -> 0.04166666667 | AQ11: -0.1910401042 | AS11: 211 | AT11: =COUNTIF(L143:L169,AS11) -> 0 | AU11: =AT11/(AV4-AT8) -> 0 | AV11: 0
A12: 11 | B12: 704 | C12: 11 | D12: 719 | E12: 21 | F12: 727 | K12: 0 | L12: 112 | N12: 212 | O12: 19 | P12: 0.1165644172 | Q12: -0.3614430195 | T12: 212 | U12: =COUNTIF(L7:L33,T12) -> 4 | V12: =U12/(W4-U8) -> 0.1818181818 | W12: -0.4471693852 | Y12: 212 | Z12: =COUNTIF(L34:L60,Y12) -> 1 | AA12: =Z12/(AB4-Z8) -> 0.04347826087 | AB12: -0.1966766068 | AD12: 212 | AE12: =COUNTIF(L61:L88,AD12) -> 4 | AF12: =AE12/(AG4-AE8) -> 0.1666666667 | AG12: -0.4308270835 | AI12: 212 | AJ12: =COUNTIF(L89:L115,AI12) -> 4 | AK12: =AJ12/(AL4-AJ8) -> 0.1739130435 | AL12: -0.4388803402 | AN12: 212 | AO12: =COUNTIF(L116:L142,AN12) -> 2 | AP12: =AO12/(AQ4-AO8) -> 0.08333333333 | AQ12: -0.2987468751 | AS12: 212 | AT12: =COUNTIF(L143:L169,AS12) -> 4 | AU12: =AT12/(AV4-AT8) -> 0.16 | AV12: -0.4230169904
A13: 11 | B13: 833 | C13: 22 | D13: 838 | E13: 23 | F13: 845 | K13: 0 | L13: 122 | N13: 221 | O13: 5 | P13: 0.03067484663 | Q13: -0.1541963208 | T13: 221 | U13: =COUNTIF(L7:L33,T13) -> 1 | V13: =U13/(W4-U8) -> 0.04545454545 | W13: -0.2027014372 | Y13: 221 | Z13: =COUNTIF(L34:L60,Y13) -> 0 | AA13: =Z13/(AB4-Z8) -> 0 | AB13: 0 | AD13: 221 | AE13: =COUNTIF(L61:L88,AD13) -> 1 | AF13: =AE13/(AG4-AE8) -> 0.04166666667 | AG13: -0.1910401042 | AI13: 221 | AJ13: =COUNTIF(L89:L115,AI13) -> 2 | AK13: =AJ13/(AL4-AJ8) -> 0.08695652174 | AL13: -0.3063966918 | AN13: 221 | AO13: =COUNTIF(L116:L142,AN13) -> 0 | AP13: =AO13/(AQ4-AO8) -> 0 | AQ13: 0 | AS13: 221 | AT13: =COUNTIF(L143:L169,AS13) -> 1 | AU13: =AT13/(AV4-AT8) -> 0.04 | AV13: -0.1857542476
A14: 11 | B14: 948 | C14: 22 | D14: 954 | E14: 23 | F14: 960 | K14: 0 | L14: 122 | N14: 222 | O14: 24 | P14: 0.1472392638 | Q14: -0.4069348201 | T14: 222 | U14: =COUNTIF(L7:L33,T14) -> 1 | V14: =U14/(W4-U8) -> 0.04545454545 | W14: -0.2027014372 | Y14: 222 | Z14: =COUNTIF(L34:L60,Y14) -> 6 | AA14: =Z14/(AB4-Z8) -> 0.2608695652 | AB14: -0.505721597 | AD14: 222 | AE14: =COUNTIF(L61:L88,AD14) -> 7 | AF14: =AE14/(AG4-AE8) -> 0.2916666667 | AG14: -0.5184688771 | AI14: 222 | AJ14: =COUNTIF(L89:L115,AI14) -> 4 | AK14: =AJ14/(AL4-AJ8) -> 0.1739130435 | AL14: -0.4388803402 | AN14: 222 | AO14: =COUNTIF(L116:L142,AN14) -> 1 | AP14: =AO14/(AQ4-AO8) -> 0.04166666667 | AQ14: -0.1910401042 | AS14: 222 | AT14: =COUNTIF(L143:L169,AS14) -> 5 | AU14: =AT14/(AV4-AT8) -> 0.2 | AV14: -0.464385619
A15: 11 | B15: 1085 | C15: 22 | D15: 1092 | E15: 23 | F15: 1099 | K15: 0 | L15: 122 | P15: =SUM(P7:P14) -> 1 | Q15: =-SUM(Q7:Q14) -> 2.348758301 | V15: =SUM(V7:V14) -> 1 | W15: =-SUM(W7:W14) -> 1.582023941 | AA15: =SUM(AA7:AA14) -> 1 | AB15: =-SUM(AB7:AB14) -> 1.531703525 | AF15: =SUM(AF7:AF14) -> 1 | AG15: =-SUM(AG7:AG14) -> 1.965347276 | AK15: =SUM(AK7:AK14) -> 1 | AL15: =-SUM(AL7:AL14) -> 2.326634782 | AP15: =SUM(AP7:AP14) -> 1 | AQ15: =-SUM(AQ7:AQ14) -> 2.04248125 | AU15: =SUM(AU7:AU14) -> 1 | AV15: =-SUM(AV7:AV14) -> 1.727351814
A16: 11 | B16: 1266 | C16: 22 | D16: 1271 | E16: 14 | F16: 1286 | K16: 0 | L16: 121 | P16: U= | Q16: =Q15/(LOG(Q4)/LOG(2)) -> 0.3196142586 | V16: U1= | W16: =W15/(LOG(W4)/LOG(2)) -> 0.3327153251 | AA16: U2= | AB16: =AB15/(LOG(AB4)/LOG(2)) -> 0.3221324425 | AF16: U3= | AG16: =AG15/(LOG(AG4)/LOG(2)) -> 0.4088209228 | AK16: U4= | AL16: =AL15/(LOG(AL4)/LOG(2)) -> 0.4893143698 | AP16: U5= | AQ16: =AQ15/(LOG(AQ4)/LOG(2)) -> 0.429554064 | AU16: U6= | AV16: =AV15/(LOG(AV4)/LOG(2)) -> 0.3632792182
A17: 11 | B17: 1399 | C17: 22 | D17: 1406 | E17: 23 | F17: 1412 | K17: 0 | L17: 122
A18: 11 | B18: 1503 | C18: 11 | D18: 1514 | E18: 21 | F18: 1523 | K18: 0 | L18: 112
A19: 22 | B19: 1627 | C19: 13 | D19: 1631 | E19: 23 | F19: 1633 | K19: 0 | L19: 212 | N19: Total Target Seq
A20: 22 | B20: 1733 | C20: 13 | D20: 1735 | E20: 23 | F20: 1746 | K20: 0 | L20: 212 | N20: =COUNTIF(L7:L169,G3) -> 22 | P20: 27 | Q20: 27 | R20: 28 | S20: 27 | T20: 27 | U20: 27
A21: 11 | B21: 1849 | C21: 22 | D21: 1858 | E21: 23 | F21: 1863 | K21: 0 | L21: 122 | P21: % of reinforcement given in 6 equal intervals based on number of trials
A22: 11 | B22: 1971 | C22: 11 | D22: 1980 | E22: 21 | F22: 1984 | K22: 0 | L22: 112 | P22: %_1 | Q22: %_2 | R22: %_3 | S22: %_4 | T22: %_5 | U22: %_6
A23: 11 | B23: 2119 | C23: 11 | D23: 2127 | E23: 21 | F23: 2133 | K23: 0 | L23: 112 | O23: target sequence | P23: =$G$3 -> 112 | Q23: 112 | R23: 112 | S23: 112 | T23: 112 | U23: 112
A24: 22 | B24: 2257 | C24: 13 | D24: 2266 | E24: 23 | F24: 2272 | K24: 0 | L24: 212 | O24: total reinforcement | P24: =U8 -> 5 | Q24: =Z8 -> 4 | R24: =AE8 -> 4 | S24: =AJ8 -> 4 | T24: =AO8 -> 3 | U24: =AT8 -> 2
A25: 22 | B25: 2375 | C25: 13 | D25: 2379 | E25: 23 | F25: 2387 | K25: 0 | L25: 212 | O25: % target
A26: 22 | B26: 2511 | C26: 24 | D26: 2518 | E26: 23 | F26: 2525 | K26: 0 | L26: 222 | O26: CCRF
A27: 11 | B27: 2614 | C27: 22 | D27: 2625 | E27: 23 | F27: 2631 | K27: 0 | L27: 122 | O27: % CCRf
A28: 11 | B28: 2732 | C28: 22 | D28: 2740 | E28: 23 | F28: 2747 | K28: 0 | L28: 122 | O28: average response rate | P28: =F33/P20 -> 124.1481481 | Q28: =(F60-F33)/Q20 -> 122.7777778 | R28: =(F88-F60)/R20 -> 113.2142857 | S28: =(F115-F88)/S20 -> 126.1481481 | T28: =(F142-F115)/T20 -> 122.7777778 | U28: =(F169-F142)/U20 -> 253.3333333
A29: 11 | B29: 2842 | C29: 22 | D29: 2847 | E29: 23 | F29: 2849 | K29: 0 | L29: 122
A30: 11 | B30: 2949 | C30: 22 | D30: 2958 | E30: 23 | F30: 2970 | K30: 0 | L30: 122
A31: 11 | B31: 3072 | C31: 22 | D31: 3079 | E31: 23 | F31: 3085 | K31: 0 | L31: 122
A32: 11 | B32: 3189 | C32: 22 | D32: 3208 | E32: 23 | F32: 3214 | K32: 0 | L32: 122
A33: 22 | B33: 3344 | C33: 24 | D33: 3349 | E33: 14 | F33: 3352 | K33: 0 | L33: 221
A34: 11 | B34: 3455 | C34: 22 | D34: 3464 | E34: 23 | F34: 3470 | K34: 0 | L34: 122
A35: 11 | B35: 3571 | C35: 22 | D35: 3581 | E35: 14 | F35: 3584 | K35: 0 | L35: 121
A36: 11 | B36: 3689 | C36: 22 | D36: 3694 | E36: 23 | F36: 3696 | K36: 0 | L36: 122
A37: 11 | B37: 3795 | C37: 11 | D37: 3807 | E37: 21 | F37: 3812 | K37: 0 | L37: 112
A38: 22 | B38: 3907 | C38: 24 | D38: 3923 | E38: 23 | F38: 3957 | K38: 0 | L38: 222
A39: 22 | B39: 4083 | C39: 24 | D39: 4089 | E39: 23 | F39: 4095 | K39: 0 | L39: 222
A40: 22 | B40: 4196 | C40: 24 | D40: 4205 | E40: 23 | F40: 4211 | K40: 0 | L40: 222
A41: 11 | B41: 4310 | C41: 22 | D41: 4314 | E41: 23 | F41: 4316 | K41: 0 | L41: 122
A42: 11 | B42: 4422 | C42: 22 | D42: 4438 | E42: 23 | F42: 4443 | K42: 0 | L42: 122
A43: 11 | B43: 4562 | C43: 22 | D43: 4578 | E43: 23 | F43: 4584 | K43: 0 | L43: 122
A44: 11 | B44: 4692 | C44: 11 | D44: 4700 | E44: 21 | F44: 4705 | K44: 0 | L44: 112
A45: 22 | B45: 4802 | C45: 24 | D45: 4808 | E45: 23 | F45: 4814 | K45: 0 | L45: 222
A46: 11 | B46: 4948 | C46: 22 | D46: 4976 | E46: 23 | F46: 4981 | K46: 0 | L46: 122
A47: 11 | B47: 5084 | C47: 22 | D47: 5089 | E47: 23 | F47: 5095 | K47: 0 | L47: 122
A48: 11 | B48: 5191 | C48: 22 | D48: 5198 | E48: 23 | F48: 5200 | K48: 0 | L48: 122
A49: 11 | B49: 5293 | C49: 22 | D49: 5296 | E49: 23 | F49: 5298 | K49: 0 | L49: 122
A50: 11 | B50: 5406 | C50: 22 | D50: 5415 | E50: 23 | F50: 5421 | K50: 0 | L50: 122
A51: 11 | B51: 5521 | C51: 22 | D51: 5523 | E51: 23 | F51: 5529 | K51: 0 | L51: 122
A52: 11 | B52: 5628 | C52: 22 | D52: 5640 | E52: 23 | F52: 5651 | K52: 0 | L52: 122
A53: 11 | B53: 5751 | C53: 22 | D53: 5759 | E53: 23 | F53: 5761 | K53: 0 | L53: 122
A54: 11 | B54: 5859 | C54: 11 | D54: 5864 | E54: 21 | F54: 5869 | K54: 0 | L54: 112
A55: 22 | B55: 6036 | C55: 24 | D55: 6044 | E55: 23 | F55: 6054 | K55: 0 | L55: 222
A56: 11 | B56: 6156 | C56: 22 | D56: 6163 | E56: 23 | F56: 6166 | K56: 0 | L56: 122
A57: 11 | B57: 6275 | C57: 11 | D57: 6278 | E57: 21 | F57: 6285 | K57: 0 | L57: 112
A58: 22 | B58: 6395 | C58: 24 | D58: 6404 | E58: 23 | F58: 6419 | K58: 0 | L58: 222
A59: 22 | B59: 6529 | C59: 13 | D59: 6535 | E59: 23 | F59: 6540 | K59: 0 | L59: 212
A60: 11 | B60: 6652 | C60: 11 | D60: 6656 | E60: 12 | F60: 6667 | K60: 0 | L60: 111
A61: 22 | B61: 6767 | C61: 24 | D61: 6769 | E61: 14 | F61: 6770 | K61: 0 | L61: 221
A62: 22 | B62: 6872 | C62: 13 | D62: 6874 | E62: 23 | F62: 6880 | K62: 0 | L62: 212
A63: 11 | B63: 6980 | C63: 22 | D63: 6987 | E63: 23 | F63: 6990 | K63: 0 | L63: 122
A64: 11 | B64: 7089 | C64: 22 | D64: 7102 | E64: 23 | F64: 7109 | K64: 0 | L64: 122
A65: 22 | B65: 7214 | C65: 13 | D65: 7218 | E65: 23 | F65: 7227 | K65: 0 | L65: 212
A66: 11 | B66: 7322 | C66: 11 | D66: 7326 | E66: 21 | F66: 7327 | K66: 0 | L66: 112
A67: 22 | B67: 7418 | C67: 24 | D67: 7424 | E67: 23 | F67: 7433 | K67: 0 | L67: 222
A68: 11 | B68: 7532 | C68: 22 | D68: 7534 | E68: 23 | F68: 7539 | K68: 0 | L68: 122
A69: 11 | B69: 7641 | C69: 22 | D69: 7653 | E69: 23 | F69: 7662 | K69: 0 | L69: 122
A70: 11 | B70: 7755 | C70: 22 | D70: 7761 | E70: 14 | F70: 7764 | K70: 0 | L70: 121
A71: 11 | B71: 7880 | C71: 11 | D71: 7885 | E71: 21 | F71: 7887 | K71: 0 | L71: 112
A72: 22 | B72: 7977 | C72: 24 | D72: 7991 | E72: 23 | F72: 7997 | K72: 0 | L72: 222
A73: 22 | B73: 8096 | C73: 24 | D73: 8105 | E73: 23 | F73: 8111 | K73: 0 | L73: 222
A74: 22 | B74: 8216 | C74: 24 | D74: 8219 | E74: 23 | F74: 8223 | K74: 0 | L74: 222
A75: 11 | B75: 8324 | C75: 22 | D75: 8331 | E75: 23 | F75: 8337 | K75: 0 | L75: 122
A76: 11 | B76: 8438 | C76: 22 | D76: 8440 | E76: 14 | F76: 8442 | K76: 0 | L76: 121
A77: 11 | B77: 8535 | C77: 22 | D77: 8542 | E77: 23 | F77: 8544 | K77: 0 | L77: 122
A78: 11 | B78: 8653 | C78: 22 | D78: 8665 | E78: 23 | F78: 8670 | K78: 0 | L78: 122
A79: 11 | B79: 8774 | C79: 22 | D79: 8776 | E79: 23 | F79: 8778 | K79: 0 | L79: 122
A80: 11 | B80: 8885 | C80: 22 | D80: 8892 | E80: 23 | F80: 8898 | K80: 0 | L80: 122
A81: 22 | B81: 9002 | C81: 13 | D81: 9005 | E81: 23 | F81: 9007 | K81: 0 | L81: 212
A82: 11 | B82: 9110 | C82: 22 | D82: 9119 | E82: 23 | F82: 9123 | K82: 0 | L82: 122
A83: 11 | B83: 9219 | C83: 11 | D83: 9230 | E83: 21 | F83: 9241 | K83: 0 | L83: 112
A84: 22 | B84: 9349 | C84: 24 | D84: 9355 | E84: 23 | F84: 9367 | K84: 0 | L84: 222
A85: 22 | B85: 9460 | C85: 13 | D85: 9464 | E85: 23 | F85: 9474 | K85: 0 | L85: 212
A86: 22 | B86: 9585 | C86: 24 | D86: 9602 | E86: 23 | F86: 9607 | K86: 0 | L86: 222
A87: 22 | B87: 9717 | C87: 24 | D87: 9719 | E87: 23 | F87: 9725 | K87: 0 | L87: 222
A88: 11 | B88: 9817 | C88: 11 | D88: 9832 | E88: 21 | F88: 9837 | K88: 0 | L88: 112
A89: 22 | B89: 9951 | C89: 13 | D89: 9957 | E89: 23 | F89: 9968 | K89: 0 | L89: 212
A90: 11 | B90: 10070 | C90: 22 | D90: 10082 | E90: 23 | F90: 10093 | K90: 0 | L90: 122
A91: 11 | B91: 10208 | C91: 22 | D91: 10216 | E91: 23 | F91: 10222 | K91: 0 | L91: 122
A92: 11 | B92: 10330 | C92: 11 | D92: 10334 | E92: 12 | F92: 10336 | K92: 0 | L92: 111
A93: 11 | B93: 10437 | C93: 22 | D93: 10440 | E93: 23 | F93: 10446 | K93: 0 | L93: 122
A94: 22 | B94: 10549 | C94: 13 | D94: 10552 | E94: 23 | F94: 10557 | K94: 0 | L94: 212
A95: 22 | B95: 10658 | C95: 24 | D95: 10671 | E95: 23 | F95: 10677 | K95: 0 | L95: 222
A96: 11 | B96: 10764 | C96: 11 | D96: 10773 | E96: 21 | F96: 10788 | K96: 0 | L96: 112
A97: 22 | B97: 10941 | C97: 13 | D97: 10949 | E97: 23 | F97: 10953 | K97: 0 | L97: 212
A98: 11 | B98: 11111 | C98: 22 | D98: 11121 | E98: 23 | F98: 11126 | K98: 0 | L98: 122
A99: 11 | B99: 11228 | C99: 22 | D99: 11232 | E99: 23 | F99: 11237 | K99: 0 | L99: 122
A100: 22 | B100: 11345 | C100: 13 | D100: 11348 | E100: 23 | F100: 11354 | K100: 0 | L100: 212
A101: 11 | B101: 11445 | C101: 11 | D101: 11460 | E101: 21 | F101: 11463 | K101: 0 | L101: 112
A102: 11 | B102: 11557 | C102: 22 | D102: 11564 | E102: 23 | F102: 11579 | K102: 0 | L102: 122
A103: 22 | B103: 11696 | C103: 24 | D103: 11702 | E103: 23 | F103: 11706 | K103: 0 | L103: 222
A104: 11 | B104: 11809 | C104: 22 | D104: 11817 | E104: 14 | F104: 11820 | K104: 0 | L104: 121
A105: 11 | B105: 11928 | C105: 22 | D105: 11936 | E105: 23 | F105: 11938 | K105: 0 | L105: 122
A106: 11 | B106: 12036 | C106: 11 | D106: 12043 | E106: 21 | F106: 12051 | K106: 0 | L106: 112
A107: 11 | B107: 12141 | C107: 11 | D107: 12155 | E107: 21 | F107: 12158 | K107: 0 | L107: 112
A108: 22 | B108: 12310 | C108: 24 | D108: 12319 | E108: 14 | F108: 12321 | K108: 0 | L108: 221
A109: 22 | B109: 12496 | C109: 24 | D109: 12522 | E109: 14 | F109: 12533 | K109: 0 | L109: 221
A110: 11 | B110: 12630 | C110: 22 | D110: 12648 | E110: 23 | F110: 12655 | K110: 0 | L110: 122
A111: 22 | B111: 12767 | C111: 24 | D111: 12769 | E111: 23 | F111: 12775 | K111: 0 | L111: 222
A112: 22 | B112: 12887 | C112: 24 | D112: 12893 | E112: 23 | F112: 12901 | K112: 0 | L112: 222
A113: 11 | B113: 12993 | C113: 22 | D113: 13012 | E113: 14 | F113: 13016 | K113: 0 | L113: 121
A114: 11 | B114: 13117 | C114: 22 | D114: 13127 | E114: 23 | F114: 13132 | K114: 0 | L114: 122
A115: 11 | B115: 13238 | C115: 11 | D115: 13240 | E115: 12 | F115: 13243 | K115: 0 | L115: 111
A116: 11 | B116: 13336 | C116: 11 | D116: 13349 | E116: 21 | F116: 13357 | K116: 0 | L116: 112
A117: 11 | B117: 13527 | C117: 22 | D117: 13533 | E117: 23 | F117: 13556 | K117: 0 | L117: 122
A118: 11 | B118: 13660 | C118: 22 | D118: 13670 | E118: 23 | F118: 13675 | K118: 0 | L118: 122
A119: 11 | B119: 13786 | C119: 22 | D119: 13790 | E119: 23 | F119: 13794 | K119: 0 | L119: 122
A120: 11 | B120: 13913 | C120: 11 | D120: 13919 | E120: 12 | F120: 13926 | K120: 0 | L120: 111
A121: 11 | B121: 14029 | C121: 22 | D121: 14035 | E121: 23 | F121: 14041 | K121: 0 | L121: 122
A122: 11 | B122: 14134 | C122: 11 | D122: 14143 | E122: 21 | F122: 14153 | K122: 0 | L122: 112
A123: 11 | B123: 14250 | C123: 22 | D123: 14258 | E123: 23 | F123: 14266 | K123: 0 | L123: 122
A124: 11 | B124: 14361 | C124: 22 | D124: 14369 | E124: 23 | F124: 14374 | K124: 0 | L124: 122
A125: 11 | B125: 14477 | C125: 22 | D125: 14485 | E125: 23 | F125: 14495 | K125: 0 | L125: 122
A126: 22 | B126: 14601 | C126: 13 | D126: 14606 | E126: 14 | F126: 14611 | K126: 0 | L126: 211
A127: 11 | B127: 14709 | C127: 22 | D127: 14721 | E127: 23 | F127: 14727 | K127: 0 | L127: 122
A128: 22 | B128: 14833 | C128: 13 | D128: 14837 | E128: 23 | F128: 14842 | K128: 0 | L128: 212
A129: 22 | B129: 14941 | C129: 13 | D129: 14944 | E129: 23 | F129: 14947 | K129: 0 | L129: 212
A130: 11 | B130: 15054 | C130: 22 | D130: 15060 | E130: 14 | F130: 15062 | K130: 0 | L130: 121
A131: 11 | B131: 15156 | C131: 11 | D131: 15172 | E131: 21 | F131: 15179 | K131: 0 | L131: 112
A132: 11 | B132: 15272 | C132: 22 | D132: 15279 | E132: 23 | F132: 15294 | K132: 0 | L132: 122
A133: 11 | B133: 15423 | C133: 11 | D133: 15431 | E133: 12 | F133: 15445 | K133: 0 | L133: 111
A134: 22 | B134: 15561 | C134: 24 | D134: 15567 | E134: 23 | F134: 15572 | K134: 0 | L134: 222
A135: 11 | B135: 15664 | C135: 11 | D135: 15669 | E135: 12 | F135: 15682 | K135: 0 | L135: 111
A136: 11 | B136: 15775 | C136: 22 | D136: 15783 | E136: 23 | F136: 15794 | K136: 0 | L136: 122
A137: 11 | B137: 15940 | C137: 11 | D137: 15943 | E137: 12 | F137: 15962 | K137: 0 | L137: 111
A138: 11 | B138: 16055 | C138: 22 | D138: 16060 | E138: 14 | F138: 16067 | K138: 0 | L138: 121
A139: 11 | B139: 16189 | C139: 22 | D139: 16203 | E139: 14 | F139: 16205 | K139: 0 | L139: 121
A140: 11 | B140: 16327 | C140: 22 | D140: 16329 | E140: 23 | F140: 16338 | K140: 0 | L140: 122
A141: 11 | B141: 16437 | C141: 22 | D141: 16440 | E141: 23 | F141: 16443 | K141: 0 | L141: 122
A142: 11 | B142: 16538 | C142: 22 | D142: 16554 | E142: 14 | F142: 16558 | K142: 0 | L142: 121
A143: 22 | B143: 16662 | C143: 24 | D143: 16664 | E143: 14 | F143: 16674 | K143: 0 | L143: 221
A144: 11 | B144: 16789 | C144: 22 | D144: 16809 | E144: 23 | F144: 16816 | K144: 0 | L144: 122
A145: 22 | B145: 16928 | C145: 24 | D145: 16936 | E145: 23 | F145: 16942 | K145: 0 | L145: 222
A146: 11 | B146: 17038 | C146: 22 | D146: 17044 | E146: 23 | F146: 17046 | K146: 0 | L146: 122
A147: 22 | B147: 17150 | C147: 13 | D147: 17152 | E147: 23 | F147: 17154 | K147: 0 | L147: 212
A148: 22 | B148: 17262 | C148: 13 | D148: 17265 | E148: 23 | F148: 17267 | K148: 0 | L148: 212
A149: 22 | B149: 17365 | C149: 13 | D149: 17368 | E149: 23 | F149: 17373 | K149: 0 | L149: 212
A150: 11 | B150: 17473 | C150: 22 | D150: 17475 | E150: 23 | F150: 17478 | K150: 0 | L150: 122
A151: 11 | B151: 17585 | C151: 11 | D151: 17596 | E151: 21 | F151: 17605 | K151: 0 | L151: 112
A152: 11 | B152: 17732 | C152: 22 | D152: 17738 | E152: 23 | F152: 17747 | K152: 0 | L152: 122
A153: 11 | B153: 17851 | C153: 22 | D153: 17864 | E153: 23 | F153: 17869 | K153: 0 | L153: 122
A154: 11 | B154: 17962 | C154: 22 | D154: 17967 | E154: 23 | F154: 17971 | K154: 0 | L154: 122
A155: 22 | B155: 18081 | C155: 13 | D155: 18086 | E155: 23 | F155: 18094 | K155: 0 | L155: 212
A156: 11 | B156: 18187 | C156: 22 | D156: 18201 | E156: 14 | F156: 18204 | K156: 0 | L156: 121
A157: 11 | B157: 18303 | C157: 22 | D157: 18315 | E157: 23 | F157: 18325 | K157: 0 | L157: 122
A158: 11 | B158: 18425 | C158: 22 | D158: 18427 | E158: 23 | F158: 18434 | K158: 0 | L158: 122
A159: 11 | B159: 18554 | C159: 11 | D159: 18557 | E159: 21 | F159: 18574 | K159: 0 | L159: 112
A160: 22 | B160: 18666 | C160: 24 | D160: 18675 | E160: 23 | F160: 18681 | K160: 0 | L160: 222
A161: 11 | B161: 18812 | C161: 22 | D161: 18825 | E161: 23 | F161: 18833 | K161: 0 | L161: 122
A162: 11 | B162: 18938 | C162: 22 | D162: 18940 | E162: 23 | F162: 18943 | K162: 0 | L162: 122
A163: 22 | B163: 19102 | C163: 24 | D163: 19114 | E163: 23 | F163: 19120 | K163: 0 | L163: 222
A164: 11 | B164: 20171 | C164: 22 | D164: 20182 | E164: 23 | F164: 20189 | K164: 0 | L164: 122
A165: 22 | B165: 20586 | C165: 24 | D165: 20591 | E165: 23 | F165: 20597 | K165: 0 | L165: 222
A166: 11 | B166: 21142 | C166: 22 | D166: 21155 | E166: 23 | F166: 21157 | K166: 0 | L166: 122
A167: 11 | B167: 21943 | C167: 22 | D167: 21966 | E167: 23 | F167: 21973 | K167: 0 | L167: 122
A168: 11 | B168: 23186 | C168: 22 | D168: 23194 | E168: 23 | F168: 23196 | K168: 0 | L168: 122
A169: 22 | B169: 23388 | C169: 24 | D169: 23392 | E169: 23 | F169: 23398 | K169: 0 | L169: 222

Sheet !N105830.Gus
A1: Report for:!N105830.Gus
A2: Date: | B2: <date>
A3: Hen: | B3: <hen> | F3: Correct Sequence | G3: =Start!J2 -> 112 | P3: Total Sequences in Data | Q3: =4994-COUNTBLANK(L7:L5000) -> 199 | V3: Total Sequences in Block Data | W3: =COUNTA(L7:L39) -> 33 | AA3: Total Sequences in Block Data | AB3: =COUNTA(L40:L72) -> 33 | AF3: Total Sequences in Block Data | AG3: =COUNTA(L73:L106) -> 34 | AK3: Total Sequences in Block Data | AL3: =COUNTA(L107:L139) -> 33 | AP3: Total Sequences in Block Data | AQ3: =COUNTA(L140:L172) -> 33 | AU3: Total Sequences in Block Data | AV3: =COUNTA(L173:L205) -> 33
P4: Total Sequences in Summary | Q4: =SUM(O7:O14) -> 199 | V4: Total Sequences in Block Summary | W4: =SUM(U7:U14) -> 33 | AA4: Total Sequences in Block Summary | AB4: =SUM(Z7:Z14) -> 33 | AF4: Total Sequences in Block Summary | AG4: =SUM(AE7:AE14) -> 34 | AK4: Total Sequences in Block Summary | AL4: =SUM(AJ7:AJ14) -> 33 | AP4: Total Sequences in Block Summary | AQ4: =SUM(AO7:AO14) -> 33 | AU4: Total Sequences in Block Summary | AV4: =SUM(AT7:AT14) -> 33
T5: Block 1 | Y5: Block 2 | AD5: Block 3 | AI5: Block 4 | AN5: Block 5 | AS5: Block 6
A6: Sequence Component 1 | B6: Time 1 | C6: Sequence Component 2 | D6: Time 2 | E6: Sequence Component 3 | F6: Time 3 | G6: Sequence Component 4 | H6: Time 4 | I6: Sequence Component 5 | J6: Time 5 | K6: Correct? 0=No 1=Yes | L6: Sequence | N6: Frequency | P6: Relative Frequency | Q6: Variability | T6: Frequency | V6: Relative Frequency | W6: Variability | Y6: Frequency | AA6: Relative Frequency | AB6: Variability | AD6: Frequency | AF6: Relative Frequency | AG6: Variability | AI6: Frequency | AK6: Relative Frequency | AL6: Variability | AN6: Frequency | AP6: Relative Frequency | AQ6: Variability | AS6: Frequency | AU6: Relative Frequency | AV6: Variability
A7: 22 | B7: 40 | C7: 24 | D7: 64 | E7: 14 | F7: 67 | K7: 0 | L7: 221 | N7: 111 | O7: =COUNTIF($L$7:$L$500,N7) -> 8 | P7: =O7/$Q$4 -> 0.04020100503 | Q7: =IF(P7=0,0,(P7*((LOG(P7))/LOG(2)))) -> -0.1863969697 | T7: =N7 -> 111 | U7: =COUNTIF(L7:L39,T7) -> 2 | V7: =U7/(W4-U8) -> 0.06896551724 | W7: =IF(V7=0,0,(V7*((LOG(V7))/LOG(2)))) -> -0.2660676548 | Y7: =N7 -> 111 | Z7: =COUNTIF(L40:L72,Y7) -> 0 | AA7: =Z7/(AB4-Z8) -> 0 | AB7: =IF(AA7=0,0,(AA7*((LOG(AA7))/LOG(2)))) -> 0 | AD7: =N7 -> 111 | AE7: =COUNTIF(L73:L106,AD7) -> 2 | AF7: =AE7/(AG4-AE8) -> 0.06666666667 | AG7: =IF(AF7=0,0,(AF7*((LOG(AF7))/LOG(2)))) -> -0.260459373 | AI7: =N7 -> 111 | AJ7: =COUNTIF(L107:L139,AI7) -> 1 | AK7: =AJ7/(AL4-AJ8) -> 0.03571428571 | AL7: =IF(AK7=0,0,(AK7*((LOG(AK7))/LOG(2)))) -> -0.1716912472 | AN7: =N7 -> 111 | AO7: =COUNTIF(L140:L172,AN7) -> 0 | AP7: =AO7/(AQ4-AO8) -> 0 | AQ7: =IF(AP7=0,0,(AP7*((LOG(AP7))/LOG(2)))) -> 0 | AS7: =N7 -> 111 | AT7: =COUNTIF(L173:L205,AS7) -> 3 | AU7: =AT7/(AV4-AT8) -> 0.09677419355 | AV7: =IF(AU7=0,0,(AU7*((LOG(AU7))/LOG(2)))) -> -0.3260548848
A8: 22 | B8: 170 | C8: 24 | D8: 173 | E8: 14 | F8: 176 | K8: 0 | L8: 221 | N8: 112 | O8: 24 | P8: 0.1206030151 | Q8: -0.3680396526 | T8: 112 | U8: =COUNTIF(L7:L39,T8) -> 4 | Y8: 112 | Z8: =COUNTIF(L40:L72,Y8) -> 4 | AD8: 112 | AE8: =COUNTIF(L73:L106,AD8) -> 4 | AI8: 112 | AJ8: =COUNTIF(L107:L139,AI8) -> 5 | AN8: 112 | AO8: =COUNTIF(L140:L172,AN8) -> 5 | AS8: 112 | AT8: =COUNTIF(L173:L205,AS8) -> 2
A9: 11 | B9: 272 | C9: 22 | D9: 292 | E9: 14 | F9: 296 | K9: 0 | L9: 121 | N9: 121 | O9: 8 | P9: 0.04020100503 | Q9: -0.1863969697 | T9: 121 | U9: =COUNTIF(L7:L39,T9) -> 2 | V9: =U9/(W4-U8) -> 0.06896551724 | W9: =IF(V9=0,0,(V9*((LOG(V9))/LOG(2)))) -> -0.2660676548 | Y9: 121 | Z9: =COUNTIF(L40:L72,Y9) -> 1 | AA9: =Z9/(AB4-Z8) -> 0.03448275862 | AB9: =IF(AA9=0,0,(AA9*((LOG(AA9))/LOG(2)))) -> -0.167516586 | AD9: 121 | AE9: =COUNTIF(L73:L106,AD9) -> 0 | AF9: =AE9/(AG4-AE8) -> 0 | AG9: =IF(AF9=0,0,(AF9*((LOG(AF9))/LOG(2)))) -> 0 | AI9: 121 | AJ9: =COUNTIF(L107:L139,AI9) -> 0 | AK9: =AJ9/(AL4-AJ8) -> 0 | AL9: =IF(AK9=0,0,(AK9*((LOG(AK9))/LOG(2)))) -> 0 | AN9: 121 | AO9: =COUNTIF(L140:L172,AN9) -> 5 | AP9: =AO9/(AQ4-AO8) -> 0.1785714286 | AQ9: =IF(AP9=0,0,(AP9*((LOG(AP9))/LOG(2)))) -> -0.4438262191 | AS9: 121 | AT9: =COUNTIF(L173:L205,AS9) -> 0 | AU9: =AT9/(AV4-AT8) -> 0 | AV9: =IF(AU9=0,0,(AU9*((LOG(AU9))/LOG(2)))) -> 0
A10: 22 | B10: 407 | C10: 24 | D10: 412 | E10: 23 | F10: 423 | K10: 0 | L10: 222 | N10: 122 | O10: 73 | P10: 0.3668341709 | Q10: -0.530735701 | T10: 122 | U10: =COUNTIF(L7:L39,T10) -> 8 | V10: =U10/(W4-U8) -> 0.275862069 | W10: -0.5125464814 | Y10: 122 | Z10: =COUNTIF(L40:L72,Y10) -> 11 | AA10: =Z10/(AB4-Z8) -> 0.3793103448 | AB10: -0.5304842463 | AD10: 122 | AE10: =COUNTIF(L73:L106,AD10) -> 19 | AF10: =AE10/(AG4-AE8) -> 0.6333333333 | AG10: -0.4173432854 | AI10: 122 | AJ10: =COUNTIF(L107:L139,AI10) -> 12 | AK10: =AJ10/(AL4-AJ8) -> 0.4285714286 | AL10: -0.5238824663 | AN10: 122 | AO10: =COUNTIF(L140:L172,AN10) -> 9 | AP10: =AO10/(AQ4-AO8) -> 0.3214285714 | AQ10: -0.5263167602 | AS10: 122 | AT10: =COUNTIF(L173:L205,AS10) -> 14 | AU10: =AT10/(AV4-AT8) -> 0.4516129032 | AV10: -0.5179283689
A11: 22 | B11: 519 | C11: 24 | D11: 525 | E11: 23 | F11: 532 | K11: 0 | L11: 222 | N11: 211 | O11: 0 | P11: 0 | Q11: 0 | T11: 211 | U11: =COUNTIF(L7:L39,T11) -> 0 | V11: =U11/(W4-U8) -> 0 | W11: 0 | Y11: 211 | Z11: =COUNTIF(L40:L72,Y11) -> 0 | AA11: =Z11/(AB4-Z8) -> 0 | AB11: 0 | AD11: 211 | AE11: =COUNTIF(L73:L106,AD11) -> 0 | AF11: =AE11/(AG4-AE8) -> 0 | AG11: 0 | AI11: 211 | AJ11: =COUNTIF(L107:L139,AI11) -> 0 | AK11: =AJ11/(AL4-AJ8) -> 0 | AL11: 0 | AN11: 211 | AO11: =COUNTIF(L140:L172,AN11) -> 0 | AP11: =AO11/(AQ4-AO8) -> 0 | AQ11: 0 | AS11: 211 | AT11: =COUNTIF(L173:L205,AS11) -> 0 | AU11: =AT11/(AV4-AT8) -> 0 | AV11: 0
A12: 11 | B12: 635 | C12: 22 | D12: 638 | E12: 23 | F12: 650 | K12: 0 | L12: 122 | N12: 212 | O12: 27 | P12: 0.135678392 | Q12: -0.3909894583 | T12: 212 | U12: =COUNTIF(L7:L39,T12) -> 2 | V12: =U12/(W4-U8) -> 0.06896551724 | W12: -0.2660676548 | Y12: 212 | Z12: =COUNTIF(L40:L72,Y12) -> 6 | AA12: =Z12/(AB4-Z8) -> 0.2068965517 | AB12: -0.4702796885 | AD12: 212 | AE12: =COUNTIF(L73:L106,AD12) -> 2 | AF12: =AE12/(AG4-AE8) -> 0.06666666667 | AG12: -0.260459373 | AI12: 212 | AJ12: =COUNTIF(L107:L139,AI12) -> 4 | AK12: =AJ12/(AL4-AJ8) -> 0.1428571429 | AL12: -0.4010507032 | AN12: 212 | AO12: =COUNTIF(L140:L172,AN12) -> 6 | AP12: =AO12/(AQ4-AO8) -> 0.2142857143 | AQ12: -0.4762269474 | AS12: 212 | AT12: =COUNTIF(L173:L205,AS12) -> 7 | AU12: =AT12/(AV4-AT8) -> 0.2258064516 | AV12: -0.4847706361
A13: 11 | B13: 743 | C13: 11 | D13: 754 | E13: 21 | F13: 780 | K13: 0 | L13: 112 | N13: 221 | O13: 15 | P13: 0.07537688442 | Q13: -0.2811357305 | T13: 221 | U13: =COUNTIF(L7:L39,T13) -> 7 | V13: =U13/(W4-U8) -> 0.2413793103 | W13: -0.4949787073 | Y13: 221 | Z13: =COUNTIF(L40:L72,Y13) -> 3 | AA13: =Z13/(AB4-Z8) -> 0.1034482759 | AB13: -0.3385881201 | AD13: 221 | AE13: =COUNTIF(L73:L106,AD13) -> 1 | AF13: =AE13/(AG4-AE8) -> 0.03333333333 | AG13: -0.1635630199 | AI13: 221 | AJ13: =COUNTIF(L107:L139,AI13) -> 2 | AK13: =AJ13/(AL4-AJ8) -> 0.07142857143 | AL13: -0.271953923 | AN13: 221 | AO13: =COUNTIF(L140:L172,AN13) -> 2 | AP13: =AO13/(AQ4-AO8) -> 0.07142857143 | AQ13: -0.271953923 | AS13: 221 | AT13: =COUNTIF(L173:L205,AS13) -> 0 | AU13: =AT13/(AV4-AT8) -> 0 | AV13: 0
A14: 11 | B14: 889 | C14: 11 | D14: 899 | E14: 12 | F14: 904 | K14: 0 | L14: 111 | N14: 222 | O14: 44 | P14: 0.2211055276 | Q14: -0.4813894075 | T14: 222 | U14: =COUNTIF(L7:L39,T14) -> 8 | V14: =U14/(W4-U8) -> 0.275862069 | W14: -0.5125464814 | Y14: 222 | Z14: =COUNTIF(L40:L72,Y14) -> 8 | AA14: =Z14/(AB4-Z8) -> 0.275862069 | AB14: -0.5125464814 | AD14: 222 | AE14: =COUNTIF(L73:L106,AD14) -> 6 | AF14: =AE14/(AG4-AE8) -> 0.2 | AG14: -0.464385619 | AI14: 222 | AJ14: =COUNTIF(L107:L139,AI14) -> 9 | AK14: =AJ14/(AL4-AJ8) -> 0.3214285714 | AL14: -0.5263167602 | AN14: 222 | AO14: =COUNTIF(L140:L172,AN14) -> 6 | AP14: =AO14/(AQ4-AO8) -> 0.2142857143 | AQ14: -0.4762269474 | AS14: 222 | AT14: =COUNTIF(L173:L205,AS14) -> 7 | AU14: =AT14/(AV4-AT8) -> 0.2258064516 | AV14: -0.4847706361
A15: 11 | B15: 1011 | C15: 22 | D15: 1036 | E15: 23 | F15: 1043 | K15: 0 | L15: 122 | P15: =SUM(P7:P14) -> 1 | Q15: =-SUM(Q7:Q14) -> 2.425083889 | V15: =SUM(V7:V14) -> 1 | W15: =-SUM(W7:W14) -> 2.318274635 | AA15: =SUM(AA7:AA14) -> 1 | AB15: =-SUM(AB7:AB14) -> 2.019415122 | AF15: =SUM(AF7:AF14) -> 1 | AG15: =-SUM(AG7:AG14) -> 1.56621067 | AK15: =SUM(AK7:AK14) -> 1 | AL15: =-SUM(AL7:AL14) -> 1.8948951 | AP15: =SUM(AP7:AP14) -> 1 | AQ15: =-SUM(AQ7:AQ14) -> 2.194550797 | AU15: =SUM(AU7:AU14) -> 1 | AV15: =-SUM(AV7:AV14) -> 1.813524526
A16: 11 | B16: 1140 | C16: 11 | D16: 1169 | E16: 21 | F16: 1182 | K16: 0 | L16: 112 | P16: U= | Q16: =Q15/(LOG(Q4)/LOG(2)) -> 0.3175596562 | V16: U1= | W16: =W15/(LOG(W4)/LOG(2)) -> 0.4595744464 | AA16: U2= | AB16: =AB15/(LOG(AB4)/LOG(2)) -> 0.4003285775 | AF16: U3= | AG16: =AG15/(LOG(AG4)/LOG(2)) -> 0.3078569258 | AK16: U4= | AL16: =AL15/(LOG(AL4)/LOG(2)) -> 0.3756437453 | AP16: U5= | AQ16: =AQ15/(LOG(AQ4)/LOG(2)) -> 0.4350474498 | AU16: U6= | AV16: =AV15/(LOG(AV4)/LOG(2)) -> 0.3595128539
A17: 22 | B17: 1281 | C17: 13 | D17: 1285 | E17: 23 | F17: 1291 | K17: 0 | L17: 212
A18: 11 | B18: 1387 | C18: 22 | D18: 1390 | E18: 23 | F18: 1393 | K18: 0 | L18: 122
A19: 11 | B19: 1505 | C19: 22 | D19: 1511 | E19: 23 | F19: 1518 | K19: 0 | L19: 122 | N19: Total Target Seq
A20: 11 | B20: 1611 | C20: 22 | D20: 1623 | E20: 14 | F20: 1627 | K20: 0 | L20: 121 | N20: =COUNTIF(L7:L205,G3) -> 24 | P20: 33 | Q20: 33 | R20: 34 | S20: 33 | T20: 33 | U20: 33
A21: 11 | B21: 1726 | C21: 22 | D21: 1735 | E21: 23 | F21: 1750 | K21: 0 | L21: 122 | P21: % of reinforcement given in 6 equal intervals based on number of trials
A22: 22 | B22: 1857 | C22: 24 | D22: 1860 | E22: 23 | F22: 1866 | K22: 0 | L22: 222 | P22: %_1 | Q22: %_2 | R22: %_3 | S22: %_4 | T22: %_5 | U22: %_6
A23: 11 | B23: 1959 | C23: 22 | D23: 1972 | E23: 23 | F23: 1979 | K23: 0 | L23: 122 | O23: target sequence | P23: =$G$3 -> 112 | Q23: 112 | R23: 112 | S23: 112 | T23: 112 | U23: 112
A24: 11 | B24: 2085 | C24: 22 | D24: 2089 | E24: 23 | F24: 2100 | K24: 0 | L24: 122 | O24: total reinforcement | P24: =U8 -> 4 | Q24: =Z8 -> 4 | R24: =AE8 -> 4 | S24: =AJ8 -> 5 | T24: =AO8 -> 5 | U24: =AT8 -> 2
A25: 11 | B25: 2197 | C25: 22 | D25: 2200 | E25: 23 | F25: 2207 | K25: 0 | L25: 122 | O25: % target
A26: 22 | B26: 2307 | C26: 24 | D26: 2314 | E26: 23 | F26: 2321 | K26: 0 | L26: 222 | O26: CCRF
A27: 22 | B27: 2421 | C27: 24 | D27: 2425 | E27: 23 | F27: 2433 | K27: 0 | L27: 222 | O27: % CCRf
A28: 22 | B28: 2546 | C28: 24 | D28: 2550 | E28: 14 | F28: 2555 | K28: 0 | L28: 221 | O28: average response rate | P28: =F39/P20 -> 116.0606061 | Q28: =(F72-F39)/Q20 -> 122.0606061 | R28: =(F106-F72)/R20 -> 120.2058824 | S28: =(F139-F106)/S20 -> 122.1212121 | T28: =(F172-F139)/T20 -> 120.0606061 | U28: =(F205-F172)/U20 -> 122.1515152
A29: 22 | B29: 2667 | C29: 24 | D29: 2671 | E29: 14 | F29: 2673 | K29: 0 | L29: 221
A30: 11 | B30: 2783 | C30: 11 | D30: 2787 | E30: 12 | F30: 2803 | K30: 0 | L30: 111
A31: 11 | B31: 2896 | C31: 11 | D31: 2904 | E31: 21 | F31: 2926 | K31: 0 | L31: 112
A32: 22 | B32: 3034 | C32: 24 | D32: 3037 | E32: 23 | F32: 3043 | K32: 0 | L32: 222
A33: 22 | B33: 3145 | C33: 24 | D33: 3152 | E33: 23 | F33: 3159 | K33: 0 | L33: 222
A34: 22 | B34: 3256 | C34: 24 | D34: 3260 | E34: 23 | F34: 3265 | K34: 0 | L34: 222
A35: 11 | B35: 3361 | C35: 11 | D35: 3374 | E35: 21 | F35: 3382 | K35: 0 | L35: 112
A36: 22 | B36: 3481 | C36: 24 | D36: 3485 | E36: 14 | F36: 3491 | K36: 0 | L36: 221
A37: 22 | B37: 3593 | C37: 24 | D37: 3602 | E37: 14 | F37: 3607 | K37: 0 | L37: 221
A38: 22 | B38: 3706 | C38: 24 | D38: 3711 | E38: 14 | F38: 3715 | K38: 0 | L38: 221
A39: 22 | B39: 3820 | C39: 13 | D39: 3824 | E39: 23 | F39: 3830 | K39: 0 | L39: 212
A40: 11 | B40: 3925 | C40: 22 | D40: 3948 | E40: 23 | F40: 3954 | K40: 0 | L40: 122
A41: 11 | B41: 4059 | C41: 22 | D41: 4071 | E41: 14 | F41: 4075 | K41: 0 | L41: 121
A42: 11 | B42: 4164 | C42: 22 | D42: 4186 | E42: 23 | F42: 4198 | K42: 0 | L42: 122
A43: 11 | B43: 4303 | C43: 22 | D43: 4310 | E43: 23 | F43: 4318 | K43: 0 | L43: 122
A44: 22 | B44: 4417 | C44: 24 | D44: 4420 | E44: 23 | F44: 4426 | K44: 0 | L44: 222
A45: 11 | B45: 4533 | C45: 22 | D45: 4539 | E45: 23 | F45: 4545 | K45: 0 | L45: 122
A46: 22 | B46: 4646 | C46: 24 | D46: 4650 | E46: 23 | F46: 4654 | K46: 0 | L46: 222
A47: 22 | B47: 4754 | C47: 24 | D47: 4760 | E47: 23 | F47: 4772 | K47: 0 | L47: 222
A48: 22 | B48: 4890 | C48: 13 | D48: 4901 | E48: 23 | F48: 4909 | K48: 0 | L48: 212
A49: 22 | B49: 5024 | C49: 24 | D49: 5029 | E49: 23 | F49: 5035 | K49: 0 | L49: 222
A50: 22 | B50: 5159 | C50: 24 | D50: 5167 | E50: 23 | F50: 5174 | K50: 0 | L50: 222
A51: 11 | B51: 5271 | C51: 22 | D51: 5278 | E51: 23 | F51: 5288 | K51: 0 | L51: 122
A52: 22 | B52: 5395 | C52: 24 | D52: 5400 | E52: 23 | F52: 5406 | K52: 0 | L52: 222
A53: 22 | B53: 5513 | C53: 24 | D53: 5517 | E53: 14 | F53: 5521 | K53: 0 | L53: 221
A54: 11 | B54: 5626 | C54: 22 | D54: 5637 | E54: 23 | F54: 5650 | K54: 0 | L54: 122
A55: 22 | B55: 5764 | C55: 24 | D55: 5766 | E55: 23 | F55: 5772 | K55: 0 | L55: 222
A56: 11 | B56: 5881 | C56: 11 | D56: 5893 | E56: 21 | F56: 5901 | K56: 0 | L56: 112
A57: 22 | B57: 6016 | C57: 13 | D57: 6021 | E57: 23 | F57: 6027 | K57: 0 | L57: 212
A58: 22 | B58: 6131 | C58: 24 | D58: 6139 | E58: 14 | F58: 6153 | K58: 0 | L58: 221
A59: 11 | B59: 6251 | C59: 22 | D59: 6263 | E59: 23 | F59: 6271 | K59: 0 | L59: 122
A60: 22 | B60: 6382 | C60: 13 | D60: 6388 | E60: 23 | F60: 6393 | K60: 0 | L60: 212
A61: 11 | B61: 6486 | C61: 11 | D61: 6498 | E61: 21 | F61: 6503 | K61: 0 | L61: 112
A62: 11 | B62: 6636 | C62: 22 | D62: 6658 | E62: 23 | F62: 6665 | K62: 0 | L62: 122
A63: 11 | B63: 6774 | C63: 11 | D63: 6783 | E63: 21 | F63: 6789 | K63: 0 | L63: 112
A64: 22 | B64: 6917 | C64: 13 | D64: 6924 | E64: 23 | F64: 6931 | K64: 0 | L64: 212
A65: 11 | B65: 7027 | C65: 22 | D65: 7040 | E65: 23 | F65: 7047 | K65: 0 | L65: 122
A66: 22 | B66: 7144 | C66: 13 | D66: 7151 | E66: 23 | F66: 7153 | K66: 0 | L66: 212
A67: 11 | B67: 7256 | C67: 22 | D67: 7267 | E67: 23 | F67: 7274 | K67: 0 | L67: 122
A68: 11 | B68: 7381 | C68: 11 | D68: 7391 | E68: 21 | F68: 7401 | K68: 0 | L68: 112
A69: 22 | B69: 7508 | C69: 13 | D69: 7513 | E69: 23 | F69: 7518 | K69: 0 | L69: 212
A70: 22 | B70: 7620 | C70: 24 | D70: 7626 | E70: 23 | F70: 7639 | K70: 0 | L70: 222
A71: 11 | B71: 7730 | C71: 22 | D71: 7743 | E71: 23 | F71: 7749 | K71: 0 | L71: 122
A72: 22 | B72: 7852 | C72: 24 | D72: 7856 | E72: 14 | F72: 7858 | K72: 0 | L72: 221
A73: 11 | B73: 7957 | C73: 22 | D73: 7967 | E73: 23 | F73: 7973 | K73: 0 | L73: 122
A74: 11 | B74: 8067 | C74: 22 | D74: 8072 | E74: 23 | F74: 8076 | K74: 0 | L74: 122
A75: 22 | B75: 8175 | C75: 24 | D75: 8182 | E75: 14 | F75: 8186 | K75: 0 | L75: 221
A76: 11 | B76: 8282 | C76: 11 | D76: 8288 | E76: 12 | F76: 8293 | K76: 0 | L76: 111
A77: 11 | B77: 8446 | C77: 22 | D77: 8464 | E77: 23 | F77: 8472 | K77: 0 | L77: 122
A78: 22 | B78: 8578 | C78: 24 | D78: 8582 | E78: 23 | F78: 8587 | K78: 0 | L78: 222
A79: 22 | B79: 8696 | C79: 24 | D79: 8709 | E79: 23 | F79: 8715 | K79: 0 | L79: 222
A80: 11 | B80: 8808 | C80: 22 | D80: 8813 | E80: 23 | F80: 8818 | K80: 0 | L80: 122
A81: 11 | B81: 8914 | C81: 22 | D81: 8917 | E81: 23 | F81: 8922 | K81: 0 | L81: 122
A82: 11 | B82: 9030 | C82: 22 | D82: 9038 | E82: 23 | F82: 9048 | K82: 0 | L82: 122
A83: 11 | B83: 9148 | C83: 11 | D83: 9154 | E83: 21 | F83: 9159 | K83: 0 | L83: 112
A84: 11 | B84: 9253 | C84: 22 | D84: 9262 | E84: 23 | F84: 9269 | K84: 0 | L84: 122
A85: 22 | B85: 9375 | C85: 24 | D85: 9380 | E85: 23 | F85: 9386 | K85: 0 | L85: 222
A86: 11 | B86: 9481 | C86: 22 | D86: 9488 | E86: 23 | F86: 9502 | K86: 0 | L86: 122
A87: 22 | B87: 9608 | C87: 24 | D87: 9614 | E87: 23 | F87: 9619 | K87: 0 | L87: 222
A88: 11 | B88: 9717 | C88: 22 | D88: 9727 | E88: 23 | F88: 9732 | K88: 0 | L88: 122
A89: 11 | B89: 9830 | C89: 22 | D89: 9833 | E89: 23 | F89: 9836 | K89: 0 | L89: 122
A90: 11 | B90: 9943 | C90: 22 | D90: 9951 | E90: 23 | F90: 9959 | K90: 0 | L90: 122
A91: 11 | B91: 10070 | C91: 22 | D91: 10075 | E91: 23 | F91: 10080 | K91: 0 | L91: 122
A92: 11 | B92: 10177 | C92: 11 | D92: 10187 | E92: 21 | F92: 10190 | K92: 0 | L92: 112
A93: 11 | B93: 10278 | C93: 11 | D93: 10293 | E93: 21 | F93: 10295 | K93: 0 | L93: 112
A94: 22 | B94: 10431 | C94: 13 | D94: 10439 | E94: 23 | F94: 10449 | K94: 0 | L94: 212
A95: 11 | B95: 10547 | C95: 22 | D95: 10559 | E95: 23 | F95: 10565 | K95: 0 | L95: 122
A96: 11 | B96: 10669 | C96: 22 | D96: 10674 | E96: 23 | F96: 10684 | K96: 0 | L96: 122
A97: 22 | B97: 10784 | C97: 13 | D97: 10787 | E97: 23 | F97: 10793 | K97: 0 | L97: 212
A98: 11 | B98: 10891 | C98: 22 | D98: 10894 | E98: 23 | F98: 10913 | K98: 0 | L98: 122
A99: 11 | B99: 11030 | C99: 22 | D99: 11043 | E99: 23 | F99: 11049 | K99: 0 | L99: 122
A100: 11 | B100: 11147 | C100: 11 | D100: 11154 | E100: 12 | F100: 11162 | K100: 0 | L100: 111
A101: 11 | B101: 11256 | C101: 22 | D101: 11263 | E101: 23 | F101: 11266 | K101: 0 | L101: 122
A102: 22 | B102: 11457 | C102: 24 | D102: 11461 | E102: 23 | F102: 11467 | K102: 0 | L102: 222
A103: 11 | B103: 11572 | C103: 22 | D103: 11580 | E103: 23 | F103: 11585 | K103: 0 | L103: 122
A104: 22 | B104: 11692 | C104: 24 | D104: 11699 | E104: 23 | F104: 11705 | K104: 0 | L104: 222
A105: 11 | B105: 11797 | C105: 22 | D105: 11829 | E105: 23 | F105: 11835 | K105: 0 | L105: 122
A106: 11 | B106: 11929 | C106: 11 | D106: 11941 | E106: 21 | F106: 11945 | K106: 0 | L106: 112
A107: 22 | B107: 12055 | C107: 13 | D107: 12060 | E107: 23 | F107: 12067 | K107: 0 | L107: 212
A108: 11 | B108: 12171 | C108: 22 | D108: 12185 | E108: 23 | F108: 12197 | K108: 0 | L108: 122
A109: 11 | B109: 12297 | C109: 11 | D109: 12303 | E109: 21 | F109: 12306 | K109: 0 | L109: 112
A110: 11 | B110: 12399 | C110: 22 | D110: 12421 | E110: 23 | F110: 12428 | K110: 0 | L110: 122
A111: 11 | B111: 12534 | C111: 22 | D111: 12539 | E111: 23 | F111: 12544 | K111: 0 | L111: 122
A112: 11 | B112: 12636 | C112: 11 | D112: 12659 | E112: 21 | F112: 12662 | K112: 0 | L112: 112
A113: 11 | B113: 12751 | C113: 11 | D113: 12753 | E113: 12 | F113: 12755 | K113: 0 | L113: 111
A114: 11 | B114: 12857 | C114: 22 | D114: 12862 | E114: 23 | F114: 12869 | K114: 0 | L114: 122
A115: 22 | B115: 12972 | C115: 13 | D115: 12974 | E115: 23 | F115: 12978 | K115: 0 | L115: 212
A116: 22 | B116: 13084 | C116: 24 | D116: 13091 | E116: 14 | F116: 13094 | K116: 0 | L116: 221
A117: 22 | B117: 13246 | C117: 13 | D117: 13249 | E117: 23 | F117: 13252 | K117: 0 | L117: 212
A118: 22 | B118: 13355 | C118: 24 | D118: 13359 | E118: 23 | F118: 13365 | K118: 0 | L118: 222
A119: 11 | B119: 13457 | C119: 22 | D119: 13479 | E119: 23 | F119: 13489 | K119: 0 | L119: 122
A120: 22 | B120: 13589 | C120: 13 | D120: 13594 | E120: 23 | F120: 13600 | K120: 0 | L120: 212
A121: 11 | B121: 13692 | C121: 22 | D121: 13711 | E121: 23 | F121: 13718 | K121: 0 | L121: 122
A122: 11 | B122: 13818 | C122: 22 | D122: 13824 | E122: 23 | F122: 13830 | K122: 0 | L122: 122
A123: 11 | B123: 13931 | C123: 22 | D123: 13938 | E123: 23 | F123: 13945 | K123: 0 | L123: 122
A124: 22 | B124: 14056 | C124: 24 | D124: 14061 | E124: 23 | F124: 14070 | K124: 0 | L124: 222
A125: 22 | B125: 14182 | C125: 24 | D125: 14190 | E125: 23 | F125: 14196 | K125: 0 | L125: 222
A126: 11 | B126: 14290 | C126: 22 | D126: 14313 | E126: 23 | F126: 14319 | K126: 0 | L126: 122
A127: 22 | B127: 14428 | C127: 24 | D127: 14435 | E127: 23 | F127: 14440 | K127: 0 | L127: 222
A128: 11 | B128: 14613 | C128: 11 | D128: 14617 | E128: 21 | F128: 14626 | K128: 0 | L128: 112
A129: 22 | B129: 14722 | C129: 24 | D129: 14728 | E129: 14 | F129: 14731 | K129: 0 | L129: 221
A130: 22 | B130: 14839 | C130: 24 | D130: 14846 | E130: 23 | F130: 14850 | K130: 0 | L130: 222
A131: 11 | B131: 14963 | C131: 22 | D131: 14981 | E131: 23 | F131: 14987 | K131: 0 | L131: 122
A132: 11 | B132: 15085 | C132: 22 | D132: 15099 | E132: 23 | F132: 15105 | K132: 0 | L132: 122
A133: 11 | B133: 15204 | C133: 11 | D133: 15214 | E133: 21 | F133: 15218 | K133: 0 | L133: 112
A134: 11 | B134: 15310 | C134: 11 | D134: 15324 | E134: 21 | F134: 15332 | K134: 0 | L134: 112
A135: 22 | B135: 15500 | C135: 24 | D135: 15508 | E135: 23 | F135: 15523 | K135: 0 | L135: 222
A136: 22 | B136: 15622 | C136: 24 | D136: 15627 | E136: 23 | F136: 15633 | K136: 0 | L136: 222
A137: 11 | B137: 15729 | C137: 22 | D137: 15736 | E137: 23 | F137: 15742 | K137: 0 | L137: 122
A138: 22 | B138: 15851 | C138: 24 | D138: 15860 | E138: 23 | F138: 15868 | K138: 0 | L138: 222
A139: 22 | B139: 15964 | C139: 24 | D139: 15971 | E139: 23 | F139: 15975 | K139: 0 | L139: 222
A140: 22 | B140: 16079 | C140: 13 | D140: 16082 | E140: 23 | F140: 16085 | K140: 0 | L140: 212
A141: 11 | B141: 16183 | C141: 22 | D141: 16193 | E141: 14 | F141: 16197 | K141: 0 | L141: 121
A142: 11 | B142: 16291 | C142: 22 | D142: 16304 | E142: 23 | F142: 16311 | K142: 0 | L142: 122
A143: 11 | B143: 16432 | C143: 22 | D143: 16434 | E143: 23 | F143: 16440 | K143: 0 | L143: 122
A144: 11 | B144: 16533 | C144: 22 | D144: 16550 | E144: 14 | F144: 16554 | K144: 0 | L144: 121
A145: 22 | B145: 16655 | C145: 13 | D145: 16656 | E145: 23 | F145: 16659 | K145: 0 | L145: 212
A146: 11 | B146: 16751 | C146: 11 | D146: 16769 | E146: 21 | F146: 16784 | K146: 0 | L146: 112
A147: 11 | B147: 16904 | C147: 11 | D147: 16930 | E147: 21 | F147: 16938 | K147: 0 | L147: 112
A148: 22 | B148: 17062 | C148: 24 | D148: 17064 | E148: 14 | F148: 17068 | K148: 0 | L148: 221
A149: 22 | B149: 17280 | C149: 13 | D149: 17288 | E149: 23 | F149: 17301 | K149: 0 | L149: 212
A150: 22 | B150: 17426 | C150: 24 | D150: 17433 | E150: 23 | F150: 17438 | K150: 0 | L150: 222
A151: 22 | B151: 17525 | C151: 24 | D151: 17530 | E151: 23 | F151: 17552 | K151: 0 | L151: 222
A152: 11 | B152: 17654 | C152: 22 | D152: 17660 | E152: 23 | F152: 17665 | K152: 0 | L152: 122
A153: 11 | B153: 17767 | C153: 22 | D153: 17776 | E153: 23 | F153: 17781 | K153: 0 | L153: 122
A154: 11 | B154: 17876 | C154: 22 | D154: 17885 | E154: 14 | F154: 17891 | K154: 0 | L154: 121
A155: 11 | B155: 18007 | C155: 22 | D155: 18012 | E155: 23 | F155: 18018 | K155: 0 | L155: 122
A156: 11 | B156: 18110 | C156: 22 | D156: 18122 | E156: 14 | F156: 18124 | K156: 0 | L156: 121
A157: 11 | B157: 18227 | C157: 11 | D157: 18235 | E157: 21 | F157: 18239 | K157: 0 | L157: 112
A158: 22 | B158: 18335 | C158: 24 | D158: 18339 | E158: 23 | F158: 18354 | K158: 0 | L158: 222
A159: 22 | B159: 18456 | C159: 24 | D159: 18460 | E159: 23 | F159: 18465 | K159: 0 | L159: 222
A160: 22 | B160: 18563 | C160: 13 | D160: 18565 | E160: 23 | F160: 18567 | K160: 0 | L160: 212
A161: 22 | B161: 18683 | C161: 13 | D161: 18687 | E161: 23 | F161: 18697 | K161: 0 | L161: 212
A162: 11 | B162: 18799 | C162: 11 | D162: 18810 | E162: 21 | F162: 18813 | K162: 0 | L162: 112
A163: 11 | B163: 18902 | C163: 22 | D163: 18914 | E163: 23 | F163: 18919 | K163: 0 | L163: 122
A164: 22 | B164: 19018 | C164: 24 | D164: 19024 | E164: 23 | F164: 19029 | K164: 0 | L164: 222
A165: 11 | B165: 19126 | C165: 22 | D165: 19132 | E165: 23 | F165: 19136 | K165: 0 | L165: 122
A166: 22 | B166: 19248 | C166: 24 | D166: 19251 | E166: 14 | F166: 19255 | K166: 0 | L166: 221
A167: 11 | B167: 19361 | C167: 22 | D167: 19363 | E167: 23 | F167: 19368 | K167: 0 | L167: 122
A168: 22 | B168: 19469 | C168: 13 | D168: 19472 | E168: 23 | F168: 19478 | K168: 0 | L168: 212
A169: 22 | B169: 19578 | C169: 24 | D169: 19585 | E169: 23 | F169: 19592 | K169: 0 | L169: 222
A170: 11 | B170: 19691 | C170: 22 | D170: 19699 | E170: 23 | F170: 19705 | K170: 0 | L170: 122
A171: 11 | B171: 19812 | C171: 22 | D171: 19820 | E171: 14 | F171: 19826 | K171: 0 | L171: 121
A172: 11 | B172: 19918 | C172: 11 | D172: 19932 | E172: 21 | F172: 19937 | K172: 0 | L172: 112
A173: 11 | B173: 20031 | C173: 22 | D173: 20044 | E173: 23 | F173: 20052 | K173: 0 | L173: 122
A174: 22 | B174: 20152 | C174: 13 | D174: 20154 | E174: 23 | F174: 20164 | K174: 0 | L174: 212
A175: 11 | B175: 20265 | C175: 22 | D175: 20271 | E175: 23 | F175: 20276 | K175: 0 | L175: 122
A176: 11 | B176: 20374 | C176: 22 | D176: 20386 | E176: 23 | F176: 20390 | K176: 0 | L176: 122
A177: 22 | B177: 20493 | C177: 13 | D177: 20496 | E177: 23 | F177: 20498 | K177: 0 | L177: 212
A178: 22 | B178: 20643 | C178: 24 | D178: 20648 | E178: 23 | F178: 20657 | K178: 0 | L178: 222
A179: 11 | B179: 20859 | C179: 11 | D179: 20861 | E179: 12 | F179: 20866 | K179: 0 | L179: 111
A180: 11 | B180: 20957 | C180: 11 | D180: 20962 | E180: 12 | F180: 20969 | K180: 0 | L180: 111
A181: 11 | B181: 21067 | C181: 22 | D181: 21089 | E181: 23 | F181: 21095 | K181: 0 | L181: 122
A182: 22 | B182: 21196 | C182: 24 | D182: 21206 | E182: 23 | F182: 21212 | K182: 0 | L182: 222
A183: 22 | B183: 21339 | C183: 24 | D183: 21349 | E183: 23 | F183: 21355 | K183: 0 | L183: 222
A184: 11 | B184: 21455 | C184: 22 | D184: 21461 | E184: 23 | F184: 21466 | K184: 0 | L184: 122
A185: 22 | B185: 21572 | C185: 13 | D185: 21575 | E185: 23 | F185: 21582 | K185: 0 | L185: 212
A186: 11 | B186: 21680 | C186: 22 | D186: 21685 | E186: 23 | F186: 21691 | K186: 0 | L186: 122
A187: 22 | B187: 21796 | C187: 24 | D187: 21805 | E187: 23 | F187: 21811 | K187: 0 | L187: 222
A188: 11 | B188: 21905 | C188: 22 | D188: 21918 | E188: 23 | F188: 21922 | K188: 0 | L188: 122
A189: 22 | B189: 22036 | C189: 24 | D189: 22041 | E189: 23 | F189: 22046 | K189: 0 | L189: 222
A190: 11 | B190: 22150 | C190: 22 | D190: 22155 | E190: 23 | F190: 22157 | K190: 0 | L190: 122
A191: 11 | B191: 22260 | C191: 22 | D191: 22269 | E191: 23 | F191: 22275 | K191: 0 | L191: 122
A192: 22 | B192: 22381 | C192: 13 | D192: 22386 | E192: 23 | F192: 22389 | K192: 0 | L192: 212
A193: 22 | B193: 22502 | C193: 24 | D193: 22511 | E193: 23 | F193: 22518 | K193: 0 | L193: 222
A194: 11 | B194: 22640 | C194: 11 | D194: 22641 | E194: 12 | F194: 22647 | K194: 0 | L194: 111
A195: 22 | B195: 22761 | C195: 13 | D195: 22763 | E195: 23 | F195: 22767 | K195: 0 | L195: 212
A196: 11 | B196: 22872 | C196: 11 | D196: 22883 | E196: 21 | F196: 22897 | K196: 0 | L196: 112
A197: 11 | B197: 22988 | C197: 22 | D197: 22997 | E197: 23 | F197: 23002 | K197: 0 | L197: 122
A198: 11 | B198: 23109 | C198: 22 | D198: 23111 | E198: 23 | F198: 23124 | K198: 0 | L198: 122
A199: 11 | B199: 23223 | C199: 22 | D199: 23236 | E199: 23 | F199: 23246 | K199: 0 | L199: 122
A200: 11 | B200: 23348 | C200: 22 | D200: 23354 | E200: 23 | F200: 23359 | K200: 0 | L200: 122
... 5 more rows

Sheet !N106900.Gus
A1: Report for:!N106900.Gus
A2: Date: | B2: <date>
A3: Hen: | B3: <hen> | F3: Correct Sequence | G3: =Start!J2 -> 112 | P3: Total Sequences in Data | Q3: =4994-COUNTBLANK(L7:L5000) -> 167 | V3: Total Sequences in Block Data | W3: =COUNTA(L7:L34) -> 28 | AA3: Total Sequences in Block Data | AB3: =COUNTA(L35:L62) -> 28 | AF3: Total Sequences in Block Data | AG3: =COUNTA(L63:L89) -> 27 | AK3: Total Sequences in Block Data | AL3: =COUNTA(L90:L117) -> 28 | AP3: Total Sequences in Block Data | AQ3: =COUNTA(L118:L145) -> 28 | AU3: Total Sequences in Block Data | AV3: =COUNTA(L146:L173) -> 28
P4: Total Sequences in Summary | Q4: =SUM(O7:O14) -> 167 | V4: Total Sequences in Block Summary | W4: =SUM(U7:U14) -> 28 | AA4: Total Sequences in Block Summary | AB4: =SUM(Z7:Z14) -> 28 | AF4: Total Sequences in Block Summary | AG4: =SUM(AE7:AE14) -> 27 | AK4: Total Sequences in Block Summary | AL4: =SUM(AJ7:AJ14) -> 28 | AP4: Total Sequences in Block Summary | AQ4: =SUM(AO7:AO14) -> 28 | AU4: Total Sequences in Block Summary | AV4: =SUM(AT7:AT14) -> 28
T5: Block 1 | Y5: Block 2 | AD5: Block 3 | AI5: Block 4 | AN5: Block 5 | AS5: Block 6
A6: Sequence Component 1 | B6: Time 1 | C6: Sequence Component 2 | D6: Time 2 | E6: Sequence Component 3 | F6: Time 3 | G6: Sequence Component 4 | H6: Time 4 | I6: Sequence Component 5 | J6: Time 5 | K6: Correct? 0=No 1=Yes | L6: Sequence | N6: Frequency | P6: Relative Frequency | Q6: Variability | T6: Frequency | V6: Relative Frequency | W6: Variability | Y6: Frequency | AA6: Relative Frequency | AB6: Variability | AD6: Frequency | AF6: Relative Frequency | AG6: Variability | AI6: Frequency | AK6: Relative Frequency | AL6: Variability | AN6: Frequency | AP6: Relative Frequency | AQ6: Variability | AS6: Frequency | AU6: Relative Frequency | AV6: Variability
A7: 11 | B7: 22 | C7: 22 | D7: 37 | E7: 23 | F7: 40 | K7: 0 | L7: 122 | N7: 111 | O7: =COUNTIF($L$7:$L$500,N7) -> 9 | P7: =O7/$Q$4 -> 0.05389221557 | Q7: =IF(P7=0,0,(P7*((LOG(P7))/LOG(2)))) -> -0.2270899019 | T7: =N7 -> 111 | U7: =COUNTIF(L7:L34,T7) -> 2 | V7: =U7/(W4-U8) -> 0.07407407407 | W7: =IF(V7=0,0,(V7*((LOG(V7))/LOG(2)))) -> -0.278139815 | Y7: =N7 -> 111 | Z7: =COUNTIF(L35:L62,Y7) -> 1 | AA7: =Z7/(AB4-Z8) -> 0.03703703704 | AB7: =IF(AA7=0,0,(AA7*((LOG(AA7))/LOG(2)))) -> -0.1761069445 | AD7: =N7 -> 111 | AE7: =COUNTIF(L63:L89,AD7) -> 1 | AF7: =AE7/(AG4-AE8) -> 0.04 | AG7: =IF(AF7=0,0,(AF7*((LOG(AF7))/LOG(2)))) -> -0.1857542476 | AI7: =N7 -> 111 | AJ7: =COUNTIF(L90:L117,AI7) -> 0 | AK7: =AJ7/(AL4-AJ8) -> 0 | AL7: =IF(AK7=0,0,(AK7*((LOG(AK7))/LOG(2)))) -> 0 | AN7: =N7 -> 111 | AO7: =COUNTIF(L118:L145,AN7) -> 0 | AP7: =AO7/(AQ4-AO8) -> 0 | AQ7: =IF(AP7=0,0,(AP7*((LOG(AP7))/LOG(2)))) -> 0 | AS7: =N7 -> 111 | AT7: =COUNTIF(L146:L173,AS7) -> 5 | AU7: =AT7/(AV4-AT8) -> 0.2083333333 | AV7: =IF(AU7=0,0,(AU7*((LOG(AU7))/LOG(2)))) -> -0.4714655012
A8: 22 | B8: 138 | C8: 24 | D8: 151 | E8: 14 | F8: 154 | K8: 0 | L8: 221 | N8: 112 | O8: 12 | P8: 0.07185628743 | Q8: -0.272963482 | T8: 112 | U8: =COUNTIF(L7:L34,T8) -> 1 | Y8: 112 | Z8: =COUNTIF(L35:L62,Y8) -> 1 | AD8: 112 | AE8: =COUNTIF(L63:L89,AD8) -> 2 | AI8: 112 | AJ8: =COUNTIF(L90:L117,AI8) -> 1 | AN8: 112 | AO8: =COUNTIF(L118:L145,AN8) -> 3 | AS8: 112 | AT8: =COUNTIF(L146:L173,AS8) -> 4
A9: 22 | B9: 252 | C9: 13 | D9: 258 | E9: 23 | F9: 260 | K9: 0 | L9: 212 | N9: 121 | O9: 10 | P9: 0.05988023952 | Q9: -0.2432201316 | T9: 121 | U9: =COUNTIF(L7:L34,T9) -> 3 | V9: =U9/(W4-U8) -> 0.1111111111 | W9: =IF(V9=0,0,(V9*((LOG(V9))/LOG(2)))) -> -0.352213889 | Y9: 121 | Z9: =COUNTIF(L35:L62,Y9) -> 1 | AA9: =Z9/(AB4-Z8) -> 0.03703703704 | AB9: =IF(AA9=0,0,(AA9*((LOG(AA9))/LOG(2)))) -> -0.1761069445 | AD9: 121 | AE9: =COUNTIF(L63:L89,AD9) -> 2 | AF9: =AE9/(AG4-AE8) -> 0.08 | AG9: =IF(AF9=0,0,(AF9*((LOG(AF9))/LOG(2)))) -> -0.2915084952 | AI9: 121 | AJ9: =COUNTIF(L90:L117,AI9) -> 3 | AK9: =AJ9/(AL4-AJ8) -> 0.1111111111 | AL9: =IF(AK9=0,0,(AK9*((LOG(AK9))/LOG(2)))) -> -0.352213889 | AN9: 121 | AO9: =COUNTIF(L118:L145,AN9) -> 1 | AP9: =AO9/(AQ4-AO8) -> 0.04 | AQ9: =IF(AP9=0,0,(AP9*((LOG(AP9))/LOG(2)))) -> -0.1857542476 | AS9: 121 | AT9: =COUNTIF(L146:L173,AS9) -> 0 | AU9: =AT9/(AV4-AT8) -> 0 | AV9: =IF(AU9=0,0,(AU9*((LOG(AU9))/LOG(2)))) -> 0
A10: 22 | B10: 368 | C10: 24 | D10: 373 | E10: 23 | F10: 378 | K10: 0 | L10: 222 | N10: 122 | O10: 52 | P10: 0.3113772455 | Q10: -0.5241302866 | T10: 122 | U10: =COUNTIF(L7:L34,T10) -> 6 | V10: =U10/(W4-U8) -> 0.2222222222 | W10: -0.4822055559 | Y10: 122 | Z10: =COUNTIF(L35:L62,Y10) -> 13 | AA10: =Z10/(AB4-Z8) -> 0.4814814815 | AB10: -0.5076970812 | AD10: 122 | AE10: =COUNTIF(L63:L89,AD10) -> 8 | AF10: =AE10/(AG4-AE8) -> 0.32 | AG10: -0.5260339807 | AI10: 122 | AJ10: =COUNTIF(L90:L117,AI10) -> 10 | AK10: =AJ10/(AL4-AJ8) -> 0.3703703704 | AL10: -0.5307257064 | AN10: 122 | AO10: =COUNTIF(L118:L145,AN10) -> 9 | AP10: =AO10/(AQ4-AO8) -> 0.36 | AQ10: -0.5306152278 | AS10: 122 | AT10: =COUNTIF(L146:L173,AS10) -> 6 | AU10: =AT10/(AV4-AT8) -> 0.25 | AV10: -0.5
A11: 22 | B11: 521 | C11: 24 | D11: 524 | E11: 23 | F11: 535 | K11: 0 | L11: 222 | N11: 211 | O11: 2 | P11: 0.0119760479 | Q11: -0.07645154841 | T11: 211 | U11: =COUNTIF(L7:L34,T11) -> 0 | V11: =U11/(W4-U8) -> 0 | W11: 0 | Y11: 211 | Z11: =COUNTIF(L35:L62,Y11) -> 0 | AA11: =Z11/(AB4-Z8) -> 0 | AB11: 0 | AD11: 211 | AE11: =COUNTIF(L63:L89,AD11) -> 0 | AF11: =AE11/(AG4-AE8) -> 0 | AG11: 0 | AI11: 211 | AJ11: =COUNTIF(L90:L117,AI11) -> 1 | AK11: =AJ11/(AL4-AJ8) -> 0.03703703704 | AL11: -0.1761069445 | AN11: 211 | AO11: =COUNTIF(L118:L145,AN11) -> 1 | AP11: =AO11/(AQ4-AO8) -> 0.04 | AQ11: -0.1857542476 | AS11: 211 | AT11: =COUNTIF(L146:L173,AS11) -> 0 | AU11: =AT11/(AV4-AT8) -> 0 | AV11: 0
A12: 11 | B12: 627 | C12: 22 | D12: 635 | E12: 23 | F12: 642 | K12: 0 | L12: 122 | N12: 212 | O12: 29 | P12: 0.1736526946 | Q12: -0.4385986564 | T12: 212 | U12: =COUNTIF(L7:L34,T12) -> 4 | V12: =U12/(W4-U8) -> 0.1481481481 | W12: -0.4081314818 | Y12: 212 | Z12: =COUNTIF(L35:L62,Y12) -> 5 | AA12: =Z12/(AB4-Z8) -> 0.1851851852 | AB12: -0.4505480384 | AD12: 212 | AE12: =COUNTIF(L63:L89,AD12) -> 7 | AF12: =AE12/(AG4-AE8) -> 0.28 | AG12: -0.514220355 | AI12: 212 | AJ12: =COUNTIF(L90:L117,AI12) -> 5 | AK12: =AJ12/(AL4-AJ8) -> 0.1851851852 | AL12: -0.4505480384 | AN12: 212 | AO12: =COUNTIF(L118:L145,AN12) -> 4 | AP12: =AO12/(AQ4-AO8) -> 0.16 | AQ12: -0.4230169904 | AS12: 212 | AT12: =COUNTIF(L146:L173,AS12) -> 4 | AU12: =AT12/(AV4-AT8) -> 0.1666666667 | AV12: -0.4308270835
A13: 22 | B13: 744 | C13: 24 | D13: 757 | E13: 23 | F13: 765 | K13: 0 | L13: 222 | N13: 221 | O13: 21 | P13: 0.125748503 | Q13: -0.3761624207 | T13: 221 | U13: =COUNTIF(L7:L34,T13) -> 5 | V13: =U13/(W4-U8) -> 0.1851851852 | W13: -0.4505480384 | Y13: 221 | Z13: =COUNTIF(L35:L62,Y13) -> 3 | AA13: =Z13/(AB4-Z8) -> 0.1111111111 | AB13: -0.352213889 | AD13: 221 | AE13: =COUNTIF(L63:L89,AD13) -> 3 | AF13: =AE13/(AG4-AE8) -> 0.12 | AG13: -0.3670672427 | AI13: 221 | AJ13: =COUNTIF(L90:L117,AI13) -> 2 | AK13: =AJ13/(AL4-AJ8) -> 0.07407407407 | AL13: -0.278139815 | AN13: 221 | AO13: =COUNTIF(L118:L145,AN13) -> 6 | AP13: =AO13/(AQ4-AO8) -> 0.24 | AQ13: -0.4941344854 | AS13: 221 | AT13: =COUNTIF(L146:L173,AS13) -> 2 | AU13: =AT13/(AV4-AT8) -> 0.08333333333 | AV13: -0.2987468751
A14: 11 | B14: 861 | C14: 11 | D14: 874 | E14: 12 | F14: 891 | K14: 0 | L14: 111 | N14: 222 | O14: 32 | P14: 0.1916167665 | Q14: -0.4567577087 | T14: 222 | U14: =COUNTIF(L7:L34,T14) -> 7 | V14: =U14/(W4-U8) -> 0.2592592593 | W14: -0.5049158541 | Y14: 222 | Z14: =COUNTIF(L35:L62,Y14) -> 4 | AA14: =Z14/(AB4-Z8) -> 0.1481481481 | AB14: -0.4081314818 | AD14: 222 | AE14: =COUNTIF(L63:L89,AD14) -> 4 | AF14: =AE14/(AG4-AE8) -> 0.16 | AG14: -0.4230169904 | AI14: 222 | AJ14: =COUNTIF(L90:L117,AI14) -> 6 | AK14: =AJ14/(AL4-AJ8) -> 0.2222222222 | AL14: -0.4822055559 | AN14: 222 | AO14: =COUNTIF(L118:L145,AN14) -> 4 | AP14: =AO14/(AQ4-AO8) -> 0.16 | AQ14: -0.4230169904 | AS14: 222 | AT14: =COUNTIF(L146:L173,AS14) -> 7 | AU14: =AT14/(AV4-AT8) -> 0.2916666667 | AV14: -0.5184688771
A15: 22 | B15: 1008 | C15: 13 | D15: 1010 | E15: 23 | F15: 1013 | K15: 0 | L15: 212 | P15: =SUM(P7:P14) -> 1 | Q15: =-SUM(Q7:Q14) -> 2.615374136 | V15: =SUM(V7:V14) -> 1 | W15: =-SUM(W7:W14) -> 2.476154634 | AA15: =SUM(AA7:AA14) -> 1 | AB15: =-SUM(AB7:AB14) -> 2.070804379 | AF15: =SUM(AF7:AF14) -> 1 | AG15: =-SUM(AG7:AG14) -> 2.307601312 | AK15: =SUM(AK7:AK14) -> 1 | AL15: =-SUM(AL7:AL14) -> 2.269939949 | AP15: =SUM(AP7:AP14) -> 1 | AQ15: =-SUM(AQ7:AQ14) -> 2.242292189 | AU15: =SUM(AU7:AU14) -> 1 | AV15: =-SUM(AV7:AV14) -> 2.219508337
A16: 22 | B16: 1115 | C16: 24 | D16: 1120 | E16: 14 | F16: 1124 | K16: 0 | L16: 221 | P16: U= | Q16: =Q15/(LOG(Q4)/LOG(2)) -> 0.3542089489 | V16: U1= | W16: =W15/(LOG(W4)/LOG(2)) -> 0.51507631 | AA16: U2= | AB16: =AB15/(LOG(AB4)/LOG(2)) -> 0.4307575399 | AF16: U3= | AG16: =AG15/(LOG(AG4)/LOG(2)) -> 0.4853114423 | AK16: U4= | AL16: =AL15/(LOG(AL4)/LOG(2)) -> 0.4721806453 | AP16: U5= | AQ16: =AQ15/(LOG(AQ4)/LOG(2)) -> 0.4664295076 | AU16: U6= | AV16: =AV15/(LOG(AV4)/LOG(2)) -> 0.4616901337
A17: 11 | B17: 1223 | C17: 22 | D17: 1239 | E17: 14 | F17: 1241 | K17: 0 | L17: 121
A18: 22 | B18: 1353 | C18: 24 | D18: 1355 | E18: 14 | F18: 1359 | K18: 0 | L18: 221
A19: 22 | B19: 1477 | C19: 13 | D19: 1480 | E19: 23 | F19: 1496 | K19: 0 | L19: 212 | N19: Total Target Seq
A20: 22 | B20: 1608 | C20: 24 | D20: 1615 | E20: 14 | F20: 1617 | K20: 0 | L20: 221 | N20: =COUNTIF(L7:L173,G3) -> 12 | P20: 28 | Q20: 28 | R20: 27 | S20: 28 | T20: 28 | U20: 28
A21: 11 | B21: 1721 | C21: 22 | D21: 1726 | E21: 23 | F21: 1731 | K21: 0 | L21: 122 | P21: % of reinforcement given in 6 equal intervals based on number of trials
A22: 22 | B22: 1830 | C22: 24 | D22: 1837 | E22: 23 | F22: 1843 | K22: 0 | L22: 222 | P22: %_1 | Q22: %_2 | R22: %_3 | S22: %_4 | T22: %_5 | U22: %_6
A23: 22 | B23: 1962 | C23: 13 | D23: 1967 | E23: 23 | F23: 1972 | K23: 0 | L23: 212 | O23: target sequence | P23: =$G$3 -> 112 | Q23: 112 | R23: 112 | S23: 112 | T23: 112 | U23: 112
A24: 11 | B24: 2077 | C24: 22 | D24: 2086 | E24: 23 | F24: 2090 | K24: 0 | L24: 122 | O24: total reinforcement | P24: =U8 -> 1 | Q24: =Z8 -> 1 | R24: =AE8 -> 2 | S24: =AJ8 -> 1 | T24: =AO8 -> 3 | U24: =AT8 -> 4
A25: 11 | B25: 2199 | C25: 22 | D25: 2207 | E25: 23 | F25: 2211 | K25: 0 | L25: 122 | O25: % target
A26: 22 | B26: 2317 | C26: 24 | D26: 2324 | E26: 23 | F26: 2330 | K26: 0 | L26: 222 | O26: CCRF
A27: 11 | B27: 2437 | C27: 22 | D27: 2439 | E27: 23 | F27: 2446 | K27: 0 | L27: 122 | O27: % CCRf
A28: 22 | B28: 2565 | C28: 24 | D28: 2569 | E28: 14 | F28: 2578 | K28: 0 | L28: 221 | O28: average response rate | P28: =F34/P20 -> 117.4642857 | Q28: =(F62-F34)/Q20 -> 118.7142857 | R28: =(F89-F62)/R20 -> 123.7407407 | S28: =(F117-F89)/S20 -> 118.1428571 | T28: =(F145-F117)/T20 -> 148.1071429 | U28: =(F173-F145)/U20 -> 230
A29: 11 | B29: 2676 | C29: 11 | D29: 2679 | E29: 12 | F29: 2688 | K29: 0 | L29: 111
A30: 11 | B30: 2792 | C30: 11 | D30: 2803 | E30: 21 | F30: 2808 | K30: 0 | L30: 112
A31: 22 | B31: 2929 | C31: 24 | D31: 2933 | E31: 23 | F31: 2941 | K31: 0 | L31: 222
A32: 22 | B32: 3049 | C32: 24 | D32: 3055 | E32: 23 | F32: 3062 | K32: 0 | L32: 222
A33: 11 | B33: 3162 | C33: 22 | D33: 3173 | E33: 14 | F33: 3176 | K33: 0 | L33: 121
A34: 11 | B34: 3274 | C34: 22 | D34: 3284 | E34: 14 | F34: 3289 | K34: 0 | L34: 121
A35: 22 | B35: 3408 | C35: 24 | D35: 3422 | E35: 23 | F35: 3429 | K35: 0 | L35: 222
A36: 11 | B36: 3536 | C36: 11 | D36: 3544 | E36: 21 | F36: 3552 | K36: 0 | L36: 112
A37: 22 | B37: 3675 | C37: 24 | D37: 3680 | E37: 14 | F37: 3683 | K37: 0 | L37: 221
A38: 22 | B38: 3783 | C38: 24 | D38: 3785 | E38: 14 | F38: 3787 | K38: 0 | L38: 221
A39: 22 | B39: 3890 | C39: 13 | D39: 3898 | E39: 23 | F39: 3902 | K39: 0 | L39: 212
A40: 11 | B40: 4001 | C40: 22 | D40: 4012 | E40: 23 | F40: 4016 | K40: 0 | L40: 122
A41: 11 | B41: 4140 | C41: 22 | D41: 4145 | E41: 23 | F41: 4153 | K41: 0 | L41: 122
A42: 11 | B42: 4256 | C42: 22 | D42: 4259 | E42: 23 | F42: 4263 | K42: 0 | L42: 122
A43: 11 | B43: 4367 | C43: 22 | D43: 4386 | E43: 23 | F43: 4398 | K43: 0 | L43: 122
A44: 11 | B44: 4494 | C44: 22 | D44: 4503 | E44: 23 | F44: 4507 | K44: 0 | L44: 122
A45: 22 | B45: 4610 | C45: 13 | D45: 4612 | E45: 23 | F45: 4617 | K45: 0 | L45: 212
A46: 22 | B46: 4715 | C46: 13 | D46: 4720 | E46: 23 | F46: 4725 | K46: 0 | L46: 212
A47: 11 | B47: 4823 | C47: 22 | D47: 4826 | E47: 23 | F47: 4831 | K47: 0 | L47: 122
A48: 22 | B48: 4931 | C48: 13 | D48: 4940 | E48: 23 | F48: 4941 | K48: 0 | L48: 212
A49: 11 | B49: 5033 | C49: 22 | D49: 5044 | E49: 14 | F49: 5051 | K49: 0 | L49: 121
A50: 11 | B50: 5152 | C50: 22 | D50: 5159 | E50: 23 | F50: 5169 | K50: 0 | L50: 122
A51: 11 | B51: 5261 | C51: 22 | D51: 5270 | E51: 23 | F51: 5278 | K51: 0 | L51: 122
A52: 22 | B52: 5385 | C52: 24 | D52: 5390 | E52: 23 | F52: 5397 | K52: 0 | L52: 222
A53: 11 | B53: 5497 | C53: 22 | D53: 5507 | E53: 23 | F53: 5511 | K53: 0 | L53: 122
A54: 11 | B54: 5618 | C54: 22 | D54: 5626 | E54: 23 | F54: 5640 | K54: 0 | L54: 122
A55: 11 | B55: 5739 | C55: 22 | D55: 5755 | E55: 23 | F55: 5761 | K55: 0 | L55: 122
A56: 22 | B56: 5882 | C56: 24 | D56: 5887 | E56: 14 | F56: 5891 | K56: 0 | L56: 221
A57: 11 | B57: 5989 | C57: 22 | D57: 6004 | E57: 23 | F57: 6009 | K57: 0 | L57: 122
A58: 11 | B58: 6101 | C58: 11 | D58: 6110 | E58: 12 | F58: 6116 | K58: 0 | L58: 111
A59: 22 | B59: 6234 | C59: 24 | D59: 6246 | E59: 23 | F59: 6253 | K59: 0 | L59: 222
A60: 11 | B60: 6352 | C60: 22 | D60: 6365 | E60: 23 | F60: 6372 | K60: 0 | L60: 122
A61: 22 | B61: 6477 | C61: 24 | D61: 6486 | E61: 23 | F61: 6492 | K61: 0 | L61: 222
A62: 22 | B62: 6605 | C62: 13 | D62: 6610 | E62: 23 | F62: 6613 | K62: 0 | L62: 212
A63: 11 | B63: 6709 | C63: 11 | D63: 6716 | E63: 12 | F63: 6721 | K63: 0 | L63: 111
A64: 11 | B64: 6854 | C64: 11 | D64: 6858 | E64: 21 | F64: 6869 | K64: 0 | L64: 112
A65: 11 | B65: 6984 | C65: 22 | D65: 6991 | E65: 23 | F65: 7000 | K65: 0 | L65: 122
A66: 11 | B66: 7105 | C66: 22 | D66: 7122 | E66: 23 | F66: 7133 | K66: 0 | L66: 122
A67: 11 | B67: 7238 | C67: 22 | D67: 7249 | E67: 23 | F67: 7255 | K67: 0 | L67: 122
A68: 22 | B68: 7355 | C68: 24 | D68: 7358 | E68: 23 | F68: 7364 | K68: 0 | L68: 222
A69: 22 | B69: 7472 | C69: 24 | D69: 7474 | E69: 23 | F69: 7480 | K69: 0 | L69: 222
A70: 22 | B70: 7584 | C70: 13 | D70: 7587 | E70: 23 | F70: 7589 | K70: 0 | L70: 212
A71: 22 | B71: 7691 | C71: 24 | D71: 7697 | E71: 23 | F71: 7702 | K71: 0 | L71: 222
A72: 22 | B72: 7798 | C72: 24 | D72: 7804 | E72: 14 | F72: 7805 | K72: 0 | L72: 221
A73: 11 | B73: 7904 | C73: 22 | D73: 7910 | E73: 23 | F73: 7915 | K73: 0 | L73: 122
A74: 11 | B74: 8010 | C74: 11 | D74: 8023 | E74: 21 | F74: 8026 | K74: 0 | L74: 112
A75: 22 | B75: 8157 | C75: 13 | D75: 8171 | E75: 23 | F75: 8174 | K75: 0 | L75: 212
A76: 11 | B76: 8276 | C76: 22 | D76: 8280 | E76: 23 | F76: 8288 | K76: 0 | L76: 122
A77: 11 | B77: 8399 | C77: 22 | D77: 8408 | E77: 23 | F77: 8414 | K77: 0 | L77: 122
A78: 22 | B78: 8517 | C78: 24 | D78: 8520 | E78: 14 | F78: 8523 | K78: 0 | L78: 221
A79: 22 | B79: 8649 | C79: 24 | D79: 8651 | E79: 14 | F79: 8654 | K79: 0 | L79: 221
A80: 11 | B80: 8758 | C80: 22 | D80: 8761 | E80: 23 | F80: 8766 | K80: 0 | L80: 122
A81: 11 | B81: 8872 | C81: 22 | D81: 8883 | E81: 14 | F81: 8886 | K81: 0 | L81: 121
A82: 22 | B82: 9122 | C82: 13 | D82: 9131 | E82: 23 | F82: 9138 | K82: 0 | L82: 212
A83: 22 | B83: 9242 | C83: 24 | D83: 9250 | E83: 23 | F83: 9257 | K83: 0 | L83: 222
A84: 22 | B84: 9372 | C84: 13 | D84: 9377 | E84: 23 | F84: 9391 | K84: 0 | L84: 212
A85: 22 | B85: 9492 | C85: 13 | D85: 9496 | E85: 23 | F85: 9499 | K85: 0 | L85: 212
A86: 11 | B86: 9594 | C86: 22 | D86: 9600 | E86: 23 | F86: 9607 | K86: 0 | L86: 122
A87: 22 | B87: 9716 | C87: 13 | D87: 9720 | E87: 23 | F87: 9725 | K87: 0 | L87: 212
A88: 22 | B88: 9831 | C88: 13 | D88: 9835 | E88: 23 | F88: 9841 | K88: 0 | L88: 212
A89: 11 | B89: 9939 | C89: 22 | D89: 9949 | E89: 14 | F89: 9954 | K89: 0 | L89: 121
A90: 11 | B90: 10054 | C90: 22 | D90: 10059 | E90: 23 | F90: 10065 | K90: 0 | L90: 122
A91: 22 | B91: 10171 | C91: 13 | D91: 10176 | E91: 23 | F91: 10181 | K91: 0 | L91: 212
A92: 11 | B92: 10276 | C92: 22 | D92: 10281 | E92: 14 | F92: 10285 | K92: 0 | L92: 121
A93: 11 | B93: 10379 | C93: 11 | D93: 10385 | E93: 21 | F93: 10394 | K93: 0 | L93: 112
A94: 22 | B94: 10506 | C94: 13 | D94: 10511 | E94: 14 | F94: 10514 | K94: 0 | L94: 211
A95: 11 | B95: 10619 | C95: 22 | D95: 10627 | E95: 23 | F95: 10632 | K95: 0 | L95: 122
A96: 11 | B96: 10732 | C96: 22 | D96: 10741 | E96: 23 | F96: 10746 | K96: 0 | L96: 122
A97: 11 | B97: 10843 | C97: 22 | D97: 10852 | E97: 23 | F97: 10859 | K97: 0 | L97: 122
A98: 11 | B98: 10966 | C98: 22 | D98: 10991 | E98: 23 | F98: 10997 | K98: 0 | L98: 122
A99: 11 | B99: 11098 | C99: 22 | D99: 11106 | E99: 23 | F99: 11113 | K99: 0 | L99: 122
A100: 22 | B100: 11244 | C100: 24 | D100: 11249 | E100: 23 | F100: 11256 | K100: 0 | L100: 222
A101: 22 | B101: 11361 | C101: 24 | D101: 11369 | E101: 23 | F101: 11374 | K101: 0 | L101: 222
A102: 11 | B102: 11478 | C102: 22 | D102: 11483 | E102: 23 | F102: 11489 | K102: 0 | L102: 122
A103: 22 | B103: 11592 | C103: 13 | D103: 11597 | E103: 23 | F103: 11600 | K103: 0 | L103: 212
A104: 22 | B104: 11705 | C104: 24 | D104: 11711 | E104: 23 | F104: 11716 | K104: 0 | L104: 222
A105: 22 | B105: 11822 | C105: 24 | D105: 11826 | E105: 14 | F105: 11828 | K105: 0 | L105: 221
A106: 22 | B106: 11948 | C106: 24 | D106: 11965 | E106: 23 | F106: 11978 | K106: 0 | L106: 222
A107: 22 | B107: 12091 | C107: 24 | D107: 12095 | E107: 23 | F107: 12101 | K107: 0 | L107: 222
A108: 22 | B108: 12202 | C108: 13 | D108: 12206 | E108: 23 | F108: 12211 | K108: 0 | L108: 212
A109: 11 | B109: 12319 | C109: 22 | D109: 12326 | E109: 23 | F109: 12333 | K109: 0 | L109: 122
A110: 22 | B110: 12443 | C110: 24 | D110: 12447 | E110: 23 | F110: 12452 | K110: 0 | L110: 222
A111: 11 | B111: 12545 | C111: 22 | D111: 12566 | E111: 23 | F111: 12572 | K111: 0 | L111: 122
A112: 11 | B112: 12680 | C112: 22 | D112: 12688 | E112: 23 | F112: 12694 | K112: 0 | L112: 122
A113: 11 | B113: 12787 | C113: 22 | D113: 12800 | E113: 14 | F113: 12804 | K113: 0 | L113: 121
A114: 22 | B114: 12914 | C114: 13 | D114: 12919 | E114: 23 | F114: 12922 | K114: 0 | L114: 212
A115: 11 | B115: 13019 | C115: 22 | D115: 13027 | E115: 14 | F115: 13031 | K115: 0 | L115: 121
A116: 22 | B116: 13136 | C116: 13 | D116: 13139 | E116: 23 | F116: 13145 | K116: 0 | L116: 212
A117: 22 | B117: 13255 | C117: 24 | D117: 13258 | E117: 14 | F117: 13262 | K117: 0 | L117: 221
A118: 11 | B118: 13364 | C118: 11 | D118: 13368 | E118: 21 | F118: 13379 | K118: 0 | L118: 112
A119: 22 | B119: 13481 | C119: 13 | D119: 13483 | E119: 14 | F119: 13487 | K119: 0 | L119: 211
A120: 22 | B120: 13619 | C120: 13 | D120: 13623 | E120: 23 | F120: 13629 | K120: 0 | L120: 212
A121: 11 | B121: 13785 | C121: 11 | D121: 13791 | E121: 21 | F121: 13796 | K121: 0 | L121: 112
A122: 11 | B122: 13903 | C122: 22 | D122: 13907 | E122: 23 | F122: 13914 | K122: 0 | L122: 122
A123: 11 | B123: 14011 | C123: 22 | D123: 14021 | E123: 23 | F123: 14025 | K123: 0 | L123: 122
A124: 11 | B124: 14125 | C124: 22 | D124: 14129 | E124: 23 | F124: 14139 | K124: 0 | L124: 122
A125: 22 | B125: 14242 | C125: 24 | D125: 14247 | E125: 14 | F125: 14251 | K125: 0 | L125: 221
A126: 11 | B126: 14350 | C126: 22 | D126: 14358 | E126: 23 | F126: 14363 | K126: 0 | L126: 122
A127: 11 | B127: 14457 | C127: 11 | D127: 14466 | E127: 21 | F127: 14472 | K127: 0 | L127: 112
A128: 22 | B128: 14571 | C128: 24 | D128: 14583 | E128: 23 | F128: 14600 | K128: 0 | L128: 222
A129: 22 | B129: 14701 | C129: 24 | D129: 14707 | E129: 23 | F129: 14710 | K129: 0 | L129: 222
A130: 22 | B130: 14820 | C130: 24 | D130: 14826 | E130: 14 | F130: 14830 | K130: 0 | L130: 221
A131: 22 | B131: 14950 | C131: 13 | D131: 14952 | E131: 23 | F131: 14956 | K131: 0 | L131: 212
A132: 11 | B132: 15060 | C132: 22 | D132: 15065 | E132: 23 | F132: 15069 | K132: 0 | L132: 122
A133: 22 | B133: 15176 | C133: 24 | D133: 15182 | E133: 14 | F133: 15185 | K133: 0 | L133: 221
A134: 22 | B134: 15294 | C134: 24 | D134: 15299 | E134: 14 | F134: 15303 | K134: 0 | L134: 221
A135: 11 | B135: 15565 | C135: 22 | D135: 15574 | E135: 23 | F135: 15577 | K135: 0 | L135: 122
A136: 22 | B136: 16351 | C136: 24 | D136: 16356 | E136: 23 | F136: 16364 | K136: 0 | L136: 222
A137: 22 | B137: 16464 | C137: 24 | D137: 16470 | E137: 23 | F137: 16474 | K137: 0 | L137: 222
A138: 22 | B138: 16580 | C138: 24 | D138: 16587 | E138: 14 | F138: 16591 | K138: 0 | L138: 221
A139: 11 | B139: 16694 | C139: 22 | D139: 16700 | E139: 23 | F139: 16702 | K139: 0 | L139: 122
A140: 22 | B140: 16818 | C140: 13 | D140: 16820 | E140: 23 | F140: 16823 | K140: 0 | L140: 212
A141: 22 | B141: 16939 | C141: 13 | D141: 16943 | E141: 23 | F141: 16951 | K141: 0 | L141: 212
A142: 22 | B142: 17055 | C142: 24 | D142: 17062 | E142: 14 | F142: 17067 | K142: 0 | L142: 221
A143: 11 | B143: 17168 | C143: 22 | D143: 17174 | E143: 23 | F143: 17184 | K143: 0 | L143: 122
A144: 11 | B144: 17284 | C144: 22 | D144: 17297 | E144: 14 | F144: 17300 | K144: 0 | L144: 121
A145: 11 | B145: 17399 | C145: 22 | D145: 17403 | E145: 23 | F145: 17409 | K145: 0 | L145: 122
A146: 22 | B146: 17515 | C146: 24 | D146: 17521 | E146: 23 | F146: 17528 | K146: 0 | L146: 222
A147: 11 | B147: 17631 | C147: 22 | D147: 17640 | E147: 23 | F147: 17645 | K147: 0 | L147: 122
A148: 11 | B148: 17745 | C148: 11 | D148: 17751 | E148: 12 | F148: 17755 | K148: 0 | L148: 111
A149: 11 | B149: 17852 | C149: 22 | D149: 17862 | E149: 23 | F149: 17867 | K149: 0 | L149: 122
A150: 22 | B150: 17961 | C150: 13 | D150: 17966 | E150: 23 | F150: 17988 | K150: 0 | L150: 212
A151: 11 | B151: 18553 | C151: 11 | D151: 18558 | E151: 21 | F151: 18584 | K151: 0 | L151: 112
A152: 22 | B152: 18676 | C152: 24 | D152: 18680 | E152: 23 | F152: 18688 | K152: 0 | L152: 222
A153: 22 | B153: 18864 | C153: 24 | D153: 18869 | E153: 14 | F153: 18873 | K153: 0 | L153: 221
A154: 11 | B154: 19014 | C154: 22 | D154: 19025 | E154: 23 | F154: 19032 | K154: 0 | L154: 122
A155: 11 | B155: 19589 | C155: 11 | D155: 19594 | E155: 12 | F155: 19602 | K155: 0 | L155: 111
A156: 22 | B156: 19702 | C156: 24 | D156: 19711 | E156: 23 | F156: 19719 | K156: 0 | L156: 222
A157: 22 | B157: 19819 | C157: 24 | D157: 19825 | E157: 23 | F157: 19837 | K157: 0 | L157: 222
A158: 11 | B158: 20178 | C158: 11 | D158: 20182 | E158: 21 | F158: 20194 | K158: 0 | L158: 112
A159: 11 | B159: 20366 | C159: 22 | D159: 20375 | E159: 23 | F159: 20389 | K159: 0 | L159: 122
A160: 22 | B160: 20663 | C160: 24 | D160: 20667 | E160: 23 | F160: 20673 | K160: 0 | L160: 222
A161: 11 | B161: 20774 | C161: 11 | D161: 20777 | E161: 12 | F161: 20780 | K161: 0 | L161: 111
A162: 22 | B162: 20878 | C162: 13 | D162: 20883 | E162: 23 | F162: 20889 | K162: 0 | L162: 212
A163: 11 | B163: 20992 | C163: 22 | D163: 21000 | E163: 23 | F163: 21003 | K163: 0 | L163: 122
A164: 22 | B164: 21123 | C164: 24 | D164: 21126 | E164: 23 | F164: 21136 | K164: 0 | L164: 222
A165: 22 | B165: 21264 | C165: 24 | D165: 21267 | E165: 14 | F165: 21270 | K165: 0 | L165: 221
A166: 11 | B166: 21379 | C166: 11 | D166: 21391 | E166: 21 | F166: 21397 | K166: 0 | L166: 112
A167: 22 | B167: 21493 | C167: 13 | D167: 21501 | E167: 23 | F167: 21507 | K167: 0 | L167: 212
A168: 22 | B168: 21606 | C168: 13 | D168: 21610 | E168: 23 | F168: 21615 | K168: 0 | L168: 212
A169: 11 | B169: 21758 | C169: 22 | D169: 21764 | E169: 23 | F169: 21771 | K169: 0 | L169: 122
A170: 11 | B170: 23301 | C170: 11 | D170: 23305 | E170: 12 | F170: 23308 | K170: 0 | L170: 111
A171: 11 | B171: 23590 | C171: 11 | D171: 23594 | E171: 21 | F171: 23605 | K171: 0 | L171: 112
A172: 22 | B172: 23712 | C172: 24 | D172: 23715 | E172: 23 | F172: 23721 | K172: 0 | L172: 222
A173: 11 | B173: 23842 | C173: 11 | D173: 23846 | E173: 12 | F173: 23849 | K173: 0 | L173: 111

Sheet !N107950.Gus
A1: Report for:!N107950.Gus
A2: Date: | B2: <date>
A3: Hen: | B3: <hen> | F3: Correct Sequence | G3: =Start!J2 -> 112 | P3: Total Sequences in Data | Q3: =4994-COUNTBLANK(L7:L5000) -> 194 | V3: Total Sequences in Block Data | W3: =COUNTA(L7:L38) -> 32 | AA3: Total Sequences in Block Data | AB3: =COUNTA(L39:L71) -> 33 | AF3: Total Sequences in Block Data | AG3: =COUNTA(L72:L103) -> 32 | AK3: Total Sequences in Block Data | AL3: =COUNTA(L104:L135) -> 32 | AP3: Total Sequences in Block Data | AQ3: =COUNTA(L136:L168) -> 33 | AU3: Total Sequences in Block Data | AV3: =COUNTA(L169:L200) -> 32
P4: Total Sequences in Summary | Q4: =SUM(O7:O14) -> 194 | V4: Total Sequences in Block Summary | W4: =SUM(U7:U14) -> 32 | AA4: Total Sequences in Block Summary | AB4: =SUM(Z7:Z14) -> 33 | AF4: Total Sequences in Block Summary | AG4: =SUM(AE7:AE14) -> 32 | AK4: Total Sequences in Block Summary | AL4: =SUM(AJ7:AJ14) -> 32 | AP4: Total Sequences in Block Summary | AQ4: =SUM(AO7:AO14) -> 33 | AU4: Total Sequences in Block Summary | AV4: =SUM(AT7:AT14) -> 32
T5: Block 1 | Y5: Block 2 | AD5: Block 3 | AI5: Block 4 | AN5: Block 5 | AS5: Block 6
A6: Sequence Component 1 | B6: Time 1 | C6: Sequence Component 2 | D6: Time 2 | E6: Sequence Component 3 | F6: Time 3 | G6: Sequence Component 4 | H6: Time 4 | I6: Sequence Component 5 | J6: Time 5 | K6: Correct? 0=No 1=Yes | L6: Sequence | N6: Frequency | P6: Relative Frequency | Q6: Variability | T6: Frequency | V6: Relative Frequency | W6: Variability | Y6: Frequency | AA6: Relative Frequency | AB6: Variability | AD6: Frequency | AF6: Relative Frequency | AG6: Variability | AI6: Frequency | AK6: Relative Frequency | AL6: Variability | AN6: Frequency | AP6: Relative Frequency | AQ6: Variability | AS6: Frequency | AU6: Relative Frequency | AV6: Variability
A7: 11 | B7: 142 | C7: 22 | D7: 153 | E7: 23 | F7: 157 | K7: 0 | L7: 122 | N7: 111 | O7: =COUNTIF($L$7:$L$500,N7) -> 12 | P7: =O7/$Q$4 -> 0.0618556701 | Q7: =IF(P7=0,0,(P7*((LOG(P7))/LOG(2)))) -> -0.2483474438 | T7: =N7 -> 111 | U7: =COUNTIF(L7:L38,T7) -> 2 | V7: =U7/(W4-U8) -> 0.06896551724 | W7: =IF(V7=0,0,(V7*((LOG(V7))/LOG(2)))) -> -0.2660676548 | Y7: =N7 -> 111 | Z7: =COUNTIF(L39:L71,Y7) -> 2 | AA7: =Z7/(AB4-Z8) -> 0.07142857143 | AB7: =IF(AA7=0,0,(AA7*((LOG(AA7))/LOG(2)))) -> -0.271953923 | AD7: =N7 -> 111 | AE7: =COUNTIF(L72:L103,AD7) -> 0 | AF7: =AE7/(AG4-AE8) -> 0 | AG7: =IF(AF7=0,0,(AF7*((LOG(AF7))/LOG(2)))) -> 0 | AI7: =N7 -> 111 | AJ7: =COUNTIF(L104:L135,AI7) -> 4 | AK7: =AJ7/(AL4-AJ8) -> 0.1333333333 | AL7: =IF(AK7=0,0,(AK7*((LOG(AK7))/LOG(2)))) -> -0.3875854127 | AN7: =N7 -> 111 | AO7: =COUNTIF(L136:L168,AN7) -> 3 | AP7: =AO7/(AQ4-AO8) -> 0.1071428571 | AQ7: =IF(AP7=0,0,(AP7*((LOG(AP7))/LOG(2)))) -> -0.3452563309 | AS7: =N7 -> 111 | AT7: =COUNTIF(L169:L200,AS7) -> 1 | AU7: =AT7/(AV4-AT8) -> 0.03703703704 | AV7: =IF(AU7=0,0,(AU7*((LOG(AU7))/LOG(2)))) -> -0.1761069445
A8: 11 | B8: 251 | C8: 22 | D8: 254 | E8: 23 | F8: 258 | K8: 0 | L8: 122 | N8: 112 | O8: 23 | P8: 0.118556701 | Q8: -0.3647220123 | T8: 112 | U8: =COUNTIF(L7:L38,T8) -> 3 | Y8: 112 | Z8: =COUNTIF(L39:L71,Y8) -> 5 | AD8: 112 | AE8: =COUNTIF(L72:L103,AD8) -> 3 | AI8: 112 | AJ8: =COUNTIF(L104:L135,AI8) -> 2 | AN8: 112 | AO8: =COUNTIF(L136:L168,AN8) -> 5 | AS8: 112 | AT8: =COUNTIF(L169:L200,AS8) -> 5
A9: 22 | B9: 369 | C9: 24 | D9: 372 | E9: 23 | F9: 385 | K9: 0 | L9: 222 | N9: 121 | O9: 11 | P9: 0.05670103093 | Q9: -0.2347695539 | T9: 121 | U9: =COUNTIF(L7:L38,T9) -> 1 | V9: =U9/(W4-U8) -> 0.03448275862 | W9: =IF(V9=0,0,(V9*((LOG(V9))/LOG(2)))) -> -0.167516586 | Y9: 121 | Z9: =COUNTIF(L39:L71,Y9) -> 0 | AA9: =Z9/(AB4-Z8) -> 0 | AB9: =IF(AA9=0,0,(AA9*((LOG(AA9))/LOG(2)))) -> 0 | AD9: 121 | AE9: =COUNTIF(L72:L103,AD9) -> 6 | AF9: =AE9/(AG4-AE8) -> 0.2068965517 | AG9: =IF(AF9=0,0,(AF9*((LOG(AF9))/LOG(2)))) -> -0.4702796885 | AI9: 121 | AJ9: =COUNTIF(L104:L135,AI9) -> 1 | AK9: =AJ9/(AL4-AJ8) -> 0.03333333333 | AL9: =IF(AK9=0,0,(AK9*((LOG(AK9))/LOG(2)))) -> -0.1635630199 | AN9: 121 | AO9: =COUNTIF(L136:L168,AN9) -> 2 | AP9: =AO9/(AQ4-AO8) -> 0.07142857143 | AQ9: =IF(AP9=0,0,(AP9*((LOG(AP9))/LOG(2)))) -> -0.271953923 | AS9: 121 | AT9: =COUNTIF(L169:L200,AS9) -> 1 | AU9: =AT9/(AV4-AT8) -> 0.03703703704 | AV9: =IF(AU9=0,0,(AU9*((LOG(AU9))/LOG(2)))) -> -0.1761069445
A10: 11 | B10: 527 | C10: 22 | D10: 530 | E10: 23 | F10: 534 | K10: 0 | L10: 122 | N10: 122 | O10: 101 | P10: 0.5206185567 | Q10: -0.4902672026 | T10: 122 | U10: =COUNTIF(L7:L38,T10) -> 16 | V10: =U10/(W4-U8) -> 0.5517241379 | W10: -0.4733688249 | Y10: 122 | Z10: =COUNTIF(L39:L71,Y10) -> 16 | AA10: =Z10/(AB4-Z8) -> 0.5714285714 | AB10: -0.4613456697 | AD10: 122 | AE10: =COUNTIF(L72:L103,AD10) -> 19 | AF10: =AE10/(AG4-AE8) -> 0.6551724138 | AG10: -0.3996902121 | AI10: 122 | AJ10: =COUNTIF(L104:L135,AI10) -> 20 | AK10: =AJ10/(AL4-AJ8) -> 0.6666666667 | AL10: -0.3899750005 | AN10: 122 | AO10: =COUNTIF(L136:L168,AN10) -> 12 | AP10: =AO10/(AQ4-AO8) -> 0.4285714286 | AQ10: -0.5238824663 | AS10: 122 | AT10: =COUNTIF(L169:L200,AS10) -> 18 | AU10: =AT10/(AV4-AT8) -> 0.6666666667 | AV10: -0.3899750005
A11: 11 | B11: 692 | C11: 22 | D11: 710 | E11: 23 | F11: 716 | K11: 0 | L11: 122 | N11: 211 | O11: 1 | P11: 0.005154639175 | Q11: -0.03917480846 | T11: 211 | U11: =COUNTIF(L7:L38,T11) -> 0 | V11: =U11/(W4-U8) -> 0 | W11: 0 | Y11: 211 | Z11: =COUNTIF(L39:L71,Y11) -> 0 | AA11: =Z11/(AB4-Z8) -> 0 | AB11: 0 | AD11: 211 | AE11: =COUNTIF(L72:L103,AD11) -> 0 | AF11: =AE11/(AG4-AE8) -> 0 | AG11: 0 | AI11: 211 | AJ11: =COUNTIF(L104:L135,AI11) -> 0 | AK11: =AJ11/(AL4-AJ8) -> 0 | AL11: 0 | AN11: 211 | AO11: =COUNTIF(L136:L168,AN11) -> 1 | AP11: =AO11/(AQ4-AO8) -> 0.03571428571 | AQ11: -0.1716912472 | AS11: 211 | AT11: =COUNTIF(L169:L200,AS11) -> 0 | AU11: =AT11/(AV4-AT8) -> 0 | AV11: 0
A12: 22 | B12: 815 | C12: 24 | D12: 820 | E12: 14 | F12: 822 | K12: 0 | L12: 221 | N12: 212 | O12: 23 | P12: 0.118556701 | Q12: -0.3647220123 | T12: 212 | U12: =COUNTIF(L7:L38,T12) -> 7 | V12: =U12/(W4-U8) -> 0.2413793103 | W12: -0.4949787073 | Y12: 212 | Z12: =COUNTIF(L39:L71,Y12) -> 4 | AA12: =Z12/(AB4-Z8) -> 0.1428571429 | AB12: -0.4010507032 | AD12: 212 | AE12: =COUNTIF(L72:L103,AD12) -> 4 | AF12: =AE12/(AG4-AE8) -> 0.1379310345 | AG12: -0.3942042752 | AI12: 212 | AJ12: =COUNTIF(L104:L135,AI12) -> 0 | AK12: =AJ12/(AL4-AJ8) -> 0 | AL12: 0 | AN12: 212 | AO12: =COUNTIF(L136:L168,AN12) -> 5 | AP12: =AO12/(AQ4-AO8) -> 0.1785714286 | AQ12: -0.4438262191 | AS12: 212 | AT12: =COUNTIF(L169:L200,AS12) -> 3 | AU12: =AT12/(AV4-AT8) -> 0.1111111111 | AV12: -0.352213889
A13: 22 | B13: 920 | C13: 13 | D13: 925 | E13: 23 | F13: 927 | K13: 0 | L13: 212 | N13: 221 | O13: 6 | P13: 0.03092783505 | Q13: -0.155101557 | T13: 221 | U13: =COUNTIF(L7:L38,T13) -> 1 | V13: =U13/(W4-U8) -> 0.03448275862 | W13: -0.167516586 | Y13: 221 | Z13: =COUNTIF(L39:L71,Y13) -> 0 | AA13: =Z13/(AB4-Z8) -> 0 | AB13: 0 | AD13: 221 | AE13: =COUNTIF(L72:L103,AD13) -> 0 | AF13: =AE13/(AG4-AE8) -> 0 | AG13: 0 | AI13: 221 | AJ13: =COUNTIF(L104:L135,AI13) -> 3 | AK13: =AJ13/(AL4-AJ8) -> 0.1 | AL13: -0.3321928095 | AN13: 221 | AO13: =COUNTIF(L136:L168,AN13) -> 2 | AP13: =AO13/(AQ4-AO8) -> 0.07142857143 | AQ13: -0.271953923 | AS13: 221 | AT13: =COUNTIF(L169:L200,AS13) -> 0 | AU13: =AT13/(AV4-AT8) -> 0 | AV13: 0
A14: 22 | B14: 1032 | C14: 13 | D14: 1039 | E14: 23 | F14: 1045 | K14: 0 | L14: 212 | N14: 222 | O14: 17 | P14: 0.08762886598 | Q14: -0.3077920104 | T14: 222 | U14: =COUNTIF(L7:L38,T14) -> 2 | V14: =U14/(W4-U8) -> 0.06896551724 | W14: -0.2660676548 | Y14: 222 | Z14: =COUNTIF(L39:L71,Y14) -> 6 | AA14: =Z14/(AB4-Z8) -> 0.2142857143 | AB14: -0.4762269474 | AD14: 222 | AE14: =COUNTIF(L72:L103,AD14) -> 0 | AF14: =AE14/(AG4-AE8) -> 0 | AG14: 0 | AI14: 222 | AJ14: =COUNTIF(L104:L135,AI14) -> 2 | AK14: =AJ14/(AL4-AJ8) -> 0.06666666667 | AL14: -0.260459373 | AN14: 222 | AO14: =COUNTIF(L136:L168,AN14) -> 3 | AP14: =AO14/(AQ4-AO8) -> 0.1071428571 | AQ14: -0.3452563309 | AS14: 222 | AT14: =COUNTIF(L169:L200,AS14) -> 4 | AU14: =AT14/(AV4-AT8) -> 0.1481481481 | AV14: -0.4081314818
A15: 11 | B15: 1138 | C15: 22 | D15: 1148 | E15: 23 | F15: 1154 | K15: 0 | L15: 122 | P15: =SUM(P7:P14) -> 1 | Q15: =-SUM(Q7:Q14) -> 2.204896601 | V15: =SUM(V7:V14) -> 1 | W15: =-SUM(W7:W14) -> 1.835516014 | AA15: =SUM(AA7:AA14) -> 1 | AB15: =-SUM(AB7:AB14) -> 1.610577243 | AF15: =SUM(AF7:AF14) -> 1 | AG15: =-SUM(AG7:AG14) -> 1.264174176 | AK15: =SUM(AK7:AK14) -> 1 | AL15: =-SUM(AL7:AL14) -> 1.533775616 | AP15: =SUM(AP7:AP14) -> 1 | AQ15: =-SUM(AQ7:AQ14) -> 2.37382044 | AU15: =SUM(AU7:AU14) -> 1 | AV15: =-SUM(AV7:AV14) -> 1.50253426
A16: 22 | B16: 1258 | C16: 13 | D16: 1261 | E16: 23 | F16: 1267 | K16: 0 | L16: 212 | P16: U= | Q16: =Q15/(LOG(Q4)/LOG(2)) -> 0.2901213009 | V16: U1= | W16: =W15/(LOG(W4)/LOG(2)) -> 0.3671032028 | AA16: U2= | AB16: =AB15/(LOG(AB4)/LOG(2)) -> 0.3192806123 | AF16: U3= | AG16: =AG15/(LOG(AG4)/LOG(2)) -> 0.2528348352 | AK16: U4= | AL16: =AL15/(LOG(AL4)/LOG(2)) -> 0.3067551231 | AP16: U5= | AQ16: =AQ15/(LOG(AQ4)/LOG(2)) -> 0.4705858393 | AU16: U6= | AV16: =AV15/(LOG(AV4)/LOG(2)) -> 0.3005068521
A17: 11 | B17: 1367 | C17: 22 | D17: 1383 | E17: 23 | F17: 1396 | K17: 0 | L17: 122
A18: 11 | B18: 1502 | C18: 22 | D18: 1510 | E18: 23 | F18: 1512 | K18: 0 | L18: 122
A19: 22 | B19: 1623 | C19: 13 | D19: 1628 | E19: 23 | F19: 1634 | K19: 0 | L19: 212 | N19: Total Target Seq
A20: 11 | B20: 1742 | C20: 22 | D20: 1744 | E20: 23 | F20: 1751 | K20: 0 | L20: 122 | N20: =COUNTIF(L7:L200,G3) -> 23 | P20: 32 | Q20: 33 | R20: 32 | S20: 32 | T20: 33 | U20: 32
A21: 11 | B21: 1852 | C21: 22 | D21: 1860 | E21: 23 | F21: 1867 | K21: 0 | L21: 122 | P21: % of reinforcement given in 6 equal intervals based on number of trials
A22: 11 | B22: 1961 | C22: 11 | D22: 1977 | E22: 12 | F22: 1989 | K22: 0 | L22: 111 | P22: %_1 | Q22: %_2 | R22: %_3 | S22: %_4 | T22: %_5 | U22: %_6
A23: 11 | B23: 2096 | C23: 22 | D23: 2102 | E23: 23 | F23: 2107 | K23: 0 | L23: 122 | O23: target sequence | P23: =$G$3 -> 112 | Q23: 112 | R23: 112 | S23: 112 | T23: 112 | U23: 112
A24: 11 | B24: 2210 | C24: 22 | D24: 2221 | E24: 23 | F24: 2226 | K24: 0 | L24: 122 | O24: total reinforcement | P24: =U8 -> 3 | Q24: =Z8 -> 5 | R24: =AE8 -> 3 | S24: =AJ8 -> 2 | T24: =AO8 -> 5 | U24: =AT8 -> 5
A25: 11 | B25: 2322 | C25: 22 | D25: 2328 | E25: 23 | F25: 2331 | K25: 0 | L25: 122 | O25: % target
A26: 11 | B26: 2436 | C26: 22 | D26: 2440 | E26: 23 | F26: 2442 | K26: 0 | L26: 122 | O26: CCRF
A27: 11 | B27: 2546 | C27: 22 | D27: 2550 | E27: 23 | F27: 2555 | K27: 0 | L27: 122 | O27: % CCRf
A28: 22 | B28: 2648 | C28: 13 | D28: 2655 | E28: 23 | F28: 2670 | K28: 0 | L28: 212 | O28: average response rate | P28: =F38/P20 -> 125.6875 | Q28: =(F71-F38)/Q20 -> 119.0606061 | R28: =(F103-F71)/R20 -> 111.75 | S28: =(F135-F103)/S20 -> 135.71875 | T28: =(F168-F135)/T20 -> 118.7272727 | U28: =(F200-F168)/U20 -> 129.25
A29: 11 | B29: 2864 | C29: 11 | D29: 2868 | E29: 12 | F29: 2871 | K29: 0 | L29: 111
A30: 11 | B30: 2981 | C30: 22 | D30: 2988 | E30: 14 | F30: 2991 | K30: 0 | L30: 121
A31: 11 | B31: 3092 | C31: 11 | D31: 3106 | E31: 21 | F31: 3119 | K31: 0 | L31: 112
A32: 11 | B32: 3217 | C32: 22 | D32: 3227 | E32: 23 | F32: 3231 | K32: 0 | L32: 122
A33: 22 | B33: 3330 | C33: 13 | D33: 3334 | E33: 23 | F33: 3336 | K33: 0 | L33: 212
A34: 11 | B34: 3457 | C34: 11 | D34: 3467 | E34: 21 | F34: 3478 | K34: 0 | L34: 112
A35: 22 | B35: 3585 | C35: 13 | D35: 3594 | E35: 23 | F35: 3601 | K35: 0 | L35: 212
A36: 11 | B36: 3702 | C36: 22 | D36: 3709 | E36: 23 | F36: 3718 | K36: 0 | L36: 122
A37: 11 | B37: 3823 | C37: 11 | D37: 3828 | E37: 21 | F37: 3840 | K37: 0 | L37: 112
A38: 22 | B38: 4003 | C38: 24 | D38: 4009 | E38: 23 | F38: 4022 | K38: 0 | L38: 222
A39: 22 | B39: 4165 | C39: 24 | D39: 4173 | E39: 23 | F39: 4181 | K39: 0 | L39: 222
A40: 22 | B40: 4273 | C40: 13 | D40: 4282 | E40: 23 | F40: 4288 | K40: 0 | L40: 212
A41: 11 | B41: 4381 | C41: 22 | D41: 4394 | E41: 23 | F41: 4400 | K41: 0 | L41: 122
A42: 11 | B42: 4501 | C42: 22 | D42: 4509 | E42: 23 | F42: 4514 | K42: 0 | L42: 122
A43: 11 | B43: 4623 | C43: 22 | D43: 4639 | E43: 23 | F43: 4646 | K43: 0 | L43: 122
A44: 11 | B44: 4771 | C44: 22 | D44: 4789 | E44: 23 | F44: 4797 | K44: 0 | L44: 122
A45: 11 | B45: 4897 | C45: 22 | D45: 4907 | E45: 23 | F45: 4909 | K45: 0 | L45: 122
A46: 22 | B46: 5011 | C46: 24 | D46: 5016 | E46: 23 | F46: 5021 | K46: 0 | L46: 222
A47: 11 | B47: 5126 | C47: 11 | D47: 5130 | E47: 12 | F47: 5136 | K47: 0 | L47: 111
A48: 11 | B48: 5238 | C48: 22 | D48: 5250 | E48: 23 | F48: 5265 | K48: 0 | L48: 122
A49: 22 | B49: 5365 | C49: 13 | D49: 5369 | E49: 23 | F49: 5376 | K49: 0 | L49: 212
A50: 11 | B50: 5475 | C50: 22 | D50: 5485 | E50: 23 | F50: 5490 | K50: 0 | L50: 122
A51: 11 | B51: 5598 | C51: 22 | D51: 5602 | E51: 23 | F51: 5607 | K51: 0 | L51: 122
A52: 11 | B52: 5701 | C52: 11 | D52: 5705 | E52: 21 | F52: 5717 | K52: 0 | L52: 112
A53: 22 | B53: 5836 | C53: 13 | D53: 5845 | E53: 23 | F53: 5854 | K53: 0 | L53: 212
A54: 11 | B54: 5960 | C54: 11 | D54: 5965 | E54: 12 | F54: 5969 | K54: 0 | L54: 111
A55: 11 | B55: 6064 | C55: 11 | D55: 6070 | E55: 21 | F55: 6084 | K55: 0 | L55: 112
A56: 22 | B56: 6210 | C56: 24 | D56: 6216 | E56: 23 | F56: 6223 | K56: 0 | L56: 222
A57: 22 | B57: 6334 | C57: 24 | D57: 6337 | E57: 23 | F57: 6344 | K57: 0 | L57: 222
A58: 11 | B58: 6443 | C58: 22 | D58: 6453 | E58: 23 | F58: 6458 | K58: 0 | L58: 122
A59: 11 | B59: 6558 | C59: 11 | D59: 6561 | E59: 21 | F59: 6567 | K59: 0 | L59: 112
A60: 11 | B60: 6658 | C60: 22 | D60: 6677 | E60: 23 | F60: 6685 | K60: 0 | L60: 122
A61: 11 | B61: 6780 | C61: 11 | D61: 6787 | E61: 21 | F61: 6794 | K61: 0 | L61: 112
A62: 22 | B62: 6907 | C62: 24 | D62: 6925 | E62: 23 | F62: 6939 | K62: 0 | L62: 222
A63: 11 | B63: 7039 | C63: 22 | D63: 7052 | E63: 23 | F63: 7058 | K63: 0 | L63: 122
A64: 11 | B64: 7156 | C64: 22 | D64: 7166 | E64: 23 | F64: 7175 | K64: 0 | L64: 122
A65: 11 | B65: 7277 | C65: 22 | D65: 7289 | E65: 23 | F65: 7295 | K65: 0 | L65: 122
A66: 22 | B66: 7394 | C66: 13 | D66: 7398 | E66: 23 | F66: 7401 | K66: 0 | L66: 212
A67: 11 | B67: 7497 | C67: 22 | D67: 7500 | E67: 23 | F67: 7507 | K67: 0 | L67: 122
A68: 11 | B68: 7598 | C68: 11 | D68: 7606 | E68: 21 | F68: 7610 | K68: 0 | L68: 112
A69: 11 | B69: 7701 | C69: 22 | D69: 7716 | E69: 23 | F69: 7725 | K69: 0 | L69: 122
A70: 11 | B70: 7817 | C70: 22 | D70: 7825 | E70: 23 | F70: 7831 | K70: 0 | L70: 122
A71: 22 | B71: 7939 | C71: 24 | D71: 7943 | E71: 23 | F71: 7951 | K71: 0 | L71: 222
A72: 11 | B72: 8051 | C72: 22 | D72: 8062 | E72: 23 | F72: 8068 | K72: 0 | L72: 122
A73: 11 | B73: 8164 | C73: 22 | D73: 8166 | E73: 14 | F73: 8170 | K73: 0 | L73: 121
A74: 11 | B74: 8263 | C74: 22 | D74: 8279 | E74: 14 | F74: 8282 | K74: 0 | L74: 121
A75: 11 | B75: 8381 | C75: 22 | D75: 8394 | E75: 23 | F75: 8398 | K75: 0 | L75: 122
A76: 22 | B76: 8499 | C76: 13 | D76: 8502 | E76: 23 | F76: 8504 | K76: 0 | L76: 212
A77: 11 | B77: 8598 | C77: 22 | D77: 8607 | E77: 14 | F77: 8610 | K77: 0 | L77: 121
A78: 11 | B78: 8710 | C78: 22 | D78: 8720 | E78: 23 | F78: 8724 | K78: 0 | L78: 122
A79: 11 | B79: 8827 | C79: 22 | D79: 8835 | E79: 23 | F79: 8841 | K79: 0 | L79: 122
A80: 22 | B80: 8937 | C80: 13 | D80: 8940 | E80: 23 | F80: 8946 | K80: 0 | L80: 212
A81: 11 | B81: 9042 | C81: 22 | D81: 9045 | E81: 23 | F81: 9049 | K81: 0 | L81: 122
A82: 11 | B82: 9141 | C82: 22 | D82: 9153 | E82: 23 | F82: 9158 | K82: 0 | L82: 122
A83: 11 | B83: 9261 | C83: 22 | D83: 9263 | E83: 14 | F83: 9266 | K83: 0 | L83: 121
A84: 11 | B84: 9369 | C84: 22 | D84: 9374 | E84: 23 | F84: 9379 | K84: 0 | L84: 122
A85: 11 | B85: 9477 | C85: 22 | D85: 9493 | E85: 23 | F85: 9499 | K85: 0 | L85: 122
A86: 11 | B86: 9599 | C86: 22 | D86: 9610 | E86: 23 | F86: 9617 | K86: 0 | L86: 122
A87: 11 | B87: 9714 | C87: 22 | D87: 9727 | E87: 23 | F87: 9733 | K87: 0 | L87: 122
A88: 11 | B88: 9825 | C88: 11 | D88: 9834 | E88: 21 | F88: 9848 | K88: 0 | L88: 112
A89: 11 | B89: 9943 | C89: 22 | D89: 9958 | E89: 23 | F89: 9963 | K89: 0 | L89: 122
A90: 11 | B90: 10056 | C90: 22 | D90: 10063 | E90: 23 | F90: 10068 | K90: 0 | L90: 122
A91: 11 | B91: 10184 | C91: 22 | D91: 10191 | E91: 23 | F91: 10198 | K91: 0 | L91: 122
A92: 11 | B92: 10309 | C92: 11 | D92: 10313 | E92: 21 | F92: 10322 | K92: 0 | L92: 112
A93: 11 | B93: 10415 | C93: 22 | D93: 10428 | E93: 23 | F93: 10433 | K93: 0 | L93: 122
A94: 11 | B94: 10533 | C94: 22 | D94: 10538 | E94: 23 | F94: 10544 | K94: 0 | L94: 122
A95: 22 | B95: 10651 | C95: 13 | D95: 10655 | E95: 23 | F95: 10659 | K95: 0 | L95: 212
A96: 11 | B96: 10754 | C96: 22 | D96: 10761 | E96: 14 | F96: 10766 | K96: 0 | L96: 121
A97: 11 | B97: 10861 | C97: 22 | D97: 10863 | E97: 23 | F97: 10868 | K97: 0 | L97: 122
A98: 11 | B98: 10965 | C98: 22 | D98: 10970 | E98: 23 | F98: 10973 | K98: 0 | L98: 122
A99: 11 | B99: 11066 | C99: 22 | D99: 11076 | E99: 14 | F99: 11078 | K99: 0 | L99: 121
A100: 22 | B100: 11189 | C100: 13 | D100: 11194 | E100: 23 | F100: 11203 | K100: 0 | L100: 212
A101: 11 | B101: 11296 | C101: 22 | D101: 11305 | E101: 23 | F101: 11309 | K101: 0 | L101: 122
A102: 11 | B102: 11404 | C102: 11 | D102: 11408 | E102: 21 | F102: 11416 | K102: 0 | L102: 112
A103: 11 | B103: 11512 | C103: 22 | D103: 11521 | E103: 23 | F103: 11527 | K103: 0 | L103: 122
A104: 11 | B104: 11626 | C104: 22 | D104: 11635 | E104: 23 | F104: 11644 | K104: 0 | L104: 122
A105: 11 | B105: 11738 | C105: 22 | D105: 11742 | E105: 23 | F105: 11747 | K105: 0 | L105: 122
A106: 11 | B106: 11848 | C106: 22 | D106: 11856 | E106: 23 | F106: 11861 | K106: 0 | L106: 122
A107: 11 | B107: 11965 | C107: 22 | D107: 11972 | E107: 23 | F107: 11977 | K107: 0 | L107: 122
A108: 11 | B108: 12078 | C108: 22 | D108: 12088 | E108: 23 | F108: 12091 | K108: 0 | L108: 122
A109: 11 | B109: 12201 | C109: 22 | D109: 12203 | E109: 23 | F109: 12212 | K109: 0 | L109: 122
A110: 11 | B110: 12316 | C110: 11 | D110: 12321 | E110: 21 | F110: 12330 | K110: 0 | L110: 112
A111: 22 | B111: 12433 | C111: 24 | D111: 12439 | E111: 23 | F111: 12447 | K111: 0 | L111: 222
A112: 11 | B112: 12551 | C112: 22 | D112: 12558 | E112: 23 | F112: 12563 | K112: 0 | L112: 122
A113: 11 | B113: 12664 | C113: 22 | D113: 12668 | E113: 23 | F113: 12674 | K113: 0 | L113: 122
A114: 11 | B114: 12768 | C114: 22 | D114: 12778 | E114: 14 | F114: 12781 | K114: 0 | L114: 121
A115: 11 | B115: 12886 | C115: 22 | D115: 12891 | E115: 23 | F115: 12897 | K115: 0 | L115: 122
A116: 11 | B116: 12989 | C116: 11 | D116: 13001 | E116: 12 | F116: 13005 | K116: 0 | L116: 111
A117: 22 | B117: 13119 | C117: 24 | D117: 13125 | E117: 23 | F117: 13131 | K117: 0 | L117: 222
A118: 11 | B118: 13229 | C118: 22 | D118: 13238 | E118: 23 | F118: 13245 | K118: 0 | L118: 122
A119: 11 | B119: 13347 | C119: 22 | D119: 13358 | E119: 23 | F119: 13365 | K119: 0 | L119: 122
A120: 11 | B120: 13458 | C120: 11 | D120: 13465 | E120: 12 | F120: 13482 | K120: 0 | L120: 111
A121: 11 | B121: 13591 | C121: 22 | D121: 13598 | E121: 23 | F121: 13604 | K121: 0 | L121: 122
A122: 11 | B122: 13708 | C122: 11 | D122: 13721 | E122: 21 | F122: 13729 | K122: 0 | L122: 112
A123: 22 | B123: 13831 | C123: 24 | D123: 13836 | E123: 14 | F123: 13840 | K123: 0 | L123: 221
A124: 11 | B124: 13938 | C124: 22 | D124: 13943 | E124: 23 | F124: 13950 | K124: 0 | L124: 122
A125: 11 | B125: 14073 | C125: 22 | D125: 14083 | E125: 23 | F125: 14089 | K125: 0 | L125: 122
A126: 11 | B126: 14196 | C126: 11 | D126: 14200 | E126: 12 | F126: 14208 | K126: 0 | L126: 111
A127: 11 | B127: 14306 | C127: 22 | D127: 14310 | E127: 23 | F127: 14315 | K127: 0 | L127: 122
A128: 11 | B128: 14407 | C128: 22 | D128: 14416 | E128: 23 | F128: 14418 | K128: 0 | L128: 122
A129: 11 | B129: 14519 | C129: 22 | D129: 14528 | E129: 23 | F129: 14533 | K129: 0 | L129: 122
A130: 11 | B130: 15276 | C130: 11 | D130: 15281 | E130: 12 | F130: 15289 | K130: 0 | L130: 111
A131: 11 | B131: 15391 | C131: 22 | D131: 15397 | E131: 23 | F131: 15403 | K131: 0 | L131: 122
A132: 22 | B132: 15500 | C132: 24 | D132: 15507 | E132: 14 | F132: 15511 | K132: 0 | L132: 221
A133: 11 | B133: 15622 | C133: 22 | D133: 15628 | E133: 23 | F133: 15635 | K133: 0 | L133: 122
A134: 11 | B134: 15736 | C134: 22 | D134: 15744 | E134: 23 | F134: 15746 | K134: 0 | L134: 122
A135: 22 | B135: 15861 | C135: 24 | D135: 15866 | E135: 14 | F135: 15870 | K135: 0 | L135: 221
A136: 22 | B136: 16010 | C136: 13 | D136: 16013 | E136: 23 | F136: 16017 | K136: 0 | L136: 212
A137: 22 | B137: 16120 | C137: 24 | D137: 16127 | E137: 14 | F137: 16133 | K137: 0 | L137: 221
A138: 11 | B138: 16241 | C138: 22 | D138: 16248 | E138: 23 | F138: 16255 | K138: 0 | L138: 122
A139: 22 | B139: 16373 | C139: 13 | D139: 16381 | E139: 23 | F139: 16384 | K139: 0 | L139: 212
A140: 11 | B140: 16487 | C140: 11 | D140: 16494 | E140: 21 | F140: 16501 | K140: 0 | L140: 112
A141: 11 | B141: 16604 | C141: 22 | D141: 16618 | E141: 23 | F141: 16625 | K141: 0 | L141: 122
A142: 11 | B142: 16729 | C142: 22 | D142: 16740 | E142: 23 | F142: 16745 | K142: 0 | L142: 122
A143: 11 | B143: 16850 | C143: 22 | D143: 16853 | E143: 23 | F143: 16857 | K143: 0 | L143: 122
A144: 11 | B144: 16960 | C144: 11 | D144: 16964 | E144: 21 | F144: 16973 | K144: 0 | L144: 112
A145: 11 | B145: 17069 | C145: 22 | D145: 17092 | E145: 14 | F145: 17101 | K145: 0 | L145: 121
A146: 11 | B146: 17197 | C146: 22 | D146: 17203 | E146: 23 | F146: 17208 | K146: 0 | L146: 122
A147: 22 | B147: 17305 | C147: 13 | D147: 17307 | E147: 23 | F147: 17311 | K147: 0 | L147: 212
A148: 11 | B148: 17447 | C148: 11 | D148: 17451 | E148: 12 | F148: 17455 | K148: 0 | L148: 111
A149: 22 | B149: 17564 | C149: 24 | D149: 17570 | E149: 14 | F149: 17576 | K149: 0 | L149: 221
A150: 11 | B150: 17679 | C150: 11 | D150: 17689 | E150: 21 | F150: 17692 | K150: 0 | L150: 112
A151: 11 | B151: 17788 | C151: 22 | D151: 17791 | E151: 23 | F151: 17804 | K151: 0 | L151: 122
A152: 11 | B152: 17898 | C152: 22 | D152: 17901 | E152: 14 | F152: 17904 | K152: 0 | L152: 121
A153: 11 | B153: 18005 | C153: 22 | D153: 18015 | E153: 23 | F153: 18018 | K153: 0 | L153: 122
A154: 11 | B154: 18133 | C154: 22 | D154: 18137 | E154: 23 | F154: 18142 | K154: 0 | L154: 122
A155: 22 | B155: 18251 | C155: 13 | D155: 18256 | E155: 23 | F155: 18258 | K155: 0 | L155: 212
A156: 11 | B156: 18360 | C156: 11 | D156: 18365 | E156: 12 | F156: 18370 | K156: 0 | L156: 111
A157: 22 | B157: 18472 | C157: 13 | D157: 18479 | E157: 23 | F157: 18485 | K157: 0 | L157: 212
A158: 11 | B158: 18588 | C158: 22 | D158: 18599 | E158: 23 | F158: 18605 | K158: 0 | L158: 122
A159: 11 | B159: 18699 | C159: 22 | D159: 18706 | E159: 23 | F159: 18710 | K159: 0 | L159: 122
A160: 11 | B160: 18810 | C160: 11 | D160: 18814 | E160: 21 | F160: 18820 | K160: 0 | L160: 112
A161: 11 | B161: 18915 | C161: 11 | D161: 18920 | E161: 21 | F161: 18936 | K161: 0 | L161: 112
A162: 22 | B162: 19079 | C162: 24 | D162: 19094 | E162: 23 | F162: 19100 | K162: 0 | L162: 222
A163: 22 | B163: 19198 | C163: 13 | D163: 19204 | E163: 14 | F163: 19210 | K163: 0 | L163: 211
A164: 11 | B164: 19304 | C164: 22 | D164: 19312 | E164: 23 | F164: 19320 | K164: 0 | L164: 122
A165: 22 | B165: 19433 | C165: 24 | D165: 19439 | E165: 23 | F165: 19445 | K165: 0 | L165: 222
A166: 11 | B166: 19547 | C166: 11 | D166: 19550 | E166: 12 | F166: 19554 | K166: 0 | L166: 111
A167: 11 | B167: 19666 | C167: 22 | D167: 19671 | E167: 23 | F167: 19676 | K167: 0 | L167: 122
A168: 22 | B168: 19779 | C168: 24 | D168: 19783 | E168: 23 | F168: 19788 | K168: 0 | L168: 222
A169: 11 | B169: 19878 | C169: 22 | D169: 19890 | E169: 14 | F169: 19896 | K169: 0 | L169: 121
A170: 11 | B170: 19996 | C170: 22 | D170: 20009 | E170: 23 | F170: 20014 | K170: 0 | L170: 122
A171: 22 | B171: 20119 | C171: 13 | D171: 20122 | E171: 23 | F171: 20127 | K171: 0 | L171: 212
A172: 11 | B172: 20243 | C172: 11 | D172: 20245 | E172: 12 | F172: 20257 | K172: 0 | L172: 111
A173: 11 | B173: 20355 | C173: 22 | D173: 20369 | E173: 23 | F173: 20375 | K173: 0 | L173: 122
A174: 11 | B174: 20494 | C174: 22 | D174: 20501 | E174: 23 | F174: 20503 | K174: 0 | L174: 122
A175: 11 | B175: 20675 | C175: 22 | D175: 20691 | E175: 23 | F175: 20695 | K175: 0 | L175: 122
A176: 11 | B176: 20802 | C176: 22 | D176: 20806 | E176: 23 | F176: 20814 | K176: 0 | L176: 122
A177: 11 | B177: 20984 | C177: 11 | D177: 20987 | E177: 21 | F177: 21001 | K177: 0 | L177: 112
A178: 11 | B178: 21098 | C178: 22 | D178: 21107 | E178: 23 | F178: 21113 | K178: 0 | L178: 122
A179: 11 | B179: 21245 | C179: 11 | D179: 21260 | E179: 21 | F179: 21267 | K179: 0 | L179: 112
A180: 22 | B180: 21403 | C180: 24 | D180: 21407 | E180: 23 | F180: 21418 | K180: 0 | L180: 222
A181: 11 | B181: 21520 | C181: 22 | D181: 21528 | E181: 23 | F181: 21535 | K181: 0 | L181: 122
A182: 11 | B182: 21660 | C182: 22 | D182: 21669 | E182: 23 | F182: 21675 | K182: 0 | L182: 122
A183: 22 | B183: 21772 | C183: 13 | D183: 21777 | E183: 23 | F183: 21781 | K183: 0 | L183: 212
A184: 11 | B184: 21877 | C184: 22 | D184: 21886 | E184: 23 | F184: 21890 | K184: 0 | L184: 122
A185: 11 | B185: 21996 | C185: 11 | D185: 22015 | E185: 21 | F185: 22018 | K185: 0 | L185: 112
A186: 11 | B186: 22197 | C186: 11 | D186: 22201 | E186: 21 | F186: 22213 | K186: 0 | L186: 112
A187: 22 | B187: 22329 | C187: 24 | D187: 22336 | E187: 23 | F187: 22357 | K187: 0 | L187: 222
A188: 11 | B188: 22450 | C188: 22 | D188: 22458 | E188: 23 | F188: 22464 | K188: 0 | L188: 122
A189: 11 | B189: 22565 | C189: 22 | D189: 22570 | E189: 23 | F189: 22575 | K189: 0 | L189: 122
A190: 11 | B190: 22680 | C190: 22 | D190: 22685 | E190: 23 | F190: 22691 | K190: 0 | L190: 122
A191: 11 | B191: 22798 | C191: 22 | D191: 22804 | E191: 23 | F191: 22810 | K191: 0 | L191: 122
A192: 11 | B192: 22919 | C192: 22 | D192: 22931 | E192: 23 | F192: 22936 | K192: 0 | L192: 122
A193: 11 | B193: 23034 | C193: 11 | D193: 23042 | E193: 21 | F193: 23045 | K193: 0 | L193: 112
A194: 11 | B194: 23218 | C194: 22 | D194: 23230 | E194: 23 | F194: 23236 | K194: 0 | L194: 122
A195: 22 | B195: 23368 | C195: 24 | D195: 23373 | E195: 23 | F195: 23378 | K195: 0 | L195: 222
A196: 22 | B196: 23474 | C196: 24 | D196: 23478 | E196: 23 | F196: 23484 | K196: 0 | L196: 222
A197: 22 | B197: 23586 | C197: 13 | D197: 23590 | E197: 23 | F197: 23595 | K197: 0 | L197: 212
A198: 11 | B198: 23687 | C198: 22 | D198: 23698 | E198: 23 | F198: 23706 | K198: 0 | L198: 122
A199: 11 | B199: 23804 | C199: 22 | D199: 23810 | E199: 23 | F199: 23815 | K199: 0 | L199: 122
A200: 11 | B200: 23913 | C200: 22 | D200: 23919 | E200: 23 | F200: 23924 | L200: 122

Sheet !N108940.Gus
A1: Report for:!N108940.Gus
A2: Date: | B2: <date>
A3: Hen: | B3: <hen> | F3: Correct Sequence | G3: =Start!J2 -> 112 | P3: Total Sequences in Data | Q3: =4994-COUNTBLANK(L7:L5000) -> 168 | V3: Total Sequences in Block Data | W3: =COUNTA(L7:L34) -> 28 | AA3: Total Sequences in Block Data | AB3: =COUNTA(L35:L62) -> 28 | AF3: Total Sequences in Block Data | AG3: =COUNTA(L63:L90) -> 28 | AK3: Total Sequences in Block Data | AL3: =COUNTA(L91:L118) -> 28 | AP3: Total Sequences in Block Data | AQ3: =COUNTA(L119:L146) -> 28 | AU3: Total Sequences in Block Data | AV3: =COUNTA(L147:L174) -> 28
P4: Total Sequences in Summary | Q4: =SUM(O7:O14) -> 168 | V4: Total Sequences in Block Summary | W4: =SUM(U7:U14) -> 28 | AA4: Total Sequences in Block Summary | AB4: =SUM(Z7:Z14) -> 28 | AF4: Total Sequences in Block Summary | AG4: =SUM(AE7:AE14) -> 28 | AK4: Total Sequences in Block Summary | AL4: =SUM(AJ7:AJ14) -> 28 | AP4: Total Sequences in Block Summary | AQ4: =SUM(AO7:AO14) -> 28 | AU4: Total Sequences in Block Summary | AV4: =SUM(AT7:AT14) -> 28
T5: Block 1 | Y5: Block 2 | AD5: Block 3 | AI5: Block 4 | AN5: Block 5 | AS5: Block 6
A6: Sequence Component 1 | B6: Time 1 | C6: Sequence Component 2 | D6: Time 2 | E6: Sequence Component 3 | F6: Time 3 | G6: Sequence Component 4 | H6: Time 4 | I6: Sequence Component 5 | J6: Time 5 | K6: Correct? 0=No 1=Yes | L6: Sequence | N6: Frequency | P6: Relative Frequency | Q6: Variability | T6: Frequency | V6: Relative Frequency | W6: Variability | Y6: Frequency | AA6: Relative Frequency | AB6: Variability | AD6: Frequency | AF6: Relative Frequency | AG6: Variability | AI6: Frequency | AK6: Relative Frequency | AL6: Variability | AN6: Frequency | AP6: Relative Frequency | AQ6: Variability | AS6: Frequency | AU6: Relative Frequency | AV6: Variability
A7: 11 | B7: 19 | C7: 11 | D7: 27 | E7: 21 | F7: 36 | K7: 0 | L7: 112 | N7: 111 | O7: =COUNTIF($L$7:$L$500,N7) -> 5 | P7: =O7/$Q$4 -> 0.02976190476 | Q7: =IF(P7=0,0,(P7*((LOG(P7))/LOG(2)))) -> -0.1509044443 | T7: =N7 -> 111 | U7: =COUNTIF(L7:L34,T7) -> 0 | V7: =U7/(W4-U8) -> 0 | W7: =IF(V7=0,0,(V7*((LOG(V7))/LOG(2)))) -> 0 | Y7: =N7 -> 111 | Z7: =COUNTIF(L35:L62,Y7) -> 1 | AA7: =Z7/(AB4-Z8) -> 0.04166666667 | AB7: =IF(AA7=0,0,(AA7*((LOG(AA7))/LOG(2)))) -> -0.1910401042 | AD7: =N7 -> 111 | AE7: =COUNTIF(L63:L90,AD7) -> 0 | AF7: =AE7/(AG4-AE8) -> 0 | AG7: =IF(AF7=0,0,(AF7*((LOG(AF7))/LOG(2)))) -> 0 | AI7: =N7 -> 111 | AJ7: =COUNTIF(L91:L118,AI7) -> 0 | AK7: =AJ7/(AL4-AJ8) -> 0 | AL7: =IF(AK7=0,0,(AK7*((LOG(AK7))/LOG(2)))) -> 0 | AN7: =N7 -> 111 | AO7: =COUNTIF(L119:L146,AN7) -> 3 | AP7: =AO7/(AQ4-AO8) -> 0.1304347826 | AQ7: =IF(AP7=0,0,(AP7*((LOG(AP7))/LOG(2)))) -> -0.3832955811 | AS7: =N7 -> 111 | AT7: =COUNTIF(L147:L174,AS7) -> 1 | AU7: =AT7/(AV4-AT8) -> 0.05263157895 | AV7: =IF(AU7=0,0,(AU7*((LOG(AU7))/LOG(2)))) -> -0.2235751323
A8: 11 | B8: 131 | C8: 11 | D8: 138 | E8: 21 | F8: 147 | K8: 0 | L8: 112 | N8: 112 | O8: 32 | P8: 0.1904761905 | Q8: -0.4556795091 | T8: 112 | U8: =COUNTIF(L7:L34,T8) -> 7 | Y8: 112 | Z8: =COUNTIF(L35:L62,Y8) -> 4 | AD8: 112 | AE8: =COUNTIF(L63:L90,AD8) -> 4 | AI8: 112 | AJ8: =COUNTIF(L91:L118,AI8) -> 3 | AN8: 112 | AO8: =COUNTIF(L119:L146,AN8) -> 5 | AS8: 112 | AT8: =COUNTIF(L147:L174,AS8) -> 9
A9: 11 | B9: 254 | C9: 11 | D9: 260 | E9: 21 | F9: 277 | K9: 0 | L9: 112 | N9: 121 | O9: 7 | P9: 0.04166666667 | Q9: -0.1910401042 | T9: 121 | U9: =COUNTIF(L7:L34,T9) -> 1 | V9: =U9/(W4-U8) -> 0.04761904762 | W9: =IF(V9=0,0,(V9*((LOG(V9))/LOG(2)))) -> -0.2091579725 | Y9: 121 | Z9: =COUNTIF(L35:L62,Y9) -> 0 | AA9: =Z9/(AB4-Z8) -> 0 | AB9: =IF(AA9=0,0,(AA9*((LOG(AA9))/LOG(2)))) -> 0 | AD9: 121 | AE9: =COUNTIF(L63:L90,AD9) -> 1 | AF9: =AE9/(AG4-AE8) -> 0.04166666667 | AG9: =IF(AF9=0,0,(AF9*((LOG(AF9))/LOG(2)))) -> -0.1910401042 | AI9: 121 | AJ9: =COUNTIF(L91:L118,AI9) -> 1 | AK9: =AJ9/(AL4-AJ8) -> 0.04 | AL9: =IF(AK9=0,0,(AK9*((LOG(AK9))/LOG(2)))) -> -0.1857542476 | AN9: 121 | AO9: =COUNTIF(L119:L146,AN9) -> 2 | AP9: =AO9/(AQ4-AO8) -> 0.08695652174 | AQ9: =IF(AP9=0,0,(AP9*((LOG(AP9))/LOG(2)))) -> -0.3063966918 | AS9: 121 | AT9: =COUNTIF(L147:L174,AS9) -> 2 | AU9: =AT9/(AV4-AT8) -> 0.1052631579 | AV9: =IF(AU9=0,0,(AU9*((LOG(AU9))/LOG(2)))) -> -0.3418871067
A10: 11 | B10: 380 | C10: 22 | D10: 404 | E10: 23 | F10: 419 | K10: 0 | L10: 122 | N10: 122 | O10: 78 | P10: 0.4642857143 | Q10: -0.5139249161 | T10: 122 | U10: =COUNTIF(L7:L34,T10) -> 11 | V10: =U10/(W4-U8) -> 0.5238095238 | W10: -0.4886544688 | Y10: 122 | Z10: =COUNTIF(L35:L62,Y10) -> 12 | AA10: =Z10/(AB4-Z8) -> 0.5 | AB10: -0.5 | AD10: 122 | AE10: =COUNTIF(L63:L90,AD10) -> 14 | AF10: =AE10/(AG4-AE8) -> 0.5833333333 | AG10: -0.4536044209 | AI10: 122 | AJ10: =COUNTIF(L91:L118,AI10) -> 17 | AK10: =AJ10/(AL4-AJ8) -> 0.68 | AL10: -0.378347477 | AN10: 122 | AO10: =COUNTIF(L119:L146,AN10) -> 13 | AP10: =AO10/(AQ4-AO8) -> 0.5652173913 | AQ10: -0.465243004 | AS10: 122 | AT10: =COUNTIF(L147:L174,AS10) -> 11 | AU10: =AT10/(AV4-AT8) -> 0.5789473684 | AV10: -0.4564976233
A11: 11 | B11: 526 | C11: 11 | D11: 538 | E11: 21 | F11: 557 | K11: 0 | L11: 112 | N11: 211 | O11: 0 | P11: 0 | Q11: 0 | T11: 211 | U11: =COUNTIF(L7:L34,T11) -> 0 | V11: =U11/(W4-U8) -> 0 | W11: 0 | Y11: 211 | Z11: =COUNTIF(L35:L62,Y11) -> 0 | AA11: =Z11/(AB4-Z8) -> 0 | AB11: 0 | AD11: 211 | AE11: =COUNTIF(L63:L90,AD11) -> 0 | AF11: =AE11/(AG4-AE8) -> 0 | AG11: 0 | AI11: 211 | AJ11: =COUNTIF(L91:L118,AI11) -> 0 | AK11: =AJ11/(AL4-AJ8) -> 0 | AL11: 0 | AN11: 211 | AO11: =COUNTIF(L119:L146,AN11) -> 0 | AP11: =AO11/(AQ4-AO8) -> 0 | AQ11: 0 | AS11: 211 | AT11: =COUNTIF(L147:L174,AS11) -> 0 | AU11: =AT11/(AV4-AT8) -> 0 | AV11: 0
A12: 11 | B12: 667 | C12: 22 | D12: 674 | E12: 23 | F12: 686 | K12: 0 | L12: 122 | N12: 212 | O12: 15 | P12: 0.08928571429 | Q12: -0.3111988239 | T12: 212 | U12: =COUNTIF(L7:L34,T12) -> 1 | V12: =U12/(W4-U8) -> 0.04761904762 | W12: -0.2091579725 | Y12: 212 | Z12: =COUNTIF(L35:L62,Y12) -> 2 | AA12: =Z12/(AB4-Z8) -> 0.08333333333 | AB12: -0.2987468751 | AD12: 212 | AE12: =COUNTIF(L63:L90,AD12) -> 3 | AF12: =AE12/(AG4-AE8) -> 0.125 | AG12: -0.375 | AI12: 212 | AJ12: =COUNTIF(L91:L118,AI12) -> 3 | AK12: =AJ12/(AL4-AJ8) -> 0.12 | AL12: -0.3670672427 | AN12: 212 | AO12: =COUNTIF(L119:L146,AN12) -> 2 | AP12: =AO12/(AQ4-AO8) -> 0.08695652174 | AQ12: -0.3063966918 | AS12: 212 | AT12: =COUNTIF(L147:L174,AS12) -> 4 | AU12: =AT12/(AV4-AT8) -> 0.2105263158 | AV12: -0.4732478976
A13: 11 | B13: 778 | C13: 11 | D13: 791 | E13: 21 | F13: 802 | K13: 0 | L13: 112 | N13: 221 | O13: 9 | P13: 0.05357142857 | Q13: -0.226199594 | T13: 221 | U13: =COUNTIF(L7:L34,T13) -> 2 | V13: =U13/(W4-U8) -> 0.09523809524 | W13: -0.3230778498 | Y13: 221 | Z13: =COUNTIF(L35:L62,Y13) -> 1 | AA13: =Z13/(AB4-Z8) -> 0.04166666667 | AB13: -0.1910401042 | AD13: 221 | AE13: =COUNTIF(L63:L90,AD13) -> 3 | AF13: =AE13/(AG4-AE8) -> 0.125 | AG13: -0.375 | AI13: 221 | AJ13: =COUNTIF(L91:L118,AI13) -> 2 | AK13: =AJ13/(AL4-AJ8) -> 0.08 | AL13: -0.2915084952 | AN13: 221 | AO13: =COUNTIF(L119:L146,AN13) -> 0 | AP13: =AO13/(AQ4-AO8) -> 0 | AQ13: 0 | AS13: 221 | AT13: =COUNTIF(L147:L174,AS13) -> 1 | AU13: =AT13/(AV4-AT8) -> 0.05263157895 | AV13: -0.2235751323
A14: 11 | B14: 944 | C14: 22 | D14: 953 | E14: 23 | F14: 960 | K14: 0 | L14: 122 | N14: 222 | O14: 22 | P14: 0.130952381 | Q14: -0.3840683791 | T14: 222 | U14: =COUNTIF(L7:L34,T14) -> 6 | V14: =U14/(W4-U8) -> 0.2857142857 | W14: -0.5163871206 | Y14: 222 | Z14: =COUNTIF(L35:L62,Y14) -> 8 | AA14: =Z14/(AB4-Z8) -> 0.3333333333 | AB14: -0.5283208336 | AD14: 222 | AE14: =COUNTIF(L63:L90,AD14) -> 3 | AF14: =AE14/(AG4-AE8) -> 0.125 | AG14: -0.375 | AI14: 222 | AJ14: =COUNTIF(L91:L118,AI14) -> 2 | AK14: =AJ14/(AL4-AJ8) -> 0.08 | AL14: -0.2915084952 | AN14: 222 | AO14: =COUNTIF(L119:L146,AN14) -> 3 | AP14: =AO14/(AQ4-AO8) -> 0.1304347826 | AQ14: -0.3832955811 | AS14: 222 | AT14: =COUNTIF(L147:L174,AS14) -> 0 | AU14: =AT14/(AV4-AT8) -> 0 | AV14: 0
A15: 11 | B15: 1055 | C15: 22 | D15: 1077 | E15: 23 | F15: 1085 | K15: 0 | L15: 122 | P15: =SUM(P7:P14) -> 1 | Q15: =-SUM(Q7:Q14) -> 2.233015771 | V15: =SUM(V7:V14) -> 1 | W15: =-SUM(W7:W14) -> 1.746435384 | AA15: =SUM(AA7:AA14) -> 1 | AB15: =-SUM(AB7:AB14) -> 1.709147917 | AF15: =SUM(AF7:AF14) -> 1 | AG15: =-SUM(AG7:AG14) -> 1.769644525 | AK15: =SUM(AK7:AK14) -> 1 | AL15: =-SUM(AL7:AL14) -> 1.514185958 | AP15: =SUM(AP7:AP14) -> 1 | AQ15: =-SUM(AQ7:AQ14) -> 1.84462755 | AU15: =SUM(AU7:AU14) -> 1 | AV15: =-SUM(AV7:AV14) -> 1.718782892
A16: 22 | B16: 1198 | C16: 24 | D16: 1202 | E16: 23 | F16: 1207 | K16: 0 | L16: 222 | P16: U= | Q16: =Q15/(LOG(Q4)/LOG(2)) -> 0.3020724954 | V16: U1= | W16: =W15/(LOG(W4)/LOG(2)) -> 0.3632840538 | AA16: U2= | AB16: =AB15/(LOG(AB4)/LOG(2)) -> 0.3555277163 | AF16: U3= | AG16: =AG15/(LOG(AG4)/LOG(2)) -> 0.3681118939 | AK16: U4= | AL16: =AL15/(LOG(AL4)/LOG(2)) -> 0.3149727828 | AP16: U5= | AQ16: =AQ15/(LOG(AQ4)/LOG(2)) -> 0.3837094577 | AU16: U6= | AV16: =AV15/(LOG(AV4)/LOG(2)) -> 0.3575319318
A17: 11 | B17: 1306 | C17: 22 | D17: 1313 | E17: 23 | F17: 1321 | K17: 0 | L17: 122
A18: 11 | B18: 1420 | C18: 11 | D18: 1428 | E18: 21 | F18: 1442 | K18: 0 | L18: 112
A19: 22 | B19: 1548 | C19: 24 | D19: 1553 | E19: 14 | F19: 1557 | K19: 0 | L19: 221 | N19: Total Target Seq
A20: 22 | B20: 1690 | C20: 13 | D20: 1699 | E20: 23 | F20: 1708 | K20: 0 | L20: 212 | N20: =COUNTIF(L7:L174,G3) -> 32 | P20: 28 | Q20: 28 | R20: 28 | S20: 28 | T20: 28 | U20: 28
A21: 22 | B21: 1835 | C21: 24 | D21: 1843 | E21: 23 | F21: 1851 | K21: 0 | L21: 222 | P21: % of reinforcement given in 6 equal intervals based on number of trials
A22: 22 | B22: 1961 | C22: 24 | D22: 1972 | E22: 23 | F22: 1978 | K22: 0 | L22: 222 | P22: %_1 | Q22: %_2 | R22: %_3 | S22: %_4 | T22: %_5 | U22: %_6
A23: 11 | B23: 2087 | C23: 22 | D23: 2097 | E23: 23 | F23: 2104 | K23: 0 | L23: 122 | O23: target sequence | P23: =$G$3 -> 112 | Q23: 112 | R23: 112 | S23: 112 | T23: 112 | U23: 112
A24: 11 | B24: 2205 | C24: 22 | D24: 2214 | E24: 23 | F24: 2216 | K24: 0 | L24: 122 | O24: total reinforcement | P24: =U8 -> 7 | Q24: =Z8 -> 4 | R24: =AE8 -> 4 | S24: =AJ8 -> 3 | T24: =AO8 -> 5 | U24: =AT8 -> 9
A25: 11 | B25: 2318 | C25: 22 | D25: 2326 | E25: 14 | F25: 2331 | K25: 0 | L25: 121 | O25: % target
A26: 22 | B26: 2448 | C26: 24 | D26: 2458 | E26: 23 | F26: 2464 | K26: 0 | L26: 222 | O26: CCRF
A27: 11 | B27: 2557 | C27: 22 | D27: 2565 | E27: 23 | F27: 2574 | K27: 0 | L27: 122 | O27: % CCRf
A28: 22 | B28: 2680 | C28: 24 | D28: 2685 | E28: 23 | F28: 2692 | K28: 0 | L28: 222 | O28: average response rate | P28: =F34/P20 -> 121.0357143 | Q28: =(F62-F34)/Q20 -> 118.8571429 | R28: =(F90-F62)/R20 -> 118.75 | S28: =(F118-F90)/S20 -> 122.8571429 | T28: =(F146-F118)/T20 -> 127.3928571 | U28: =(F174-F146)/U20 -> 134.6785714
A29: 11 | B29: 2791 | C29: 22 | D29: 2800 | E29: 23 | F29: 2806 | K29: 0 | L29: 122
A30: 22 | B30: 2911 | C30: 24 | D30: 2916 | E30: 23 | F30: 2922 | K30: 0 | L30: 222
A31: 11 | B31: 3036 | C31: 22 | D31: 3051 | E31: 23 | F31: 3056 | K31: 0 | L31: 122
A32: 11 | B32: 3152 | C32: 22 | D32: 3167 | E32: 23 | F32: 3172 | K32: 0 | L32: 122
A33: 22 | B33: 3276 | C33: 24 | D33: 3278 | E33: 14 | F33: 3280 | K33: 0 | L33: 221
A34: 11 | B34: 3377 | C34: 11 | D34: 3385 | E34: 21 | F34: 3389 | K34: 0 | L34: 112
A35: 22 | B35: 3514 | C35: 24 | D35: 3517 | E35: 14 | F35: 3524 | K35: 0 | L35: 221
A36: 11 | B36: 3617 | C36: 22 | D36: 3634 | E36: 23 | F36: 3640 | K36: 0 | L36: 122
A37: 11 | B37: 3750 | C37: 22 | D37: 3753 | E37: 23 | F37: 3761 | K37: 0 | L37: 122
A38: 11 | B38: 3864 | C38: 22 | D38: 3874 | E38: 23 | F38: 3881 | K38: 0 | L38: 122
A39: 22 | B39: 3980 | C39: 24 | D39: 3984 | E39: 23 | F39: 3990 | K39: 0 | L39: 222
A40: 11 | B40: 4082 | C40: 11 | D40: 4094 | E40: 21 | F40: 4099 | K40: 0 | L40: 112
A41: 22 | B41: 4211 | C41: 24 | D41: 4219 | E41: 23 | F41: 4227 | K41: 0 | L41: 222
A42: 11 | B42: 4322 | C42: 11 | D42: 4340 | E42: 21 | F42: 4346 | K42: 0 | L42: 112
A43: 22 | B43: 4481 | C43: 24 | D43: 4485 | E43: 23 | F43: 4491 | K43: 0 | L43: 222
A44: 11 | B44: 4593 | C44: 11 | D44: 4598 | E44: 21 | F44: 4615 | K44: 0 | L44: 112
A45: 22 | B45: 4728 | C45: 13 | D45: 4738 | E45: 23 | F45: 4747 | K45: 0 | L45: 212
A46: 11 | B46: 4839 | C46: 22 | D46: 4854 | E46: 23 | F46: 4861 | K46: 0 | L46: 122
A47: 22 | B47: 4965 | C47: 24 | D47: 4968 | E47: 23 | F47: 4975 | K47: 0 | L47: 222
A48: 11 | B48: 5074 | C48: 22 | D48: 5090 | E48: 23 | F48: 5096 | K48: 0 | L48: 122
A49: 11 | B49: 5196 | C49: 22 | D49: 5202 | E49: 23 | F49: 5208 | K49: 0 | L49: 122
A50: 22 | B50: 5316 | C50: 24 | D50: 5320 | E50: 23 | F50: 5326 | K50: 0 | L50: 222
A51: 11 | B51: 5424 | C51: 22 | D51: 5430 | E51: 23 | F51: 5436 | K51: 0 | L51: 122
A52: 11 | B52: 5545 | C52: 22 | D52: 5550 | E52: 23 | F52: 5556 | K52: 0 | L52: 122
A53: 11 | B53: 5660 | C53: 11 | D53: 5668 | E53: 21 | F53: 5673 | K53: 0 | L53: 112
A54: 22 | B54: 5797 | C54: 24 | D54: 5812 | E54: 23 | F54: 5818 | K54: 0 | L54: 222
A55: 22 | B55: 5924 | C55: 24 | D55: 5931 | E55: 23 | F55: 5939 | K55: 0 | L55: 222
A56: 22 | B56: 6040 | C56: 24 | D56: 6047 | E56: 23 | F56: 6052 | K56: 0 | L56: 222
A57: 22 | B57: 6150 | C57: 13 | D57: 6153 | E57: 23 | F57: 6155 | K57: 0 | L57: 212
A58: 11 | B58: 6248 | C58: 22 | D58: 6255 | E58: 23 | F58: 6262 | K58: 0 | L58: 122
A59: 11 | B59: 6360 | C59: 22 | D59: 6366 | E59: 23 | F59: 6374 | K59: 0 | L59: 122
A60: 11 | B60: 6473 | C60: 22 | D60: 6484 | E60: 23 | F60: 6490 | K60: 0 | L60: 122
A61: 11 | B61: 6591 | C61: 11 | D61: 6600 | E61: 12 | F61: 6605 | K61: 0 | L61: 111
A62: 11 | B62: 6699 | C62: 22 | D62: 6706 | E62: 23 | F62: 6717 | K62: 0 | L62: 122
A63: 11 | B63: 6809 | C63: 11 | D63: 6816 | E63: 21 | F63: 6833 | K63: 0 | L63: 112
A64: 22 | B64: 6969 | C64: 24 | D64: 6986 | E64: 23 | F64: 6994 | K64: 0 | L64: 222
A65: 22 | B65: 7094 | C65: 24 | D65: 7097 | E65: 14 | F65: 7102 | K65: 0 | L65: 221
A66: 11 | B66: 7195 | C66: 22 | D66: 7200 | E66: 23 | F66: 7205 | K66: 0 | L66: 122
A67: 22 | B67: 7303 | C67: 24 | D67: 7307 | E67: 23 | F67: 7311 | K67: 0 | L67: 222
A68: 11 | B68: 7404 | C68: 22 | D68: 7416 | E68: 23 | F68: 7422 | K68: 0 | L68: 122
A69: 11 | B69: 7519 | C69: 22 | D69: 7530 | E69: 23 | F69: 7538 | K69: 0 | L69: 122
A70: 11 | B70: 7632 | C70: 22 | D70: 7639 | E70: 23 | F70: 7644 | K70: 0 | L70: 122
A71: 11 | B71: 7740 | C71: 22 | D71: 7750 | E71: 23 | F71: 7757 | K71: 0 | L71: 122
A72: 11 | B72: 7854 | C72: 22 | D72: 7861 | E72: 23 | F72: 7869 | K72: 0 | L72: 122
A73: 11 | B73: 7964 | C73: 22 | D73: 7977 | E73: 14 | F73: 7981 | K73: 0 | L73: 121
A74: 22 | B74: 8085 | C74: 13 | D74: 8088 | E74: 23 | F74: 8095 | K74: 0 | L74: 212
A75: 11 | B75: 8199 | C75: 22 | D75: 8207 | E75: 23 | F75: 8212 | K75: 0 | L75: 122
A76: 11 | B76: 8317 | C76: 22 | D76: 8320 | E76: 23 | F76: 8324 | K76: 0 | L76: 122
A77: 11 | B77: 8427 | C77: 22 | D77: 8432 | E77: 23 | F77: 8438 | K77: 0 | L77: 122
A78: 22 | B78: 8543 | C78: 24 | D78: 8546 | E78: 14 | F78: 8548 | K78: 0 | L78: 221
A79: 22 | B79: 8643 | C79: 13 | D79: 8645 | E79: 23 | F79: 8660 | K79: 0 | L79: 212
A80: 11 | B80: 8755 | C80: 11 | D80: 8761 | E80: 21 | F80: 8780 | K80: 0 | L80: 112
A81: 22 | B81: 8912 | C81: 13 | D81: 8921 | E81: 23 | F81: 8928 | K81: 0 | L81: 212
A82: 11 | B82: 9035 | C82: 22 | D82: 9040 | E82: 23 | F82: 9045 | K82: 0 | L82: 122
A83: 11 | B83: 9145 | C83: 22 | D83: 9153 | E83: 23 | F83: 9159 | K83: 0 | L83: 122
A84: 11 | B84: 9253 | C84: 22 | D84: 9259 | E84: 23 | F84: 9266 | K84: 0 | L84: 122
A85: 11 | B85: 9364 | C85: 11 | D85: 9372 | E85: 21 | F85: 9383 | K85: 0 | L85: 112
A86: 22 | B86: 9546 | C86: 24 | D86: 9560 | E86: 23 | F86: 9568 | K86: 0 | L86: 222
A87: 11 | B87: 9670 | C87: 22 | D87: 9685 | E87: 23 | F87: 9692 | K87: 0 | L87: 122
A88: 11 | B88: 9787 | C88: 11 | D88: 9794 | E88: 21 | F88: 9795 | K88: 0 | L88: 112
A89: 11 | B89: 9898 | C89: 22 | D89: 9906 | E89: 23 | F89: 9922 | K89: 0 | L89: 122
A90: 22 | B90: 10036 | C90: 24 | D90: 10039 | E90: 14 | F90: 10042 | K90: 0 | L90: 221
A91: 22 | B91: 10144 | C91: 24 | D91: 10155 | E91: 23 | F91: 10161 | K91: 0 | L91: 222
A92: 11 | B92: 10261 | C92: 22 | D92: 10265 | E92: 23 | F92: 10270 | K92: 0 | L92: 122
A93: 22 | B93: 10363 | C93: 13 | D93: 10367 | E93: 23 | F93: 10369 | K93: 0 | L93: 212
A94: 11 | B94: 10474 | C94: 22 | D94: 10479 | E94: 14 | F94: 10484 | K94: 0 | L94: 121
A95: 11 | B95: 10589 | C95: 22 | D95: 10602 | E95: 23 | F95: 10613 | K95: 0 | L95: 122
A96: 11 | B96: 10709 | C96: 11 | D96: 10718 | E96: 21 | F96: 10730 | K96: 0 | L96: 112
A97: 11 | B97: 10853 | C97: 22 | D97: 10862 | E97: 23 | F97: 10870 | K97: 0 | L97: 122
A98: 11 | B98: 10965 | C98: 22 | D98: 10972 | E98: 23 | F98: 10981 | K98: 0 | L98: 122
A99: 22 | B99: 11079 | C99: 13 | D99: 11085 | E99: 23 | F99: 11088 | K99: 0 | L99: 212
A100: 22 | B100: 11192 | C100: 13 | D100: 11195 | E100: 23 | F100: 11203 | K100: 0 | L100: 212
A101: 11 | B101: 11300 | C101: 22 | D101: 11309 | E101: 23 | F101: 11315 | K101: 0 | L101: 122
A102: 11 | B102: 11425 | C102: 22 | D102: 11434 | E102: 23 | F102: 11442 | K102: 0 | L102: 122
A103: 11 | B103: 11545 | C103: 22 | D103: 11550 | E103: 23 | F103: 11556 | K103: 0 | L103: 122
A104: 22 | B104: 11657 | C104: 24 | D104: 11661 | E104: 23 | F104: 11668 | K104: 0 | L104: 222
A105: 11 | B105: 11763 | C105: 11 | D105: 11776 | E105: 21 | F105: 11780 | K105: 0 | L105: 112
A106: 22 | B106: 11943 | C106: 24 | D106: 11946 | E106: 14 | F106: 11949 | K106: 0 | L106: 221
A107: 11 | B107: 12067 | C107: 22 | D107: 12077 | E107: 23 | F107: 12084 | K107: 0 | L107: 122
A108: 11 | B108: 12187 | C108: 22 | D108: 12192 | E108: 23 | F108: 12200 | K108: 0 | L108: 122
A109: 11 | B109: 12292 | C109: 22 | D109: 12310 | E109: 23 | F109: 12314 | K109: 0 | L109: 122
A110: 11 | B110: 12412 | C110: 11 | D110: 12415 | E110: 21 | F110: 12426 | K110: 0 | L110: 112
A111: 11 | B111: 12637 | C111: 22 | D111: 12652 | E111: 23 | F111: 12658 | K111: 0 | L111: 122
A112: 11 | B112: 12756 | C112: 22 | D112: 12759 | E112: 23 | F112: 12776 | K112: 0 | L112: 122
A113: 11 | B113: 12873 | C113: 22 | D113: 12877 | E113: 23 | F113: 12883 | K113: 0 | L113: 122
A114: 11 | B114: 12989 | C114: 22 | D114: 13002 | E114: 23 | F114: 13009 | K114: 0 | L114: 122
A115: 11 | B115: 13110 | C115: 22 | D115: 13128 | E115: 23 | F115: 13134 | K115: 0 | L115: 122
A116: 11 | B116: 13238 | C116: 22 | D116: 13245 | E116: 23 | F116: 13250 | K116: 0 | L116: 122
A117: 22 | B117: 13353 | C117: 24 | D117: 13359 | E117: 14 | F117: 13360 | K117: 0 | L117: 221
A118: 11 | B118: 13475 | C118: 22 | D118: 13480 | E118: 23 | F118: 13482 | K118: 0 | L118: 122
A119: 11 | B119: 13588 | C119: 11 | D119: 13600 | E119: 21 | F119: 13603 | K119: 0 | L119: 112
A120: 22 | B120: 13735 | C120: 24 | D120: 13744 | E120: 23 | F120: 13751 | K120: 0 | L120: 222
A121: 11 | B121: 13854 | C121: 22 | D121: 13862 | E121: 23 | F121: 13873 | K121: 0 | L121: 122
A122: 11 | B122: 13977 | C122: 22 | D122: 13984 | E122: 23 | F122: 13990 | K122: 0 | L122: 122
A123: 22 | B123: 14085 | C123: 24 | D123: 14093 | E123: 23 | F123: 14100 | K123: 0 | L123: 222
A124: 22 | B124: 14205 | C124: 24 | D124: 14210 | E124: 23 | F124: 14217 | K124: 0 | L124: 222
A125: 11 | B125: 14310 | C125: 11 | D125: 14317 | E125: 21 | F125: 14337 | K125: 0 | L125: 112
A126: 11 | B126: 14492 | C126: 11 | D126: 14510 | E126: 21 | F126: 14519 | K126: 0 | L126: 112
A127: 11 | B127: 14752 | C127: 22 | D127: 14779 | E127: 23 | F127: 14792 | K127: 0 | L127: 122
A128: 11 | B128: 14890 | C128: 22 | D128: 14899 | E128: 14 | F128: 14904 | K128: 0 | L128: 121
A129: 11 | B129: 15002 | C129: 11 | D129: 15011 | E129: 21 | F129: 15019 | K129: 0 | L129: 112
A130: 11 | B130: 15147 | C130: 22 | D130: 15159 | E130: 23 | F130: 15165 | K130: 0 | L130: 122
A131: 11 | B131: 15262 | C131: 22 | D131: 15276 | E131: 23 | F131: 15281 | K131: 0 | L131: 122
A132: 11 | B132: 15375 | C132: 22 | D132: 15392 | E132: 23 | F132: 15397 | K132: 0 | L132: 122
A133: 11 | B133: 15497 | C133: 11 | D133: 15508 | E133: 21 | F133: 15515 | K133: 0 | L133: 112
A134: 11 | B134: 15633 | C134: 22 | D134: 15645 | E134: 23 | F134: 15651 | K134: 0 | L134: 122
A135: 11 | B135: 15743 | C135: 22 | D135: 15757 | E135: 23 | F135: 15762 | K135: 0 | L135: 122
A136: 11 | B136: 15862 | C136: 22 | D136: 15868 | E136: 23 | F136: 15873 | K136: 0 | L136: 122
A137: 11 | B137: 15967 | C137: 11 | D137: 15970 | E137: 12 | F137: 15975 | K137: 0 | L137: 111
A138: 22 | B138: 16077 | C138: 13 | D138: 16084 | E138: 23 | F138: 16089 | K138: 0 | L138: 212
A139: 11 | B139: 16186 | C139: 11 | D139: 16189 | E139: 12 | F139: 16205 | K139: 0 | L139: 111
A140: 11 | B140: 16364 | C140: 22 | D140: 16369 | E140: 23 | F140: 16378 | K140: 0 | L140: 122
A141: 11 | B141: 16478 | C141: 22 | D141: 16490 | E141: 23 | F141: 16496 | K141: 0 | L141: 122
A142: 11 | B142: 16595 | C142: 22 | D142: 16605 | E142: 14 | F142: 16608 | K142: 0 | L142: 121
A143: 22 | B143: 16707 | C143: 13 | D143: 16709 | E143: 23 | F143: 16713 | K143: 0 | L143: 212
A144: 11 | B144: 16810 | C144: 11 | D144: 16813 | E144: 12 | F144: 16816 | K144: 0 | L144: 111
A145: 11 | B145: 16913 | C145: 22 | D145: 16927 | E145: 23 | F145: 16941 | K145: 0 | L145: 122
A146: 11 | B146: 17041 | C146: 22 | D146: 17045 | E146: 23 | F146: 17049 | K146: 0 | L146: 122
A147: 11 | B147: 17144 | C147: 22 | D147: 17149 | E147: 14 | F147: 17152 | K147: 0 | L147: 121
A148: 11 | B148: 17264 | C148: 22 | D148: 17268 | E148: 23 | F148: 17277 | K148: 0 | L148: 122
A149: 11 | B149: 17402 | C149: 22 | D149: 17410 | E149: 23 | F149: 17419 | K149: 0 | L149: 122
A150: 11 | B150: 17512 | C150: 11 | D150: 17514 | E150: 21 | F150: 17535 | K150: 0 | L150: 112
A151: 11 | B151: 17644 | C151: 22 | D151: 17663 | E151: 14 | F151: 17666 | K151: 0 | L151: 121
A152: 11 | B152: 17773 | C152: 11 | D152: 17785 | E152: 21 | F152: 17795 | K152: 0 | L152: 112
A153: 22 | B153: 17914 | C153: 13 | D153: 17919 | E153: 23 | F153: 17933 | K153: 0 | L153: 212
A154: 11 | B154: 18038 | C154: 22 | D154: 18044 | E154: 23 | F154: 18056 | K154: 0 | L154: 122
A155: 22 | B155: 18155 | C155: 13 | D155: 18157 | E155: 23 | F155: 18161 | K155: 0 | L155: 212
A156: 11 | B156: 18261 | C156: 22 | D156: 18267 | E156: 23 | F156: 18274 | K156: 0 | L156: 122
A157: 11 | B157: 18373 | C157: 11 | D157: 18391 | E157: 21 | F157: 18396 | K157: 0 | L157: 112
A158: 11 | B158: 18519 | C158: 11 | D158: 18525 | E158: 12 | F158: 18542 | K158: 0 | L158: 111
A159: 11 | B159: 18643 | C159: 22 | D159: 18665 | E159: 23 | F159: 18671 | K159: 0 | L159: 122
A160: 11 | B160: 18765 | C160: 11 | D160: 18781 | E160: 21 | F160: 18785 | K160: 0 | L160: 112
A161: 11 | B161: 18969 | C161: 22 | D161: 18981 | E161: 23 | F161: 18988 | K161: 0 | L161: 122
A162: 11 | B162: 19081 | C162: 11 | D162: 19094 | E162: 21 | F162: 19106 | K162: 0 | L162: 112
A163: 22 | B163: 19245 | C163: 13 | D163: 19251 | E163: 23 | F163: 19262 | K163: 0 | L163: 212
A164: 11 | B164: 19364 | C164: 11 | D164: 19378 | E164: 21 | F164: 19382 | K164: 0 | L164: 112
A165: 11 | B165: 19528 | C165: 11 | D165: 19543 | E165: 21 | F165: 19548 | K165: 0 | L165: 112
A166: 22 | B166: 19745 | C166: 13 | D166: 19749 | E166: 23 | F166: 19762 | K166: 0 | L166: 212
A167: 11 | B167: 19873 | C167: 22 | D167: 19885 | E167: 23 | F167: 19896 | K167: 0 | L167: 122
A168: 11 | B168: 20001 | C168: 22 | D168: 20013 | E168: 23 | F168: 20019 | K168: 0 | L168: 122
A169: 11 | B169: 20131 | C169: 11 | D169: 20135 | E169: 21 | F169: 20144 | K169: 0 | L169: 112
A170: 11 | B170: 20274 | C170: 22 | D170: 20283 | E170: 23 | F170: 20290 | K170: 0 | L170: 122
A171: 11 | B171: 20403 | C171: 22 | D171: 20406 | E171: 23 | F171: 20415 | K171: 0 | L171: 122
A172: 11 | B172: 20518 | C172: 22 | D172: 20531 | E172: 23 | F172: 20537 | K172: 0 | L172: 122
A173: 22 | B173: 20638 | C173: 24 | D173: 20645 | E173: 14 | F173: 20647 | K173: 0 | L173: 221
A174: 11 | B174: 20789 | C174: 11 | D174: 20793 | E174: 21 | F174: 20820 | K174: 1 | L174: 112

Sheet !N109950.Gus
A1: Report for:!N109950.Gus
A2: Date: | B2: <date>
A3: Hen: | B3: <hen> | F3: Correct Sequence | G3: =Start!J2 -> 112 | P3: Total Sequences in Data | Q3: =4994-COUNTBLANK(L7:L5000) -> 190 | V3: Total Sequences in Block Data | W3: =COUNTA(L7:L38) -> 32 | AA3: Total Sequences in Block Data | AB3: =COUNTA(L39:L69) -> 31 | AF3: Total Sequences in Block Data | AG3: =COUNTA(L70:L101) -> 32 | AK3: Total Sequences in Block Data | AL3: =COUNTA(L102:L133) -> 32 | AP3: Total Sequences in Block Data | AQ3: =COUNTA(L134:L164) -> 31 | AU3: Total Sequences in Block Data | AV3: =COUNTA(L165:L196) -> 32
P4: Total Sequences in Summary | Q4: =SUM(O7:O14) -> 190 | V4: Total Sequences in Block Summary | W4: =SUM(U7:U14) -> 32 | AA4: Total Sequences in Block Summary | AB4: =SUM(Z7:Z14) -> 31 | AF4: Total Sequences in Block Summary | AG4: =SUM(AE7:AE14) -> 32 | AK4: Total Sequences in Block Summary | AL4: =SUM(AJ7:AJ14) -> 32 | AP4: Total Sequences in Block Summary | AQ4: =SUM(AO7:AO14) -> 31 | AU4: Total Sequences in Block Summary | AV4: =SUM(AT7:AT14) -> 32
T5: Block 1 | Y5: Block 2 | AD5: Block 3 | AI5: Block 4 | AN5: Block 5 | AS5: Block 6
A6: Sequence Component 1 | B6: Time 1 | C6: Sequence Component 2 | D6: Time 2 | E6: Sequence Component 3 | F6: Time 3 | G6: Sequence Component 4 | H6: Time 4 | I6: Sequence Component 5 | J6: Time 5 | K6: Correct? 0=No 1=Yes | L6: Sequence | N6: Frequency | P6: Relative Frequency | Q6: Variability | T6: Frequency | V6: Relative Frequency | W6: Variability | Y6: Frequency | AA6: Relative Frequency | AB6: Variability | AD6: Frequency | AF6: Relative Frequency | AG6: Variability | AI6: Frequency | AK6: Relative Frequency | AL6: Variability | AN6: Frequency | AP6: Relative Frequency | AQ6: Variability | AS6: Frequency | AU6: Relative Frequency | AV6: Variability
A7: 22 | B7: 2 | C7: 13 | D7: 26 | E7: 23 | F7: 31 | K7: 0 | L7: 212 | N7: 111 | O7: =COUNTIF($L$7:$L$500,N7) -> 6 | P7: =O7/$Q$4 -> 0.03157894737 | Q7: =IF(P7=0,0,(P7*((LOG(P7))/LOG(2)))) -> -0.1574176771 | T7: =N7 -> 111 | U7: =COUNTIF(L7:L38,T7) -> 2 | V7: =U7/(W4-U8) -> 0.07692307692 | W7: =IF(V7=0,0,(V7*((LOG(V7))/LOG(2)))) -> -0.2846492091 | Y7: =N7 -> 111 | Z7: =COUNTIF(L39:L69,Y7) -> 3 | AA7: =Z7/(AB4-Z8) -> 0.12 | AB7: =IF(AA7=0,0,(AA7*((LOG(AA7))/LOG(2)))) -> -0.3670672427 | AD7: =N7 -> 111 | AE7: =COUNTIF(L70:L101,AD7) -> 0 | AF7: =AE7/(AG4-AE8) -> 0 | AG7: =IF(AF7=0,0,(AF7*((LOG(AF7))/LOG(2)))) -> 0 | AI7: =N7 -> 111 | AJ7: =COUNTIF(L102:L133,AI7) -> 1 | AK7: =AJ7/(AL4-AJ8) -> 0.03448275862 | AL7: =IF(AK7=0,0,(AK7*((LOG(AK7))/LOG(2)))) -> -0.167516586 | AN7: =N7 -> 111 | AO7: =COUNTIF(L134:L164,AN7) -> 0 | AP7: =AO7/(AQ4-AO8) -> 0 | AQ7: =IF(AP7=0,0,(AP7*((LOG(AP7))/LOG(2)))) -> 0 | AS7: =N7 -> 111 | AT7: =COUNTIF(L165:L196,AS7) -> 0 | AU7: =AT7/(AV4-AT8) -> 0 | AV7: =IF(AU7=0,0,(AU7*((LOG(AU7))/LOG(2)))) -> 0
A8: 11 | B8: 120 | C8: 22 | D8: 122 | E8: 23 | F8: 138 | K8: 0 | L8: 122 | N8: 112 | O8: 31 | P8: 0.1631578947 | Q8: -0.4267654644 | T8: 112 | U8: =COUNTIF(L7:L38,T8) -> 6 | Y8: 112 | Z8: =COUNTIF(L39:L69,Y8) -> 6 | AD8: 112 | AE8: =COUNTIF(L70:L101,AD8) -> 7 | AI8: 112 | AJ8: =COUNTIF(L102:L133,AI8) -> 3 | AN8: 112 | AO8: =COUNTIF(L134:L164,AN8) -> 3 | AS8: 112 | AT8: =COUNTIF(L165:L196,AS8) -> 6
A9: 11 | B9: 237 | C9: 22 | D9: 250 | E9: 23 | F9: 254 | K9: 0 | L9: 122 | N9: 121 | O9: 16 | P9: 0.08421052632 | Q9: -0.3006194196 | T9: 121 | U9: =COUNTIF(L7:L38,T9) -> 5 | V9: =U9/(W4-U8) -> 0.1923076923 | W9: =IF(V9=0,0,(V9*((LOG(V9))/LOG(2)))) -> -0.4574060814 | Y9: 121 | Z9: =COUNTIF(L39:L69,Y9) -> 4 | AA9: =Z9/(AB4-Z8) -> 0.16 | AB9: =IF(AA9=0,0,(AA9*((LOG(AA9))/LOG(2)))) -> -0.4230169904 | AD9: 121 | AE9: =COUNTIF(L70:L101,AD9) -> 1 | AF9: =AE9/(AG4-AE8) -> 0.04 | AG9: =IF(AF9=0,0,(AF9*((LOG(AF9))/LOG(2)))) -> -0.1857542476 | AI9: 121 | AJ9: =COUNTIF(L102:L133,AI9) -> 3 | AK9: =AJ9/(AL4-AJ8) -> 0.1034482759 | AL9: =IF(AK9=0,0,(AK9*((LOG(AK9))/LOG(2)))) -> -0.3385881201 | AN9: 121 | AO9: =COUNTIF(L134:L164,AN9) -> 2 | AP9: =AO9/(AQ4-AO8) -> 0.07142857143 | AQ9: =IF(AP9=0,0,(AP9*((LOG(AP9))/LOG(2)))) -> -0.271953923 | AS9: 121 | AT9: =COUNTIF(L165:L196,AS9) -> 1 | AU9: =AT9/(AV4-AT8) -> 0.03846153846 | AV9: =IF(AU9=0,0,(AU9*((LOG(AU9))/LOG(2)))) -> -0.180786143
A10: 11 | B10: 351 | C10: 11 | D10: 362 | E10: 21 | F10: 378 | K10: 0 | L10: 112 | N10: 122 | O10: 89 | P10: 0.4684210526 | Q10: -0.512509862 | T10: 122 | U10: =COUNTIF(L7:L38,T10) -> 14 | V10: =U10/(W4-U8) -> 0.5384615385 | W10: -0.4808918133 | Y10: 122 | Z10: =COUNTIF(L39:L69,Y10) -> 13 | AA10: =Z10/(AB4-Z8) -> 0.52 | AB10: -0.4905765652 | AD10: 122 | AE10: =COUNTIF(L70:L101,AD10) -> 16 | AF10: =AE10/(AG4-AE8) -> 0.64 | AG10: -0.4120679615 | AI10: 122 | AJ10: =COUNTIF(L102:L133,AI10) -> 16 | AK10: =AJ10/(AL4-AJ8) -> 0.5517241379 | AL10: -0.4733688249 | AN10: 122 | AO10: =COUNTIF(L134:L164,AN10) -> 19 | AP10: =AO10/(AQ4-AO8) -> 0.6785714286 | AQ10: -0.3796114558 | AS10: 122 | AT10: =COUNTIF(L165:L196,AS10) -> 11 | AU10: =AT10/(AV4-AT8) -> 0.4230769231 | AV10: -0.5250418883
A11: 11 | B11: 479 | C11: 22 | D11: 489 | E11: 14 | F11: 496 | K11: 0 | L11: 121 | N11: 211 | O11: 1 | P11: 0.005263157895 | Q11: -0.03984134531 | T11: 211 | U11: =COUNTIF(L7:L38,T11) -> 0 | V11: =U11/(W4-U8) -> 0 | W11: 0 | Y11: 211 | Z11: =COUNTIF(L39:L69,Y11) -> 0 | AA11: =Z11/(AB4-Z8) -> 0 | AB11: 0 | AD11: 211 | AE11: =COUNTIF(L70:L101,AD11) -> 0 | AF11: =AE11/(AG4-AE8) -> 0 | AG11: 0 | AI11: 211 | AJ11: =COUNTIF(L102:L133,AI11) -> 0 | AK11: =AJ11/(AL4-AJ8) -> 0 | AL11: 0 | AN11: 211 | AO11: =COUNTIF(L134:L164,AN11) -> 1 | AP11: =AO11/(AQ4-AO8) -> 0.03571428571 | AQ11: -0.1716912472 | AS11: 211 | AT11: =COUNTIF(L165:L196,AS11) -> 0 | AU11: =AT11/(AV4-AT8) -> 0 | AV11: 0
A12: 11 | B12: 592 | C12: 22 | D12: 612 | E12: 23 | F12: 620 | K12: 0 | L12: 122 | N12: 212 | O12: 23 | P12: 0.1210526316 | Q12: -0.3687618632 | T12: 212 | U12: =COUNTIF(L7:L38,T12) -> 3 | V12: =U12/(W4-U8) -> 0.1153846154 | W12: -0.3594781405 | Y12: 212 | Z12: =COUNTIF(L39:L69,Y12) -> 2 | AA12: =Z12/(AB4-Z8) -> 0.08 | AB12: -0.2915084952 | AD12: 212 | AE12: =COUNTIF(L70:L101,AD12) -> 3 | AF12: =AE12/(AG4-AE8) -> 0.12 | AG12: -0.3670672427 | AI12: 212 | AJ12: =COUNTIF(L102:L133,AI12) -> 6 | AK12: =AJ12/(AL4-AJ8) -> 0.2068965517 | AL12: -0.4702796885 | AN12: 212 | AO12: =COUNTIF(L134:L164,AN12) -> 4 | AP12: =AO12/(AQ4-AO8) -> 0.1428571429 | AQ12: -0.4010507032 | AS12: 212 | AT12: =COUNTIF(L165:L196,AS12) -> 5 | AU12: =AT12/(AV4-AT8) -> 0.1923076923 | AV12: -0.4574060814
A13: 22 | B13: 749 | C13: 24 | D13: 755 | E13: 23 | F13: 761 | K13: 0 | L13: 222 | N13: 221 | O13: 4 | P13: 0.02105263158 | Q13: -0.1172601181 | T13: 221 | U13: =COUNTIF(L7:L38,T13) -> 0 | V13: =U13/(W4-U8) -> 0 | W13: 0 | Y13: 221 | Z13: =COUNTIF(L39:L69,Y13) -> 1 | AA13: =Z13/(AB4-Z8) -> 0.04 | AB13: -0.1857542476 | AD13: 221 | AE13: =COUNTIF(L70:L101,AD13) -> 0 | AF13: =AE13/(AG4-AE8) -> 0 | AG13: 0 | AI13: 221 | AJ13: =COUNTIF(L102:L133,AI13) -> 0 | AK13: =AJ13/(AL4-AJ8) -> 0 | AL13: 0 | AN13: 221 | AO13: =COUNTIF(L134:L164,AN13) -> 1 | AP13: =AO13/(AQ4-AO8) -> 0.03571428571 | AQ13: -0.1716912472 | AS13: 221 | AT13: =COUNTIF(L165:L196,AS13) -> 2 | AU13: =AT13/(AV4-AT8) -> 0.07692307692 | AV13: -0.2846492091
A14: 11 | B14: 856 | C14: 11 | D14: 882 | E14: 21 | F14: 895 | K14: 0 | L14: 112 | N14: 222 | O14: 20 | P14: 0.1052631579 | Q14: -0.3418871067 | T14: 222 | U14: =COUNTIF(L7:L38,T14) -> 2 | V14: =U14/(W4-U8) -> 0.07692307692 | W14: -0.2846492091 | Y14: 222 | Z14: =COUNTIF(L39:L69,Y14) -> 2 | AA14: =Z14/(AB4-Z8) -> 0.08 | AB14: -0.2915084952 | AD14: 222 | AE14: =COUNTIF(L70:L101,AD14) -> 5 | AF14: =AE14/(AG4-AE8) -> 0.2 | AG14: -0.464385619 | AI14: 222 | AJ14: =COUNTIF(L102:L133,AI14) -> 3 | AK14: =AJ14/(AL4-AJ8) -> 0.1034482759 | AL14: -0.3385881201 | AN14: 222 | AO14: =COUNTIF(L134:L164,AN14) -> 1 | AP14: =AO14/(AQ4-AO8) -> 0.03571428571 | AQ14: -0.1716912472 | AS14: 222 | AT14: =COUNTIF(L165:L196,AS14) -> 7 | AU14: =AT14/(AV4-AT8) -> 0.2692307692 | AV14: -0.5096766759
A15: 11 | B15: 1011 | C15: 22 | D15: 1037 | E15: 23 | F15: 1043 | K15: 0 | L15: 122 | P15: =SUM(P7:P14) -> 1 | Q15: =-SUM(Q7:Q14) -> 2.265062856 | V15: =SUM(V7:V14) -> 1 | W15: =-SUM(W7:W14) -> 1.867074453 | AA15: =SUM(AA7:AA14) -> 1 | AB15: =-SUM(AB7:AB14) -> 2.049432036 | AF15: =SUM(AF7:AF14) -> 1 | AG15: =-SUM(AG7:AG14) -> 1.429275071 | AK15: =SUM(AK7:AK14) -> 1 | AL15: =-SUM(AL7:AL14) -> 1.78834134 | AP15: =SUM(AP7:AP14) -> 1 | AQ15: =-SUM(AQ7:AQ14) -> 1.567689824 | AU15: =SUM(AU7:AU14) -> 1 | AV15: =-SUM(AV7:AV14) -> 1.957559998
A16: 11 | B16: 1139 | C16: 11 | D16: 1153 | E16: 21 | F16: 1163 | K16: 0 | L16: 112 | P16: U= | Q16: =Q15/(LOG(Q4)/LOG(2)) -> 0.2992214084 | V16: U1= | W16: =W15/(LOG(W4)/LOG(2)) -> 0.3734148907 | AA16: U2= | AB16: =AB15/(LOG(AB4)/LOG(2)) -> 0.4136759845 | AF16: U3= | AG16: =AG15/(LOG(AG4)/LOG(2)) -> 0.2858550141 | AK16: U4= | AL16: =AL15/(LOG(AL4)/LOG(2)) -> 0.3576682679 | AP16: U5= | AQ16: =AQ15/(LOG(AQ4)/LOG(2)) -> 0.3164367589 | AU16: U6= | AV16: =AV15/(LOG(AV4)/LOG(2)) -> 0.3915119995
A17: 22 | B17: 1256 | C17: 13 | D17: 1267 | E17: 23 | F17: 1280 | K17: 0 | L17: 212
A18: 22 | B18: 1387 | C18: 24 | D18: 1392 | E18: 23 | F18: 1402 | K18: 0 | L18: 222
A19: 11 | B19: 1505 | C19: 22 | D19: 1513 | E19: 23 | F19: 1517 | K19: 0 | L19: 122 | N19: Total Target Seq
A20: 11 | B20: 1610 | C20: 11 | D20: 1620 | E20: 21 | F20: 1626 | K20: 0 | L20: 112 | N20: =COUNTIF(L7:L196,G3) -> 31 | P20: 32 | Q20: 31 | R20: 32 | S20: 32 | T20: 31 | U20: 32
A21: 11 | B21: 1719 | C21: 22 | D21: 1730 | E21: 14 | F21: 1734 | K21: 0 | L21: 121 | P21: % of reinforcement given in 6 equal intervals based on number of trials
A22: 11 | B22: 1836 | C22: 22 | D22: 1849 | E22: 23 | F22: 1856 | K22: 0 | L22: 122 | P22: %_1 | Q22: %_2 | R22: %_3 | S22: %_4 | T22: %_5 | U22: %_6
A23: 11 | B23: 1956 | C23: 22 | D23: 1958 | E23: 23 | F23: 1964 | K23: 0 | L23: 122 | O23: target sequence | P23: =$G$3 -> 112 | Q23: 112 | R23: 112 | S23: 112 | T23: 112 | U23: 112
A24: 11 | B24: 2065 | C24: 22 | D24: 2075 | E24: 23 | F24: 2080 | K24: 0 | L24: 122 | O24: total reinforcement | P24: =U8 -> 6 | Q24: =Z8 -> 6 | R24: =AE8 -> 7 | S24: =AJ8 -> 3 | T24: =AO8 -> 3 | U24: =AT8 -> 6
A25: 11 | B25: 2181 | C25: 11 | D25: 2184 | E25: 12 | F25: 2187 | K25: 0 | L25: 111 | O25: % target
A26: 11 | B26: 2282 | C26: 22 | D26: 2297 | E26: 14 | F26: 2299 | K26: 0 | L26: 121 | O26: CCRF
A27: 11 | B27: 2394 | C27: 11 | D27: 2399 | E27: 12 | F27: 2409 | K27: 0 | L27: 111 | O27: % CCRf
A28: 11 | B28: 2508 | C28: 22 | D28: 2519 | E28: 14 | F28: 2521 | K28: 0 | L28: 121 | O28: average response rate | P28: =F38/P20 -> 114.90625 | Q28: =(F69-F38)/Q20 -> 126 | R28: =(F101-F69)/R20 -> 132.25 | S28: =(F133-F101)/S20 -> 121.6875 | T28: =(F164-F133)/T20 -> 123.0322581 | U28: =(F196-F164)/U20 -> 137.96875
A29: 11 | B29: 2624 | C29: 11 | D29: 2641 | E29: 21 | F29: 2643 | K29: 0 | L29: 112
A30: 11 | B30: 2741 | C30: 22 | D30: 2751 | E30: 23 | F30: 2759 | K30: 0 | L30: 122
A31: 11 | B31: 2869 | C31: 22 | D31: 2882 | E31: 23 | F31: 2889 | K31: 0 | L31: 122
A32: 11 | B32: 2989 | C32: 22 | D32: 2992 | E32: 23 | F32: 2998 | K32: 0 | L32: 122
A33: 22 | B33: 3103 | C33: 13 | D33: 3107 | E33: 23 | F33: 3109 | K33: 0 | L33: 212
A34: 11 | B34: 3209 | C34: 22 | D34: 3216 | E34: 23 | F34: 3222 | K34: 0 | L34: 122
A35: 11 | B35: 3329 | C35: 22 | D35: 3336 | E35: 23 | F35: 3349 | K35: 0 | L35: 122
A36: 11 | B36: 3443 | C36: 22 | D36: 3448 | E36: 14 | F36: 3453 | K36: 0 | L36: 121
A37: 11 | B37: 3554 | C37: 22 | D37: 3559 | E37: 23 | F37: 3564 | K37: 0 | L37: 122
A38: 11 | B38: 3656 | C38: 11 | D38: 3673 | E38: 21 | F38: 3677 | K38: 0 | L38: 112
A39: 22 | B39: 3799 | C39: 24 | D39: 3809 | E39: 23 | F39: 3816 | K39: 0 | L39: 222
A40: 11 | B40: 3924 | C40: 11 | D40: 3937 | E40: 12 | F40: 3939 | K40: 0 | L40: 111
A41: 11 | B41: 4040 | C41: 11 | D41: 4044 | E41: 12 | F41: 4054 | K41: 0 | L41: 111
A42: 11 | B42: 4149 | C42: 11 | D42: 4158 | E42: 21 | F42: 4161 | K42: 0 | L42: 112
A43: 11 | B43: 4250 | C43: 11 | D43: 4260 | E43: 21 | F43: 4270 | K43: 0 | L43: 112
A44: 11 | B44: 4520 | C44: 11 | D44: 4537 | E44: 21 | F44: 4556 | K44: 0 | L44: 112
A45: 22 | B45: 4718 | C45: 24 | D45: 4721 | E45: 14 | F45: 4729 | K45: 0 | L45: 221
A46: 11 | B46: 4823 | C46: 22 | D46: 4851 | E46: 23 | F46: 4865 | K46: 0 | L46: 122
A47: 11 | B47: 4958 | C47: 22 | D47: 4971 | E47: 23 | F47: 4981 | K47: 0 | L47: 122
A48: 11 | B48: 5082 | C48: 22 | D48: 5093 | E48: 23 | F48: 5098 | K48: 0 | L48: 122
A49: 22 | B49: 5194 | C49: 13 | D49: 5200 | E49: 23 | F49: 5203 | K49: 0 | L49: 212
A50: 11 | B50: 5299 | C50: 22 | D50: 5316 | E50: 23 | F50: 5324 | K50: 0 | L50: 122
A51: 22 | B51: 5437 | C51: 13 | D51: 5439 | E51: 23 | F51: 5445 | K51: 0 | L51: 212
A52: 11 | B52: 5540 | C52: 22 | D52: 5550 | E52: 14 | F52: 5551 | K52: 0 | L52: 121
A53: 11 | B53: 5642 | C53: 22 | D53: 5656 | E53: 23 | F53: 5663 | K53: 0 | L53: 122
A54: 11 | B54: 5758 | C54: 11 | D54: 5766 | E54: 21 | F54: 5771 | K54: 0 | L54: 112
A55: 11 | B55: 5869 | C55: 22 | D55: 5881 | E55: 14 | F55: 5886 | K55: 0 | L55: 121
A56: 11 | B56: 5981 | C56: 11 | D56: 5985 | E56: 21 | F56: 5990 | K56: 0 | L56: 112
A57: 11 | B57: 6100 | C57: 22 | D57: 6112 | E57: 23 | F57: 6119 | K57: 0 | L57: 122
A58: 22 | B58: 6227 | C58: 24 | D58: 6234 | E58: 23 | F58: 6247 | K58: 0 | L58: 222
A59: 11 | B59: 6342 | C59: 22 | D59: 6348 | E59: 23 | F59: 6355 | K59: 0 | L59: 122
A60: 11 | B60: 6463 | C60: 22 | D60: 6475 | E60: 23 | F60: 6482 | K60: 0 | L60: 122
A61: 11 | B61: 6586 | C61: 22 | D61: 6595 | E61: 14 | F61: 6599 | K61: 0 | L61: 121
A62: 11 | B62: 6706 | C62: 22 | D62: 6718 | E62: 23 | F62: 6724 | K62: 0 | L62: 122
A63: 11 | B63: 6823 | C63: 22 | D63: 6836 | E63: 23 | F63: 6843 | K63: 0 | L63: 122
A64: 11 | B64: 6937 | C64: 22 | D64: 6956 | E64: 23 | F64: 6963 | K64: 0 | L64: 122
A65: 11 | B65: 7060 | C65: 22 | D65: 7070 | E65: 14 | F65: 7073 | K65: 0 | L65: 121
A66: 11 | B66: 7171 | C66: 11 | D66: 7175 | E66: 12 | F66: 7187 | K66: 0 | L66: 111
A67: 11 | B67: 7318 | C67: 22 | D67: 7333 | E67: 23 | F67: 7339 | K67: 0 | L67: 122
A68: 11 | B68: 7433 | C68: 22 | D68: 7449 | E68: 23 | F68: 7459 | K68: 0 | L68: 122
A69: 11 | B69: 7566 | C69: 11 | D69: 7570 | E69: 21 | F69: 7583 | K69: 0 | L69: 112
A70: 22 | B70: 7699 | C70: 24 | D70: 7705 | E70: 23 | F70: 7713 | K70: 0 | L70: 222
A71: 11 | B71: 7808 | C71: 22 | D71: 7814 | E71: 23 | F71: 7819 | K71: 0 | L71: 122
A72: 11 | B72: 7912 | C72: 22 | D72: 7938 | E72: 23 | F72: 7944 | K72: 0 | L72: 122
A73: 22 | B73: 8042 | C73: 13 | D73: 8045 | E73: 23 | F73: 8047 | K73: 0 | L73: 212
A74: 11 | B74: 8149 | C74: 22 | D74: 8167 | E74: 23 | F74: 8174 | K74: 0 | L74: 122
A75: 11 | B75: 8268 | C75: 11 | D75: 8284 | E75: 21 | F75: 8287 | K75: 0 | L75: 112
A76: 11 | B76: 8397 | C76: 22 | D76: 8421 | E76: 23 | F76: 8428 | K76: 0 | L76: 122
A77: 11 | B77: 8534 | C77: 22 | D77: 8538 | E77: 23 | F77: 8543 | K77: 0 | L77: 122
A78: 11 | B78: 8645 | C78: 22 | D78: 8659 | E78: 23 | F78: 8665 | K78: 0 | L78: 122
A79: 11 | B79: 8767 | C79: 11 | D79: 8771 | E79: 21 | F79: 8780 | K79: 0 | L79: 112
A80: 11 | B80: 9030 | C80: 22 | D80: 9040 | E80: 23 | F80: 9048 | K80: 0 | L80: 122
A81: 22 | B81: 9158 | C81: 24 | D81: 9164 | E81: 23 | F81: 9171 | K81: 0 | L81: 222
A82: 11 | B82: 9270 | C82: 11 | D82: 9273 | E82: 21 | F82: 9281 | K82: 0 | L82: 112
A83: 22 | B83: 9385 | C83: 13 | D83: 9393 | E83: 23 | F83: 9402 | K83: 0 | L83: 212
A84: 22 | B84: 9505 | C84: 24 | D84: 9511 | E84: 23 | F84: 9517 | K84: 0 | L84: 222
A85: 11 | B85: 9624 | C85: 22 | D85: 9628 | E85: 23 | F85: 9634 | K85: 0 | L85: 122
A86: 11 | B86: 9729 | C86: 22 | D86: 9738 | E86: 14 | F86: 9742 | K86: 0 | L86: 121
A87: 11 | B87: 9846 | C87: 22 | D87: 9849 | E87: 23 | F87: 9855 | K87: 0 | L87: 122
A88: 11 | B88: 9949 | C88: 22 | D88: 9952 | E88: 23 | F88: 9958 | K88: 0 | L88: 122
A89: 11 | B89: 10051 | C89: 11 | D89: 10056 | E89: 21 | F89: 10070 | K89: 0 | L89: 112
A90: 11 | B90: 10223 | C90: 22 | D90: 10232 | E90: 23 | F90: 10241 | K90: 0 | L90: 122
A91: 11 | B91: 10337 | C91: 22 | D91: 10346 | E91: 23 | F91: 10357 | K91: 0 | L91: 122
A92: 11 | B92: 10451 | C92: 11 | D92: 10458 | E92: 21 | F92: 10468 | K92: 0 | L92: 112
A93: 11 | B93: 10678 | C93: 22 | D93: 10691 | E93: 23 | F93: 10698 | K93: 0 | L93: 122
A94: 22 | B94: 10793 | C94: 24 | D94: 10806 | E94: 23 | F94: 10812 | K94: 0 | L94: 222
A95: 11 | B95: 10915 | C95: 22 | D95: 10934 | E95: 23 | F95: 10948 | K95: 0 | L95: 122
A96: 11 | B96: 11048 | C96: 22 | D96: 11058 | E96: 23 | F96: 11066 | K96: 0 | L96: 122
A97: 22 | B97: 11165 | C97: 24 | D97: 11175 | E97: 23 | F97: 11180 | K97: 0 | L97: 222
A98: 11 | B98: 11275 | C98: 11 | D98: 11281 | E98: 21 | F98: 11285 | K98: 0 | L98: 112
A99: 11 | B99: 11401 | C99: 11 | D99: 11404 | E99: 21 | F99: 11417 | K99: 0 | L99: 112
A100: 22 | B100: 11682 | C100: 13 | D100: 11684 | E100: 23 | F100: 11694 | K100: 0 | L100: 212
A101: 11 | B101: 11799 | C101: 22 | D101: 11811 | E101: 23 | F101: 11815 | K101: 0 | L101: 122
A102: 11 | B102: 11908 | C102: 11 | D102: 11915 | E102: 21 | F102: 11921 | K102: 0 | L102: 112
A103: 11 | B103: 12052 | C103: 22 | D103: 12067 | E103: 23 | F103: 12073 | K103: 0 | L103: 122
A104: 22 | B104: 12203 | C104: 13 | D104: 12208 | E104: 23 | F104: 12220 | K104: 0 | L104: 212
A105: 11 | B105: 12320 | C105: 22 | D105: 12326 | E105: 23 | F105: 12332 | K105: 0 | L105: 122
A106: 11 | B106: 12425 | C106: 22 | D106: 12429 | E106: 23 | F106: 12435 | K106: 0 | L106: 122
A107: 11 | B107: 12531 | C107: 22 | D107: 12539 | E107: 14 | F107: 12543 | K107: 0 | L107: 121
A108: 22 | B108: 12635 | C108: 24 | D108: 12651 | E108: 23 | F108: 12656 | K108: 0 | L108: 222
A109: 22 | B109: 12756 | C109: 13 | D109: 12758 | E109: 23 | F109: 12766 | K109: 0 | L109: 212
A110: 11 | B110: 12871 | C110: 22 | D110: 12888 | E110: 23 | F110: 12894 | K110: 0 | L110: 122
A111: 11 | B111: 12990 | C111: 22 | D111: 12995 | E111: 23 | F111: 13001 | K111: 0 | L111: 122
A112: 11 | B112: 13101 | C112: 22 | D112: 13117 | E112: 23 | F112: 13129 | K112: 0 | L112: 122
A113: 11 | B113: 13222 | C113: 22 | D113: 13249 | E113: 23 | F113: 13259 | K113: 0 | L113: 122
A114: 22 | B114: 13369 | C114: 24 | D114: 13375 | E114: 23 | F114: 13380 | K114: 0 | L114: 222
A115: 22 | B115: 13485 | C115: 24 | D115: 13491 | E115: 23 | F115: 13498 | K115: 0 | L115: 222
A116: 22 | B116: 13605 | C116: 13 | D116: 13610 | E116: 23 | F116: 13621 | K116: 0 | L116: 212
A117: 11 | B117: 13717 | C117: 22 | D117: 13720 | E117: 23 | F117: 13725 | K117: 0 | L117: 122
A118: 11 | B118: 13828 | C118: 22 | D118: 13834 | E118: 23 | F118: 13842 | K118: 0 | L118: 122
A119: 22 | B119: 13944 | C119: 13 | D119: 13950 | E119: 23 | F119: 13957 | K119: 0 | L119: 212
A120: 22 | B120: 14066 | C120: 13 | D120: 14070 | E120: 23 | F120: 14073 | K120: 0 | L120: 212
A121: 11 | B121: 14168 | C121: 11 | D121: 14172 | E121: 12 | F121: 14183 | K121: 0 | L121: 111
A122: 11 | B122: 14283 | C122: 22 | D122: 14294 | E122: 14 | F122: 14297 | K122: 0 | L122: 121
A123: 11 | B123: 14402 | C123: 22 | D123: 14411 | E123: 23 | F123: 14417 | K123: 0 | L123: 122
